Workbook

Sheet Instructions for use
A1: PLUTO Single site calculator
A2: This spreadsheet enables the classification of phytoplankton in lakes using the procedure laid out in the following document:
A3: UKTAG Lake Assessment Method, Phytoplankton, PLUTO method statement
A4: Instructions for use
A5: This calculator spreadsheet enables the classification of one lake at a time.
A6: 1) Sheet! Site Data
A7: Enter details of lake in green cells, B2:B7.
A8: Mean alkalinity, mean depth and humic type must be entered as these are needed to determine reference values for metrics
A9: 2) Sheet! Chlorophyll Data
A10: Enter raw chlorophyll data into columns B14-D14. Sample date, qualifier (if it's a < value) and result are required, in that order. Ensure that all previous data has been either copied over or deleted.
A11: Column E14. Change to "TRUE" only if there is a good reason to exclude a data point. If you want to investigate the impacts of a high value on the overall classification, it is possible to include or exclude the value using column E. Only finally exclude any value if there is good reason to assume it is an outlier.
A12: Click the "refresh pivot table" button to update the pivot table which calculates the values E2:E5. if the calculations do not appear to have been updated as a result, check the filter (Sheet!Chl_PivotTable cell B1), which may need manually setting to the years of data you have entered.
A13: If you only have pre-calculated summary data, enter these values into cells D2:D5
A14: D6 set this cell to "1" only if the chlorophyll data is not reasonably evenly spaced throughout the sampling period.
A15: Columns K to M show the calculated values for the summary statistics, EQRs and boundary values for chlorophyll.
A16: 3) Sheet! Taxa_Data
A17: Enter raw species biovolume data into columns A - C. Required information is date, species code (this is the Whitton Code and is needed to lookup the taxon optima), biovolume data, um3/mL. Ensure that all previous data has been either copied over or deleted.
A18: 4) Sheet! Taxa_PivotTable
A19: Click the "refresh pivot table" button to update the pivot table which calculates total biovolume for each taxa.
A20: Sheet! Taxon EQRs
A21: For each sample with species biovolume data, the observed and expected metric values are shown along with the calculated EQRs, normalised EQRs and status. These values are all provider per sample.
A22: Sheet! Classification
A23: This sheet shows the overall normalised EQR for each of chlorophyll, PTI and cyanobacteria, plus the combinations to calculate the overall lake ERQ and classification. The overall face value status class for each metric and the combined metrics is given in column O. Columns Q to U provide the statistical confidence of the EQR falling into each classification band, the "Confidence of Class".
A24: To calculate the confidence of being "worse than good", for each row, sum the values in columns S, T and U.

Sheet Version
A15: V2 | B15: 2012-09-14 | C15: Modified confidence of class calculations to use student t distribution as sample sizes are small. Modifed layout of spreadsheet
B16: To get mEq/L alkalinity from mg/L divide mg/l by 50.045 (SGD)
A17: V2b | B17: 2013-03-19 | C17: Corrected formula in row 10 of sheet Calc_Taxon_EQRs to prevent -ve Cyan EQR
A18: V2c | B18: 2013-03-26 | C18: Corrected formula in colD of sheet Chlorophyll Data to calculate correct quarter (October was wrong)
B19: 2013-03-26 | C19: Added data rule to precent numbers being entered instead of text for taxon codes
A20: V2d | B20: 2013-05-24 | C20: Correced Site & Taxon sheet to ensure Marl lake type is identified and thus correct PTI normalisation used
A22: V4c | B22: 2013-09-09 | C22: Corrected LU table PTI normalisation parameters.
C23: Corrected equation used to determine ref Cyan in Taxon EQRs
C24: Deleted % cyanobacteria from Taxon EQRs
C25: Stopped auto run of Pivot Table on open to avoid errors
C26: Updated VBA code to unprotect sheets needed when updating pivot tables
A27: V4c_SDamended | B27: 2013-09-09 | C27: Corrected formula for cyano EQRnorm calc, by referring formula to $B$8, not $B$10
C28: Corrected class widths in LU table for HA cyano calcs, I3:I7
B29: 2013-09-11 | C29: Site data sheet, corrected formula in B9 so that MA lakes are picked up, changed <0.1 to <1
A30: V4d_Sdamended | B30: 2013-09-12 | C30: Inserted HADC lake type into LU table for PTI, assumed same as shallow lakes
B31: 2013-09-12 | C31: Changed MP EQR for LAD lakes from 0.15 to 0.17, in LU table cell Y32
A32: V4e_Sdamended | B32: 2013-09-24 | C32: Added instructions worksheet and edited instructions in "site data" and "chlorophyll data" worksheets
A33: V4f | B33: 2013-02-27 | C33: Sheet!TaxonEQRs, corrected formulae in row 12 to enable them to pick up blue-greens down to the end of the taxa list (row 300). It was previously reading only to row 80
A34: V4g | B34: 2014-06-16 | C34: Sheet!TaxonEQRs, corrected formula in cell K10, so that it reads to row 300, rather than row 30, which was an error made when previously correcting formulae
A35: V4h | B35: 2014-06-26 | C35: Chlorophyll pivot table refresh issues resolved and taxon pivot table sort changed.
B36: 2014-09-17 | C36: Instructions updated and licence text added.

Sheet Licence

Sheet Site Data
A1: Site Details
A2: UK Lake WBID | B2: 28986 | H2: Humic Type
A3: Lake Name | B3: Loweswater | H3: Clear | I3: C
A4: Mean alkalinity (mEq/L) | B4: 0.198 | H4: Humic | I4: H
A5: Mean depth (m) | B5: 8.37
A6: Humic Type (Clear, Humic) | B6: C
A7: Marl Lake | H7: Marl
A9: Geology Type (LA, MA, HA, Marl) | B9: =IF(B4="","Enter Alkalinity",IF(B7="Marl","Marl",IF(B4<0.2,"LA",IF(B4>1,"HA","MA")))) -> LA
A10: Depth Type (D, S, VS) | B10: =IF(B5="","Enter mean depth", IF(B5>15,"D",IF(B5<3,"VS","S"))) -> S
A11: GIG Type | B11: =VLOOKUP(($B$9&$B$10&$B$6),LU!$A$29:$B$49,2,FALSE) -> L-N2a
A12: Chl Boundary Type | B12: =VLOOKUP(($B$9&$B$10&$B$6),LU!$A$29:$D$49,3,FALSE) -> 4

Sheet Chlorophyll Data
B1: Enter Summary Data | E1: Calculate from data below | K1: ='Site Data'!B3 &" (WB"&'Site Data'!B2&")" -> Loweswater (WB28986)
B2: Mean Log10 Chl | E2: =Chl_PivotTable!B17 -> 0.6796816852 | K2: Reference Chlorophyll a (ug/l) | M2: =10^(0.223+0.166*LOG('Site Data'!B4)+0.684*SQRT(1/'Site Data'!B5)) -> 2.201260335
B3: StDev Log10 Chl | E3: =Chl_PivotTable!B18 -> 0.3308894655 | K3: Min Reference allowed | M3: =VLOOKUP('Site Data'!$B$11,LU!$F$27:$J$35,4) -> 1.327174283
B4: Count Chl | E4: =Chl_PivotTable!B19 -> 36 | K4: Max Reference allowed | M4: =VLOOKUP('Site Data'!$B$11,LU!$F$27:$J$35,5) -> 2.211957139
B5: Years of data | E5: =Chl_PivotTable!B20 -> 3 | K5: Reference used | M5: =IF(M2<M3,M3,IF(M2>M4,M4,M2)) -> 2.201260335
B6: Set to 1 if chlorophyll samples are not at regular intervals | K6: Chlorophyll EQR | L6: ChlEQR | M6: =M5/M15 -> 0.4602456822
K7: Normalised chlorophyll EQR | L7: ChlEQRnorm | M7: =IF('Site Data'!$B12=1,((M6-VLOOKUP(M6,LU!$M$29:$O$34,1))/VLOOKUP(M6,LU!$M$29:$O$34,2)*0.2)+VLOOKUP(M6,LU!$M$29:$O$34,3),IF('Site Data'!$B12=2,((M6-VLOOKUP(M6,LU!$P$29:$R$34,1))/VLOOKUP(M6,LU!$P$29:$R$34,2)*0.2)+VLOOKUP(M6,LU!$P$29:$R$34,3),IF('Site Data'!$B12=3,((M6-VLOOKUP(M6,LU!$S$29:$U$34,1))/VLOOKUP(M6,LU!$S$29:$U$34,2)*0.2)+VLOOKUP(M6,LU!$S$29:$U$34,3),IF('Site Data'!$B12=4,((M6-VLOOKUP(M6,LU!$V$29:$X$34,1))/VLOOKUP(M6,LU!$V$29:$X$34,2)*0.2)+VLOOKUP(M6,LU!$V$29:$X$34,3),((M6-VLOOKUP(M6,LU!$Y$29:$AA$34,1))/VLOOKUP(M6,LU!$Y$29:$AA$34,2)*0.2)+VLOOKUP(M6,LU!$Y$29:$AA$34,3))))) -> 0.697283247
K8: Lower 95th confidence limit chlorophyll | L8: L95CL | M8: =10^($M$18-TINV(0.05,($M$20-1))*$M$16) -> 4.129301167
K9: Upper 95th confidence limit chlorophyll EQR | L9: U95EQR | M9: =M5/M8 -> 0.5330830195
K10: Upper 95th confidence limit normalised chlorophyll EQR | L10: U95EQRnorm | M10: =IF('Site Data'!$B12=1,((M9-VLOOKUP(M9,LU!$M$29:$O$34,1))/VLOOKUP(M9,LU!$M$29:$O$34,2)*0.2)+VLOOKUP(M9,LU!$M$29:$O$34,3),IF('Site Data'!$B12=2,((M9-VLOOKUP(M9,LU!$P$29:$R$34,1))/VLOOKUP(M9,LU!$P$29:$R$34,2)*0.2)+VLOOKUP(M9,LU!$P$29:$R$34,3),IF('Site Data'!$B12=3,((M9-VLOOKUP(M9,LU!$S$29:$U$34,1))/VLOOKUP(M9,LU!$S$29:$U$34,2)*0.2)+VLOOKUP(M9,LU!$S$29:$U$34,3),IF('Site Data'!$B12=4,((M9-VLOOKUP(M9,LU!$V$29:$X$34,1))/VLOOKUP(M9,LU!$V$29:$X$34,2)*0.2)+VLOOKUP(M9,LU!$V$29:$X$34,3),((M9-VLOOKUP(M9,LU!$Y$29:$AA$34,1))/VLOOKUP(M9,LU!$Y$29:$AA$34,2)*0.2)+VLOOKUP(M9,LU!$Y$29:$AA$34,3))))) -> 0.7389045826
K11: Upper 95th confidence limit chlorophyll | L11: U95CL | M11: =10^($M$18+TINV(0.05,($M$20-1))*$M$16) -> 5.539707207
K12: Lower 95th confidence limit chlorophyll EQR | L12: L95EQR | M12: =M5/M11 -> 0.3973604114
B13: SAMPLE_DATE | C13: Qualifier | D13: RESULT | E13: Exclude | F13: Month | G13: Year | H13: Chl used | I13: Log10Chl | K13: Lower 95th confidence limit normalised chlorophyll EQR | L13: L95EQRnorm | M13: =IF('Site Data'!$B12=1,((M12-VLOOKUP(M12,LU!$M$29:$O$34,1))/VLOOKUP(M12,LU!$M$29:$O$34,2)*0.2)+VLOOKUP(M12,LU!$M$29:$O$34,3),IF('Site Data'!$B12=2,((M12-VLOOKUP(M12,LU!$P$29:$R$34,1))/VLOOKUP(M12,LU!$P$29:$R$34,2)*0.2)+VLOOKUP(M12,LU!$P$29:$R$34,3),IF('Site Data'!$B12=3,((M12-VLOOKUP(M12,LU!$S$29:$U$34,1))/VLOOKUP(M12,LU!$S$29:$U$34,2)*0.2)+VLOOKUP(M12,LU!$S$29:$U$34,3),IF('Site Data'!$B12=4,((M12-VLOOKUP(M12,LU!$V$29:$X$34,1))/VLOOKUP(M12,LU!$V$29:$X$34,2)*0.2)+VLOOKUP(M12,LU!$V$29:$X$34,3),((M12-VLOOKUP(M12,LU!$Y$29:$AA$34,1))/VLOOKUP(M12,LU!$Y$29:$AA$34,2)*0.2)+VLOOKUP(M12,LU!$Y$29:$AA$34,3))))) -> 0.6613488065
A14: 1 | B14: 2010-01-22 | D14: 2.7 | E14: FALSE | F14: =IF(B14="","",IF(E14=TRUE,"",MONTH(B14))) -> 1 | G14: =IF(B14="","",YEAR(B14)) -> 2010 | H14: =IF(B14="","",IF(E14=TRUE,"",IF(C14="<",D14/2,D14))) -> 2.7 | I14: =IF(H14="","",LOG(H14)) -> 0.4313637642 | K14: Standard error normalised chlorophyll EQR | L14: SEEQRnorm | M14: =(M10-M13)/(2*TINV(0.05,(M20-1))) -> 0.01910139235
A15: 2 | B15: 2010-02-18 | D15: 8.5 | E15: FALSE | F15: 2 | G15: =IF(B15="","",YEAR(B15)) -> 2010 | H15: =IF(B15="","",IF(E15=TRUE,"",IF(C15="<",D15/2,D15))) -> 8.5 | I15: =IF(H15="","",LOG(H15)) -> 0.9294189257 | K15: Geometric mean chlorophyll concentration (ug/l) | L15: GeoMean Chl | M15: =10^(M18) -> 4.782794104
A16: 3 | B16: 2010-03-24 | D16: 13.8 | E16: FALSE | F16: 3 | G16: 2010 | H16: 13.8 | I16: 1.139879086 | K16: Adjusted standard error log10 transformed chlorophyll | L16: AdjSE Chl | M16: =IF(D6=1,M17,M17*1.0293*M21^-0.2379) -> 0.03142942565
A17: 4 | B17: 2010-04-29 | D17: 7.5 | E17: FALSE | F17: =IF(B17="","",IF(E17=TRUE,"",MONTH(B17))) -> 4 | G17: 2010 | H17: 7.5 | I17: 0.8750612634 | K17: Standard error log10 transformed chlorophyll concentration | L17: SE LogChl | M17: =M19/SQRT(M20) -> 0.05514824425
A18: 5 | B18: 2010-05-24 | D18: 2.6 | E18: FALSE | F18: =IF(B18="","",IF(E18=TRUE,"",MONTH(B18))) -> 5 | G18: 2010 | H18: 2.6 | I18: 0.414973348 | K18: Mean log10 transformed chlorophyll concentration | L18: mean LogChl | M18: =IF(ISNUMBER(D2),D2,E2) -> 0.6796816852
A19: 6 | B19: 2010-06-21 | D19: 2.3 | E19: FALSE | F19: 6 | G19: 2010 | H19: 2.3 | I19: 0.361727836 | K19: Standard deviation log10 transformed chlorophyll concentration | L19: StDev LogChl | M19: =IF(ISNUMBER(D3),D3,E3) -> 0.3308894655
A20: 7 | B20: 2010-07-07 | D20: 2.8 | E20: FALSE | F20: 7 | G20: 2010 | H20: 2.8 | I20: 0.4471580313 | K20: Number of chlorophyll samples | L20: N | M20: =IF(ISNUMBER(D4),D4,E4) -> 36
A21: 8 | B21: 2010-08-12 | D21: 6.7 | E21: FALSE | F21: 8 | G21: 2010 | H21: 6.7 | I21: 0.8260748027 | K21: Number of chlorophyll samples per year | L21: N/yr | M21: =IF(ISNUMBER(D5),ROUND(M20/D5,0),ROUND(M20/E5,0)) -> 12
A22: 9 | B22: 2010-09-03 | D22: 7.7 | E22: FALSE | F22: 9 | G22: 2010 | H22: 7.7 | I22: 0.8864907252 | K22: Site specific boundary values
A23: 10 | B23: 2010-10-08 | D23: 10 | E23: FALSE | F23: 10 | G23: 2010 | H23: 10 | I23: 1 | K23: HG Chlorophyll boundary (geometric mean) | L23: ug/l | M23: =IF('Site Data'!B$12=1,'Chlorophyll Data'!M$5/LU!M33,IF('Site Data'!B$12=2,'Chlorophyll Data'!M$5/LU!P33,IF('Site Data'!B$12=3,'Chlorophyll Data'!M$5/LU!S33,IF('Site Data'!B$12=4,'Chlorophyll Data'!M$5/LU!V33,IF('Site Data'!B$12=5,'Chlorophyll Data'!M$5/LU!Y33))))) -> 3.439469273
A24: 11 | B24: 2010-11-03 | D24: 7.7 | E24: FALSE | F24: 11 | G24: 2010 | H24: 7.7 | I24: 0.8864907252 | K24: GM Chlorophyll boundary (geometric mean) | L24: ug/l | M24: =IF('Site Data'!B$12=1,'Chlorophyll Data'!M$5/LU!M32,IF('Site Data'!B$12=2,'Chlorophyll Data'!M$5/LU!P32,IF('Site Data'!B$12=3,'Chlorophyll Data'!M$5/LU!S32,IF('Site Data'!B$12=4,'Chlorophyll Data'!M$5/LU!V32,IF('Site Data'!B$12=5,'Chlorophyll Data'!M$5/LU!Y32))))) -> 7.590552879
A25: 12 | B25: 2010-12-13 | C25: < | D25: 0.5 | E25: FALSE | F25: 12 | G25: 2010 | H25: 0.25 | I25: -0.6020599913 | K25: MP Chlorophyll boundary (geometric mean) | L25: ug/l | M25: =IF('Site Data'!B$12=1,'Chlorophyll Data'!M$5/LU!M31,IF('Site Data'!B$12=2,'Chlorophyll Data'!M$5/LU!P31,IF('Site Data'!B$12=3,'Chlorophyll Data'!M$5/LU!S31,IF('Site Data'!B$12=4,'Chlorophyll Data'!M$5/LU!V31,IF('Site Data'!B$12=5,'Chlorophyll Data'!M$5/LU!Y31))))) -> 14.6750689
A26: 13 | B26: 2011-01-31 | D26: 4.1 | E26: FALSE | F26: 1 | G26: 2011 | H26: 4.1 | I26: 0.6127838567 | K26: PB Chlorophyll boundary (geometric mean) | L26: ug/l | M26: =IF('Site Data'!B$12=1,'Chlorophyll Data'!M$5/LU!M30,IF('Site Data'!B$12=2,'Chlorophyll Data'!M$5/LU!P30,IF('Site Data'!B$12=3,'Chlorophyll Data'!M$5/LU!S30,IF('Site Data'!B$12=4,'Chlorophyll Data'!M$5/LU!V30,IF('Site Data'!B$12=5,'Chlorophyll Data'!M$5/LU!Y30))))) -> 44.0252067
A27: 14 | B27: 2011-02-22 | D27: 1.9 | E27: FALSE | F27: 2 | G27: 2011 | H27: 1.9 | I27: 0.278753601
A28: 15 | B28: 2011-03-22 | D28: 5.2 | E28: FALSE | F28: 3 | G28: 2011 | H28: 5.2 | I28: 0.7160033436
A29: 16 | B29: 2011-04-15 | D29: 8.7 | E29: FALSE | F29: 4 | G29: 2011 | H29: 8.7 | I29: 0.9395192526
A30: 17 | B30: 2011-05-10 | D30: 13.3 | E30: FALSE | F30: 5 | G30: 2011 | H30: 13.3 | I30: 1.123851641
A31: 18 | B31: 2011-06-22 | D31: 7.2 | E31: FALSE | F31: 6 | G31: 2011 | H31: 7.2 | I31: 0.8573324964
A32: 19 | B32: 2011-07-22 | D32: 7.6 | E32: FALSE | F32: 7 | G32: 2011 | H32: 7.6 | I32: 0.8808135923
A33: 20 | B33: 2011-08-25 | D33: 5.9 | E33: FALSE | F33: 8 | G33: 2011 | H33: 5.9 | I33: 0.7708520116
A34: 21 | B34: 2011-09-27 | D34: 4.3 | E34: FALSE | F34: 9 | G34: 2011 | H34: 4.3 | I34: 0.6334684556
A35: 22 | B35: 2011-10-19 | D35: 6.1 | E35: FALSE | F35: 10 | G35: 2011 | H35: 6.1 | I35: 0.785329835
A36: 23 | B36: 2011-11-15 | D36: 6.6 | E36: FALSE | F36: 11 | G36: 2011 | H36: 6.6 | I36: 0.8195439355
A37: 24 | B37: 2011-12-14 | D37: 3.1 | E37: FALSE | F37: 12 | G37: 2011 | H37: 3.1 | I37: 0.4913616938
A38: 25 | B38: 2012-01-17 | D38: 2.6 | E38: FALSE | F38: 1 | G38: 2012 | H38: 2.6 | I38: 0.414973348
A39: 26 | B39: 2012-02-21 | D39: 4.2 | E39: FALSE | F39: 2 | G39: 2012 | H39: 4.2 | I39: 0.6232492904
A40: 27 | B40: 2012-03-23 | D40: 8.6 | E40: FALSE | F40: 3 | G40: 2012 | H40: 8.6 | I40: 0.9344984512
A41: 28 | B41: 2012-04-17 | D41: 11.2 | E41: FALSE | F41: 4 | G41: 2012 | H41: 11.2 | I41: 1.049218023
A42: 29 | B42: 2012-05-30 | D42: 3.6 | E42: FALSE | F42: 5 | G42: 2012 | H42: 3.6 | I42: 0.5563025008
A43: 30 | B43: 2012-06-26 | D43: 7.3 | E43: FALSE | F43: 6 | G43: 2012 | H43: 7.3 | I43: 0.8633228601
A44: 31 | B44: 2012-07-24 | D44: 1.9 | E44: FALSE | F44: 7 | G44: 2012 | H44: 1.9 | I44: 0.278753601
A45: 32 | B45: 2012-08-21 | D45: 13.3 | E45: FALSE | F45: 8 | G45: 2012 | H45: 13.3 | I45: 1.123851641
A46: 33 | B46: 2012-09-26 | D46: 3.3 | E46: FALSE | F46: 9 | G46: 2012 | H46: 3.3 | I46: 0.5185139399 | S46: =AVERAGE(Chl_PivotTable!B3:D14) -> 0.6796816852
A47: 34 | B47: 2012-10-23 | D47: 4.5 | E47: FALSE | F47: 10 | G47: 2012 | H47: 4.5 | I47: 0.6532125138
A48: 35 | B48: 2012-11-27 | D48: 2.6 | E48: FALSE | F48: 11 | G48: 2012 | H48: 2.6 | I48: 0.414973348
A49: 36 | B49: 2012-12-12 | D49: 3.4 | E49: FALSE | F49: 12 | G49: 2012 | H49: 3.4 | I49: 0.531478917
A50: 37
A51: 38
A52: 39
A53: 40
A54: 41
A55: 42
A56: 43
A57: 44
A58: 45
A59: 46
A60: 47
A61: 48
A62: 49
A63: 50
A64: 51
A65: 52
A66: 53
A67: 54
A68: 55
A69: 56
A70: 57
A71: 58
A72: 59
A73: 60
A74: 61
A75: 62
A76: 63
A77: 64
A78: 65
A79: 66 | G79: =IF(B79="","",YEAR(B79)) ->  | H79: =IF(B79="","",IF(E79=TRUE,"",IF(C79="<",D79/2,D79))) ->  | I79: =IF(H79="","",LOG(H79)) -> 
A80: 67
A81: 68
A82: 69 | F82: =IF(B82="","",IF(E82=TRUE,"",MONTH(B82))) -> 
A83: 70
A84: 71
A85: 72
A86: 73

Sheet Taxa_Data
A1: Date | B1: SpeciesCode | C1: BioVol | E1: Taxa Name
A2: 2010-07-07 | B2: 01020000 | C2: 114004.8989 | E2: =VLOOKUP(B2,UKOptima!A:D,4,FALSE) -> Anabaena
A3: 2010-07-07 | B3: 01530000 | C3: 214663.199 | E3: =VLOOKUP(B3,UKOptima!A:D,4,FALSE) -> Oscillatoria
A4: 2010-07-07 | B4: 01780000 | C4: 411637.1541 | E4: =VLOOKUP(B4,UKOptima!A:D,4,FALSE) -> Woronichinia
A5: 2010-07-07 | B5: 04100000 | C5: 1160.907487 | E5: =VLOOKUP(B5,UKOptima!A:D,4,FALSE) -> Trachelomonas
A6: 2010-07-07 | B6: 05040001 | C6: 330.2136851 | E6: =VLOOKUP(B6,UKOptima!A:D,4,FALSE) -> Cryptomonas (small) Length <20 µm
A7: 2010-07-07 | B7: 05040002 | C7: 87263.58927 | E7: =VLOOKUP(B7,UKOptima!A:D,4,FALSE) -> Cryptomonas (medium) Length 20-30 µm
A8: 2010-07-07 | B8: 05040003 | C8: 27813.02156 | E8: =VLOOKUP(B8,UKOptima!A:D,4,FALSE) -> Cryptomonas (large) Length >30 µm
A9: 2010-07-07 | B9: 05100012 | C9: 29871.29398 | E9: =VLOOKUP(B9,UKOptima!A:D,4,FALSE) -> Rhodomonas lacustris var. nannoplanctica
A10: 2010-07-07 | B10: 06020040 | C10: 399310.5251 | E10: =VLOOKUP(B10,UKOptima!A:D,4,FALSE) -> Ceratium hirundinella
A11: 2010-07-07 | B11: 06110050 | C11: 76081.23304 | E11: =VLOOKUP(B11,UKOptima!A:D,4,FALSE) -> Peridinium cinctum
A12: 2010-07-07 | B12: 08010000 | C12: 1088.262044 | E12: =VLOOKUP(B12,UKOptima!A:D,4,FALSE) -> Chrysochromulina
A13: 2010-07-07 | B13: 09310000 | C13: 13410.80328 | E13: =VLOOKUP(B13,UKOptima!A:D,4,FALSE) -> Mallomonas
A14: 2010-07-07 | B14: 17000000 | C14: 1485.961583 | E14: =VLOOKUP(B14,UKOptima!A:D,4,FALSE) -> Chlorococcales
A15: 2010-07-07 | B15: 17960030 | C15: 3031.039965 | E15: =VLOOKUP(B15,UKOptima!A:D,4,FALSE) -> Tetraedron minimum
A16: 2010-07-07 | B16: 25010000 | C16: 136.2131451 | E16: =VLOOKUP(B16,UKOptima!A:D,4,FALSE) -> Elakatothrix
A17: 2010-07-07 | B17: 90000000 | C17: 772.8245388 | E17: =VLOOKUP(B17,UKOptima!A:D,4,FALSE) -> Picoplankton - unidentified single cells <2 µm diam.
A18: 2010-08-12 | B18: 01020000 | C18: 31383.37104 | E18: =VLOOKUP(B18,UKOptima!A:D,4,FALSE) -> Anabaena
A19: 2010-08-12 | B19: 01530000 | C19: 31349.66173 | E19: =VLOOKUP(B19,UKOptima!A:D,4,FALSE) -> Oscillatoria
A20: 2010-08-12 | B20: 01780000 | C20: 842837.2621 | E20: =VLOOKUP(B20,UKOptima!A:D,4,FALSE) -> Woronichinia
A21: 2010-08-12 | B21: 05040001 | C21: 8118.226053 | E21: =VLOOKUP(B21,UKOptima!A:D,4,FALSE) -> Cryptomonas (small) Length <20 µm
A22: 2010-08-12 | B22: 05040002 | C22: 75581.94995 | E22: =VLOOKUP(B22,UKOptima!A:D,4,FALSE) -> Cryptomonas (medium) Length 20-30 µm
A23: 2010-08-12 | B23: 05100012 | C23: 26219.37898 | E23: =VLOOKUP(B23,UKOptima!A:D,4,FALSE) -> Rhodomonas lacustris var. nannoplanctica
A24: 2010-08-12 | B24: 06020040 | C24: 463837.7213 | E24: =VLOOKUP(B24,UKOptima!A:D,4,FALSE) -> Ceratium hirundinella
A25: 2010-08-12 | B25: 06070000 | C25: 648141.6152 | E25: =VLOOKUP(B25,UKOptima!A:D,4,FALSE) -> Gymnodinium
A26: 2010-08-12 | B26: 06110050 | C26: 110294.8105 | E26: =VLOOKUP(B26,UKOptima!A:D,4,FALSE) -> Peridinium cinctum
A27: 2010-08-12 | B27: 08010000 | C27: 2369.005811 | E27: =VLOOKUP(B27,UKOptima!A:D,4,FALSE) -> Chrysochromulina
A28: 2010-08-12 | B28: 09230050 | C28: 396.2564221 | E28: =VLOOKUP(B28,UKOptima!A:D,4,FALSE) -> Dinobryon divergens
A29: 2010-08-12 | B29: 09310000 | C29: 27734.85379 | E29: =VLOOKUP(B29,UKOptima!A:D,4,FALSE) -> Mallomonas
A30: 2010-08-12 | B30: 17000000 | C30: 26984.45681 | E30: =VLOOKUP(B30,UKOptima!A:D,4,FALSE) -> Chlorococcales
A31: 2010-08-12 | B31: 17000000 | C31: 3379.874656 | E31: =VLOOKUP(B31,UKOptima!A:D,4,FALSE) -> Chlorococcales
A32: 2010-08-12 | B32: 17080000 | C32: 14747.82474 | E32: =VLOOKUP(B32,UKOptima!A:D,4,FALSE) -> Botryococcus
A33: 2010-08-12 | B33: 17960030 | C33: 5880.924481 | E33: =VLOOKUP(B33,UKOptima!A:D,4,FALSE) -> Tetraedron minimum
A34: 2010-08-12 | B34: 27360040 | C34: 1434.237905 | E34: =VLOOKUP(B34,UKOptima!A:D,4,FALSE) -> Spondylosium planum
A35: 2010-08-12 | B35: 27370000 | C35: 1398.056236 | E35: =VLOOKUP(B35,UKOptima!A:D,4,FALSE) -> Staurastrum
A36: 2010-08-12 | B36: 90000000 | C36: 294.0054944 | E36: =VLOOKUP(B36,UKOptima!A:D,4,FALSE) -> Picoplankton - unidentified single cells <2 µm diam.
A37: 2010-08-12 | B37: 90000003 | C37: 19788.83136 | E37: =VLOOKUP(B37,UKOptima!A:D,4,FALSE) -> Nanoplankton - unidentified single cells 2-20 µm diameter
A38: 2010-08-12 | B38: 90000005 | C38: 1184.502905 | E38: =VLOOKUP(B38,UKOptima!A:D,4,FALSE) -> Nanoplankton - unidentified flagellates 2-20 µm diameter
A39: 2010-09-13 | B39: 01020000 | C39: 52104.48616 | E39: =VLOOKUP(B39,UKOptima!A:D,4,FALSE) -> Anabaena
A40: 2010-09-13 | B40: 01020000 | C40: 32201.02245 | E40: =VLOOKUP(B40,UKOptima!A:D,4,FALSE) -> Anabaena
A41: 2010-09-13 | B41: 01530000 | C41: 30338.38232 | E41: =VLOOKUP(B41,UKOptima!A:D,4,FALSE) -> Oscillatoria
A42: 2010-09-13 | B42: 01780000 | C42: 1347920.488 | E42: =VLOOKUP(B42,UKOptima!A:D,4,FALSE) -> Woronichinia
A43: 2010-09-13 | B43: 04100000 | C43: 45464.55292 | E43: =VLOOKUP(B43,UKOptima!A:D,4,FALSE) -> Trachelomonas
A44: 2010-09-13 | B44: 05040001 | C44: 2256.804154 | E44: =VLOOKUP(B44,UKOptima!A:D,4,FALSE) -> Cryptomonas (small) Length <20 µm
A45: 2010-09-13 | B45: 05040002 | C45: 110568.3651 | E45: =VLOOKUP(B45,UKOptima!A:D,4,FALSE) -> Cryptomonas (medium) Length 20-30 µm
A46: 2010-09-13 | B46: 05100012 | C46: 20300.80663 | E46: =VLOOKUP(B46,UKOptima!A:D,4,FALSE) -> Rhodomonas lacustris var. nannoplanctica
A47: 2010-09-13 | B47: 06020040 | C47: 278034.8125 | E47: =VLOOKUP(B47,UKOptima!A:D,4,FALSE) -> Ceratium hirundinella
A48: 2010-09-13 | B48: 06110050 | C48: 51155.60338 | E48: =VLOOKUP(B48,UKOptima!A:D,4,FALSE) -> Peridinium cinctum
A49: 2010-09-13 | B49: 08010000 | C49: 15901.73948 | E49: =VLOOKUP(B49,UKOptima!A:D,4,FALSE) -> Chrysochromulina
A50: 2010-09-13 | B50: 09230050 | C50: 61609.9485 | E50: =VLOOKUP(B50,UKOptima!A:D,4,FALSE) -> Dinobryon divergens
A51: 2010-09-13 | B51: 09310000 | C51: 4339.214205 | E51: =VLOOKUP(B51,UKOptima!A:D,4,FALSE) -> Mallomonas
A52: 2010-09-13 | B52: 12000002 | C52: 24485.896 | E52: =VLOOKUP(B52,UKOptima!A:D,4,FALSE) -> Medium centric diatom (10-20 µm diam.)
A53: 2010-09-13 | B53: 12030000 | C53: 5572.355935 | E53: =VLOOKUP(B53,UKOptima!A:D,4,FALSE) -> Aulacoseira
A54: 2010-09-13 | B54: 13080010 | C54: 2554.179816 | E54: =VLOOKUP(B54,UKOptima!A:D,4,FALSE) -> Asterionella formosa
A55: 2010-09-13 | B55: 17000000 | C55: 18952.04649 | E55: =VLOOKUP(B55,UKOptima!A:D,4,FALSE) -> Chlorococcales
A56: 2010-09-13 | B56: 17080000 | C56: 67597.49311 | E56: =VLOOKUP(B56,UKOptima!A:D,4,FALSE) -> Botryococcus
A57: 2010-09-13 | B57: 17580020 | C57: 249.8560816 | E57: =VLOOKUP(B57,UKOptima!A:D,4,FALSE) -> Monoraphidium contortum
A58: 2010-09-13 | B58: 17780000 | C58: 201.9979027 | E58: =VLOOKUP(B58,UKOptima!A:D,4,FALSE) -> Quadrigula
A59: 2010-09-13 | B59: 17960030 | C59: 1908.759862 | E59: =VLOOKUP(B59,UKOptima!A:D,4,FALSE) -> Tetraedron minimum
A60: 2010-09-13 | B60: 24170000 | C60: 2476.602638 | E60: =VLOOKUP(B60,UKOptima!A:D,4,FALSE) -> Gloeotila
A61: 2010-09-13 | B61: 25010000 | C61: 111.4471187 | E61: =VLOOKUP(B61,UKOptima!A:D,4,FALSE) -> Elakatothrix
A62: 2010-09-13 | B62: 27370000 | C62: 1255.166621 | E62: =VLOOKUP(B62,UKOptima!A:D,4,FALSE) -> Staurastrum
A63: 2010-09-13 | B63: 90000000 | C63: 20299.14468 | E63: =VLOOKUP(B63,UKOptima!A:D,4,FALSE) -> Picoplankton - unidentified single cells <2 µm diam.
A64: 2010-09-13 | B64: 90000005 | C64: 2826.975908 | E64: =VLOOKUP(B64,UKOptima!A:D,4,FALSE) -> Nanoplankton - unidentified flagellates 2-20 µm diameter
A65: 2011-09-27 | B65: 01020000 | C65: 12104.14464 | E65: =VLOOKUP(B65,UKOptima!A:D,4,FALSE) -> Anabaena
A66: 2011-09-27 | B66: 01530000 | C66: 16559.70035 | E66: =VLOOKUP(B66,UKOptima!A:D,4,FALSE) -> Oscillatoria
A67: 2011-09-27 | B67: 01780000 | C67: 53698.79739 | E67: =VLOOKUP(B67,UKOptima!A:D,4,FALSE) -> Woronichinia
A68: 2011-09-27 | B68: 01780000 | C68: 192430.4091 | E68: =VLOOKUP(B68,UKOptima!A:D,4,FALSE) -> Woronichinia
A69: 2011-09-27 | B69: 04100000 | C69: 7163.960099 | E69: =VLOOKUP(B69,UKOptima!A:D,4,FALSE) -> Trachelomonas
A70: 2011-09-27 | B70: 05040001 | C70: 1104.495982 | E70: =VLOOKUP(B70,UKOptima!A:D,4,FALSE) -> Cryptomonas (small) Length <20 µm
A71: 2011-09-27 | B71: 05040002 | C71: 21569.02957 | E71: =VLOOKUP(B71,UKOptima!A:D,4,FALSE) -> Cryptomonas (medium) Length 20-30 µm
A72: 2011-09-27 | B72: 05100000 | C72: 6285.601683 | E72: =VLOOKUP(B72,UKOptima!A:D,4,FALSE) -> Rhodomonas
A73: 2011-09-27 | B73: 06020040 | C73: 37606.69876 | E73: =VLOOKUP(B73,UKOptima!A:D,4,FALSE) -> Ceratium hirundinella
A74: 2011-09-27 | B74: 06070110 | C74: 22891.37577 | E74: =VLOOKUP(B74,UKOptima!A:D,4,FALSE) -> Gymnodinium helveticum
A75: 2011-09-27 | B75: 06110050 | C75: 40468.03108 | E75: =VLOOKUP(B75,UKOptima!A:D,4,FALSE) -> Peridinium cinctum
A76: 2011-09-27 | B76: 12000002 | C76: 83088.25185 | E76: =VLOOKUP(B76,UKOptima!A:D,4,FALSE) -> Medium centric diatom (10-20 µm diam.)
A77: 2011-09-27 | B77: 12000003 | C77: 17242.10757 | E77: =VLOOKUP(B77,UKOptima!A:D,4,FALSE) -> Large centric diatom (>20 µm diam.)
A78: 2011-09-27 | B78: 12030000 | C78: 15111.42956 | E78: =VLOOKUP(B78,UKOptima!A:D,4,FALSE) -> Aulacoseira
A79: 2011-09-27 | B79: 13370040 | C79: 29357.30135 | E79: =VLOOKUP(B79,UKOptima!A:D,4,FALSE) -> Fragilaria crotonensis
A80: 2011-09-27 | B80: 13820020 | C80: 1182.490656 | E80: =VLOOKUP(B80,UKOptima!A:D,4,FALSE) -> Tabellaria flocculosa
A81: 2011-09-27 | B81: 17000000 | C81: 11366.13823 | E81: =VLOOKUP(B81,UKOptima!A:D,4,FALSE) -> Chlorococcales
A82: 2011-09-27 | B82: 17000000 | C82: 1408.911723 | E82: =VLOOKUP(B82,UKOptima!A:D,4,FALSE) -> Chlorococcales
A83: 2011-09-27 | B83: 25010000 | C83: 126.4099263 | E83: =VLOOKUP(B83,UKOptima!A:D,4,FALSE) -> Elakatothrix
A84: 2011-09-27 | B84: 27370000 | C84: 3953.551857 | E84: =VLOOKUP(B84,UKOptima!A:D,4,FALSE) -> Staurastrum
A85: 2011-09-27 | B85: 90000003 | C85: 2385.260922 | E85: =VLOOKUP(B85,UKOptima!A:D,4,FALSE) -> Nanoplankton - unidentified single cells 2-20 µm diameter
A86: 2011-09-27 | B86: 90000005 | C86: 819.933442 | E86: =VLOOKUP(B86,UKOptima!A:D,4,FALSE) -> Nanoplankton - unidentified flagellates 2-20 µm diameter
A87: 2012-07-24 | B87: 01020000 | C87: 1376.460231 | E87: =VLOOKUP(B87,UKOptima!A:D,4,FALSE) -> Anabaena
A88: 2012-07-24 | B88: 01040020 | C88: 27789.24726 | E88: =VLOOKUP(B88,UKOptima!A:D,4,FALSE) -> Aphanizomenon flos-aquae
A89: 2012-07-24 | B89: 01530000 | C89: 445378.8968 | E89: =VLOOKUP(B89,UKOptima!A:D,4,FALSE) -> Oscillatoria
A90: 2012-07-24 | B90: 01780000 | C90: 62783.44116 | E90: =VLOOKUP(B90,UKOptima!A:D,4,FALSE) -> Woronichinia
A91: 2012-07-24 | B91: 01780000 | C91: 1096424.01 | E91: =VLOOKUP(B91,UKOptima!A:D,4,FALSE) -> Woronichinia
A92: 2012-07-24 | B92: 05040001 | C92: 52305.7181 | E92: =VLOOKUP(B92,UKOptima!A:D,4,FALSE) -> Cryptomonas (small) Length <20 µm
A93: 2012-07-24 | B93: 05040002 | C93: 55418.433 | E93: =VLOOKUP(B93,UKOptima!A:D,4,FALSE) -> Cryptomonas (medium) Length 20-30 µm
A94: 2012-07-24 | B94: 05100012 | C94: 26142.34928 | E94: =VLOOKUP(B94,UKOptima!A:D,4,FALSE) -> Rhodomonas lacustris var. nannoplanctica
A95: 2012-07-24 | B95: 06020040 | C95: 196673.9706 | E95: =VLOOKUP(B95,UKOptima!A:D,4,FALSE) -> Ceratium hirundinella
A96: 2012-07-24 | B96: 06070110 | C96: 111737.4597 | E96: =VLOOKUP(B96,UKOptima!A:D,4,FALSE) -> Gymnodinium helveticum
A97: 2012-07-24 | B97: 12000002 | C97: 44974.09469 | E97: =VLOOKUP(B97,UKOptima!A:D,4,FALSE) -> Medium centric diatom (10-20 µm diam.)
A98: 2012-07-24 | B98: 12200010 | C98: 15.47872813 | E98: =VLOOKUP(B98,UKOptima!A:D,4,FALSE) -> Urosolenia eriensis
A99: 2012-07-24 | B99: 13370040 | C99: 84005.89883 | E99: =VLOOKUP(B99,UKOptima!A:D,4,FALSE) -> Fragilaria crotonensis
A100: 2012-07-24 | B100: 13820010 | C100: 37839.60722 | E100: =VLOOKUP(B100,UKOptima!A:D,4,FALSE) -> Tabellaria fenestrata
A101: 2012-07-24 | B101: 13820020 | C101: 11824.87725 | E101: =VLOOKUP(B101,UKOptima!A:D,4,FALSE) -> Tabellaria flocculosa
A102: 2012-07-24 | B102: 17000000 | C102: 15616.0051 | E102: =VLOOKUP(B102,UKOptima!A:D,4,FALSE) -> Chlorococcales
A103: 2012-07-24 | B103: 17580020 | C103: 185.078579 | E103: =VLOOKUP(B103,UKOptima!A:D,4,FALSE) -> Monoraphidium contortum
A104: 2012-07-24 | B104: 17960030 | C104: 4418.425606 | E104: =VLOOKUP(B104,UKOptima!A:D,4,FALSE) -> Tetraedron minimum
A105: 2012-07-24 | B105: 25010000 | C105: 330.2128668 | E105: =VLOOKUP(B105,UKOptima!A:D,4,FALSE) -> Elakatothrix
A106: 2012-07-24 | B106: 27050000 | C106: 8528.435228 | E106: =VLOOKUP(B106,UKOptima!A:D,4,FALSE) -> Cosmarium
A107: 2012-07-24 | B107: 27370000 | C107: 949.8054431 | E107: =VLOOKUP(B107,UKOptima!A:D,4,FALSE) -> Staurastrum
A108: 2012-07-24 | B108: 16490000 | C108: 3146.195 | E108: =VLOOKUP(B108,UKOptima!A:D,4,FALSE) -> Paulschulzia
A109: 2012-08-21 | B109: 01020000 | C109: 114966.9117 | E109: =VLOOKUP(B109,UKOptima!A:D,4,FALSE) -> Anabaena
A110: 2012-08-21 | B110: 01040020 | C110: 61639.73513 | E110: =VLOOKUP(B110,UKOptima!A:D,4,FALSE) -> Aphanizomenon flos-aquae
A111: 2012-08-21 | B111: 01530000 | C111: 490258.616 | E111: =VLOOKUP(B111,UKOptima!A:D,4,FALSE) -> Oscillatoria
A112: 2012-08-21 | B112: 01780000 | C112: 1744824.898 | E112: =VLOOKUP(B112,UKOptima!A:D,4,FALSE) -> Woronichinia
A113: 2012-08-21 | B113: 04100000 | C113: 2348.180386 | E113: =VLOOKUP(B113,UKOptima!A:D,4,FALSE) -> Trachelomonas
A114: 2012-08-21 | B114: 05040001 | C114: 52586.39904 | E114: =VLOOKUP(B114,UKOptima!A:D,4,FALSE) -> Cryptomonas (small) Length <20 µm
A115: 2012-08-21 | B115: 05040002 | C115: 137887.317 | E115: =VLOOKUP(B115,UKOptima!A:D,4,FALSE) -> Cryptomonas (medium) Length 20-30 µm
A116: 2012-08-21 | B116: 05100012 | C116: 11845.02905 | E116: =VLOOKUP(B116,UKOptima!A:D,4,FALSE) -> Rhodomonas lacustris var. nannoplanctica
A117: 2012-08-21 | B117: 06020040 | C117: 21040.04336 | E117: =VLOOKUP(B117,UKOptima!A:D,4,FALSE) -> Ceratium hirundinella
A118: 2012-08-21 | B118: 06070000 | C118: 386486.6428 | E118: =VLOOKUP(B118,UKOptima!A:D,4,FALSE) -> Gymnodinium
A119: 2012-08-21 | B119: 06070110 | C119: 46358.21746 | E119: =VLOOKUP(B119,UKOptima!A:D,4,FALSE) -> Gymnodinium helveticum
A120: 2012-08-21 | B120: 08010000 | C120: 30124.27789 | E120: =VLOOKUP(B120,UKOptima!A:D,4,FALSE) -> Chrysochromulina
A121: 2012-08-21 | B121: 09230050 | C121: 2749.022116 | E121: =VLOOKUP(B121,UKOptima!A:D,4,FALSE) -> Dinobryon divergens
A122: 2012-08-21 | B122: 12000003 | C122: 7227.706108 | E122: =VLOOKUP(B122,UKOptima!A:D,4,FALSE) -> Large centric diatom (>20 µm diam.)
A123: 2012-08-21 | B123: 17000000 | C123: 18952.04649 | E123: =VLOOKUP(B123,UKOptima!A:D,4,FALSE) -> Chlorococcales
A124: 2012-08-21 | B124: 17580000 | C124: 1998.848653 | E124: =VLOOKUP(B124,UKOptima!A:D,4,FALSE) -> Monoraphidium
A125: 2012-08-21 | B125: 17960030 | C125: 49701.279 | E125: =VLOOKUP(B125,UKOptima!A:D,4,FALSE) -> Tetraedron minimum
A126: 2012-08-21 | B126: 27050000 | C126: 24497.39188 | E126: =VLOOKUP(B126,UKOptima!A:D,4,FALSE) -> Cosmarium
A127: 2012-08-21 | B127: 27370000 | C127: 5222.365941 | E127: =VLOOKUP(B127,UKOptima!A:D,4,FALSE) -> Staurastrum
A128: 2012-08-21 | B128: 90000005 | C128: 44144.05428 | E128: =VLOOKUP(B128,UKOptima!A:D,4,FALSE) -> Nanoplankton - unidentified flagellates 2-20 µm diameter
A129: 2012-09-26 | B129: 01020000 | C129: 4045.117642 | E129: =VLOOKUP(B129,UKOptima!A:D,4,FALSE) -> Anabaena
A130: 2012-09-26 | B130: 01040020 | C130: 79723.2664 | E130: =VLOOKUP(B130,UKOptima!A:D,4,FALSE) -> Aphanizomenon flos-aquae
A131: 2012-09-26 | B131: 01530000 | C131: 195166.8134 | E131: =VLOOKUP(B131,UKOptima!A:D,4,FALSE) -> Oscillatoria
A132: 2012-09-26 | B132: 01780000 | C132: 142723.6381 | E132: =VLOOKUP(B132,UKOptima!A:D,4,FALSE) -> Woronichinia
A133: 2012-09-26 | B133: 01780000 | C133: 425706.7907 | E133: =VLOOKUP(B133,UKOptima!A:D,4,FALSE) -> Woronichinia
A134: 2012-09-26 | B134: 05040001 | C134: 9371.464382 | E134: =VLOOKUP(B134,UKOptima!A:D,4,FALSE) -> Cryptomonas (small) Length <20 µm
A135: 2012-09-26 | B135: 05040002 | C135: 42069.22348 | E135: =VLOOKUP(B135,UKOptima!A:D,4,FALSE) -> Cryptomonas (medium) Length 20-30 µm
A136: 2012-09-26 | B136: 05100000 | C136: 15820.2208 | E136: =VLOOKUP(B136,UKOptima!A:D,4,FALSE) -> Rhodomonas
A137: 2012-09-26 | B137: 06070110 | C137: 29089.07387 | E137: =VLOOKUP(B137,UKOptima!A:D,4,FALSE) -> Gymnodinium helveticum
A138: 2012-09-26 | B138: 09230050 | C138: 2655.599094 | E138: =VLOOKUP(B138,UKOptima!A:D,4,FALSE) -> Dinobryon divergens
A139: 2012-09-26 | B139: 09310000 | C139: 1934.845811 | E139: =VLOOKUP(B139,UKOptima!A:D,4,FALSE) -> Mallomonas
A140: 2012-09-26 | B140: 12000002 | C140: 35535.08716 | E140: =VLOOKUP(B140,UKOptima!A:D,4,FALSE) -> Medium centric diatom (10-20 µm diam.)
A141: 2012-09-26 | B141: 12200010 | C141: 97.51622887 | E141: =VLOOKUP(B141,UKOptima!A:D,4,FALSE) -> Urosolenia eriensis
A142: 2012-09-26 | B142: 13370040 | C142: 434460.3108 | E142: =VLOOKUP(B142,UKOptima!A:D,4,FALSE) -> Fragilaria crotonensis
A143: 2012-09-26 | B143: 13820010 | C143: 64563.9898 | E143: =VLOOKUP(B143,UKOptima!A:D,4,FALSE) -> Tabellaria fenestrata
A144: 2012-09-26 | B144: 13820020 | C144: 22204.54676 | E144: =VLOOKUP(B144,UKOptima!A:D,4,FALSE) -> Tabellaria flocculosa
A145: 2012-09-26 | B145: 17000000 | C145: 3997.697306 | E145: =VLOOKUP(B145,UKOptima!A:D,4,FALSE) -> Chlorococcales
A146: 2012-09-26 | B146: 17060000 | C146: 60.53917559 | E146: =VLOOKUP(B146,UKOptima!A:D,4,FALSE) -> Ankyra lanceolata
A147: 2012-09-26 | B147: 17960030 | C147: 9819.137918 | E147: =VLOOKUP(B147,UKOptima!A:D,4,FALSE) -> Tetraedron minimum
A148: 2012-09-26 | B148: 24170000 | C148: 1783.153899 | E148: =VLOOKUP(B148,UKOptima!A:D,4,FALSE) -> Gloeotila
A149: 2012-09-26 | B149: 27370000 | C149: 1499.165964 | E149: =VLOOKUP(B149,UKOptima!A:D,4,FALSE) -> Staurastrum
A150: 2012-09-26 | B150: 27370000 | C150: 1382.766278 | E150: =VLOOKUP(B150,UKOptima!A:D,4,FALSE) -> Staurastrum
E151: =VLOOKUP(B151,UKOptima!A:D,4,FALSE) -> 
E152: =VLOOKUP(B152,UKOptima!A:D,4,FALSE) -> 
E153: =VLOOKUP(B153,UKOptima!A:D,4,FALSE) -> 
E154: =VLOOKUP(B154,UKOptima!A:D,4,FALSE) -> 
E155: =VLOOKUP(B155,UKOptima!A:D,4,FALSE) -> 
E156: =VLOOKUP(B156,UKOptima!A:D,4,FALSE) -> 
E157: =VLOOKUP(B157,UKOptima!A:D,4,FALSE) -> 
E158: =VLOOKUP(B158,UKOptima!A:D,4,FALSE) -> 
E159: =VLOOKUP(B159,UKOptima!A:D,4,FALSE) -> 
E160: =VLOOKUP(B160,UKOptima!A:D,4,FALSE) -> 
E161: =VLOOKUP(B161,UKOptima!A:D,4,FALSE) -> 
E162: =VLOOKUP(B162,UKOptima!A:D,4,FALSE) -> 
E163: =VLOOKUP(B163,UKOptima!A:D,4,FALSE) -> 
E164: =VLOOKUP(B164,UKOptima!A:D,4,FALSE) -> 
E165: =VLOOKUP(B165,UKOptima!A:D,4,FALSE) -> 
E166: =VLOOKUP(B166,UKOptima!A:D,4,FALSE) -> 
E167: =VLOOKUP(B167,UKOptima!A:D,4,FALSE) -> 
E168: =VLOOKUP(B168,UKOptima!A:D,4,FALSE) -> 
E169: =VLOOKUP(B169,UKOptima!A:D,4,FALSE) -> 
E170: =VLOOKUP(B170,UKOptima!A:D,4,FALSE) -> 
E171: =VLOOKUP(B171,UKOptima!A:D,4,FALSE) -> 
E172: =VLOOKUP(B172,UKOptima!A:D,4,FALSE) -> 
E173: =VLOOKUP(B173,UKOptima!A:D,4,FALSE) -> 
E174: =VLOOKUP(B174,UKOptima!A:D,4,FALSE) -> 
E175: =VLOOKUP(B175,UKOptima!A:D,4,FALSE) -> 
E176: =VLOOKUP(B176,UKOptima!A:D,4,FALSE) -> 
E177: =VLOOKUP(B177,UKOptima!A:D,4,FALSE) -> 
E178: =VLOOKUP(B178,UKOptima!A:D,4,FALSE) -> 
E179: =VLOOKUP(B179,UKOptima!A:D,4,FALSE) -> 
E180: =VLOOKUP(B180,UKOptima!A:D,4,FALSE) -> 
E181: =VLOOKUP(B181,UKOptima!A:D,4,FALSE) -> 
E182: =VLOOKUP(B182,UKOptima!A:D,4,FALSE) -> 
E183: =VLOOKUP(B183,UKOptima!A:D,4,FALSE) -> 
E184: =VLOOKUP(B184,UKOptima!A:D,4,FALSE) -> 
E185: =VLOOKUP(B185,UKOptima!A:D,4,FALSE) -> 
E186: =VLOOKUP(B186,UKOptima!A:D,4,FALSE) -> 
E187: =VLOOKUP(B187,UKOptima!A:D,4,FALSE) -> 
E188: =VLOOKUP(B188,UKOptima!A:D,4,FALSE) -> 
E189: =VLOOKUP(B189,UKOptima!A:D,4,FALSE) -> 
E190: =VLOOKUP(B190,UKOptima!A:D,4,FALSE) -> 
E191: =VLOOKUP(B191,UKOptima!A:D,4,FALSE) -> 
E192: =VLOOKUP(B192,UKOptima!A:D,4,FALSE) -> 
E193: =VLOOKUP(B193,UKOptima!A:D,4,FALSE) -> 
E194: =VLOOKUP(B194,UKOptima!A:D,4,FALSE) -> 
E195: =VLOOKUP(B195,UKOptima!A:D,4,FALSE) -> 
E196: =VLOOKUP(B196,UKOptima!A:D,4,FALSE) -> 
E197: =VLOOKUP(B197,UKOptima!A:D,4,FALSE) -> 
E198: =VLOOKUP(B198,UKOptima!A:D,4,FALSE) -> 
E199: =VLOOKUP(B199,UKOptima!A:D,4,FALSE) -> 
E200: =VLOOKUP(B200,UKOptima!A:D,4,FALSE) -> 
... 127 more rows

Sheet Chl_PivotTable
A1: Average of Log10Chl | B1: Column Labels
A2: Row Labels | B2: 2010 | C2: 2011 | D2: 2012
A3: 1 | B3: 0.4313637642 | C3: 0.6127838567 | D3: 0.414973348
A4: 2 | B4: 0.9294189257 | C4: 0.278753601 | D4: 0.6232492904
A5: 3 | B5: 1.139879086 | C5: 0.7160033436 | D5: 0.9344984512
A6: 4 | B6: 0.8750612634 | C6: 0.9395192526 | D6: 1.049218023
A7: 5 | B7: 0.414973348 | C7: 1.123851641 | D7: 0.5563025008
A8: 6 | B8: 0.361727836 | C8: 0.8573324964 | D8: 0.8633228601
A9: 7 | B9: 0.4471580313 | C9: 0.8808135923 | D9: 0.278753601
A10: 8 | B10: 0.8260748027 | C10: 0.7708520116 | D10: 1.123851641
A11: 9 | B11: 0.8864907252 | C11: 0.6334684556 | D11: 0.5185139399
A12: 10 | B12: 1 | C12: 0.785329835 | D12: 0.6532125138
A13: 11 | B13: 0.8864907252 | C13: 0.8195439355 | D13: 0.414973348
A14: 12 | B14: -0.6020599913 | C14: 0.4913616938 | D14: 0.531478917
A17: Average | B17: =AVERAGE($B$3:$I$14) -> 0.6796816852
A18: Standard Deviation | B18: =STDEV($B$3:$I$14) -> 0.3308894655
A19: Count | B19: =COUNT($B$3:$I$14) -> 36
A20: Years | B20: =COUNT(B2:I2) -> 3

Sheet Taxa_PivotTable
A1: ='Site Data'!$B$3&" (WB"&'Site Data'!$B$2&")" -> Loweswater (WB28986)
A3: Warnings: | B3: =IF(OR(MONTH(MIN(C20:K20))<7,MONTH(MAX(C20:K20))>9),"Month out of range !","Months in range") -> Months in range
B4: =IF(B301="","Data within range of sheet","Data exceeds range of sheet") -> Data within range of sheet
A7: Data below are created using a pivot table which takes data in list form from sheet "Taxa_Data"
A8: Use refresh button to update.
B18: Enter Whitton taxon code and phytoplankton counts in um3 /ml for each sample
A19: Taxon Name | B19: Sum of BioVol | C19: Date
B20: SpeciesCode | C20: 2010-07-07 | D20: 2010-08-12 | E20: 2010-09-13 | F20: 2011-09-27 | G20: 2012-07-24 | H20: 2012-08-21 | I20: 2012-09-26 | J20: (blank)
A21: =VLOOKUP(B21,UKOptima!A:D,4,FALSE) -> Anabaena | B21: 01020000 | C21: 114004.8989 | D21: 31383.37104 | E21: 84305.50861 | F21: 12104.14464 | G21: 1376.460231 | H21: 114966.9117 | I21: 4045.117642
A22: =VLOOKUP(B22,UKOptima!A:D,4,FALSE) -> Aphanizomenon flos-aquae | B22: 01040020 | G22: 27789.24726 | H22: 61639.73513 | I22: 79723.2664
A23: =VLOOKUP(B23,UKOptima!A:D,4,FALSE) -> Oscillatoria | B23: 01530000 | C23: 214663.199 | D23: 31349.66173 | E23: 30338.38232 | F23: 16559.70035 | G23: 445378.8968 | H23: 490258.616 | I23: 195166.8134
A24: =VLOOKUP(B24,UKOptima!A:D,4,FALSE) -> Woronichinia | B24: 01780000 | C24: 411637.1541 | D24: 842837.2621 | E24: 1347920.488 | F24: 246129.2065 | G24: 1159207.451 | H24: 1744824.898 | I24: 568430.4288
A25: =VLOOKUP(B25,UKOptima!A:D,4,FALSE) -> Trachelomonas | B25: 04100000 | C25: 1160.907487 | E25: 45464.55292 | F25: 7163.960099 | H25: 2348.180386
A26: =VLOOKUP(B26,UKOptima!A:D,4,FALSE) -> Cryptomonas (small) Length <20 µm | B26: 05040001 | C26: 330.2136851 | D26: 8118.226053 | E26: 2256.804154 | F26: 1104.495982 | G26: 52305.7181 | H26: 52586.39904 | I26: 9371.464382
A27: =VLOOKUP(B27,UKOptima!A:D,4,FALSE) -> Cryptomonas (medium) Length 20-30 µm | B27: 05040002 | C27: 87263.58927 | D27: 75581.94995 | E27: 110568.3651 | F27: 21569.02957 | G27: 55418.433 | H27: 137887.317 | I27: 42069.22348
A28: =VLOOKUP(B28,UKOptima!A:D,4,FALSE) -> Cryptomonas (large) Length >30 µm | B28: 05040003 | C28: 27813.02156
A29: =VLOOKUP(B29,UKOptima!A:D,4,FALSE) -> Rhodomonas | B29: 05100000 | F29: 6285.601683 | I29: 15820.2208
A30: =VLOOKUP(B30,UKOptima!A:D,4,FALSE) -> Rhodomonas lacustris var. nannoplanctica | B30: 05100012 | C30: 29871.29398 | D30: 26219.37898 | E30: 20300.80663 | G30: 26142.34928 | H30: 11845.02905
A31: =VLOOKUP(B31,UKOptima!A:D,4,FALSE) -> Ceratium hirundinella | B31: 06020040 | C31: 399310.5251 | D31: 463837.7213 | E31: 278034.8125 | F31: 37606.69876 | G31: 196673.9706 | H31: 21040.04336
A32: =VLOOKUP(B32,UKOptima!A:D,4,FALSE) -> Gymnodinium | B32: 06070000 | D32: 648141.6152 | H32: 386486.6428
A33: =VLOOKUP(B33,UKOptima!A:D,4,FALSE) -> Gymnodinium helveticum | B33: 06070110 | F33: 22891.37577 | G33: 111737.4597 | H33: 46358.21746 | I33: 29089.07387
A34: =VLOOKUP(B34,UKOptima!A:D,4,FALSE) -> Peridinium cinctum | B34: 06110050 | C34: 76081.23304 | D34: 110294.8105 | E34: 51155.60338 | F34: 40468.03108
A35: =VLOOKUP(B35,UKOptima!A:D,4,FALSE) -> Chrysochromulina | B35: 08010000 | C35: 1088.262044 | D35: 2369.005811 | E35: 15901.73948 | H35: 30124.27789
A36: =VLOOKUP(B36,UKOptima!A:D,4,FALSE) -> Dinobryon divergens | B36: 09230050 | D36: 396.2564221 | E36: 61609.9485 | H36: 2749.022116 | I36: 2655.599094
A37: =VLOOKUP(B37,UKOptima!A:D,4,FALSE) -> Mallomonas | B37: 09310000 | C37: 13410.80328 | D37: 27734.85379 | E37: 4339.214205 | I37: 1934.845811
A38: =VLOOKUP(B38,UKOptima!A:D,4,FALSE) -> Medium centric diatom (10-20 µm diam.) | B38: 12000002 | E38: 24485.896 | F38: 83088.25185 | G38: 44974.09469 | I38: 35535.08716
A39: =VLOOKUP(B39,UKOptima!A:D,4,FALSE) -> Large centric diatom (>20 µm diam.) | B39: 12000003 | F39: 17242.10757 | H39: 7227.706108
A40: =VLOOKUP(B40,UKOptima!A:D,4,FALSE) -> Aulacoseira | B40: 12030000 | E40: 5572.355935 | F40: 15111.42956
A41: =VLOOKUP(B41,UKOptima!A:D,4,FALSE) -> Urosolenia eriensis | B41: 12200010 | G41: 15.47872813 | I41: 97.51622887
A42: =VLOOKUP(B42,UKOptima!A:D,4,FALSE) -> Asterionella formosa | B42: 13080010 | E42: 2554.179816
A43: =VLOOKUP(B43,UKOptima!A:D,4,FALSE) -> Fragilaria crotonensis | B43: 13370040 | F43: 29357.30135 | G43: 84005.89883 | I43: 434460.3108
A44: =VLOOKUP(B44,UKOptima!A:D,4,FALSE) -> Tabellaria fenestrata | B44: 13820010 | G44: 37839.60722 | I44: 64563.9898
A45: =VLOOKUP(B45,UKOptima!A:D,4,FALSE) -> Tabellaria flocculosa | B45: 13820020 | F45: 1182.490656 | G45: 11824.87725 | I45: 22204.54676
A46: =VLOOKUP(B46,UKOptima!A:D,4,FALSE) -> Paulschulzia | B46: 16490000 | G46: 3146.195
A47: =VLOOKUP(B47,UKOptima!A:D,4,FALSE) -> Chlorococcales | B47: 17000000 | C47: 1485.961583 | D47: 30364.33147 | E47: 18952.04649 | F47: 12775.04995 | G47: 15616.0051 | H47: 18952.04649 | I47: 3997.697306
A48: =VLOOKUP(B48,UKOptima!A:D,4,FALSE) -> Ankyra lanceolata | B48: 17060000 | I48: 60.53917559
A49: =VLOOKUP(B49,UKOptima!A:D,4,FALSE) -> Botryococcus | B49: 17080000 | D49: 14747.82474 | E49: 67597.49311
A50: =VLOOKUP(B50,UKOptima!A:D,4,FALSE) -> Monoraphidium | B50: 17580000 | H50: 1998.848653
A51: =VLOOKUP(B51,UKOptima!A:D,4,FALSE) -> Monoraphidium contortum | B51: 17580020 | E51: 249.8560816 | G51: 185.078579
A52: =VLOOKUP(B52,UKOptima!A:D,4,FALSE) -> Quadrigula | B52: 17780000 | E52: 201.9979027
A53: =VLOOKUP(B53,UKOptima!A:D,4,FALSE) -> Tetraedron minimum | B53: 17960030 | C53: 3031.039965 | D53: 5880.924481 | E53: 1908.759862 | G53: 4418.425606 | H53: 49701.279 | I53: 9819.137918
A54: =VLOOKUP(B54,UKOptima!A:D,4,FALSE) -> Gloeotila | B54: 24170000 | E54: 2476.602638 | I54: 1783.153899
A55: =VLOOKUP(B55,UKOptima!A:D,4,FALSE) -> Elakatothrix | B55: 25010000 | C55: 136.2131451 | E55: 111.4471187 | F55: 126.4099263 | G55: 330.2128668
A56: =VLOOKUP(B56,UKOptima!A:D,4,FALSE) -> Cosmarium | B56: 27050000 | G56: 8528.435228 | H56: 24497.39188
A57: =VLOOKUP(B57,UKOptima!A:D,4,FALSE) -> Spondylosium planum | B57: 27360040 | D57: 1434.237905
A58: =VLOOKUP(B58,UKOptima!A:D,4,FALSE) -> Staurastrum | B58: 27370000 | D58: 1398.056236 | E58: 1255.166621 | F58: 3953.551857 | G58: 949.8054431 | H58: 5222.365941 | I58: 2881.932242
A59: =VLOOKUP(B59,UKOptima!A:D,4,FALSE) -> Picoplankton - unidentified single cells <2 µm diam. | B59: 90000000 | C59: 772.8245388 | D59: 294.0054944 | E59: 20299.14468
A60: =VLOOKUP(B60,UKOptima!A:D,4,FALSE) -> Nanoplankton - unidentified single cells 2-20 µm diameter | B60: 90000003 | D60: 19788.83136 | F60: 2385.260922
A61: =VLOOKUP(B61,UKOptima!A:D,4,FALSE) -> Nanoplankton - unidentified flagellates 2-20 µm diameter | B61: 90000005 | D61: 1184.502905 | E61: 2826.975908 | F61: 819.933442 | H61: 44144.05428
A62: =VLOOKUP(B62,UKOptima!A:D,4,FALSE) ->  | B62: (blank)
A63: =VLOOKUP(B63,UKOptima!A:D,4,FALSE) -> 
A64: =VLOOKUP(B64,UKOptima!A:D,4,FALSE) -> 
A65: =VLOOKUP(B65,UKOptima!A:D,4,FALSE) -> 
A66: =VLOOKUP(B66,UKOptima!A:D,4,FALSE) -> 
A67: =VLOOKUP(B67,UKOptima!A:D,4,FALSE) -> 
A68: =VLOOKUP(B68,UKOptima!A:D,4,FALSE) -> 
A69: =VLOOKUP(B69,UKOptima!A:D,4,FALSE) -> 
A70: =VLOOKUP(B70,UKOptima!A:D,4,FALSE) -> 
A71: =VLOOKUP(B71,UKOptima!A:D,4,FALSE) -> 
A72: =VLOOKUP(B72,UKOptima!A:D,4,FALSE) -> 
A73: =VLOOKUP(B73,UKOptima!A:D,4,FALSE) -> 
A74: =VLOOKUP(B74,UKOptima!A:D,4,FALSE) -> 
A75: =VLOOKUP(B75,UKOptima!A:D,4,FALSE) -> 
A76: =VLOOKUP(B76,UKOptima!A:D,4,FALSE) -> 
A77: =VLOOKUP(B77,UKOptima!A:D,4,FALSE) -> 
A78: =VLOOKUP(B78,UKOptima!A:D,4,FALSE) -> 
A79: =VLOOKUP(B79,UKOptima!A:D,4,FALSE) -> 
A80: =VLOOKUP(B80,UKOptima!A:D,4,FALSE) -> 
A81: =VLOOKUP(B81,UKOptima!A:D,4,FALSE) -> 
A82: =VLOOKUP(B82,UKOptima!A:D,4,FALSE) -> 
A83: =VLOOKUP(B83,UKOptima!A:D,4,FALSE) -> 
A84: =VLOOKUP(B84,UKOptima!A:D,4,FALSE) -> 
A85: =VLOOKUP(B85,UKOptima!A:D,4,FALSE) -> 
A86: =VLOOKUP(B86,UKOptima!A:D,4,FALSE) -> 
A87: =VLOOKUP(B87,UKOptima!A:D,4,FALSE) -> 
A88: =VLOOKUP(B88,UKOptima!A:D,4,FALSE) -> 
A89: =VLOOKUP(B89,UKOptima!A:D,4,FALSE) -> 
A90: =VLOOKUP(B90,UKOptima!A:D,4,FALSE) -> 
A91: =VLOOKUP(B91,UKOptima!A:D,4,FALSE) -> 
A92: =VLOOKUP(B92,UKOptima!A:D,4,FALSE) -> 
A93: =VLOOKUP(B93,UKOptima!A:D,4,FALSE) -> 
A94: =VLOOKUP(B94,UKOptima!A:D,4,FALSE) -> 
A95: =VLOOKUP(B95,UKOptima!A:D,4,FALSE) -> 
A96: =VLOOKUP(B96,UKOptima!A:D,4,FALSE) -> 
A97: =VLOOKUP(B97,UKOptima!A:D,4,FALSE) -> 
A98: =VLOOKUP(B98,UKOptima!A:D,4,FALSE) -> 
A99: =VLOOKUP(B99,UKOptima!A:D,4,FALSE) -> 
A100: =VLOOKUP(B100,UKOptima!A:D,4,FALSE) -> 
A101: =VLOOKUP(B101,UKOptima!A:D,4,FALSE) -> 
A102: =VLOOKUP(B102,UKOptima!A:D,4,FALSE) -> 
A103: =VLOOKUP(B103,UKOptima!A:D,4,FALSE) -> 
A104: =VLOOKUP(B104,UKOptima!A:D,4,FALSE) -> 
A105: =VLOOKUP(B105,UKOptima!A:D,4,FALSE) -> 
A106: =VLOOKUP(B106,UKOptima!A:D,4,FALSE) -> 
A107: =VLOOKUP(B107,UKOptima!A:D,4,FALSE) -> 
A108: =VLOOKUP(B108,UKOptima!A:D,4,FALSE) -> 
A109: =VLOOKUP(B109,UKOptima!A:D,4,FALSE) -> 
A110: =VLOOKUP(B110,UKOptima!A:D,4,FALSE) -> 
A111: =VLOOKUP(B111,UKOptima!A:D,4,FALSE) -> 
A112: =VLOOKUP(B112,UKOptima!A:D,4,FALSE) -> 
A113: =VLOOKUP(B113,UKOptima!A:D,4,FALSE) -> 
A114: =VLOOKUP(B114,UKOptima!A:D,4,FALSE) -> 
A115: =VLOOKUP(B115,UKOptima!A:D,4,FALSE) -> 
A116: =VLOOKUP(B116,UKOptima!A:D,4,FALSE) -> 
A117: =VLOOKUP(B117,UKOptima!A:D,4,FALSE) -> 
A118: =VLOOKUP(B118,UKOptima!A:D,4,FALSE) -> 
A119: =VLOOKUP(B119,UKOptima!A:D,4,FALSE) -> 
A120: =VLOOKUP(B120,UKOptima!A:D,4,FALSE) -> 
A121: =VLOOKUP(B121,UKOptima!A:D,4,FALSE) -> 
A122: =VLOOKUP(B122,UKOptima!A:D,4,FALSE) -> 
A123: =VLOOKUP(B123,UKOptima!A:D,4,FALSE) -> 
A124: =VLOOKUP(B124,UKOptima!A:D,4,FALSE) -> 
A125: =VLOOKUP(B125,UKOptima!A:D,4,FALSE) -> 
A126: =VLOOKUP(B126,UKOptima!A:D,4,FALSE) -> 
A127: =VLOOKUP(B127,UKOptima!A:D,4,FALSE) -> 
A128: =VLOOKUP(B128,UKOptima!A:D,4,FALSE) -> 
A129: =VLOOKUP(B129,UKOptima!A:D,4,FALSE) -> 
A130: =VLOOKUP(B130,UKOptima!A:D,4,FALSE) -> 
A131: =VLOOKUP(B131,UKOptima!A:D,4,FALSE) -> 
A132: =VLOOKUP(B132,UKOptima!A:D,4,FALSE) -> 
A133: =VLOOKUP(B133,UKOptima!A:D,4,FALSE) -> 
A134: =VLOOKUP(B134,UKOptima!A:D,4,FALSE) -> 
A135: =VLOOKUP(B135,UKOptima!A:D,4,FALSE) -> 
A136: =VLOOKUP(B136,UKOptima!A:D,4,FALSE) -> 
A137: =VLOOKUP(B137,UKOptima!A:D,4,FALSE) -> 
A138: =VLOOKUP(B138,UKOptima!A:D,4,FALSE) -> 
A139: =VLOOKUP(B139,UKOptima!A:D,4,FALSE) -> 
A140: =VLOOKUP(B140,UKOptima!A:D,4,FALSE) -> 
A141: =VLOOKUP(B141,UKOptima!A:D,4,FALSE) -> 
A142: =VLOOKUP(B142,UKOptima!A:D,4,FALSE) -> 
A143: =VLOOKUP(B143,UKOptima!A:D,4,FALSE) -> 
A144: =VLOOKUP(B144,UKOptima!A:D,4,FALSE) -> 
A145: =VLOOKUP(B145,UKOptima!A:D,4,FALSE) -> 
A146: =VLOOKUP(B146,UKOptima!A:D,4,FALSE) -> 
A147: =VLOOKUP(B147,UKOptima!A:D,4,FALSE) -> 
A148: =VLOOKUP(B148,UKOptima!A:D,4,FALSE) -> 
A149: =VLOOKUP(B149,UKOptima!A:D,4,FALSE) -> 
A150: =VLOOKUP(B150,UKOptima!A:D,4,FALSE) -> 
A151: =VLOOKUP(B151,UKOptima!A:D,4,FALSE) -> 
A152: =VLOOKUP(B152,UKOptima!A:D,4,FALSE) -> 
A153: =VLOOKUP(B153,UKOptima!A:D,4,FALSE) -> 
A154: =VLOOKUP(B154,UKOptima!A:D,4,FALSE) -> 
A155: =VLOOKUP(B155,UKOptima!A:D,4,FALSE) -> 
A156: =VLOOKUP(B156,UKOptima!A:D,4,FALSE) -> 
A157: =VLOOKUP(B157,UKOptima!A:D,4,FALSE) -> 
A158: =VLOOKUP(B158,UKOptima!A:D,4,FALSE) -> 
A159: =VLOOKUP(B159,UKOptima!A:D,4,FALSE) -> 
A160: =VLOOKUP(B160,UKOptima!A:D,4,FALSE) -> 
A161: =VLOOKUP(B161,UKOptima!A:D,4,FALSE) -> 
A162: =VLOOKUP(B162,UKOptima!A:D,4,FALSE) -> 
A163: =VLOOKUP(B163,UKOptima!A:D,4,FALSE) -> 
A164: =VLOOKUP(B164,UKOptima!A:D,4,FALSE) -> 
A165: =VLOOKUP(B165,UKOptima!A:D,4,FALSE) -> 
A166: =VLOOKUP(B166,UKOptima!A:D,4,FALSE) -> 
A167: =VLOOKUP(B167,UKOptima!A:D,4,FALSE) -> 
A168: =VLOOKUP(B168,UKOptima!A:D,4,FALSE) -> 
A169: =VLOOKUP(B169,UKOptima!A:D,4,FALSE) -> 
A170: =VLOOKUP(B170,UKOptima!A:D,4,FALSE) -> 
A171: =VLOOKUP(B171,UKOptima!A:D,4,FALSE) -> 
A172: =VLOOKUP(B172,UKOptima!A:D,4,FALSE) -> 
A173: =VLOOKUP(B173,UKOptima!A:D,4,FALSE) -> 
A174: =VLOOKUP(B174,UKOptima!A:D,4,FALSE) -> 
A175: =VLOOKUP(B175,UKOptima!A:D,4,FALSE) -> 
A176: =VLOOKUP(B176,UKOptima!A:D,4,FALSE) -> 
A177: =VLOOKUP(B177,UKOptima!A:D,4,FALSE) -> 
A178: =VLOOKUP(B178,UKOptima!A:D,4,FALSE) -> 
A179: =VLOOKUP(B179,UKOptima!A:D,4,FALSE) -> 
A180: =VLOOKUP(B180,UKOptima!A:D,4,FALSE) -> 
A181: =VLOOKUP(B181,UKOptima!A:D,4,FALSE) -> 
A182: =VLOOKUP(B182,UKOptima!A:D,4,FALSE) -> 
A183: =VLOOKUP(B183,UKOptima!A:D,4,FALSE) -> 
A184: =VLOOKUP(B184,UKOptima!A:D,4,FALSE) -> 
A185: =VLOOKUP(B185,UKOptima!A:D,4,FALSE) -> 
A186: =VLOOKUP(B186,UKOptima!A:D,4,FALSE) -> 
A187: =VLOOKUP(B187,UKOptima!A:D,4,FALSE) -> 
A188: =VLOOKUP(B188,UKOptima!A:D,4,FALSE) -> 
A189: =VLOOKUP(B189,UKOptima!A:D,4,FALSE) -> 
A190: =VLOOKUP(B190,UKOptima!A:D,4,FALSE) -> 
A191: =VLOOKUP(B191,UKOptima!A:D,4,FALSE) -> 
A192: =VLOOKUP(B192,UKOptima!A:D,4,FALSE) -> 
A193: =VLOOKUP(B193,UKOptima!A:D,4,FALSE) -> 
A194: =VLOOKUP(B194,UKOptima!A:D,4,FALSE) -> 
A195: =VLOOKUP(B195,UKOptima!A:D,4,FALSE) -> 
A196: =VLOOKUP(B196,UKOptima!A:D,4,FALSE) -> 
A197: =VLOOKUP(B197,UKOptima!A:D,4,FALSE) -> 
A198: =VLOOKUP(B198,UKOptima!A:D,4,FALSE) -> 
A199: =VLOOKUP(B199,UKOptima!A:D,4,FALSE) -> 
A200: =VLOOKUP(B200,UKOptima!A:D,4,FALSE) -> 
A201: =VLOOKUP(B201,UKOptima!A:D,4,FALSE) -> 
A202: =VLOOKUP(B202,UKOptima!A:D,4,FALSE) -> 
A203: =VLOOKUP(B203,UKOptima!A:D,4,FALSE) -> 
A204: =VLOOKUP(B204,UKOptima!A:D,4,FALSE) -> 
A205: =VLOOKUP(B205,UKOptima!A:D,4,FALSE) -> 
A206: =VLOOKUP(B206,UKOptima!A:D,4,FALSE) -> 
A207: =VLOOKUP(B207,UKOptima!A:D,4,FALSE) -> 
A208: =VLOOKUP(B208,UKOptima!A:D,4,FALSE) -> 
A209: =VLOOKUP(B209,UKOptima!A:D,4,FALSE) -> 
A210: =VLOOKUP(B210,UKOptima!A:D,4,FALSE) -> 
A211: =VLOOKUP(B211,UKOptima!A:D,4,FALSE) -> 
A212: =VLOOKUP(B212,UKOptima!A:D,4,FALSE) -> 
... 89 more rows

Sheet Taxon EQRs
A1: Calculation of Taxonomic Metrics and Class | G1: Sample 1 | K1: Sample 2 | O1: Sample 3 | S1: Sample 4 | W1: Sample 5 | AA1: Sample 6 | AE1: Sample 7 | AI1: Sample 8 | AM1: Sample 9
G2: =IF(Taxa_PivotTable!C20="","",Taxa_PivotTable!C20) -> 2010-07-07 | K2: =IF(Taxa_PivotTable!D20="","",Taxa_PivotTable!D20) -> 2010-08-12 | O2: =IF(Taxa_PivotTable!E20="","",Taxa_PivotTable!E20) -> 2010-09-13 | S2: =IF(Taxa_PivotTable!F20="","",Taxa_PivotTable!F20) -> 2011-09-27 | W2: =IF(Taxa_PivotTable!G20>0,Taxa_PivotTable!G20,"") -> 2012-07-24 | AA2: =IF(Taxa_PivotTable!H20>0,Taxa_PivotTable!H20,"") -> 2012-08-21 | AE2: =IF(Taxa_PivotTable!I20>0,Taxa_PivotTable!I20,"") -> 2012-09-26 | AI2: =IF(Taxa_PivotTable!J20>0,Taxa_PivotTable!J20,"") -> (blank) | AM2: =IF(Taxa_PivotTable!K20>0,Taxa_PivotTable!K20,"") -> 
A3: ='Site Data'!A2 -> UK Lake WBID | B3: ='Site Data'!B2 -> 28986 | C3: PTI Class | G3: =IF(COUNT(D21:D150)>1,IF(G4>=0.8,"High",IF(G4>=0.6,"Good",IF(G4>=0.4,"Moderate",IF(G4>=0.2,"Poor","Bad")))),"") -> Moderate | K3: =IF(COUNT(H21:H150)>1,IF(K4>=0.8,"High",IF(K4>=0.6,"Good",IF(K4>=0.4,"Moderate",IF(K4>=0.2,"Poor","Bad")))),"") -> Good | O3: =IF(COUNT(L21:L150)>1,IF(O4>=0.8,"High",IF(O4>=0.6,"Good",IF(O4>=0.4,"Moderate",IF(O4>=0.2,"Poor","Bad")))),"") -> Good | S3: =IF(COUNT(P21:P150)>1,IF(S4>=0.8,"High",IF(S4>=0.6,"Good",IF(S4>=0.4,"Moderate",IF(S4>=0.2,"Poor","Bad")))),"") -> Moderate | W3: =IF(COUNT(T21:T150)>1,IF(W4>=0.8,"High",IF(W4>=0.6,"Good",IF(W4>=0.4,"Moderate",IF(W4>=0.2,"Poor","Bad")))),"") -> Good | AA3: =IF(COUNT(X21:X150)>1,IF(AA4>=0.8,"High",IF(AA4>=0.6,"Good",IF(AA4>=0.4,"Moderate",IF(AA4>=0.2,"Poor","Bad")))),"") -> Moderate | AE3: =IF(COUNT(AB21:AB150)>1,IF(AE4>=0.8,"High",IF(AE4>=0.6,"Good",IF(AE4>=0.4,"Moderate",IF(AE4>=0.2,"Poor","Bad")))),"") -> Good | AI3: =IF(COUNT(AF21:AF150)>1,IF(AI4>=0.8,"High",IF(AI4>=0.6,"Good",IF(AI4>=0.4,"Moderate",IF(AI4>=0.2,"Poor","Bad")))),"") ->  | AM3: =IF(COUNT(AJ21:AJ150)>1,IF(AM4>=0.8,"High",IF(AM4>=0.6,"Good",IF(AM4>=0.4,"Moderate",IF(AM4>=0.2,"Poor","Bad")))),"") -> 
A4: ='Site Data'!A3 -> Lake Name | B4: ='Site Data'!B3 -> Loweswater | C4: PTI EQRNorm | G4: =IF(COUNT(D21:D150)>1,1.228*'Taxon EQRs'!G5^2-VLOOKUP($B11,LU!$O3:$Q7,2,FALSE)*'Taxon EQRs'!G5-VLOOKUP('Taxon EQRs'!$B11,LU!$O3:$Q7,3,FALSE),"") -> 0.4511868636 | K4: =IF(COUNT(H21:H150)>1,1.228*'Taxon EQRs'!K5^2-VLOOKUP($B11,LU!$O3:$Q7,2,FALSE)*'Taxon EQRs'!K5-VLOOKUP('Taxon EQRs'!$B11,LU!$O3:$Q7,3,FALSE),"") -> 0.6606147954 | O4: =IF(COUNT(L21:L150)>1,1.228*'Taxon EQRs'!O5^2-VLOOKUP($B11,LU!$O3:$Q7,2,FALSE)*'Taxon EQRs'!O5-VLOOKUP('Taxon EQRs'!$B11,LU!$O3:$Q7,3,FALSE),"") -> 0.627272288 | S4: =IF(COUNT(P21:P150)>1,1.228*'Taxon EQRs'!S5^2-VLOOKUP($B11,LU!$O3:$Q7,2,FALSE)*'Taxon EQRs'!S5-VLOOKUP('Taxon EQRs'!$B11,LU!$O3:$Q7,3,FALSE),"") -> 0.4348074346 | W4: =IF(COUNT(T21:T150)>1,1.228*'Taxon EQRs'!W5^2-VLOOKUP($B11,LU!$O3:$Q7,2,FALSE)*'Taxon EQRs'!W5-VLOOKUP('Taxon EQRs'!$B11,LU!$O3:$Q7,3,FALSE),"") -> 0.6085955976 | AA4: =IF(COUNT(X21:X150)>1,1.228*'Taxon EQRs'!AA5^2-VLOOKUP($B11,LU!$O3:$Q7,2,FALSE)*'Taxon EQRs'!AA5-VLOOKUP('Taxon EQRs'!$B11,LU!$O3:$Q7,3,FALSE),"") -> 0.4359479606 | AE4: =IF(COUNT(AB21:AB150)>1,1.228*'Taxon EQRs'!AE5^2-VLOOKUP($B11,LU!$O3:$Q7,2,FALSE)*'Taxon EQRs'!AE5-VLOOKUP('Taxon EQRs'!$B11,LU!$O3:$Q7,3,FALSE),"") -> 0.6254526624 | AI4: =IF(COUNT(AF21:AF150)>1,1.228*'Taxon EQRs'!AI5^2-VLOOKUP($B11,LU!$O3:$Q7,2,FALSE)*'Taxon EQRs'!AI5-VLOOKUP('Taxon EQRs'!$B11,LU!$O3:$Q7,3,FALSE),"") ->  | AM4: =IF(COUNT(AJ21:AJ150)>1,1.228*'Taxon EQRs'!AM5^2-VLOOKUP($B11,LU!$O3:$Q7,2,FALSE)*'Taxon EQRs'!AM5-VLOOKUP('Taxon EQRs'!$B11,LU!$O3:$Q7,3,FALSE),"") -> 
A5: Mean alkalinity used (min 0.005) (mEq/l) | B5: =IF('Site Data'!B4<0.005,0.005,'Site Data'!B4) -> 0.198 | C5: PTI EQR | G5: =(G7-0.75)/(G6-0.75) -> 0.7842914557 | K5: =(K7-0.75)/(K6-0.75) -> 0.8966572506 | O5: =(O7-0.75)/(O6-0.75) -> 0.8798271446 | S5: =(S7-0.75)/(S6-0.75) -> 0.7747356717 | W5: =(W7-0.75)/(W6-0.75) -> 0.8702428964 | AA5: =(AA7-0.75)/(AA6-0.75) -> 0.7754053193 | AE5: =(AE7-0.75)/(AE6-0.75) -> 0.8788984396 | AI5: =(AI7-0.75)/(AI6-0.75) ->  | AM5: =(AM7-0.75)/(AM6-0.75) -> 
A6: Mean depth used (min 1.0) (m) | B6: =IF('Site Data'!B5<1,1,'Site Data'!B5) -> 8.37 | C6: Ref PTI | G6: =0.028*LOG($B5/$B6)+0.498 -> 0.4524703125 | K6: =0.028*LOG($B5/$B6)+0.498 -> 0.4524703125 | O6: =0.028*LOG($B5/$B6)+0.498 -> 0.4524703125 | S6: =0.028*LOG($B5/$B6)+0.498 -> 0.4524703125 | W6: =0.028*LOG($B5/$B6)+0.498 -> 0.4524703125 | AA6: =0.028*LOG($B5/$B6)+0.498 -> 0.4524703125 | AE6: =0.028*LOG($B5/$B6)+0.498 -> 0.4524703125 | AI6: =0.028*LOG($B5/$B6)+0.498 -> 0.4524703125 | AM6: =0.028*LOG($B5/$B6)+0.498 -> 0.4524703125
A7: Humic Type | B7: ='Site Data'!B6 -> C | C7: PTI | G7: =F17/E17 -> 0.5166500083 | K7: =J17/I17 -> 0.4832178484 | O7: =N17/M17 -> 0.4882253046 | S7: =R17/Q17 -> 0.5194931377 | W7: =V17/U17 -> 0.491076903 | AA7: =Z17/Y17 -> 0.5192938977 | AE7: =AD17/AC17 -> 0.4885016219 | AI7: =AH17/AG17 ->  | AM7: =AL17/AK17 -> 
A8: Alkalinity Type | B8: ='Site Data'!B9 -> LA | C8: Cyan Class | G8: =IF(COUNT(D21:D150)>1,IF(G9>=0.8,"High",IF(G9>=0.6,"Good",IF(G9>=0.4,"Moderate",IF(G9>=0.2,"Poor","Bad")))),"") -> Moderate | K8: =IF(COUNT(H21:H150)>1,IF(K9>=0.8,"High",IF(K9>=0.6,"Good",IF(K9>=0.4,"Moderate",IF(K9>=0.2,"Poor","Bad")))),"") -> Moderate | O8: =IF(COUNT(L21:L150)>1,IF(O9>=0.8,"High",IF(O9>=0.6,"Good",IF(O9>=0.4,"Moderate",IF(O9>=0.2,"Poor","Bad")))),"") -> Moderate | S8: =IF(COUNT(P21:P150)>1,IF(S9>=0.8,"High",IF(S9>=0.6,"Good",IF(S9>=0.4,"Moderate",IF(S9>=0.2,"Poor","Bad")))),"") -> Good | W8: =IF(COUNT(T21:T150)>1,IF(W9>=0.8,"High",IF(W9>=0.6,"Good",IF(W9>=0.4,"Moderate",IF(W9>=0.2,"Poor","Bad")))),"") -> Moderate | AA8: =IF(COUNT(X21:X150)>1,IF(AA9>=0.8,"High",IF(AA9>=0.6,"Good",IF(AA9>=0.4,"Moderate",IF(AA9>=0.2,"Poor","Bad")))),"") -> Poor | AE8: =IF(COUNT(AB21:AB150)>1,IF(AE9>=0.8,"High",IF(AE9>=0.6,"Good",IF(AE9>=0.4,"Moderate",IF(AE9>=0.2,"Poor","Bad")))),"") -> Moderate | AI8: =IF(COUNT(AF21:AF150)>1,IF(AI9>=0.8,"High",IF(AI9>=0.6,"Good",IF(AI9>=0.4,"Moderate",IF(AI9>=0.2,"Poor","Bad")))),"") ->  | AM8: =IF(COUNT(AJ21:AJ150)>1,IF(AM9>=0.8,"High",IF(AM9>=0.6,"Good",IF(AM9>=0.4,"Moderate",IF(AM9>=0.2,"Poor","Bad")))),"") -> 
A9: Depth Type | B9: ='Site Data'!B10 -> S | C9: Cyan EQRNorm | G9: =IF(COUNT(D21:D150)>1,IF($B$8="HA",((G10-VLOOKUP(G10,LU!$H3:$H7,1))/VLOOKUP(G10,LU!$H3:$J7,2)*0.2)+VLOOKUP(G10,LU!$H3:$J7,3),((G10-VLOOKUP(G10,LU!$C3:$E7,1))/VLOOKUP(G10,LU!$C3:$E7,2)*0.2)+VLOOKUP(G10,LU!$C3:$E7,3)),"") -> 0.5411588647 | K9: =IF(COUNT(H21:H150)>1,IF($B$8="HA",((K10-VLOOKUP(K10,LU!$H3:$H7,1))/VLOOKUP(K10,LU!$H3:$J7,2)*0.2)+VLOOKUP(K10,LU!$H3:$J7,3),((K10-VLOOKUP(K10,LU!$C3:$E7,1))/VLOOKUP(K10,LU!$C3:$E7,2)*0.2)+VLOOKUP(K10,LU!$C3:$E7,3)),"") -> 0.505657405 | O9: =IF(COUNT(L21:L150)>1,IF($B$8="HA",((O10-VLOOKUP(O10,LU!$H3:$H7,1))/VLOOKUP(O10,LU!$H3:$J7,2)*0.2)+VLOOKUP(O10,LU!$H3:$J7,3),((O10-VLOOKUP(O10,LU!$C3:$E7,1))/VLOOKUP(O10,LU!$C3:$E7,2)*0.2)+VLOOKUP(O10,LU!$C3:$E7,3)),"") -> 0.4211951496 | S9: =IF(COUNT(P21:P150)>1,IF($B$8="HA",((S10-VLOOKUP(S10,LU!$H3:$H7,1))/VLOOKUP(S10,LU!$H3:$J7,2)*0.2)+VLOOKUP(S10,LU!$H3:$J7,3),((S10-VLOOKUP(S10,LU!$C3:$E7,1))/VLOOKUP(S10,LU!$C3:$E7,2)*0.2)+VLOOKUP(S10,LU!$C3:$E7,3)),"") -> 0.669447577 | W9: =IF(COUNT(T21:T150)>1,IF($B$8="HA",((W10-VLOOKUP(W10,LU!$H3:$H7,1))/VLOOKUP(W10,LU!$H3:$J7,2)*0.2)+VLOOKUP(W10,LU!$H3:$J7,3),((W10-VLOOKUP(W10,LU!$C3:$E7,1))/VLOOKUP(W10,LU!$C3:$E7,2)*0.2)+VLOOKUP(W10,LU!$C3:$E7,3)),"") -> 0.4016925968 | AA9: =IF(COUNT(X21:X150)>1,IF($B$8="HA",((AA10-VLOOKUP(AA10,LU!$H3:$H7,1))/VLOOKUP(AA10,LU!$H3:$J7,2)*0.2)+VLOOKUP(AA10,LU!$H3:$J7,3),((AA10-VLOOKUP(AA10,LU!$C3:$E7,1))/VLOOKUP(AA10,LU!$C3:$E7,2)*0.2)+VLOOKUP(AA10,LU!$C3:$E7,3)),"") -> 0.3397658051 | AE9: =IF(COUNT(AB21:AB150)>1,IF($B$8="HA",((AE10-VLOOKUP(AE10,LU!$H3:$H7,1))/VLOOKUP(AE10,LU!$H3:$J7,2)*0.2)+VLOOKUP(AE10,LU!$H3:$J7,3),((AE10-VLOOKUP(AE10,LU!$C3:$E7,1))/VLOOKUP(AE10,LU!$C3:$E7,2)*0.2)+VLOOKUP(AE10,LU!$C3:$E7,3)),"") -> 0.5173618601 | AI9: =IF(COUNT(AF21:AF150)>1,IF($B$8="HA",((AI10-VLOOKUP(AI10,LU!$H3:$H7,1))/VLOOKUP(AI10,LU!$H3:$J7,2)*0.2)+VLOOKUP(AI10,LU!$H3:$J7,3),((AI10-VLOOKUP(AI10,LU!$C3:$E7,1))/VLOOKUP(AI10,LU!$C3:$E7,2)*0.2)+VLOOKUP(AI10,LU!$C3:$E7,3)),"") ->  | AM9: =IF(COUNT(AJ21:AJ150)>1,IF($B$8="HA",((AM10-VLOOKUP(AM10,LU!$H3:$H7,1))/VLOOKUP(AM10,LU!$H3:$J7,2)*0.2)+VLOOKUP(AM10,LU!$H3:$J7,3),((AM10-VLOOKUP(AM10,LU!$C3:$E7,1))/VLOOKUP(AM10,LU!$C3:$E7,2)*0.2)+VLOOKUP(AM10,LU!$C3:$E7,3)),"") -> 
A10: Type used for PTI | B10: ='Site Data'!B9&'Site Data'!B10&'Site Data'!B6 -> LASC | C10: Cyan EQR | G10: =IF(COUNT(D21:D300)>1,IF(G17>=30,0,(LOG(G12+0.0001)-LOG(30+0.0001))/((LOG(G11+0.0001)-LOG(30+0.0001)))),"") -> 0.2935214891 | K10: =IF(COUNT(H21:H300)>1,IF(K17>=30,0,(LOG(K12+0.0001)-LOG(30+0.0001))/((LOG(K11+0.0001)-LOG(30+0.0001)))),"") -> 0.2775458323 | O10: =IF(COUNT(L21:L300)>1,IF(O17>=30,0,(LOG(O12+0.0001)-LOG(30+0.0001))/((LOG(O11+0.0001)-LOG(30+0.0001)))),"") -> 0.2395378173 | S10: =IF(COUNT(P21:P300)>1,IF(S17>=30,0,(LOG(S12+0.0001)-LOG(30+0.0001))/((LOG(S11+0.0001)-LOG(30+0.0001)))),"") -> 0.3720856827 | W10: =IF(COUNT(T21:T300)>1,IF(W17>=30,0,(LOG(W12+0.0001)-LOG(30+0.0001))/((LOG(W11+0.0001)-LOG(30+0.0001)))),"") -> 0.2307616685 | AA10: =IF(COUNT(X21:X300)>1,IF(AA17>=30,0,(LOG(AA12+0.0001)-LOG(30+0.0001))/((LOG(AA11+0.0001)-LOG(30+0.0001)))),"") -> 0.1998829025 | AE10: =IF(COUNT(AB21:AB300)>1,IF(AE17>=30,0,(LOG(AE12+0.0001)-LOG(30+0.0001))/((LOG(AE11+0.0001)-LOG(30+0.0001)))),"") -> 0.2828128371 | AI10: =IF(COUNT(AF21:AF300)>1,IF(AI17>=30,0,(LOG(AI12+0.0001)-LOG(30+0.0001))/((LOG(AI11+0.0001)-LOG(30+0.0001)))),"") ->  | AM10: =IF(COUNT(AJ21:AJ300)>1,IF(AM17>=30,0,(LOG(AM12+0.0001)-LOG(30+0.0001))/((LOG(AM11+0.0001)-LOG(30+0.0001)))),"") -> 
A11: PTI normalisation equation | B11: =VLOOKUP('Site Data'!B9&'Site Data'!B10&'Site Data'!B6,LU!L4:M23,2,FALSE) -> 5 | C11: Ref Cyan | G11: =IF($B8="HA",LU!$G3,LU!$B3) -> 0 | K11: =IF($B8="HA",LU!$G3,LU!$B3) -> 0 | O11: =IF($B8="HA",LU!$G3,LU!$B3) -> 0 | S11: =IF($B8="HA",LU!$G3,LU!$B3) -> 0 | W11: =IF($B8="HA",LU!$G3,LU!$B3) -> 0 | AA11: =IF($B8="HA",LU!$G3,LU!$B3) -> 0 | AE11: =IF($B8="HA",LU!$G3,LU!$B3) -> 0 | AI11: =IF($B8="HA",LU!$G3,LU!$B3) -> 0 | AM11: =IF($B8="HA",LU!$G3,LU!$B3) -> 0
C12: Cyan Bvol (mm3/l) | G12: =SUM(G21:G300) -> 0.740305252 | K12: =SUM(K21:K300) -> 0.9055702949 | O12: =SUM(O21:O300) -> 1.462564379 | S12: =SUM(S21:S300) -> 0.2747930515 | W12: =SUM(W21:W300) -> 1.633752055 | AA12: =SUM(AA21:AA300) -> 2.411690161 | AE12: =SUM(AE21:AE300) -> 0.8473656263 | AI12: =SUM(AI21:AI300) -> 0 | AM12: =SUM(AM21:AM300) -> 0
C15: N Taxa | G15: =COUNT(D21:D300) -> 16 | K15: =COUNT(H21:H300) -> 20 | O15: =COUNT(L21:L300) -> 25 | S15: =COUNT(P21:P300) -> 20 | W15: =COUNT(T21:T300) -> 21 | AA15: =COUNT(X21:X300) -> 20 | AE15: =COUNT(AB21:AB300) -> 20 | AI15: =COUNT(AF21:AF300) -> 0 | AM15: =COUNT(AJ21:AJ300) -> 0
C16: Cyan Taxa | G16: =COUNT(G21:G300) -> 3 | K16: =COUNT(K21:K300) -> 3 | O16: =COUNT(O21:O300) -> 3 | S16: =COUNT(S21:S300) -> 3 | W16: =COUNT(W21:W300) -> 4 | AA16: =COUNT(AA21:AA300) -> 4 | AE16: =COUNT(AE21:AE300) -> 4 | AI16: =COUNT(AI21:AI300) -> 0 | AM16: =COUNT(AM21:AM300) -> 0
C17: Sum | D17: =SUM(D21:D300) -> 1382061.141 | E17: 64.76979938 | F17: 33.46331739 | G17: 0.740305252 | H17: 2343356.828 | I17: 83.62233204 | J17: 40.40780337 | K17: 0.9055702949 | L17: 2200688.148 | M17: 100.6133301 | N17: 49.12197373 | O17: 1.462564379 | P17: 577924.0315 | Q17: 79.23808876 | R17: 41.16364336 | S17: 0.2747930515 | T17: 2287864.1 | U17: 85.96605298 | V17: 42.21594306 | W17: 1.633752055 | X17: 3254858.982 | Y17: 90.46734222 | Z17: 46.97913875 | AA17: 2.411690161 | AB17: 1523709.965 | AC17: 80.94403182 | AD17: 39.54129083 | AE17: 0.8473656263 | AF17: 0 | AG17: 0 | AH17: 0 | AI17: 0 | AJ17: 0 | AK17: 0 | AL17: 0 | AM17: 0
A18: Taxon name | B18: Taxon Code | C18: PTI Optima | D18: BioVol (µm3/ml) | E18: Log BVol | F18: Product (Optima x Log BVol) | G18: Cyan BioVol (mm3/l) | H18: Bio Vol (µm3/ml) | I18: Log BVol | J18: Product (Optima x Log BVol) | K18: Cyan BioVol (mm3/l) | L18: Bio Vol (µm3/ml) | M18: Log BVol | N18: Product (Optima x Log BVol) | O18: Cyan BioVol (mm3/l) | P18: Bio Vol (µm3/ml) | Q18: Log BVol | R18: Product (Optima x Log BVol) | S18: Cyan BioVol (mm3/l) | T18: Bio Vol (µm3/ml) | U18: Log BVol | V18: Product (Optima x Log BVol) | W18: Cyan BioVol (mm3/l) | X18: Bio Vol (µm3/ml) | Y18: Log BVol | Z18: Product (Optima x Log BVol) | AA18: Cyan BioVol (mm3/l) | AB18: Bio Vol (µm3/ml) | AC18: Log BVol | AD18: Product (Optima x Log BVol) | AE18: Cyan BioVol (mm3/l) | AF18: Bio Vol (µm3/ml) | AG18: Log BVol | AH18: Product (Optima x Log BVol) | AI18: Cyan BioVol (mm3/l) | AJ18: Bio Vol (µm3/ml) | AK18: Log BVol | AL18: Product (Optima x Log BVol) | AM18: Cyan BioVol (mm3/l)
A21: =Taxa_PivotTable!A21 -> Anabaena | B21: =IF(Taxa_PivotTable!B21="","",Taxa_PivotTable!B21) -> 01020000 | C21: =IF(ISNUMBER(VLOOKUP(B21,UKOptima!A:J,10,FALSE)),VLOOKUP(B21,UKOptima!A:J,10,FALSE),"") -> 0.568 | D21: =IF(ISNUMBER(Taxa_PivotTable!C21),Taxa_PivotTable!C21,"") -> 114004.8989 | E21: =IF(ISNUMBER(D21),LOG(ROUND(D21,6)),"") -> 5.056923514 | F21: =IF(COUNT(E21,$C21)=2,(E21)*$C21,"") -> 2.872332556 | G21: =IF(AND(ISNUMBER(D21),LEFT($B21,2)="01"),D21/10^6,"") -> 0.1140048989 | H21: =IF(ISNUMBER(Taxa_PivotTable!D21),Taxa_PivotTable!D21,"") -> 31383.37104 | I21: =IF(ISNUMBER(H21),LOG(ROUND(H21,6)),"") -> 4.496699591 | J21: =IF(COUNT(I21,$C21)=2,(I21)*$C21,"") -> 2.554125368 | K21: =IF(AND(ISNUMBER(H21),LEFT($B21,2)="01"),H21/10^6,"") -> 0.03138337104 | L21: =IF(ISNUMBER(Taxa_PivotTable!E21),Taxa_PivotTable!E21,"") -> 84305.50861 | M21: =IF(ISNUMBER(L21),LOG(ROUND(L21,6)),"") -> 4.925855953 | N21: =IF(COUNT(M21,$C21)=2,(M21)*$C21,"") -> 2.797886181 | O21: =IF(AND(ISNUMBER(L21),LEFT($B21,2)="01"),L21/10^6,"") -> 0.08430550861 | P21: =IF(ISNUMBER(Taxa_PivotTable!F21),Taxa_PivotTable!F21,"") -> 12104.14464 | Q21: =IF(ISNUMBER(P21),LOG(ROUND(P21,6)),"") -> 4.082934105 | R21: =IF(COUNT(Q21,$C21)=2,(Q21)*$C21,"") -> 2.319106571 | S21: =IF(AND(ISNUMBER(P21),LEFT($B21,2)="01"),P21/10^6,"") -> 0.01210414464 | T21: =IF(ISNUMBER(Taxa_PivotTable!G21),Taxa_PivotTable!G21,"") -> 1376.460231 | U21: =IF(ISNUMBER(T21),LOG(ROUND(T21,6)),"") -> 3.138763668 | V21: =IF(COUNT(U21,$C21)=2,(U21)*$C21,"") -> 1.782817764 | W21: =IF(AND(ISNUMBER(T21),LEFT($B21,2)="01"),T21/10^6,"") -> 0.001376460231 | X21: =IF(ISNUMBER(Taxa_PivotTable!H21),Taxa_PivotTable!H21,"") -> 114966.9117 | Y21: =IF(ISNUMBER(X21),LOG(ROUND(X21,6)),"") -> 5.060572865 | Z21: =IF(COUNT(Y21,$C21)=2,(Y21)*$C21,"") -> 2.874405387 | AA21: =IF(AND(ISNUMBER(X21),LEFT($B21,2)="01"),X21/10^6,"") -> 0.1149669117 | AB21: =IF(ISNUMBER(Taxa_PivotTable!I21),Taxa_PivotTable!I21,"") -> 4045.117642 | AC21: =IF(ISNUMBER(AB21),LOG(ROUND(AB21,6)),"") -> 3.606931156 | AD21: =IF(COUNT(AC21,$C21)=2,(AC21)*$C21,"") -> 2.048736897 | AE21: =IF(AND(ISNUMBER(AB21),LEFT($B21,2)="01"),AB21/10^6,"") -> 0.004045117642 | AF21: =IF(ISNUMBER(Taxa_PivotTable!J21),Taxa_PivotTable!J21,"") ->  | AG21: =IF(ISNUMBER(AF21),LOG(ROUND(AF21,6)),"") ->  | AH21: =IF(COUNT(AG21,$C21)=2,(AG21)*$C21,"") ->  | AI21: =IF(AND(ISNUMBER(AF21),LEFT($B21,2)="01"),AF21/10^6,"") ->  | AJ21: =IF(ISNUMBER(Taxa_PivotTable!K21),Taxa_PivotTable!K21,"") ->  | AK21: =IF(ISNUMBER(AJ21),LOG(ROUND(AJ21,6)),"") ->  | AL21: =IF(COUNT(AK21,$C21)=2,(AK21)*$C21,"") ->  | AM21: =IF(AND(ISNUMBER(AJ21),LEFT($B21,2)="01"),AJ21/10^6,"") -> 
A22: =Taxa_PivotTable!A22 -> Aphanizomenon flos-aquae | B22: =IF(Taxa_PivotTable!B22="","",Taxa_PivotTable!B22) -> 01040020 | C22: =IF(ISNUMBER(VLOOKUP(B22,UKOptima!A:J,10,FALSE)),VLOOKUP(B22,UKOptima!A:J,10,FALSE),"") -> 0.748 | D22: =IF(ISNUMBER(Taxa_PivotTable!C22),Taxa_PivotTable!C22,"") ->  | E22: =IF(ISNUMBER(D22),LOG(ROUND(D22,6)),"") ->  | G22: =IF(AND(ISNUMBER(D22),LEFT($B22,2)="01"),D22/10^6,"") ->  | H22: =IF(ISNUMBER(Taxa_PivotTable!D22),Taxa_PivotTable!D22,"") ->  | I22: =IF(ISNUMBER(H22),LOG(ROUND(H22,6)),"") ->  | K22: =IF(AND(ISNUMBER(H22),LEFT($B22,2)="01"),H22/10^6,"") ->  | L22: =IF(ISNUMBER(Taxa_PivotTable!E22),Taxa_PivotTable!E22,"") ->  | M22: =IF(ISNUMBER(L22),LOG(ROUND(L22,6)),"") ->  | O22: =IF(AND(ISNUMBER(L22),LEFT($B22,2)="01"),L22/10^6,"") ->  | P22: =IF(ISNUMBER(Taxa_PivotTable!F22),Taxa_PivotTable!F22,"") ->  | Q22: =IF(ISNUMBER(P22),LOG(ROUND(P22,6)),"") ->  | S22: =IF(AND(ISNUMBER(P22),LEFT($B22,2)="01"),P22/10^6,"") ->  | T22: =IF(ISNUMBER(Taxa_PivotTable!G22),Taxa_PivotTable!G22,"") -> 27789.24726 | U22: =IF(ISNUMBER(T22),LOG(ROUND(T22,6)),"") -> 4.443876783 | V22: 3.324019834 | W22: =IF(AND(ISNUMBER(T22),LEFT($B22,2)="01"),T22/10^6,"") -> 0.02778924726 | X22: =IF(ISNUMBER(Taxa_PivotTable!H22),Taxa_PivotTable!H22,"") -> 61639.73513 | Y22: =IF(ISNUMBER(X22),LOG(ROUND(X22,6)),"") -> 4.789860764 | Z22: 3.582815851 | AA22: =IF(AND(ISNUMBER(X22),LEFT($B22,2)="01"),X22/10^6,"") -> 0.06163973513 | AB22: =IF(ISNUMBER(Taxa_PivotTable!I22),Taxa_PivotTable!I22,"") -> 79723.2664 | AC22: =IF(ISNUMBER(AB22),LOG(ROUND(AB22,6)),"") -> 4.901585084 | AD22: 3.666385643 | AE22: =IF(AND(ISNUMBER(AB22),LEFT($B22,2)="01"),AB22/10^6,"") -> 0.0797232664 | AF22: =IF(ISNUMBER(Taxa_PivotTable!J22),Taxa_PivotTable!J22,"") ->  | AG22: =IF(ISNUMBER(AF22),LOG(ROUND(AF22,6)),"") ->  | AI22: =IF(AND(ISNUMBER(AF22),LEFT($B22,2)="01"),AF22/10^6,"") ->  | AJ22: =IF(ISNUMBER(Taxa_PivotTable!K22),Taxa_PivotTable!K22,"") ->  | AK22: =IF(ISNUMBER(AJ22),LOG(ROUND(AJ22,6)),"") ->  | AM22: =IF(AND(ISNUMBER(AJ22),LEFT($B22,2)="01"),AJ22/10^6,"") -> 
A23: =Taxa_PivotTable!A23 -> Oscillatoria | B23: =IF(Taxa_PivotTable!B23="","",Taxa_PivotTable!B23) -> 01530000 | C23: =IF(ISNUMBER(VLOOKUP(B23,UKOptima!A:J,10,FALSE)),VLOOKUP(B23,UKOptima!A:J,10,FALSE),"") -> 0.567 | D23: =IF(ISNUMBER(Taxa_PivotTable!C23),Taxa_PivotTable!C23,"") -> 214663.199 | E23: 5.331757597 | F23: 3.023106558 | G23: 0.214663199 | H23: =IF(ISNUMBER(Taxa_PivotTable!D23),Taxa_PivotTable!D23,"") -> 31349.66173 | I23: 4.496232859 | J23: 2.549364031 | K23: 0.03134966173 | L23: =IF(ISNUMBER(Taxa_PivotTable!E23),Taxa_PivotTable!E23,"") -> 30338.38232 | M23: 4.48199242 | N23: 2.541289702 | O23: 0.03033838232 | P23: =IF(ISNUMBER(Taxa_PivotTable!F23),Taxa_PivotTable!F23,"") -> 16559.70035 | Q23: 4.219052474 | R23: 2.392202753 | S23: 0.01655970035 | T23: =IF(ISNUMBER(Taxa_PivotTable!G23),Taxa_PivotTable!G23,"") -> 445378.8968 | U23: 5.648729635 | V23: 3.202829703 | W23: 0.4453788968 | X23: =IF(ISNUMBER(Taxa_PivotTable!H23),Taxa_PivotTable!H23,"") -> 490258.616 | Y23: 5.690425235 | Z23: 3.226471108 | AA23: 0.490258616 | AB23: =IF(ISNUMBER(Taxa_PivotTable!I23),Taxa_PivotTable!I23,"") -> 195166.8134 | AC23: 5.290405971 | AD23: 2.999660186 | AE23: 0.1951668134 | AF23: =IF(ISNUMBER(Taxa_PivotTable!J23),Taxa_PivotTable!J23,"") ->  | AJ23: =IF(ISNUMBER(Taxa_PivotTable!K23),Taxa_PivotTable!K23,"") -> 
A24: =Taxa_PivotTable!A24 -> Woronichinia | B24: =IF(Taxa_PivotTable!B24="","",Taxa_PivotTable!B24) -> 01780000 | C24: =IF(ISNUMBER(VLOOKUP(B24,UKOptima!A:J,10,FALSE)),VLOOKUP(B24,UKOptima!A:J,10,FALSE),"") -> 0.503 | D24: =IF(ISNUMBER(Taxa_PivotTable!C24),Taxa_PivotTable!C24,"") -> 411637.1541 | E24: 5.614514567 | F24: 2.824100827 | G24: 0.4116371541 | H24: =IF(ISNUMBER(Taxa_PivotTable!D24),Taxa_PivotTable!D24,"") -> 842837.2621 | I24: 5.925743728 | J24: 2.980649095 | K24: 0.8428372621 | L24: =IF(ISNUMBER(Taxa_PivotTable!E24),Taxa_PivotTable!E24,"") -> 1347920.488 | M24: 6.129664275 | N24: 3.08322113 | O24: 1.347920488 | P24: =IF(ISNUMBER(Taxa_PivotTable!F24),Taxa_PivotTable!F24,"") -> 246129.2065 | Q24: 5.391163152 | R24: 2.711755065 | S24: 0.2461292065 | T24: =IF(ISNUMBER(Taxa_PivotTable!G24),Taxa_PivotTable!G24,"") -> 1159207.451 | U24: 6.064161164 | V24: 3.050273065 | W24: 1.159207451 | X24: =IF(ISNUMBER(Taxa_PivotTable!H24),Taxa_PivotTable!H24,"") -> 1744824.898 | Y24: 6.24175185 | Z24: 3.13960118 | AA24: 1.744824898 | AB24: =IF(ISNUMBER(Taxa_PivotTable!I24),Taxa_PivotTable!I24,"") -> 568430.4288 | AC24: 5.754677318 | AD24: 2.894602691 | AE24: 0.5684304288 | AF24: =IF(ISNUMBER(Taxa_PivotTable!J24),Taxa_PivotTable!J24,"") ->  | AJ24: =IF(ISNUMBER(Taxa_PivotTable!K24),Taxa_PivotTable!K24,"") -> 
A25: =Taxa_PivotTable!A25 -> Trachelomonas | B25: =IF(Taxa_PivotTable!B25="","",Taxa_PivotTable!B25) -> 04100000 | C25: =IF(ISNUMBER(VLOOKUP(B25,UKOptima!A:J,10,FALSE)),VLOOKUP(B25,UKOptima!A:J,10,FALSE),"") -> 0.621 | D25: =IF(ISNUMBER(Taxa_PivotTable!C25),Taxa_PivotTable!C25,"") -> 1160.907487 | E25: 3.064797612 | F25: 1.903239317 | H25: =IF(ISNUMBER(Taxa_PivotTable!D25),Taxa_PivotTable!D25,"") ->  | L25: =IF(ISNUMBER(Taxa_PivotTable!E25),Taxa_PivotTable!E25,"") -> 45464.55292 | M25: 4.657672925 | N25: 2.892414886 | P25: =IF(ISNUMBER(Taxa_PivotTable!F25),Taxa_PivotTable!F25,"") -> 7163.960099 | Q25: 3.855153158 | R25: 2.394050111 | T25: =IF(ISNUMBER(Taxa_PivotTable!G25),Taxa_PivotTable!G25,"") ->  | X25: =IF(ISNUMBER(Taxa_PivotTable!H25),Taxa_PivotTable!H25,"") -> 2348.180386 | Y25: 3.370731456 | Z25: 2.093224234 | AB25: =IF(ISNUMBER(Taxa_PivotTable!I25),Taxa_PivotTable!I25,"") ->  | AF25: =IF(ISNUMBER(Taxa_PivotTable!J25),Taxa_PivotTable!J25,"") ->  | AJ25: =IF(ISNUMBER(Taxa_PivotTable!K25),Taxa_PivotTable!K25,"") -> 
A26: =Taxa_PivotTable!A26 -> Cryptomonas (small) Length <20 µm | B26: =IF(Taxa_PivotTable!B26="","",Taxa_PivotTable!B26) -> 05040001 | C26: =IF(ISNUMBER(VLOOKUP(B26,UKOptima!A:J,10,FALSE)),VLOOKUP(B26,UKOptima!A:J,10,FALSE),"") -> 0.53 | D26: =IF(ISNUMBER(Taxa_PivotTable!C26),Taxa_PivotTable!C26,"") -> 330.2136851 | E26: 2.518795068 | F26: 1.334961386 | H26: =IF(ISNUMBER(Taxa_PivotTable!D26),Taxa_PivotTable!D26,"") -> 8118.226053 | I26: 3.90946114 | J26: 2.072014404 | L26: =IF(ISNUMBER(Taxa_PivotTable!E26),Taxa_PivotTable!E26,"") -> 2256.804154 | M26: 3.353493873 | N26: 1.777351752 | P26: =IF(ISNUMBER(Taxa_PivotTable!F26),Taxa_PivotTable!F26,"") -> 1104.495982 | Q26: 3.04316414 | R26: 1.612876994 | T26: =IF(ISNUMBER(Taxa_PivotTable!G26),Taxa_PivotTable!G26,"") -> 52305.7181 | U26: 4.718549169 | V26: 2.500831059 | X26: =IF(ISNUMBER(Taxa_PivotTable!H26),Taxa_PivotTable!H26,"") -> 52586.39904 | Y26: 4.720873433 | Z26: 2.502062919 | AB26: =IF(ISNUMBER(Taxa_PivotTable!I26),Taxa_PivotTable!I26,"") -> 9371.464382 | AC26: 3.971807459 | AD26: 2.105057953 | AF26: =IF(ISNUMBER(Taxa_PivotTable!J26),Taxa_PivotTable!J26,"") ->  | AJ26: =IF(ISNUMBER(Taxa_PivotTable!K26),Taxa_PivotTable!K26,"") -> 
A27: =Taxa_PivotTable!A27 -> Cryptomonas (medium) Length 20-30 µm | B27: =IF(Taxa_PivotTable!B27="","",Taxa_PivotTable!B27) -> 05040002 | C27: =IF(ISNUMBER(VLOOKUP(B27,UKOptima!A:J,10,FALSE)),VLOOKUP(B27,UKOptima!A:J,10,FALSE),"") -> 0.533 | D27: =IF(ISNUMBER(Taxa_PivotTable!C27),Taxa_PivotTable!C27,"") -> 87263.58927 | E27: 4.940833072 | F27: 2.633464027 | H27: =IF(ISNUMBER(Taxa_PivotTable!D27),Taxa_PivotTable!D27,"") -> 75581.94995 | I27: 4.878418092 | J27: 2.600196843 | L27: =IF(ISNUMBER(Taxa_PivotTable!E27),Taxa_PivotTable!E27,"") -> 110568.3651 | M27: 5.043630888 | N27: 2.688255263 | P27: =IF(ISNUMBER(Taxa_PivotTable!F27),Taxa_PivotTable!F27,"") -> 21569.02957 | Q27: 4.333830606 | R27: 2.309931713 | T27: =IF(ISNUMBER(Taxa_PivotTable!G27),Taxa_PivotTable!G27,"") -> 55418.433 | U27: 4.743654242 | V27: 2.528367711 | X27: =IF(ISNUMBER(Taxa_PivotTable!H27),Taxa_PivotTable!H27,"") -> 137887.317 | Y27: 5.139524321 | Z27: 2.739366463 | AB27: =IF(ISNUMBER(Taxa_PivotTable!I27),Taxa_PivotTable!I27,"") -> 42069.22348 | AC27: 4.623964496 | AD27: 2.464573076 | AF27: =IF(ISNUMBER(Taxa_PivotTable!J27),Taxa_PivotTable!J27,"") ->  | AJ27: =IF(ISNUMBER(Taxa_PivotTable!K27),Taxa_PivotTable!K27,"") -> 
A28: =Taxa_PivotTable!A28 -> Cryptomonas (large) Length >30 µm | B28: =IF(Taxa_PivotTable!B28="","",Taxa_PivotTable!B28) -> 05040003 | C28: =IF(ISNUMBER(VLOOKUP(B28,UKOptima!A:J,10,FALSE)),VLOOKUP(B28,UKOptima!A:J,10,FALSE),"") -> 0.589 | D28: =IF(ISNUMBER(Taxa_PivotTable!C28),Taxa_PivotTable!C28,"") -> 27813.02156 | E28: 4.444248172 | F28: 2.617662174 | H28: =IF(ISNUMBER(Taxa_PivotTable!D28),Taxa_PivotTable!D28,"") ->  | L28: =IF(ISNUMBER(Taxa_PivotTable!E28),Taxa_PivotTable!E28,"") ->  | P28: =IF(ISNUMBER(Taxa_PivotTable!F28),Taxa_PivotTable!F28,"") ->  | T28: =IF(ISNUMBER(Taxa_PivotTable!G28),Taxa_PivotTable!G28,"") ->  | X28: =IF(ISNUMBER(Taxa_PivotTable!H28),Taxa_PivotTable!H28,"") ->  | AB28: =IF(ISNUMBER(Taxa_PivotTable!I28),Taxa_PivotTable!I28,"") ->  | AF28: =IF(ISNUMBER(Taxa_PivotTable!J28),Taxa_PivotTable!J28,"") ->  | AJ28: =IF(ISNUMBER(Taxa_PivotTable!K28),Taxa_PivotTable!K28,"") -> 
A29: =Taxa_PivotTable!A29 -> Rhodomonas | B29: =IF(Taxa_PivotTable!B29="","",Taxa_PivotTable!B29) -> 05100000 | C29: =IF(ISNUMBER(VLOOKUP(B29,UKOptima!A:J,10,FALSE)),VLOOKUP(B29,UKOptima!A:J,10,FALSE),"") -> 0.539 | D29: =IF(ISNUMBER(Taxa_PivotTable!C29),Taxa_PivotTable!C29,"") ->  | H29: =IF(ISNUMBER(Taxa_PivotTable!D29),Taxa_PivotTable!D29,"") ->  | L29: =IF(ISNUMBER(Taxa_PivotTable!E29),Taxa_PivotTable!E29,"") ->  | P29: =IF(ISNUMBER(Taxa_PivotTable!F29),Taxa_PivotTable!F29,"") -> 6285.601683 | Q29: 3.798346856 | R29: 2.047308956 | T29: =IF(ISNUMBER(Taxa_PivotTable!G29),Taxa_PivotTable!G29,"") ->  | X29: =IF(ISNUMBER(Taxa_PivotTable!H29),Taxa_PivotTable!H29,"") ->  | AB29: =IF(ISNUMBER(Taxa_PivotTable!I29),Taxa_PivotTable!I29,"") -> 15820.2208 | AC29: 4.199212541 | AD29: 2.263375559 | AF29: =IF(ISNUMBER(Taxa_PivotTable!J29),Taxa_PivotTable!J29,"") ->  | AJ29: =IF(ISNUMBER(Taxa_PivotTable!K29),Taxa_PivotTable!K29,"") -> 
A30: =Taxa_PivotTable!A30 -> Rhodomonas lacustris var. nannoplanctica | B30: =IF(Taxa_PivotTable!B30="","",Taxa_PivotTable!B30) -> 05100012 | C30: =IF(ISNUMBER(VLOOKUP(B30,UKOptima!A:J,10,FALSE)),VLOOKUP(B30,UKOptima!A:J,10,FALSE),"") -> 0.473 | D30: =IF(ISNUMBER(Taxa_PivotTable!C30),Taxa_PivotTable!C30,"") -> 29871.29398 | E30: 4.475254036 | F30: 2.116795159 | H30: =IF(ISNUMBER(Taxa_PivotTable!D30),Taxa_PivotTable!D30,"") -> 26219.37898 | I30: 4.418622401 | J30: 2.090008396 | L30: =IF(ISNUMBER(Taxa_PivotTable!E30),Taxa_PivotTable!E30,"") -> 20300.80663 | M30: 4.307513294 | N30: 2.037453788 | P30: =IF(ISNUMBER(Taxa_PivotTable!F30),Taxa_PivotTable!F30,"") ->  | T30: =IF(ISNUMBER(Taxa_PivotTable!G30),Taxa_PivotTable!G30,"") -> 26142.34928 | U30: 4.417344613 | V30: 2.089404002 | X30: =IF(ISNUMBER(Taxa_PivotTable!H30),Taxa_PivotTable!H30,"") -> 11845.02905 | Y30: 4.07353613 | Z30: 1.92678259 | AB30: =IF(ISNUMBER(Taxa_PivotTable!I30),Taxa_PivotTable!I30,"") ->  | AF30: =IF(ISNUMBER(Taxa_PivotTable!J30),Taxa_PivotTable!J30,"") ->  | AJ30: =IF(ISNUMBER(Taxa_PivotTable!K30),Taxa_PivotTable!K30,"") -> 
A31: =Taxa_PivotTable!A31 -> Ceratium hirundinella | B31: =IF(Taxa_PivotTable!B31="","",Taxa_PivotTable!B31) -> 06020040 | C31: =IF(ISNUMBER(VLOOKUP(B31,UKOptima!A:J,10,FALSE)),VLOOKUP(B31,UKOptima!A:J,10,FALSE),"") -> 0.493 | D31: =IF(ISNUMBER(Taxa_PivotTable!C31),Taxa_PivotTable!C31,"") -> 399310.5251 | E31: 5.601310758 | F31: 2.761446203 | H31: =IF(ISNUMBER(Taxa_PivotTable!D31),Taxa_PivotTable!D31,"") -> 463837.7213 | I31: 5.666366064 | J31: 2.79351847 | L31: =IF(ISNUMBER(Taxa_PivotTable!E31),Taxa_PivotTable!E31,"") -> 278034.8125 | M31: 5.444099177 | N31: 2.683940894 | P31: =IF(ISNUMBER(Taxa_PivotTable!F31),Taxa_PivotTable!F31,"") -> 37606.69876 | Q31: 4.575265211 | R31: 2.255605749 | T31: =IF(ISNUMBER(Taxa_PivotTable!G31),Taxa_PivotTable!G31,"") -> 196673.9706 | U31: 5.293746886 | V31: 2.609817215 | X31: =IF(ISNUMBER(Taxa_PivotTable!H31),Taxa_PivotTable!H31,"") -> 21040.04336 | Y31: 4.32304663 | Z31: 2.131261989 | AB31: =IF(ISNUMBER(Taxa_PivotTable!I31),Taxa_PivotTable!I31,"") ->  | AF31: =IF(ISNUMBER(Taxa_PivotTable!J31),Taxa_PivotTable!J31,"") ->  | AJ31: =IF(ISNUMBER(Taxa_PivotTable!K31),Taxa_PivotTable!K31,"") -> 
A32: =Taxa_PivotTable!A32 -> Gymnodinium | B32: =IF(Taxa_PivotTable!B32="","",Taxa_PivotTable!B32) -> 06070000 | C32: =IF(ISNUMBER(VLOOKUP(B32,UKOptima!A:J,10,FALSE)),VLOOKUP(B32,UKOptima!A:J,10,FALSE),"") -> 0.46 | D32: =IF(ISNUMBER(Taxa_PivotTable!C32),Taxa_PivotTable!C32,"") ->  | H32: =IF(ISNUMBER(Taxa_PivotTable!D32),Taxa_PivotTable!D32,"") -> 648141.6152 | I32: 5.811669907 | J32: 2.673368157 | L32: =IF(ISNUMBER(Taxa_PivotTable!E32),Taxa_PivotTable!E32,"") ->  | P32: =IF(ISNUMBER(Taxa_PivotTable!F32),Taxa_PivotTable!F32,"") ->  | T32: =IF(ISNUMBER(Taxa_PivotTable!G32),Taxa_PivotTable!G32,"") ->  | X32: =IF(ISNUMBER(Taxa_PivotTable!H32),Taxa_PivotTable!H32,"") -> 386486.6428 | Y32: 5.587134489 | Z32: 2.570081865 | AB32: =IF(ISNUMBER(Taxa_PivotTable!I32),Taxa_PivotTable!I32,"") ->  | AF32: =IF(ISNUMBER(Taxa_PivotTable!J32),Taxa_PivotTable!J32,"") ->  | AJ32: =IF(ISNUMBER(Taxa_PivotTable!K32),Taxa_PivotTable!K32,"") -> 
A33: =Taxa_PivotTable!A33 -> Gymnodinium helveticum | B33: =IF(Taxa_PivotTable!B33="","",Taxa_PivotTable!B33) -> 06070110 | C33: =IF(ISNUMBER(VLOOKUP(B33,UKOptima!A:J,10,FALSE)),VLOOKUP(B33,UKOptima!A:J,10,FALSE),"") -> 0.479 | D33: =IF(ISNUMBER(Taxa_PivotTable!C33),Taxa_PivotTable!C33,"") ->  | H33: =IF(ISNUMBER(Taxa_PivotTable!D33),Taxa_PivotTable!D33,"") ->  | L33: =IF(ISNUMBER(Taxa_PivotTable!E33),Taxa_PivotTable!E33,"") ->  | P33: =IF(ISNUMBER(Taxa_PivotTable!F33),Taxa_PivotTable!F33,"") -> 22891.37577 | Q33: 4.359671895 | R33: 2.088282837 | T33: =IF(ISNUMBER(Taxa_PivotTable!G33),Taxa_PivotTable!G33,"") -> 111737.4597 | U33: 5.048198794 | V33: 2.418087222 | X33: =IF(ISNUMBER(Taxa_PivotTable!H33),Taxa_PivotTable!H33,"") -> 46358.21746 | Y33: 4.666126728 | Z33: 2.235074703 | AB33: =IF(ISNUMBER(Taxa_PivotTable!I33),Taxa_PivotTable!I33,"") -> 29089.07387 | AC33: 4.463729895 | AD33: 2.138126619 | AF33: =IF(ISNUMBER(Taxa_PivotTable!J33),Taxa_PivotTable!J33,"") ->  | AJ33: =IF(ISNUMBER(Taxa_PivotTable!K33),Taxa_PivotTable!K33,"") -> 
A34: =Taxa_PivotTable!A34 -> Peridinium cinctum | B34: =IF(Taxa_PivotTable!B34="","",Taxa_PivotTable!B34) -> 06110050 | C34: =IF(ISNUMBER(VLOOKUP(B34,UKOptima!A:J,10,FALSE)),VLOOKUP(B34,UKOptima!A:J,10,FALSE),"") -> 0.485 | D34: =IF(ISNUMBER(Taxa_PivotTable!C34),Taxa_PivotTable!C34,"") -> 76081.23304 | E34: 4.881277543 | F34: 2.367419608 | H34: =IF(ISNUMBER(Taxa_PivotTable!D34),Taxa_PivotTable!D34,"") -> 110294.8105 | I34: 5.042555079 | J34: 2.445639213 | L34: =IF(ISNUMBER(Taxa_PivotTable!E34),Taxa_PivotTable!E34,"") -> 51155.60338 | M34: 4.708893212 | N34: 2.283813208 | P34: =IF(ISNUMBER(Taxa_PivotTable!F34),Taxa_PivotTable!F34,"") -> 40468.03108 | Q34: 4.607112075 | R34: 2.234449356 | T34: =IF(ISNUMBER(Taxa_PivotTable!G34),Taxa_PivotTable!G34,"") ->  | X34: =IF(ISNUMBER(Taxa_PivotTable!H34),Taxa_PivotTable!H34,"") ->  | AB34: =IF(ISNUMBER(Taxa_PivotTable!I34),Taxa_PivotTable!I34,"") ->  | AF34: =IF(ISNUMBER(Taxa_PivotTable!J34),Taxa_PivotTable!J34,"") ->  | AJ34: =IF(ISNUMBER(Taxa_PivotTable!K34),Taxa_PivotTable!K34,"") -> 
A35: =Taxa_PivotTable!A35 -> Chrysochromulina | B35: =IF(Taxa_PivotTable!B35="","",Taxa_PivotTable!B35) -> 08010000 | C35: =IF(ISNUMBER(VLOOKUP(B35,UKOptima!A:J,10,FALSE)),VLOOKUP(B35,UKOptima!A:J,10,FALSE),"") -> 0.341 | D35: =IF(ISNUMBER(Taxa_PivotTable!C35),Taxa_PivotTable!C35,"") -> 1088.262044 | E35: 3.036733482 | F35: 1.035526117 | H35: =IF(ISNUMBER(Taxa_PivotTable!D35),Taxa_PivotTable!D35,"") -> 2369.005811 | I35: 3.374566126 | J35: 1.150727049 | L35: =IF(ISNUMBER(Taxa_PivotTable!E35),Taxa_PivotTable!E35,"") -> 15901.73948 | M35: 4.201444634 | N35: 1.43269262 | P35: =IF(ISNUMBER(Taxa_PivotTable!F35),Taxa_PivotTable!F35,"") ->  | T35: =IF(ISNUMBER(Taxa_PivotTable!G35),Taxa_PivotTable!G35,"") ->  | X35: =IF(ISNUMBER(Taxa_PivotTable!H35),Taxa_PivotTable!H35,"") -> 30124.27789 | Y35: 4.478916645 | Z35: 1.527310576 | AB35: =IF(ISNUMBER(Taxa_PivotTable!I35),Taxa_PivotTable!I35,"") ->  | AF35: =IF(ISNUMBER(Taxa_PivotTable!J35),Taxa_PivotTable!J35,"") ->  | AJ35: =IF(ISNUMBER(Taxa_PivotTable!K35),Taxa_PivotTable!K35,"") -> 
A36: =Taxa_PivotTable!A36 -> Dinobryon divergens | B36: =IF(Taxa_PivotTable!B36="","",Taxa_PivotTable!B36) -> 09230050 | C36: =IF(ISNUMBER(VLOOKUP(B36,UKOptima!A:J,10,FALSE)),VLOOKUP(B36,UKOptima!A:J,10,FALSE),"") -> 0.392 | D36: =IF(ISNUMBER(Taxa_PivotTable!C36),Taxa_PivotTable!C36,"") ->  | H36: =IF(ISNUMBER(Taxa_PivotTable!D36),Taxa_PivotTable!D36,"") -> 396.2564221 | I36: 2.597976314 | J36: 1.018406715 | L36: =IF(ISNUMBER(Taxa_PivotTable!E36),Taxa_PivotTable!E36,"") -> 61609.9485 | M36: 4.789650846 | N36: 1.877543132 | P36: =IF(ISNUMBER(Taxa_PivotTable!F36),Taxa_PivotTable!F36,"") ->  | T36: =IF(ISNUMBER(Taxa_PivotTable!G36),Taxa_PivotTable!G36,"") ->  | X36: =IF(ISNUMBER(Taxa_PivotTable!H36),Taxa_PivotTable!H36,"") -> 2749.022116 | Y36: 3.439178234 | Z36: 1.348157868 | AB36: =IF(ISNUMBER(Taxa_PivotTable!I36),Taxa_PivotTable!I36,"") -> 2655.599094 | AC36: 3.424162512 | AD36: 1.342271705 | AF36: =IF(ISNUMBER(Taxa_PivotTable!J36),Taxa_PivotTable!J36,"") ->  | AJ36: =IF(ISNUMBER(Taxa_PivotTable!K36),Taxa_PivotTable!K36,"") -> 
A37: =Taxa_PivotTable!A37 -> Mallomonas | B37: =IF(Taxa_PivotTable!B37="","",Taxa_PivotTable!B37) -> 09310000 | C37: =IF(ISNUMBER(VLOOKUP(B37,UKOptima!A:J,10,FALSE)),VLOOKUP(B37,UKOptima!A:J,10,FALSE),"") -> 0.452 | D37: =IF(ISNUMBER(Taxa_PivotTable!C37),Taxa_PivotTable!C37,"") -> 13410.80328 | E37: 4.127454792 | F37: 1.865609566 | H37: =IF(ISNUMBER(Taxa_PivotTable!D37),Taxa_PivotTable!D37,"") -> 27734.85379 | I37: 4.443025881 | J37: 2.008247698 | L37: =IF(ISNUMBER(Taxa_PivotTable!E37),Taxa_PivotTable!E37,"") -> 4339.214205 | M37: 3.63741109 | N37: 1.644109812 | P37: =IF(ISNUMBER(Taxa_PivotTable!F37),Taxa_PivotTable!F37,"") ->  | T37: =IF(ISNUMBER(Taxa_PivotTable!G37),Taxa_PivotTable!G37,"") ->  | X37: =IF(ISNUMBER(Taxa_PivotTable!H37),Taxa_PivotTable!H37,"") ->  | AB37: =IF(ISNUMBER(Taxa_PivotTable!I37),Taxa_PivotTable!I37,"") -> 1934.845811 | AC37: 3.286646362 | AD37: 1.485564155 | AF37: =IF(ISNUMBER(Taxa_PivotTable!J37),Taxa_PivotTable!J37,"") ->  | AJ37: =IF(ISNUMBER(Taxa_PivotTable!K37),Taxa_PivotTable!K37,"") -> 
A38: =Taxa_PivotTable!A38 -> Medium centric diatom (10-20 µm diam.) | B38: =IF(Taxa_PivotTable!B38="","",Taxa_PivotTable!B38) -> 12000002 | C38: =IF(ISNUMBER(VLOOKUP(B38,UKOptima!A:J,10,FALSE)),VLOOKUP(B38,UKOptima!A:J,10,FALSE),"") -> 0.568 | D38: =IF(ISNUMBER(Taxa_PivotTable!C38),Taxa_PivotTable!C38,"") ->  | H38: =IF(ISNUMBER(Taxa_PivotTable!D38),Taxa_PivotTable!D38,"") ->  | L38: =IF(ISNUMBER(Taxa_PivotTable!E38),Taxa_PivotTable!E38,"") -> 24485.896 | M38: 4.388916001 | N38: 2.492904288 | P38: =IF(ISNUMBER(Taxa_PivotTable!F38),Taxa_PivotTable!F38,"") -> 83088.25185 | Q38: 4.919539622 | R38: 2.794298505 | T38: =IF(ISNUMBER(Taxa_PivotTable!G38),Taxa_PivotTable!G38,"") -> 44974.09469 | U38: 4.65296243 | V38: 2.64288266 | X38: =IF(ISNUMBER(Taxa_PivotTable!H38),Taxa_PivotTable!H38,"") ->  | AB38: =IF(ISNUMBER(Taxa_PivotTable!I38),Taxa_PivotTable!I38,"") -> 35535.08716 | AC38: 4.550657385 | AD38: 2.584773395 | AF38: =IF(ISNUMBER(Taxa_PivotTable!J38),Taxa_PivotTable!J38,"") ->  | AJ38: =IF(ISNUMBER(Taxa_PivotTable!K38),Taxa_PivotTable!K38,"") -> 
A39: =Taxa_PivotTable!A39 -> Large centric diatom (>20 µm diam.) | B39: =IF(Taxa_PivotTable!B39="","",Taxa_PivotTable!B39) -> 12000003 | C39: =IF(ISNUMBER(VLOOKUP(B39,UKOptima!A:J,10,FALSE)),VLOOKUP(B39,UKOptima!A:J,10,FALSE),"") -> 0.599 | D39: =IF(ISNUMBER(Taxa_PivotTable!C39),Taxa_PivotTable!C39,"") ->  | H39: =IF(ISNUMBER(Taxa_PivotTable!D39),Taxa_PivotTable!D39,"") ->  | L39: =IF(ISNUMBER(Taxa_PivotTable!E39),Taxa_PivotTable!E39,"") ->  | P39: =IF(ISNUMBER(Taxa_PivotTable!F39),Taxa_PivotTable!F39,"") -> 17242.10757 | Q39: 4.23659035 | R39: 2.53771762 | T39: =IF(ISNUMBER(Taxa_PivotTable!G39),Taxa_PivotTable!G39,"") ->  | X39: =IF(ISNUMBER(Taxa_PivotTable!H39),Taxa_PivotTable!H39,"") -> 7227.706108 | Y39: 3.859000485 | Z39: 2.311541291 | AB39: =IF(ISNUMBER(Taxa_PivotTable!I39),Taxa_PivotTable!I39,"") ->  | AF39: =IF(ISNUMBER(Taxa_PivotTable!J39),Taxa_PivotTable!J39,"") ->  | AJ39: =IF(ISNUMBER(Taxa_PivotTable!K39),Taxa_PivotTable!K39,"") -> 
A40: =Taxa_PivotTable!A40 -> Aulacoseira | B40: =IF(Taxa_PivotTable!B40="","",Taxa_PivotTable!B40) -> 12030000 | C40: =IF(ISNUMBER(VLOOKUP(B40,UKOptima!A:J,10,FALSE)),VLOOKUP(B40,UKOptima!A:J,10,FALSE),"") -> 0.606 | D40: =IF(ISNUMBER(Taxa_PivotTable!C40),Taxa_PivotTable!C40,"") ->  | H40: =IF(ISNUMBER(Taxa_PivotTable!D40),Taxa_PivotTable!D40,"") ->  | L40: =IF(ISNUMBER(Taxa_PivotTable!E40),Taxa_PivotTable!E40,"") -> 5572.355935 | M40: 3.746038849 | N40: 2.270099543 | P40: =IF(ISNUMBER(Taxa_PivotTable!F40),Taxa_PivotTable!F40,"") -> 15111.42956 | Q40: 4.179305551 | R40: 2.532659164 | T40: =IF(ISNUMBER(Taxa_PivotTable!G40),Taxa_PivotTable!G40,"") ->  | X40: =IF(ISNUMBER(Taxa_PivotTable!H40),Taxa_PivotTable!H40,"") ->  | AB40: =IF(ISNUMBER(Taxa_PivotTable!I40),Taxa_PivotTable!I40,"") ->  | AF40: =IF(ISNUMBER(Taxa_PivotTable!J40),Taxa_PivotTable!J40,"") ->  | AJ40: =IF(ISNUMBER(Taxa_PivotTable!K40),Taxa_PivotTable!K40,"") -> 
A41: =Taxa_PivotTable!A41 -> Urosolenia eriensis | B41: =IF(Taxa_PivotTable!B41="","",Taxa_PivotTable!B41) -> 12200010 | C41: =IF(ISNUMBER(VLOOKUP(B41,UKOptima!A:J,10,FALSE)),VLOOKUP(B41,UKOptima!A:J,10,FALSE),"") -> 0.258 | D41: =IF(ISNUMBER(Taxa_PivotTable!C41),Taxa_PivotTable!C41,"") ->  | H41: =IF(ISNUMBER(Taxa_PivotTable!D41),Taxa_PivotTable!D41,"") ->  | L41: =IF(ISNUMBER(Taxa_PivotTable!E41),Taxa_PivotTable!E41,"") ->  | P41: =IF(ISNUMBER(Taxa_PivotTable!F41),Taxa_PivotTable!F41,"") ->  | T41: =IF(ISNUMBER(Taxa_PivotTable!G41),Taxa_PivotTable!G41,"") -> 15.47872813 | U41: 1.189735269 | V41: 0.3069516993 | X41: =IF(ISNUMBER(Taxa_PivotTable!H41),Taxa_PivotTable!H41,"") ->  | AB41: =IF(ISNUMBER(Taxa_PivotTable!I41),Taxa_PivotTable!I41,"") -> 97.51622887 | AC41: 1.989076899 | AD41: 0.5131818398 | AF41: =IF(ISNUMBER(Taxa_PivotTable!J41),Taxa_PivotTable!J41,"") ->  | AJ41: =IF(ISNUMBER(Taxa_PivotTable!K41),Taxa_PivotTable!K41,"") -> 
A42: =Taxa_PivotTable!A42 -> Asterionella formosa | B42: =IF(Taxa_PivotTable!B42="","",Taxa_PivotTable!B42) -> 13080010 | C42: =IF(ISNUMBER(VLOOKUP(B42,UKOptima!A:J,10,FALSE)),VLOOKUP(B42,UKOptima!A:J,10,FALSE),"") -> 0.491 | D42: =IF(ISNUMBER(Taxa_PivotTable!C42),Taxa_PivotTable!C42,"") ->  | H42: =IF(ISNUMBER(Taxa_PivotTable!D42),Taxa_PivotTable!D42,"") ->  | L42: =IF(ISNUMBER(Taxa_PivotTable!E42),Taxa_PivotTable!E42,"") -> 2554.179816 | M42: 3.407251469 | N42: 1.672960471 | P42: =IF(ISNUMBER(Taxa_PivotTable!F42),Taxa_PivotTable!F42,"") ->  | T42: =IF(ISNUMBER(Taxa_PivotTable!G42),Taxa_PivotTable!G42,"") ->  | X42: =IF(ISNUMBER(Taxa_PivotTable!H42),Taxa_PivotTable!H42,"") ->  | AB42: =IF(ISNUMBER(Taxa_PivotTable!I42),Taxa_PivotTable!I42,"") ->  | AF42: =IF(ISNUMBER(Taxa_PivotTable!J42),Taxa_PivotTable!J42,"") ->  | AJ42: =IF(ISNUMBER(Taxa_PivotTable!K42),Taxa_PivotTable!K42,"") -> 
A43: =Taxa_PivotTable!A43 -> Fragilaria crotonensis | B43: =IF(Taxa_PivotTable!B43="","",Taxa_PivotTable!B43) -> 13370040 | C43: =IF(ISNUMBER(VLOOKUP(B43,UKOptima!A:J,10,FALSE)),VLOOKUP(B43,UKOptima!A:J,10,FALSE),"") -> 0.467 | D43: =IF(ISNUMBER(Taxa_PivotTable!C43),Taxa_PivotTable!C43,"") ->  | H43: =IF(ISNUMBER(Taxa_PivotTable!D43),Taxa_PivotTable!D43,"") ->  | L43: =IF(ISNUMBER(Taxa_PivotTable!E43),Taxa_PivotTable!E43,"") ->  | P43: =IF(ISNUMBER(Taxa_PivotTable!F43),Taxa_PivotTable!F43,"") -> 29357.30135 | Q43: 4.467716131 | R43: 2.086423433 | T43: =IF(ISNUMBER(Taxa_PivotTable!G43),Taxa_PivotTable!G43,"") -> 84005.89883 | U43: 4.924309783 | V43: 2.299652669 | X43: =IF(ISNUMBER(Taxa_PivotTable!H43),Taxa_PivotTable!H43,"") ->  | AB43: =IF(ISNUMBER(Taxa_PivotTable!I43),Taxa_PivotTable!I43,"") -> 434460.3108 | AC43: 5.637950109 | AD43: 2.632922701 | AF43: =IF(ISNUMBER(Taxa_PivotTable!J43),Taxa_PivotTable!J43,"") ->  | AJ43: =IF(ISNUMBER(Taxa_PivotTable!K43),Taxa_PivotTable!K43,"") -> 
A44: =Taxa_PivotTable!A44 -> Tabellaria fenestrata | B44: =IF(Taxa_PivotTable!B44="","",Taxa_PivotTable!B44) -> 13820010 | C44: =IF(ISNUMBER(VLOOKUP(B44,UKOptima!A:J,10,FALSE)),VLOOKUP(B44,UKOptima!A:J,10,FALSE),"") -> 0.297 | D44: =IF(ISNUMBER(Taxa_PivotTable!C44),Taxa_PivotTable!C44,"") ->  | H44: =IF(ISNUMBER(Taxa_PivotTable!D44),Taxa_PivotTable!D44,"") ->  | L44: =IF(ISNUMBER(Taxa_PivotTable!E44),Taxa_PivotTable!E44,"") ->  | P44: =IF(ISNUMBER(Taxa_PivotTable!F44),Taxa_PivotTable!F44,"") ->  | T44: =IF(ISNUMBER(Taxa_PivotTable!G44),Taxa_PivotTable!G44,"") -> 37839.60722 | U44: 4.57794662 | V44: 1.359650146 | X44: =IF(ISNUMBER(Taxa_PivotTable!H44),Taxa_PivotTable!H44,"") ->  | AB44: =IF(ISNUMBER(Taxa_PivotTable!I44),Taxa_PivotTable!I44,"") -> 64563.9898 | AC44: 4.80999036 | AD44: 1.428567137 | AF44: =IF(ISNUMBER(Taxa_PivotTable!J44),Taxa_PivotTable!J44,"") ->  | AJ44: =IF(ISNUMBER(Taxa_PivotTable!K44),Taxa_PivotTable!K44,"") -> 
A45: =Taxa_PivotTable!A45 -> Tabellaria flocculosa | B45: =IF(Taxa_PivotTable!B45="","",Taxa_PivotTable!B45) -> 13820020 | C45: =IF(ISNUMBER(VLOOKUP(B45,UKOptima!A:J,10,FALSE)),VLOOKUP(B45,UKOptima!A:J,10,FALSE),"") -> 0.295 | D45: =IF(ISNUMBER(Taxa_PivotTable!C45),Taxa_PivotTable!C45,"") ->  | H45: =IF(ISNUMBER(Taxa_PivotTable!D45),Taxa_PivotTable!D45,"") ->  | L45: =IF(ISNUMBER(Taxa_PivotTable!E45),Taxa_PivotTable!E45,"") ->  | P45: =IF(ISNUMBER(Taxa_PivotTable!F45),Taxa_PivotTable!F45,"") -> 1182.490656 | Q45: 3.072797718 | R45: 0.9064753267 | T45: =IF(ISNUMBER(Taxa_PivotTable!G45),Taxa_PivotTable!G45,"") -> 11824.87725 | U45: 4.072796641 | V45: 1.201475009 | X45: =IF(ISNUMBER(Taxa_PivotTable!H45),Taxa_PivotTable!H45,"") ->  | AB45: =IF(ISNUMBER(Taxa_PivotTable!I45),Taxa_PivotTable!I45,"") -> 22204.54676 | AC45: 4.346441913 | AD45: 1.282200364 | AF45: =IF(ISNUMBER(Taxa_PivotTable!J45),Taxa_PivotTable!J45,"") ->  | AJ45: =IF(ISNUMBER(Taxa_PivotTable!K45),Taxa_PivotTable!K45,"") -> 
A46: =Taxa_PivotTable!A46 -> Paulschulzia | B46: =IF(Taxa_PivotTable!B46="","",Taxa_PivotTable!B46) -> 16490000 | C46: =IF(ISNUMBER(VLOOKUP(B46,UKOptima!A:J,10,FALSE)),VLOOKUP(B46,UKOptima!A:J,10,FALSE),"") -> 0.304 | D46: =IF(ISNUMBER(Taxa_PivotTable!C46),Taxa_PivotTable!C46,"") ->  | H46: =IF(ISNUMBER(Taxa_PivotTable!D46),Taxa_PivotTable!D46,"") ->  | L46: =IF(ISNUMBER(Taxa_PivotTable!E46),Taxa_PivotTable!E46,"") ->  | P46: =IF(ISNUMBER(Taxa_PivotTable!F46),Taxa_PivotTable!F46,"") ->  | T46: =IF(ISNUMBER(Taxa_PivotTable!G46),Taxa_PivotTable!G46,"") -> 3146.195 | U46: 3.497785637 | V46: 1.063326834 | X46: =IF(ISNUMBER(Taxa_PivotTable!H46),Taxa_PivotTable!H46,"") ->  | AB46: =IF(ISNUMBER(Taxa_PivotTable!I46),Taxa_PivotTable!I46,"") ->  | AF46: =IF(ISNUMBER(Taxa_PivotTable!J46),Taxa_PivotTable!J46,"") ->  | AJ46: =IF(ISNUMBER(Taxa_PivotTable!K46),Taxa_PivotTable!K46,"") -> 
A47: =Taxa_PivotTable!A47 -> Chlorococcales | B47: =IF(Taxa_PivotTable!B47="","",Taxa_PivotTable!B47) -> 17000000 | C47: =IF(ISNUMBER(VLOOKUP(B47,UKOptima!A:J,10,FALSE)),VLOOKUP(B47,UKOptima!A:J,10,FALSE),"") -> 0.503 | D47: =IF(ISNUMBER(Taxa_PivotTable!C47),Taxa_PivotTable!C47,"") -> 1485.961583 | E47: 3.172007582 | F47: 1.595519814 | H47: =IF(ISNUMBER(Taxa_PivotTable!D47),Taxa_PivotTable!D47,"") -> 30364.33147 | I47: 4.482363724 | J47: 2.254628953 | L47: =IF(ISNUMBER(Taxa_PivotTable!E47),Taxa_PivotTable!E47,"") -> 18952.04649 | M47: 4.277656113 | N47: 2.151661025 | P47: =IF(ISNUMBER(Taxa_PivotTable!F47),Taxa_PivotTable!F47,"") -> 12775.04995 | Q47: 4.106362607 | R47: 2.065500391 | T47: =IF(ISNUMBER(Taxa_PivotTable!G47),Taxa_PivotTable!G47,"") -> 15616.0051 | U47: 4.193569942 | V47: 2.109365681 | X47: =IF(ISNUMBER(Taxa_PivotTable!H47),Taxa_PivotTable!H47,"") -> 18952.04649 | Y47: 4.277656113 | Z47: 2.151661025 | AB47: =IF(ISNUMBER(Taxa_PivotTable!I47),Taxa_PivotTable!I47,"") -> 3997.697306 | AC47: 3.601809908 | AD47: 1.811710383 | AF47: =IF(ISNUMBER(Taxa_PivotTable!J47),Taxa_PivotTable!J47,"") ->  | AJ47: =IF(ISNUMBER(Taxa_PivotTable!K47),Taxa_PivotTable!K47,"") -> 
A48: =Taxa_PivotTable!A48 -> Ankyra lanceolata | B48: =IF(Taxa_PivotTable!B48="","",Taxa_PivotTable!B48) -> 17060000 | C48: =IF(ISNUMBER(VLOOKUP(B48,UKOptima!A:J,10,FALSE)),VLOOKUP(B48,UKOptima!A:J,10,FALSE),"") -> 0.627 | D48: =IF(ISNUMBER(Taxa_PivotTable!C48),Taxa_PivotTable!C48,"") ->  | H48: =IF(ISNUMBER(Taxa_PivotTable!D48),Taxa_PivotTable!D48,"") ->  | L48: =IF(ISNUMBER(Taxa_PivotTable!E48),Taxa_PivotTable!E48,"") ->  | P48: =IF(ISNUMBER(Taxa_PivotTable!F48),Taxa_PivotTable!F48,"") ->  | T48: =IF(ISNUMBER(Taxa_PivotTable!G48),Taxa_PivotTable!G48,"") ->  | X48: =IF(ISNUMBER(Taxa_PivotTable!H48),Taxa_PivotTable!H48,"") ->  | AB48: =IF(ISNUMBER(Taxa_PivotTable!I48),Taxa_PivotTable!I48,"") -> 60.53917559 | AC48: 1.782036505 | AD48: 1.117336889 | AF48: =IF(ISNUMBER(Taxa_PivotTable!J48),Taxa_PivotTable!J48,"") ->  | AJ48: =IF(ISNUMBER(Taxa_PivotTable!K48),Taxa_PivotTable!K48,"") -> 
A49: =Taxa_PivotTable!A49 -> Botryococcus | B49: =IF(Taxa_PivotTable!B49="","",Taxa_PivotTable!B49) -> 17080000 | C49: =IF(ISNUMBER(VLOOKUP(B49,UKOptima!A:J,10,FALSE)),VLOOKUP(B49,UKOptima!A:J,10,FALSE),"") -> 0.313 | D49: =IF(ISNUMBER(Taxa_PivotTable!C49),Taxa_PivotTable!C49,"") ->  | H49: =IF(ISNUMBER(Taxa_PivotTable!D49),Taxa_PivotTable!D49,"") -> 14747.82474 | I49: 4.168727968 | J49: 1.304811854 | L49: =IF(ISNUMBER(Taxa_PivotTable!E49),Taxa_PivotTable!E49,"") -> 67597.49311 | M49: 4.82993059 | N49: 1.511768275 | P49: =IF(ISNUMBER(Taxa_PivotTable!F49),Taxa_PivotTable!F49,"") ->  | T49: =IF(ISNUMBER(Taxa_PivotTable!G49),Taxa_PivotTable!G49,"") ->  | X49: =IF(ISNUMBER(Taxa_PivotTable!H49),Taxa_PivotTable!H49,"") ->  | AB49: =IF(ISNUMBER(Taxa_PivotTable!I49),Taxa_PivotTable!I49,"") ->  | AF49: =IF(ISNUMBER(Taxa_PivotTable!J49),Taxa_PivotTable!J49,"") ->  | AJ49: =IF(ISNUMBER(Taxa_PivotTable!K49),Taxa_PivotTable!K49,"") -> 
A50: =Taxa_PivotTable!A50 -> Monoraphidium | B50: =IF(Taxa_PivotTable!B50="","",Taxa_PivotTable!B50) -> 17580000 | C50: =IF(ISNUMBER(VLOOKUP(B50,UKOptima!A:J,10,FALSE)),VLOOKUP(B50,UKOptima!A:J,10,FALSE),"") -> 0.538 | D50: =IF(ISNUMBER(Taxa_PivotTable!C50),Taxa_PivotTable!C50,"") ->  | H50: =IF(ISNUMBER(Taxa_PivotTable!D50),Taxa_PivotTable!D50,"") ->  | L50: =IF(ISNUMBER(Taxa_PivotTable!E50),Taxa_PivotTable!E50,"") ->  | P50: =IF(ISNUMBER(Taxa_PivotTable!F50),Taxa_PivotTable!F50,"") ->  | T50: =IF(ISNUMBER(Taxa_PivotTable!G50),Taxa_PivotTable!G50,"") ->  | X50: =IF(ISNUMBER(Taxa_PivotTable!H50),Taxa_PivotTable!H50,"") -> 1998.848653 | Y50: 3.300779912 | Z50: 1.775819593 | AB50: =IF(ISNUMBER(Taxa_PivotTable!I50),Taxa_PivotTable!I50,"") ->  | AF50: =IF(ISNUMBER(Taxa_PivotTable!J50),Taxa_PivotTable!J50,"") ->  | AJ50: =IF(ISNUMBER(Taxa_PivotTable!K50),Taxa_PivotTable!K50,"") -> 
A51: =Taxa_PivotTable!A51 -> Monoraphidium contortum | B51: =IF(Taxa_PivotTable!B51="","",Taxa_PivotTable!B51) -> 17580020 | C51: =IF(ISNUMBER(VLOOKUP(B51,UKOptima!A:J,10,FALSE)),VLOOKUP(B51,UKOptima!A:J,10,FALSE),"") -> 0.596 | D51: =IF(ISNUMBER(Taxa_PivotTable!C51),Taxa_PivotTable!C51,"") ->  | H51: =IF(ISNUMBER(Taxa_PivotTable!D51),Taxa_PivotTable!D51,"") ->  | L51: =IF(ISNUMBER(Taxa_PivotTable!E51),Taxa_PivotTable!E51,"") -> 249.8560816 | M51: 2.397689926 | N51: 1.429023196 | P51: =IF(ISNUMBER(Taxa_PivotTable!F51),Taxa_PivotTable!F51,"") ->  | T51: =IF(ISNUMBER(Taxa_PivotTable!G51),Taxa_PivotTable!G51,"") -> 185.078579 | U51: 2.267356156 | V51: 1.351344269 | X51: =IF(ISNUMBER(Taxa_PivotTable!H51),Taxa_PivotTable!H51,"") ->  | AB51: =IF(ISNUMBER(Taxa_PivotTable!I51),Taxa_PivotTable!I51,"") ->  | AF51: =IF(ISNUMBER(Taxa_PivotTable!J51),Taxa_PivotTable!J51,"") ->  | AJ51: =IF(ISNUMBER(Taxa_PivotTable!K51),Taxa_PivotTable!K51,"") -> 
A52: =Taxa_PivotTable!A52 -> Quadrigula | B52: =IF(Taxa_PivotTable!B52="","",Taxa_PivotTable!B52) -> 17780000 | C52: =IF(ISNUMBER(VLOOKUP(B52,UKOptima!A:J,10,FALSE)),VLOOKUP(B52,UKOptima!A:J,10,FALSE),"") -> 0.271 | D52: =IF(ISNUMBER(Taxa_PivotTable!C52),Taxa_PivotTable!C52,"") ->  | H52: =IF(ISNUMBER(Taxa_PivotTable!D52),Taxa_PivotTable!D52,"") ->  | L52: =IF(ISNUMBER(Taxa_PivotTable!E52),Taxa_PivotTable!E52,"") -> 201.9979027 | M52: 2.305346861 | N52: 0.6247489993 | P52: =IF(ISNUMBER(Taxa_PivotTable!F52),Taxa_PivotTable!F52,"") ->  | T52: =IF(ISNUMBER(Taxa_PivotTable!G52),Taxa_PivotTable!G52,"") ->  | X52: =IF(ISNUMBER(Taxa_PivotTable!H52),Taxa_PivotTable!H52,"") ->  | AB52: =IF(ISNUMBER(Taxa_PivotTable!I52),Taxa_PivotTable!I52,"") ->  | AF52: =IF(ISNUMBER(Taxa_PivotTable!J52),Taxa_PivotTable!J52,"") ->  | AJ52: =IF(ISNUMBER(Taxa_PivotTable!K52),Taxa_PivotTable!K52,"") -> 
A53: =Taxa_PivotTable!A53 -> Tetraedron minimum | B53: =IF(Taxa_PivotTable!B53="","",Taxa_PivotTable!B53) -> 17960030 | C53: =IF(ISNUMBER(VLOOKUP(B53,UKOptima!A:J,10,FALSE)),VLOOKUP(B53,UKOptima!A:J,10,FALSE),"") -> 0.581 | D53: =IF(ISNUMBER(Taxa_PivotTable!C53),Taxa_PivotTable!C53,"") -> 3031.039965 | E53: 3.481591663 | F53: =IF(COUNT(E53,$C53)=2,(E53)*$C53,"") -> 2.022804756 | H53: =IF(ISNUMBER(Taxa_PivotTable!D53),Taxa_PivotTable!D53,"") -> 5880.924481 | I53: 3.769445603 | J53: =IF(COUNT(I53,$C53)=2,(I53)*$C53,"") -> 2.190047895 | L53: =IF(ISNUMBER(Taxa_PivotTable!E53),Taxa_PivotTable!E53,"") -> 1908.759862 | M53: 3.280751294 | N53: =IF(COUNT(M53,$C53)=2,(M53)*$C53,"") -> 1.906116502 | P53: =IF(ISNUMBER(Taxa_PivotTable!F53),Taxa_PivotTable!F53,"") ->  | R53: =IF(COUNT(Q53,$C53)=2,(Q53)*$C53,"") ->  | T53: =IF(ISNUMBER(Taxa_PivotTable!G53),Taxa_PivotTable!G53,"") -> 4418.425606 | U53: 3.645267547 | V53: =IF(COUNT(U53,$C53)=2,(U53)*$C53,"") -> 2.117900445 | X53: =IF(ISNUMBER(Taxa_PivotTable!H53),Taxa_PivotTable!H53,"") -> 49701.279 | Y53: 4.696367565 | Z53: 2.728589555 | AB53: =IF(ISNUMBER(Taxa_PivotTable!I53),Taxa_PivotTable!I53,"") -> 9819.137918 | AC53: 3.99207336 | AD53: 2.319394622 | AF53: =IF(ISNUMBER(Taxa_PivotTable!J53),Taxa_PivotTable!J53,"") ->  | AJ53: =IF(ISNUMBER(Taxa_PivotTable!K53),Taxa_PivotTable!K53,"") -> 
A54: =Taxa_PivotTable!A54 -> Gloeotila | B54: =IF(Taxa_PivotTable!B54="","",Taxa_PivotTable!B54) -> 24170000 | C54: =IF(ISNUMBER(VLOOKUP(B54,UKOptima!A:J,10,FALSE)),VLOOKUP(B54,UKOptima!A:J,10,FALSE),"") -> 0.264 | D54: =IF(ISNUMBER(Taxa_PivotTable!C54),Taxa_PivotTable!C54,"") ->  | H54: =IF(ISNUMBER(Taxa_PivotTable!D54),Taxa_PivotTable!D54,"") ->  | L54: =IF(ISNUMBER(Taxa_PivotTable!E54),Taxa_PivotTable!E54,"") -> 2476.602638 | M54: 3.393856331 | N54: 0.8959780714 | P54: =IF(ISNUMBER(Taxa_PivotTable!F54),Taxa_PivotTable!F54,"") ->  | T54: =IF(ISNUMBER(Taxa_PivotTable!G54),Taxa_PivotTable!G54,"") ->  | X54: =IF(ISNUMBER(Taxa_PivotTable!H54),Taxa_PivotTable!H54,"") ->  | AB54: =IF(ISNUMBER(Taxa_PivotTable!I54),Taxa_PivotTable!I54,"") -> 1783.153899 | AC54: 3.251188828 | AD54: 0.8583138505 | AF54: =IF(ISNUMBER(Taxa_PivotTable!J54),Taxa_PivotTable!J54,"") ->  | AJ54: =IF(ISNUMBER(Taxa_PivotTable!K54),Taxa_PivotTable!K54,"") -> 
A55: =Taxa_PivotTable!A55 -> Elakatothrix | B55: =IF(Taxa_PivotTable!B55="","",Taxa_PivotTable!B55) -> 25010000 | C55: =IF(ISNUMBER(VLOOKUP(B55,UKOptima!A:J,10,FALSE)),VLOOKUP(B55,UKOptima!A:J,10,FALSE),"") -> 0.437 | D55: =IF(ISNUMBER(Taxa_PivotTable!C55),Taxa_PivotTable!C55,"") -> 136.2131451 | E55: 2.13421902 | F55: 0.9326537119 | H55: =IF(ISNUMBER(Taxa_PivotTable!D55),Taxa_PivotTable!D55,"") ->  | L55: =IF(ISNUMBER(Taxa_PivotTable!E55),Taxa_PivotTable!E55,"") -> 111.4471187 | M55: 2.047068846 | N55: 0.8945690857 | P55: =IF(ISNUMBER(Taxa_PivotTable!F55),Taxa_PivotTable!F55,"") -> 126.4099263 | Q55: 2.101781177 | R55: 0.9184783744 | T55: =IF(ISNUMBER(Taxa_PivotTable!G55),Taxa_PivotTable!G55,"") -> 330.2128668 | U55: 2.518793992 | V55: 1.100712974 | X55: =IF(ISNUMBER(Taxa_PivotTable!H55),Taxa_PivotTable!H55,"") ->  | AB55: =IF(ISNUMBER(Taxa_PivotTable!I55),Taxa_PivotTable!I55,"") ->  | AF55: =IF(ISNUMBER(Taxa_PivotTable!J55),Taxa_PivotTable!J55,"") ->  | AJ55: =IF(ISNUMBER(Taxa_PivotTable!K55),Taxa_PivotTable!K55,"") -> 
A56: =Taxa_PivotTable!A56 -> Cosmarium | B56: =IF(Taxa_PivotTable!B56="","",Taxa_PivotTable!B56) -> 27050000 | C56: =IF(ISNUMBER(VLOOKUP(B56,UKOptima!A:J,10,FALSE)),VLOOKUP(B56,UKOptima!A:J,10,FALSE),"") -> 0.456 | D56: =IF(ISNUMBER(Taxa_PivotTable!C56),Taxa_PivotTable!C56,"") ->  | H56: =IF(ISNUMBER(Taxa_PivotTable!D56),Taxa_PivotTable!D56,"") ->  | L56: =IF(ISNUMBER(Taxa_PivotTable!E56),Taxa_PivotTable!E56,"") ->  | P56: =IF(ISNUMBER(Taxa_PivotTable!F56),Taxa_PivotTable!F56,"") ->  | T56: =IF(ISNUMBER(Taxa_PivotTable!G56),Taxa_PivotTable!G56,"") -> 8528.435228 | U56: 3.930869355 | V56: 1.792476426 | X56: =IF(ISNUMBER(Taxa_PivotTable!H56),Taxa_PivotTable!H56,"") -> 24497.39188 | Y56: 4.38911985 | Z56: 2.001438651 | AB56: =IF(ISNUMBER(Taxa_PivotTable!I56),Taxa_PivotTable!I56,"") ->  | AF56: =IF(ISNUMBER(Taxa_PivotTable!J56),Taxa_PivotTable!J56,"") ->  | AJ56: =IF(ISNUMBER(Taxa_PivotTable!K56),Taxa_PivotTable!K56,"") -> 
A57: =Taxa_PivotTable!A57 -> Spondylosium planum | B57: =IF(Taxa_PivotTable!B57="","",Taxa_PivotTable!B57) -> 27360040 | C57: =IF(ISNUMBER(VLOOKUP(B57,UKOptima!A:J,10,FALSE)),VLOOKUP(B57,UKOptima!A:J,10,FALSE),"") -> 0.339 | D57: =IF(ISNUMBER(Taxa_PivotTable!C57),Taxa_PivotTable!C57,"") ->  | H57: =IF(ISNUMBER(Taxa_PivotTable!D57),Taxa_PivotTable!D57,"") -> 1434.237905 | I57: 3.156621196 | J57: 1.070094585 | L57: =IF(ISNUMBER(Taxa_PivotTable!E57),Taxa_PivotTable!E57,"") ->  | P57: =IF(ISNUMBER(Taxa_PivotTable!F57),Taxa_PivotTable!F57,"") ->  | T57: =IF(ISNUMBER(Taxa_PivotTable!G57),Taxa_PivotTable!G57,"") ->  | X57: =IF(ISNUMBER(Taxa_PivotTable!H57),Taxa_PivotTable!H57,"") ->  | AB57: =IF(ISNUMBER(Taxa_PivotTable!I57),Taxa_PivotTable!I57,"") ->  | AF57: =IF(ISNUMBER(Taxa_PivotTable!J57),Taxa_PivotTable!J57,"") ->  | AJ57: =IF(ISNUMBER(Taxa_PivotTable!K57),Taxa_PivotTable!K57,"") -> 
A58: =Taxa_PivotTable!A58 -> Staurastrum | B58: =IF(Taxa_PivotTable!B58="","",Taxa_PivotTable!B58) -> 27370000 | C58: =IF(ISNUMBER(VLOOKUP(B58,UKOptima!A:J,10,FALSE)),VLOOKUP(B58,UKOptima!A:J,10,FALSE),"") -> 0.458 | D58: =IF(ISNUMBER(Taxa_PivotTable!C58),Taxa_PivotTable!C58,"") ->  | H58: =IF(ISNUMBER(Taxa_PivotTable!D58),Taxa_PivotTable!D58,"") -> 1398.056236 | I58: 3.145524641 | J58: 1.440650286 | L58: =IF(ISNUMBER(Taxa_PivotTable!E58),Taxa_PivotTable!E58,"") -> 1255.166621 | M58: 3.098701381 | N58: 1.419205233 | P58: =IF(ISNUMBER(Taxa_PivotTable!F58),Taxa_PivotTable!F58,"") -> 3953.551857 | Q58: 3.59698744 | R58: 1.647420247 | T58: =IF(ISNUMBER(Taxa_PivotTable!G58),Taxa_PivotTable!G58,"") -> 949.8054431 | U58: 2.977634654 | V58: 1.363756672 | X58: =IF(ISNUMBER(Taxa_PivotTable!H58),Taxa_PivotTable!H58,"") -> 5222.365941 | Y58: 3.7178673 | Z58: 1.702783224 | AB58: =IF(ISNUMBER(Taxa_PivotTable!I58),Taxa_PivotTable!I58,"") -> 2881.932242 | AC58: 3.459683766 | AD58: 1.584535165 | AF58: =IF(ISNUMBER(Taxa_PivotTable!J58),Taxa_PivotTable!J58,"") ->  | AJ58: =IF(ISNUMBER(Taxa_PivotTable!K58),Taxa_PivotTable!K58,"") -> 
A59: =Taxa_PivotTable!A59 -> Picoplankton - unidentified single cells <2 µm diam. | B59: =IF(Taxa_PivotTable!B59="","",Taxa_PivotTable!B59) -> 90000000 | C59: =IF(ISNUMBER(VLOOKUP(B59,UKOptima!A:J,10,FALSE)),VLOOKUP(B59,UKOptima!A:J,10,FALSE),"") -> 0.539 | D59: =IF(ISNUMBER(Taxa_PivotTable!C59),Taxa_PivotTable!C59,"") -> 772.8245388 | E59: 2.888080903 | F59: 1.556675607 | H59: =IF(ISNUMBER(Taxa_PivotTable!D59),Taxa_PivotTable!D59,"") -> 294.0054944 | I59: 2.468355446 | J59: 1.330443585 | L59: =IF(ISNUMBER(Taxa_PivotTable!E59),Taxa_PivotTable!E59,"") -> 20299.14468 | M59: 4.307477739 | N59: 2.321730501 | P59: =IF(ISNUMBER(Taxa_PivotTable!F59),Taxa_PivotTable!F59,"") ->  | T59: =IF(ISNUMBER(Taxa_PivotTable!G59),Taxa_PivotTable!G59,"") ->  | X59: =IF(ISNUMBER(Taxa_PivotTable!H59),Taxa_PivotTable!H59,"") ->  | AB59: =IF(ISNUMBER(Taxa_PivotTable!I59),Taxa_PivotTable!I59,"") ->  | AF59: =IF(ISNUMBER(Taxa_PivotTable!J59),Taxa_PivotTable!J59,"") ->  | AJ59: =IF(ISNUMBER(Taxa_PivotTable!K59),Taxa_PivotTable!K59,"") -> 
A60: =Taxa_PivotTable!A60 -> Nanoplankton - unidentified single cells 2-20 µm diameter | B60: =IF(Taxa_PivotTable!B60="","",Taxa_PivotTable!B60) -> 90000003 | C60: =IF(ISNUMBER(VLOOKUP(B60,UKOptima!A:J,10,FALSE)),VLOOKUP(B60,UKOptima!A:J,10,FALSE),"") -> 0.532 | D60: =IF(ISNUMBER(Taxa_PivotTable!C60),Taxa_PivotTable!C60,"") ->  | H60: =IF(ISNUMBER(Taxa_PivotTable!D60),Taxa_PivotTable!D60,"") -> 19788.83136 | I60: 4.296420147 | J60: 2.285695518 | L60: =IF(ISNUMBER(Taxa_PivotTable!E60),Taxa_PivotTable!E60,"") ->  | P60: =IF(ISNUMBER(Taxa_PivotTable!F60),Taxa_PivotTable!F60,"") -> 2385.260922 | Q60: 3.377535893 | R60: 1.796849095 | T60: =IF(ISNUMBER(Taxa_PivotTable!G60),Taxa_PivotTable!G60,"") ->  | X60: =IF(ISNUMBER(Taxa_PivotTable!H60),Taxa_PivotTable!H60,"") ->  | AB60: =IF(ISNUMBER(Taxa_PivotTable!I60),Taxa_PivotTable!I60,"") ->  | AF60: =IF(ISNUMBER(Taxa_PivotTable!J60),Taxa_PivotTable!J60,"") ->  | AJ60: =IF(ISNUMBER(Taxa_PivotTable!K60),Taxa_PivotTable!K60,"") -> 
A61: =Taxa_PivotTable!A61 -> Nanoplankton - unidentified flagellates 2-20 µm diameter | B61: =IF(Taxa_PivotTable!B61="","",Taxa_PivotTable!B61) -> 90000005 | C61: =IF(ISNUMBER(VLOOKUP(B61,UKOptima!A:J,10,FALSE)),VLOOKUP(B61,UKOptima!A:J,10,FALSE),"") -> 0.519 | D61: =IF(ISNUMBER(Taxa_PivotTable!C61),Taxa_PivotTable!C61,"") ->  | H61: =IF(ISNUMBER(Taxa_PivotTable!D61),Taxa_PivotTable!D61,"") -> 1184.502905 | I61: 3.07353613 | J61: 1.595165252 | L61: =IF(ISNUMBER(Taxa_PivotTable!E61),Taxa_PivotTable!E61,"") -> 2826.975908 | M61: 3.451322107 | N61: 1.791236174 | P61: =IF(ISNUMBER(Taxa_PivotTable!F61),Taxa_PivotTable!F61,"") -> 819.933442 | Q61: 2.9137786 | R61: 1.512251093 | T61: =IF(ISNUMBER(Taxa_PivotTable!G61),Taxa_PivotTable!G61,"") ->  | X61: =IF(ISNUMBER(Taxa_PivotTable!H61),Taxa_PivotTable!H61,"") -> 44144.05428 | Y61: 4.644872217 | Z61: 2.410688681 | AB61: =IF(ISNUMBER(Taxa_PivotTable!I61),Taxa_PivotTable!I61,"") ->  | AF61: =IF(ISNUMBER(Taxa_PivotTable!J61),Taxa_PivotTable!J61,"") ->  | AJ61: =IF(ISNUMBER(Taxa_PivotTable!K61),Taxa_PivotTable!K61,"") -> 
A62: =Taxa_PivotTable!A62 ->  | B62: =IF(Taxa_PivotTable!B62="","",Taxa_PivotTable!B62) -> (blank) | C62: =IF(ISNUMBER(VLOOKUP(B62,UKOptima!A:J,10,FALSE)),VLOOKUP(B62,UKOptima!A:J,10,FALSE),"") ->  | D62: =IF(ISNUMBER(Taxa_PivotTable!C62),Taxa_PivotTable!C62,"") ->  | H62: =IF(ISNUMBER(Taxa_PivotTable!D62),Taxa_PivotTable!D62,"") ->  | L62: =IF(ISNUMBER(Taxa_PivotTable!E62),Taxa_PivotTable!E62,"") ->  | P62: =IF(ISNUMBER(Taxa_PivotTable!F62),Taxa_PivotTable!F62,"") ->  | T62: =IF(ISNUMBER(Taxa_PivotTable!G62),Taxa_PivotTable!G62,"") ->  | X62: =IF(ISNUMBER(Taxa_PivotTable!H62),Taxa_PivotTable!H62,"") ->  | AB62: =IF(ISNUMBER(Taxa_PivotTable!I62),Taxa_PivotTable!I62,"") ->  | AF62: =IF(ISNUMBER(Taxa_PivotTable!J62),Taxa_PivotTable!J62,"") ->  | AJ62: =IF(ISNUMBER(Taxa_PivotTable!K62),Taxa_PivotTable!K62,"") -> 
A63: =Taxa_PivotTable!A63 ->  | B63: =IF(Taxa_PivotTable!B63="","",Taxa_PivotTable!B63) ->  | C63: =IF(ISNUMBER(VLOOKUP(B63,UKOptima!A:J,10,FALSE)),VLOOKUP(B63,UKOptima!A:J,10,FALSE),"") ->  | D63: =IF(ISNUMBER(Taxa_PivotTable!C63),Taxa_PivotTable!C63,"") ->  | H63: =IF(ISNUMBER(Taxa_PivotTable!D63),Taxa_PivotTable!D63,"") ->  | L63: =IF(ISNUMBER(Taxa_PivotTable!E63),Taxa_PivotTable!E63,"") ->  | P63: =IF(ISNUMBER(Taxa_PivotTable!F63),Taxa_PivotTable!F63,"") ->  | T63: =IF(ISNUMBER(Taxa_PivotTable!G63),Taxa_PivotTable!G63,"") ->  | X63: =IF(ISNUMBER(Taxa_PivotTable!H63),Taxa_PivotTable!H63,"") ->  | AB63: =IF(ISNUMBER(Taxa_PivotTable!I63),Taxa_PivotTable!I63,"") ->  | AF63: =IF(ISNUMBER(Taxa_PivotTable!J63),Taxa_PivotTable!J63,"") ->  | AJ63: =IF(ISNUMBER(Taxa_PivotTable!K63),Taxa_PivotTable!K63,"") -> 
A64: =Taxa_PivotTable!A64 ->  | B64: =IF(Taxa_PivotTable!B64="","",Taxa_PivotTable!B64) ->  | C64: =IF(ISNUMBER(VLOOKUP(B64,UKOptima!A:J,10,FALSE)),VLOOKUP(B64,UKOptima!A:J,10,FALSE),"") ->  | D64: =IF(ISNUMBER(Taxa_PivotTable!C64),Taxa_PivotTable!C64,"") ->  | H64: =IF(ISNUMBER(Taxa_PivotTable!D64),Taxa_PivotTable!D64,"") ->  | L64: =IF(ISNUMBER(Taxa_PivotTable!E64),Taxa_PivotTable!E64,"") ->  | P64: =IF(ISNUMBER(Taxa_PivotTable!F64),Taxa_PivotTable!F64,"") ->  | T64: =IF(ISNUMBER(Taxa_PivotTable!G64),Taxa_PivotTable!G64,"") ->  | X64: =IF(ISNUMBER(Taxa_PivotTable!H64),Taxa_PivotTable!H64,"") ->  | AB64: =IF(ISNUMBER(Taxa_PivotTable!I64),Taxa_PivotTable!I64,"") ->  | AF64: =IF(ISNUMBER(Taxa_PivotTable!J64),Taxa_PivotTable!J64,"") ->  | AJ64: =IF(ISNUMBER(Taxa_PivotTable!K64),Taxa_PivotTable!K64,"") -> 
A65: =Taxa_PivotTable!A65 ->  | B65: =IF(Taxa_PivotTable!B65="","",Taxa_PivotTable!B65) ->  | C65: =IF(ISNUMBER(VLOOKUP(B65,UKOptima!A:J,10,FALSE)),VLOOKUP(B65,UKOptima!A:J,10,FALSE),"") ->  | D65: =IF(ISNUMBER(Taxa_PivotTable!C65),Taxa_PivotTable!C65,"") ->  | H65: =IF(ISNUMBER(Taxa_PivotTable!D65),Taxa_PivotTable!D65,"") ->  | L65: =IF(ISNUMBER(Taxa_PivotTable!E65),Taxa_PivotTable!E65,"") ->  | P65: =IF(ISNUMBER(Taxa_PivotTable!F65),Taxa_PivotTable!F65,"") ->  | T65: =IF(ISNUMBER(Taxa_PivotTable!G65),Taxa_PivotTable!G65,"") ->  | X65: =IF(ISNUMBER(Taxa_PivotTable!H65),Taxa_PivotTable!H65,"") ->  | AB65: =IF(ISNUMBER(Taxa_PivotTable!I65),Taxa_PivotTable!I65,"") ->  | AF65: =IF(ISNUMBER(Taxa_PivotTable!J65),Taxa_PivotTable!J65,"") ->  | AJ65: =IF(ISNUMBER(Taxa_PivotTable!K65),Taxa_PivotTable!K65,"") -> 
A66: =Taxa_PivotTable!A66 ->  | B66: =IF(Taxa_PivotTable!B66="","",Taxa_PivotTable!B66) ->  | C66: =IF(ISNUMBER(VLOOKUP(B66,UKOptima!A:J,10,FALSE)),VLOOKUP(B66,UKOptima!A:J,10,FALSE),"") ->  | D66: =IF(ISNUMBER(Taxa_PivotTable!C66),Taxa_PivotTable!C66,"") ->  | H66: =IF(ISNUMBER(Taxa_PivotTable!D66),Taxa_PivotTable!D66,"") ->  | L66: =IF(ISNUMBER(Taxa_PivotTable!E66),Taxa_PivotTable!E66,"") ->  | P66: =IF(ISNUMBER(Taxa_PivotTable!F66),Taxa_PivotTable!F66,"") ->  | T66: =IF(ISNUMBER(Taxa_PivotTable!G66),Taxa_PivotTable!G66,"") ->  | X66: =IF(ISNUMBER(Taxa_PivotTable!H66),Taxa_PivotTable!H66,"") ->  | AB66: =IF(ISNUMBER(Taxa_PivotTable!I66),Taxa_PivotTable!I66,"") ->  | AF66: =IF(ISNUMBER(Taxa_PivotTable!J66),Taxa_PivotTable!J66,"") ->  | AJ66: =IF(ISNUMBER(Taxa_PivotTable!K66),Taxa_PivotTable!K66,"") -> 
A67: =Taxa_PivotTable!A67 ->  | B67: =IF(Taxa_PivotTable!B67="","",Taxa_PivotTable!B67) ->  | C67: =IF(ISNUMBER(VLOOKUP(B67,UKOptima!A:J,10,FALSE)),VLOOKUP(B67,UKOptima!A:J,10,FALSE),"") ->  | D67: =IF(ISNUMBER(Taxa_PivotTable!C67),Taxa_PivotTable!C67,"") ->  | H67: =IF(ISNUMBER(Taxa_PivotTable!D67),Taxa_PivotTable!D67,"") ->  | L67: =IF(ISNUMBER(Taxa_PivotTable!E67),Taxa_PivotTable!E67,"") ->  | P67: =IF(ISNUMBER(Taxa_PivotTable!F67),Taxa_PivotTable!F67,"") ->  | T67: =IF(ISNUMBER(Taxa_PivotTable!G67),Taxa_PivotTable!G67,"") ->  | X67: =IF(ISNUMBER(Taxa_PivotTable!H67),Taxa_PivotTable!H67,"") ->  | AB67: =IF(ISNUMBER(Taxa_PivotTable!I67),Taxa_PivotTable!I67,"") ->  | AF67: =IF(ISNUMBER(Taxa_PivotTable!J67),Taxa_PivotTable!J67,"") ->  | AJ67: =IF(ISNUMBER(Taxa_PivotTable!K67),Taxa_PivotTable!K67,"") -> 
A68: =Taxa_PivotTable!A68 ->  | B68: =IF(Taxa_PivotTable!B68="","",Taxa_PivotTable!B68) ->  | C68: =IF(ISNUMBER(VLOOKUP(B68,UKOptima!A:J,10,FALSE)),VLOOKUP(B68,UKOptima!A:J,10,FALSE),"") ->  | D68: =IF(ISNUMBER(Taxa_PivotTable!C68),Taxa_PivotTable!C68,"") ->  | H68: =IF(ISNUMBER(Taxa_PivotTable!D68),Taxa_PivotTable!D68,"") ->  | L68: =IF(ISNUMBER(Taxa_PivotTable!E68),Taxa_PivotTable!E68,"") ->  | P68: =IF(ISNUMBER(Taxa_PivotTable!F68),Taxa_PivotTable!F68,"") ->  | T68: =IF(ISNUMBER(Taxa_PivotTable!G68),Taxa_PivotTable!G68,"") ->  | X68: =IF(ISNUMBER(Taxa_PivotTable!H68),Taxa_PivotTable!H68,"") ->  | AB68: =IF(ISNUMBER(Taxa_PivotTable!I68),Taxa_PivotTable!I68,"") ->  | AF68: =IF(ISNUMBER(Taxa_PivotTable!J68),Taxa_PivotTable!J68,"") ->  | AJ68: =IF(ISNUMBER(Taxa_PivotTable!K68),Taxa_PivotTable!K68,"") -> 
A69: =Taxa_PivotTable!A69 ->  | B69: =IF(Taxa_PivotTable!B69="","",Taxa_PivotTable!B69) ->  | C69: =IF(ISNUMBER(VLOOKUP(B69,UKOptima!A:J,10,FALSE)),VLOOKUP(B69,UKOptima!A:J,10,FALSE),"") ->  | D69: =IF(ISNUMBER(Taxa_PivotTable!C69),Taxa_PivotTable!C69,"") ->  | H69: =IF(ISNUMBER(Taxa_PivotTable!D69),Taxa_PivotTable!D69,"") ->  | L69: =IF(ISNUMBER(Taxa_PivotTable!E69),Taxa_PivotTable!E69,"") ->  | P69: =IF(ISNUMBER(Taxa_PivotTable!F69),Taxa_PivotTable!F69,"") ->  | T69: =IF(ISNUMBER(Taxa_PivotTable!G69),Taxa_PivotTable!G69,"") ->  | X69: =IF(ISNUMBER(Taxa_PivotTable!H69),Taxa_PivotTable!H69,"") ->  | AB69: =IF(ISNUMBER(Taxa_PivotTable!I69),Taxa_PivotTable!I69,"") ->  | AF69: =IF(ISNUMBER(Taxa_PivotTable!J69),Taxa_PivotTable!J69,"") ->  | AJ69: =IF(ISNUMBER(Taxa_PivotTable!K69),Taxa_PivotTable!K69,"") -> 
A70: =Taxa_PivotTable!A70 ->  | B70: =IF(Taxa_PivotTable!B70="","",Taxa_PivotTable!B70) ->  | C70: =IF(ISNUMBER(VLOOKUP(B70,UKOptima!A:J,10,FALSE)),VLOOKUP(B70,UKOptima!A:J,10,FALSE),"") ->  | D70: =IF(ISNUMBER(Taxa_PivotTable!C70),Taxa_PivotTable!C70,"") ->  | H70: =IF(ISNUMBER(Taxa_PivotTable!D70),Taxa_PivotTable!D70,"") ->  | L70: =IF(ISNUMBER(Taxa_PivotTable!E70),Taxa_PivotTable!E70,"") ->  | P70: =IF(ISNUMBER(Taxa_PivotTable!F70),Taxa_PivotTable!F70,"") ->  | T70: =IF(ISNUMBER(Taxa_PivotTable!G70),Taxa_PivotTable!G70,"") ->  | X70: =IF(ISNUMBER(Taxa_PivotTable!H70),Taxa_PivotTable!H70,"") ->  | AB70: =IF(ISNUMBER(Taxa_PivotTable!I70),Taxa_PivotTable!I70,"") ->  | AF70: =IF(ISNUMBER(Taxa_PivotTable!J70),Taxa_PivotTable!J70,"") ->  | AJ70: =IF(ISNUMBER(Taxa_PivotTable!K70),Taxa_PivotTable!K70,"") -> 
A71: =Taxa_PivotTable!A71 ->  | B71: =IF(Taxa_PivotTable!B71="","",Taxa_PivotTable!B71) ->  | C71: =IF(ISNUMBER(VLOOKUP(B71,UKOptima!A:J,10,FALSE)),VLOOKUP(B71,UKOptima!A:J,10,FALSE),"") ->  | D71: =IF(ISNUMBER(Taxa_PivotTable!C71),Taxa_PivotTable!C71,"") ->  | H71: =IF(ISNUMBER(Taxa_PivotTable!D71),Taxa_PivotTable!D71,"") ->  | L71: =IF(ISNUMBER(Taxa_PivotTable!E71),Taxa_PivotTable!E71,"") ->  | P71: =IF(ISNUMBER(Taxa_PivotTable!F71),Taxa_PivotTable!F71,"") ->  | T71: =IF(ISNUMBER(Taxa_PivotTable!G71),Taxa_PivotTable!G71,"") ->  | X71: =IF(ISNUMBER(Taxa_PivotTable!H71),Taxa_PivotTable!H71,"") ->  | AB71: =IF(ISNUMBER(Taxa_PivotTable!I71),Taxa_PivotTable!I71,"") ->  | AF71: =IF(ISNUMBER(Taxa_PivotTable!J71),Taxa_PivotTable!J71,"") ->  | AJ71: =IF(ISNUMBER(Taxa_PivotTable!K71),Taxa_PivotTable!K71,"") -> 
A72: =Taxa_PivotTable!A72 ->  | B72: =IF(Taxa_PivotTable!B72="","",Taxa_PivotTable!B72) ->  | C72: =IF(ISNUMBER(VLOOKUP(B72,UKOptima!A:J,10,FALSE)),VLOOKUP(B72,UKOptima!A:J,10,FALSE),"") ->  | D72: =IF(ISNUMBER(Taxa_PivotTable!C72),Taxa_PivotTable!C72,"") ->  | H72: =IF(ISNUMBER(Taxa_PivotTable!D72),Taxa_PivotTable!D72,"") ->  | L72: =IF(ISNUMBER(Taxa_PivotTable!E72),Taxa_PivotTable!E72,"") ->  | P72: =IF(ISNUMBER(Taxa_PivotTable!F72),Taxa_PivotTable!F72,"") ->  | T72: =IF(ISNUMBER(Taxa_PivotTable!G72),Taxa_PivotTable!G72,"") ->  | X72: =IF(ISNUMBER(Taxa_PivotTable!H72),Taxa_PivotTable!H72,"") ->  | AB72: =IF(ISNUMBER(Taxa_PivotTable!I72),Taxa_PivotTable!I72,"") ->  | AF72: =IF(ISNUMBER(Taxa_PivotTable!J72),Taxa_PivotTable!J72,"") ->  | AJ72: =IF(ISNUMBER(Taxa_PivotTable!K72),Taxa_PivotTable!K72,"") -> 
A73: =Taxa_PivotTable!A73 ->  | B73: =IF(Taxa_PivotTable!B73="","",Taxa_PivotTable!B73) ->  | C73: =IF(ISNUMBER(VLOOKUP(B73,UKOptima!A:J,10,FALSE)),VLOOKUP(B73,UKOptima!A:J,10,FALSE),"") ->  | D73: =IF(ISNUMBER(Taxa_PivotTable!C73),Taxa_PivotTable!C73,"") ->  | H73: =IF(ISNUMBER(Taxa_PivotTable!D73),Taxa_PivotTable!D73,"") ->  | L73: =IF(ISNUMBER(Taxa_PivotTable!E73),Taxa_PivotTable!E73,"") ->  | P73: =IF(ISNUMBER(Taxa_PivotTable!F73),Taxa_PivotTable!F73,"") ->  | T73: =IF(ISNUMBER(Taxa_PivotTable!G73),Taxa_PivotTable!G73,"") ->  | X73: =IF(ISNUMBER(Taxa_PivotTable!H73),Taxa_PivotTable!H73,"") ->  | AB73: =IF(ISNUMBER(Taxa_PivotTable!I73),Taxa_PivotTable!I73,"") ->  | AF73: =IF(ISNUMBER(Taxa_PivotTable!J73),Taxa_PivotTable!J73,"") ->  | AJ73: =IF(ISNUMBER(Taxa_PivotTable!K73),Taxa_PivotTable!K73,"") -> 
A74: =Taxa_PivotTable!A74 ->  | B74: =IF(Taxa_PivotTable!B74="","",Taxa_PivotTable!B74) ->  | C74: =IF(ISNUMBER(VLOOKUP(B74,UKOptima!A:J,10,FALSE)),VLOOKUP(B74,UKOptima!A:J,10,FALSE),"") ->  | D74: =IF(ISNUMBER(Taxa_PivotTable!C74),Taxa_PivotTable!C74,"") ->  | H74: =IF(ISNUMBER(Taxa_PivotTable!D74),Taxa_PivotTable!D74,"") ->  | L74: =IF(ISNUMBER(Taxa_PivotTable!E74),Taxa_PivotTable!E74,"") ->  | P74: =IF(ISNUMBER(Taxa_PivotTable!F74),Taxa_PivotTable!F74,"") ->  | T74: =IF(ISNUMBER(Taxa_PivotTable!G74),Taxa_PivotTable!G74,"") ->  | X74: =IF(ISNUMBER(Taxa_PivotTable!H74),Taxa_PivotTable!H74,"") ->  | AB74: =IF(ISNUMBER(Taxa_PivotTable!I74),Taxa_PivotTable!I74,"") ->  | AF74: =IF(ISNUMBER(Taxa_PivotTable!J74),Taxa_PivotTable!J74,"") ->  | AJ74: =IF(ISNUMBER(Taxa_PivotTable!K74),Taxa_PivotTable!K74,"") -> 
A75: =Taxa_PivotTable!A75 ->  | B75: =IF(Taxa_PivotTable!B75="","",Taxa_PivotTable!B75) ->  | C75: =IF(ISNUMBER(VLOOKUP(B75,UKOptima!A:J,10,FALSE)),VLOOKUP(B75,UKOptima!A:J,10,FALSE),"") ->  | D75: =IF(ISNUMBER(Taxa_PivotTable!C75),Taxa_PivotTable!C75,"") ->  | H75: =IF(ISNUMBER(Taxa_PivotTable!D75),Taxa_PivotTable!D75,"") ->  | L75: =IF(ISNUMBER(Taxa_PivotTable!E75),Taxa_PivotTable!E75,"") ->  | P75: =IF(ISNUMBER(Taxa_PivotTable!F75),Taxa_PivotTable!F75,"") ->  | T75: =IF(ISNUMBER(Taxa_PivotTable!G75),Taxa_PivotTable!G75,"") ->  | X75: =IF(ISNUMBER(Taxa_PivotTable!H75),Taxa_PivotTable!H75,"") ->  | AB75: =IF(ISNUMBER(Taxa_PivotTable!I75),Taxa_PivotTable!I75,"") ->  | AF75: =IF(ISNUMBER(Taxa_PivotTable!J75),Taxa_PivotTable!J75,"") ->  | AJ75: =IF(ISNUMBER(Taxa_PivotTable!K75),Taxa_PivotTable!K75,"") -> 
A76: =Taxa_PivotTable!A76 ->  | B76: =IF(Taxa_PivotTable!B76="","",Taxa_PivotTable!B76) ->  | C76: =IF(ISNUMBER(VLOOKUP(B76,UKOptima!A:J,10,FALSE)),VLOOKUP(B76,UKOptima!A:J,10,FALSE),"") ->  | D76: =IF(ISNUMBER(Taxa_PivotTable!C76),Taxa_PivotTable!C76,"") ->  | H76: =IF(ISNUMBER(Taxa_PivotTable!D76),Taxa_PivotTable!D76,"") ->  | L76: =IF(ISNUMBER(Taxa_PivotTable!E76),Taxa_PivotTable!E76,"") ->  | P76: =IF(ISNUMBER(Taxa_PivotTable!F76),Taxa_PivotTable!F76,"") ->  | T76: =IF(ISNUMBER(Taxa_PivotTable!G76),Taxa_PivotTable!G76,"") ->  | X76: =IF(ISNUMBER(Taxa_PivotTable!H76),Taxa_PivotTable!H76,"") ->  | AB76: =IF(ISNUMBER(Taxa_PivotTable!I76),Taxa_PivotTable!I76,"") ->  | AF76: =IF(ISNUMBER(Taxa_PivotTable!J76),Taxa_PivotTable!J76,"") ->  | AJ76: =IF(ISNUMBER(Taxa_PivotTable!K76),Taxa_PivotTable!K76,"") -> 
A77: =Taxa_PivotTable!A77 ->  | B77: =IF(Taxa_PivotTable!B77="","",Taxa_PivotTable!B77) ->  | C77: =IF(ISNUMBER(VLOOKUP(B77,UKOptima!A:J,10,FALSE)),VLOOKUP(B77,UKOptima!A:J,10,FALSE),"") ->  | D77: =IF(ISNUMBER(Taxa_PivotTable!C77),Taxa_PivotTable!C77,"") ->  | H77: =IF(ISNUMBER(Taxa_PivotTable!D77),Taxa_PivotTable!D77,"") ->  | L77: =IF(ISNUMBER(Taxa_PivotTable!E77),Taxa_PivotTable!E77,"") ->  | P77: =IF(ISNUMBER(Taxa_PivotTable!F77),Taxa_PivotTable!F77,"") ->  | T77: =IF(ISNUMBER(Taxa_PivotTable!G77),Taxa_PivotTable!G77,"") ->  | X77: =IF(ISNUMBER(Taxa_PivotTable!H77),Taxa_PivotTable!H77,"") ->  | AB77: =IF(ISNUMBER(Taxa_PivotTable!I77),Taxa_PivotTable!I77,"") ->  | AF77: =IF(ISNUMBER(Taxa_PivotTable!J77),Taxa_PivotTable!J77,"") ->  | AJ77: =IF(ISNUMBER(Taxa_PivotTable!K77),Taxa_PivotTable!K77,"") -> 
A78: =Taxa_PivotTable!A78 ->  | B78: =IF(Taxa_PivotTable!B78="","",Taxa_PivotTable!B78) ->  | C78: =IF(ISNUMBER(VLOOKUP(B78,UKOptima!A:J,10,FALSE)),VLOOKUP(B78,UKOptima!A:J,10,FALSE),"") ->  | D78: =IF(ISNUMBER(Taxa_PivotTable!C78),Taxa_PivotTable!C78,"") ->  | H78: =IF(ISNUMBER(Taxa_PivotTable!D78),Taxa_PivotTable!D78,"") ->  | L78: =IF(ISNUMBER(Taxa_PivotTable!E78),Taxa_PivotTable!E78,"") ->  | P78: =IF(ISNUMBER(Taxa_PivotTable!F78),Taxa_PivotTable!F78,"") ->  | T78: =IF(ISNUMBER(Taxa_PivotTable!G78),Taxa_PivotTable!G78,"") ->  | X78: =IF(ISNUMBER(Taxa_PivotTable!H78),Taxa_PivotTable!H78,"") ->  | AB78: =IF(ISNUMBER(Taxa_PivotTable!I78),Taxa_PivotTable!I78,"") ->  | AF78: =IF(ISNUMBER(Taxa_PivotTable!J78),Taxa_PivotTable!J78,"") ->  | AJ78: =IF(ISNUMBER(Taxa_PivotTable!K78),Taxa_PivotTable!K78,"") -> 
A79: =Taxa_PivotTable!A79 ->  | B79: =IF(Taxa_PivotTable!B79="","",Taxa_PivotTable!B79) ->  | C79: =IF(ISNUMBER(VLOOKUP(B79,UKOptima!A:J,10,FALSE)),VLOOKUP(B79,UKOptima!A:J,10,FALSE),"") ->  | D79: =IF(ISNUMBER(Taxa_PivotTable!C79),Taxa_PivotTable!C79,"") ->  | H79: =IF(ISNUMBER(Taxa_PivotTable!D79),Taxa_PivotTable!D79,"") ->  | L79: =IF(ISNUMBER(Taxa_PivotTable!E79),Taxa_PivotTable!E79,"") ->  | P79: =IF(ISNUMBER(Taxa_PivotTable!F79),Taxa_PivotTable!F79,"") ->  | T79: =IF(ISNUMBER(Taxa_PivotTable!G79),Taxa_PivotTable!G79,"") ->  | X79: =IF(ISNUMBER(Taxa_PivotTable!H79),Taxa_PivotTable!H79,"") ->  | AB79: =IF(ISNUMBER(Taxa_PivotTable!I79),Taxa_PivotTable!I79,"") ->  | AF79: =IF(ISNUMBER(Taxa_PivotTable!J79),Taxa_PivotTable!J79,"") ->  | AJ79: =IF(ISNUMBER(Taxa_PivotTable!K79),Taxa_PivotTable!K79,"") -> 
A80: =Taxa_PivotTable!A80 ->  | B80: =IF(Taxa_PivotTable!B80="","",Taxa_PivotTable!B80) ->  | C80: =IF(ISNUMBER(VLOOKUP(B80,UKOptima!A:J,10,FALSE)),VLOOKUP(B80,UKOptima!A:J,10,FALSE),"") ->  | D80: =IF(ISNUMBER(Taxa_PivotTable!C80),Taxa_PivotTable!C80,"") ->  | H80: =IF(ISNUMBER(Taxa_PivotTable!D80),Taxa_PivotTable!D80,"") ->  | L80: =IF(ISNUMBER(Taxa_PivotTable!E80),Taxa_PivotTable!E80,"") ->  | P80: =IF(ISNUMBER(Taxa_PivotTable!F80),Taxa_PivotTable!F80,"") ->  | T80: =IF(ISNUMBER(Taxa_PivotTable!G80),Taxa_PivotTable!G80,"") ->  | X80: =IF(ISNUMBER(Taxa_PivotTable!H80),Taxa_PivotTable!H80,"") ->  | AB80: =IF(ISNUMBER(Taxa_PivotTable!I80),Taxa_PivotTable!I80,"") ->  | AF80: =IF(ISNUMBER(Taxa_PivotTable!J80),Taxa_PivotTable!J80,"") ->  | AJ80: =IF(ISNUMBER(Taxa_PivotTable!K80),Taxa_PivotTable!K80,"") -> 
A81: =Taxa_PivotTable!A81 ->  | B81: =IF(Taxa_PivotTable!B81="","",Taxa_PivotTable!B81) ->  | C81: =IF(ISNUMBER(VLOOKUP(B81,UKOptima!A:J,10,FALSE)),VLOOKUP(B81,UKOptima!A:J,10,FALSE),"") ->  | D81: =IF(ISNUMBER(Taxa_PivotTable!C81),Taxa_PivotTable!C81,"") ->  | E81: =IF(ISNUMBER(D81),LOG(ROUND(D81,6)),"") ->  | G81: =IF(AND(ISNUMBER(D81),LEFT($B81,2)="01"),D81/10^6,"") ->  | H81: =IF(ISNUMBER(Taxa_PivotTable!D81),Taxa_PivotTable!D81,"") ->  | I81: =IF(ISNUMBER(H81),LOG(ROUND(H81,6)),"") ->  | K81: =IF(AND(ISNUMBER(H81),LEFT($B81,2)="01"),H81/10^6,"") ->  | L81: =IF(ISNUMBER(Taxa_PivotTable!E81),Taxa_PivotTable!E81,"") ->  | M81: =IF(ISNUMBER(L81),LOG(ROUND(L81,6)),"") ->  | O81: =IF(AND(ISNUMBER(L81),LEFT($B81,2)="01"),L81/10^6,"") ->  | P81: =IF(ISNUMBER(Taxa_PivotTable!F81),Taxa_PivotTable!F81,"") ->  | Q81: =IF(ISNUMBER(P81),LOG(ROUND(P81,6)),"") ->  | S81: =IF(AND(ISNUMBER(P81),LEFT($B81,2)="01"),P81/10^6,"") ->  | T81: =IF(ISNUMBER(Taxa_PivotTable!G81),Taxa_PivotTable!G81,"") ->  | U81: =IF(ISNUMBER(T81),LOG(ROUND(T81,6)),"") ->  | W81: =IF(AND(ISNUMBER(T81),LEFT($B81,2)="01"),T81/10^6,"") ->  | X81: =IF(ISNUMBER(Taxa_PivotTable!H81),Taxa_PivotTable!H81,"") ->  | AA81: =IF(AND(ISNUMBER(X81),LEFT($B81,2)="01"),X81/10^6,"") ->  | AB81: =IF(ISNUMBER(Taxa_PivotTable!I81),Taxa_PivotTable!I81,"") ->  | AE81: =IF(AND(ISNUMBER(AB81),LEFT($B81,2)="01"),AB81/10^6,"") ->  | AF81: =IF(ISNUMBER(Taxa_PivotTable!J81),Taxa_PivotTable!J81,"") ->  | AI81: =IF(AND(ISNUMBER(AF81),LEFT($B81,2)="01"),AF81/10^6,"") ->  | AJ81: =IF(ISNUMBER(Taxa_PivotTable!K81),Taxa_PivotTable!K81,"") ->  | AM81: =IF(AND(ISNUMBER(AJ81),LEFT($B81,2)="01"),AJ81/10^6,"") -> 
A82: =Taxa_PivotTable!A82 ->  | B82: =IF(Taxa_PivotTable!B82="","",Taxa_PivotTable!B82) ->  | C82: =IF(ISNUMBER(VLOOKUP(B82,UKOptima!A:J,10,FALSE)),VLOOKUP(B82,UKOptima!A:J,10,FALSE),"") ->  | D82: =IF(ISNUMBER(Taxa_PivotTable!C82),Taxa_PivotTable!C82,"") ->  | H82: =IF(ISNUMBER(Taxa_PivotTable!D82),Taxa_PivotTable!D82,"") ->  | I82: =IF(ISNUMBER(H82),LOG(ROUND(H82,6)),"") ->  | K82: =IF(AND(ISNUMBER(H82),LEFT($B82,2)="01"),H82/10^6,"") ->  | L82: =IF(ISNUMBER(Taxa_PivotTable!E82),Taxa_PivotTable!E82,"") ->  | M82: =IF(ISNUMBER(L82),LOG(ROUND(L82,6)),"") ->  | O82: =IF(AND(ISNUMBER(L82),LEFT($B82,2)="01"),L82/10^6,"") ->  | P82: =IF(ISNUMBER(Taxa_PivotTable!F82),Taxa_PivotTable!F82,"") ->  | T82: =IF(ISNUMBER(Taxa_PivotTable!G82),Taxa_PivotTable!G82,"") ->  | X82: =IF(ISNUMBER(Taxa_PivotTable!H82),Taxa_PivotTable!H82,"") ->  | AB82: =IF(ISNUMBER(Taxa_PivotTable!I82),Taxa_PivotTable!I82,"") ->  | AF82: =IF(ISNUMBER(Taxa_PivotTable!J82),Taxa_PivotTable!J82,"") ->  | AJ82: =IF(ISNUMBER(Taxa_PivotTable!K82),Taxa_PivotTable!K82,"") -> 
A83: =Taxa_PivotTable!A83 ->  | B83: =IF(Taxa_PivotTable!B83="","",Taxa_PivotTable!B83) ->  | C83: =IF(ISNUMBER(VLOOKUP(B83,UKOptima!A:J,10,FALSE)),VLOOKUP(B83,UKOptima!A:J,10,FALSE),"") ->  | D83: =IF(ISNUMBER(Taxa_PivotTable!C83),Taxa_PivotTable!C83,"") ->  | H83: =IF(ISNUMBER(Taxa_PivotTable!D83),Taxa_PivotTable!D83,"") ->  | L83: =IF(ISNUMBER(Taxa_PivotTable!E83),Taxa_PivotTable!E83,"") ->  | P83: =IF(ISNUMBER(Taxa_PivotTable!F83),Taxa_PivotTable!F83,"") ->  | T83: =IF(ISNUMBER(Taxa_PivotTable!G83),Taxa_PivotTable!G83,"") ->  | X83: =IF(ISNUMBER(Taxa_PivotTable!H83),Taxa_PivotTable!H83,"") ->  | AB83: =IF(ISNUMBER(Taxa_PivotTable!I83),Taxa_PivotTable!I83,"") ->  | AF83: =IF(ISNUMBER(Taxa_PivotTable!J83),Taxa_PivotTable!J83,"") ->  | AJ83: =IF(ISNUMBER(Taxa_PivotTable!K83),Taxa_PivotTable!K83,"") -> 
A84: =Taxa_PivotTable!A84 ->  | B84: =IF(Taxa_PivotTable!B84="","",Taxa_PivotTable!B84) ->  | C84: =IF(ISNUMBER(VLOOKUP(B84,UKOptima!A:J,10,FALSE)),VLOOKUP(B84,UKOptima!A:J,10,FALSE),"") ->  | D84: =IF(ISNUMBER(Taxa_PivotTable!C84),Taxa_PivotTable!C84,"") ->  | H84: =IF(ISNUMBER(Taxa_PivotTable!D84),Taxa_PivotTable!D84,"") ->  | L84: =IF(ISNUMBER(Taxa_PivotTable!E84),Taxa_PivotTable!E84,"") ->  | P84: =IF(ISNUMBER(Taxa_PivotTable!F84),Taxa_PivotTable!F84,"") ->  | T84: =IF(ISNUMBER(Taxa_PivotTable!G84),Taxa_PivotTable!G84,"") ->  | X84: =IF(ISNUMBER(Taxa_PivotTable!H84),Taxa_PivotTable!H84,"") ->  | AB84: =IF(ISNUMBER(Taxa_PivotTable!I84),Taxa_PivotTable!I84,"") ->  | AF84: =IF(ISNUMBER(Taxa_PivotTable!J84),Taxa_PivotTable!J84,"") ->  | AJ84: =IF(ISNUMBER(Taxa_PivotTable!K84),Taxa_PivotTable!K84,"") -> 
A85: =Taxa_PivotTable!A85 ->  | B85: =IF(Taxa_PivotTable!B85="","",Taxa_PivotTable!B85) ->  | C85: =IF(ISNUMBER(VLOOKUP(B85,UKOptima!A:J,10,FALSE)),VLOOKUP(B85,UKOptima!A:J,10,FALSE),"") ->  | D85: =IF(ISNUMBER(Taxa_PivotTable!C85),Taxa_PivotTable!C85,"") ->  | H85: =IF(ISNUMBER(Taxa_PivotTable!D85),Taxa_PivotTable!D85,"") ->  | L85: =IF(ISNUMBER(Taxa_PivotTable!E85),Taxa_PivotTable!E85,"") ->  | P85: =IF(ISNUMBER(Taxa_PivotTable!F85),Taxa_PivotTable!F85,"") ->  | T85: =IF(ISNUMBER(Taxa_PivotTable!G85),Taxa_PivotTable!G85,"") ->  | X85: =IF(ISNUMBER(Taxa_PivotTable!H85),Taxa_PivotTable!H85,"") ->  | Z85: =IF(COUNT(Y85,$C85)=2,(Y85)*$C85,"") ->  | AB85: =IF(ISNUMBER(Taxa_PivotTable!I85),Taxa_PivotTable!I85,"") ->  | AD85: =IF(COUNT(AC85,$C85)=2,(AC85)*$C85,"") ->  | AF85: =IF(ISNUMBER(Taxa_PivotTable!J85),Taxa_PivotTable!J85,"") ->  | AH85: =IF(COUNT(AG85,$C85)=2,(AG85)*$C85,"") ->  | AJ85: =IF(ISNUMBER(Taxa_PivotTable!K85),Taxa_PivotTable!K85,"") ->  | AL85: =IF(COUNT(AK85,$C85)=2,(AK85)*$C85,"") -> 
A86: =Taxa_PivotTable!A86 ->  | B86: =IF(Taxa_PivotTable!B86="","",Taxa_PivotTable!B86) ->  | C86: =IF(ISNUMBER(VLOOKUP(B86,UKOptima!A:J,10,FALSE)),VLOOKUP(B86,UKOptima!A:J,10,FALSE),"") ->  | D86: =IF(ISNUMBER(Taxa_PivotTable!C86),Taxa_PivotTable!C86,"") ->  | H86: =IF(ISNUMBER(Taxa_PivotTable!D86),Taxa_PivotTable!D86,"") ->  | L86: =IF(ISNUMBER(Taxa_PivotTable!E86),Taxa_PivotTable!E86,"") ->  | P86: =IF(ISNUMBER(Taxa_PivotTable!F86),Taxa_PivotTable!F86,"") ->  | T86: =IF(ISNUMBER(Taxa_PivotTable!G86),Taxa_PivotTable!G86,"") ->  | X86: =IF(ISNUMBER(Taxa_PivotTable!H86),Taxa_PivotTable!H86,"") ->  | Y86: =IF(ISNUMBER(X86),LOG(ROUND(X86,6)),"") ->  | AB86: =IF(ISNUMBER(Taxa_PivotTable!I86),Taxa_PivotTable!I86,"") ->  | AC86: =IF(ISNUMBER(AB86),LOG(ROUND(AB86,6)),"") ->  | AF86: =IF(ISNUMBER(Taxa_PivotTable!J86),Taxa_PivotTable!J86,"") ->  | AG86: =IF(ISNUMBER(AF86),LOG(ROUND(AF86,6)),"") ->  | AJ86: =IF(ISNUMBER(Taxa_PivotTable!K86),Taxa_PivotTable!K86,"") ->  | AK86: =IF(ISNUMBER(AJ86),LOG(ROUND(AJ86,6)),"") -> 
A87: =Taxa_PivotTable!A87 ->  | B87: =IF(Taxa_PivotTable!B87="","",Taxa_PivotTable!B87) ->  | C87: =IF(ISNUMBER(VLOOKUP(B87,UKOptima!A:J,10,FALSE)),VLOOKUP(B87,UKOptima!A:J,10,FALSE),"") ->  | D87: =IF(ISNUMBER(Taxa_PivotTable!C87),Taxa_PivotTable!C87,"") ->  | H87: =IF(ISNUMBER(Taxa_PivotTable!D87),Taxa_PivotTable!D87,"") ->  | L87: =IF(ISNUMBER(Taxa_PivotTable!E87),Taxa_PivotTable!E87,"") ->  | P87: =IF(ISNUMBER(Taxa_PivotTable!F87),Taxa_PivotTable!F87,"") ->  | T87: =IF(ISNUMBER(Taxa_PivotTable!G87),Taxa_PivotTable!G87,"") ->  | X87: =IF(ISNUMBER(Taxa_PivotTable!H87),Taxa_PivotTable!H87,"") ->  | AB87: =IF(ISNUMBER(Taxa_PivotTable!I87),Taxa_PivotTable!I87,"") ->  | AF87: =IF(ISNUMBER(Taxa_PivotTable!J87),Taxa_PivotTable!J87,"") ->  | AJ87: =IF(ISNUMBER(Taxa_PivotTable!K87),Taxa_PivotTable!K87,"") -> 
A88: =Taxa_PivotTable!A88 ->  | B88: =IF(Taxa_PivotTable!B88="","",Taxa_PivotTable!B88) ->  | C88: =IF(ISNUMBER(VLOOKUP(B88,UKOptima!A:J,10,FALSE)),VLOOKUP(B88,UKOptima!A:J,10,FALSE),"") ->  | D88: =IF(ISNUMBER(Taxa_PivotTable!C88),Taxa_PivotTable!C88,"") ->  | H88: =IF(ISNUMBER(Taxa_PivotTable!D88),Taxa_PivotTable!D88,"") ->  | L88: =IF(ISNUMBER(Taxa_PivotTable!E88),Taxa_PivotTable!E88,"") ->  | P88: =IF(ISNUMBER(Taxa_PivotTable!F88),Taxa_PivotTable!F88,"") ->  | T88: =IF(ISNUMBER(Taxa_PivotTable!G88),Taxa_PivotTable!G88,"") ->  | X88: =IF(ISNUMBER(Taxa_PivotTable!H88),Taxa_PivotTable!H88,"") ->  | AB88: =IF(ISNUMBER(Taxa_PivotTable!I88),Taxa_PivotTable!I88,"") ->  | AF88: =IF(ISNUMBER(Taxa_PivotTable!J88),Taxa_PivotTable!J88,"") ->  | AJ88: =IF(ISNUMBER(Taxa_PivotTable!K88),Taxa_PivotTable!K88,"") -> 
A89: =Taxa_PivotTable!A89 ->  | B89: =IF(Taxa_PivotTable!B89="","",Taxa_PivotTable!B89) ->  | C89: =IF(ISNUMBER(VLOOKUP(B89,UKOptima!A:J,10,FALSE)),VLOOKUP(B89,UKOptima!A:J,10,FALSE),"") ->  | D89: =IF(ISNUMBER(Taxa_PivotTable!C89),Taxa_PivotTable!C89,"") ->  | H89: =IF(ISNUMBER(Taxa_PivotTable!D89),Taxa_PivotTable!D89,"") ->  | L89: =IF(ISNUMBER(Taxa_PivotTable!E89),Taxa_PivotTable!E89,"") ->  | P89: =IF(ISNUMBER(Taxa_PivotTable!F89),Taxa_PivotTable!F89,"") ->  | T89: =IF(ISNUMBER(Taxa_PivotTable!G89),Taxa_PivotTable!G89,"") ->  | X89: =IF(ISNUMBER(Taxa_PivotTable!H89),Taxa_PivotTable!H89,"") ->  | AB89: =IF(ISNUMBER(Taxa_PivotTable!I89),Taxa_PivotTable!I89,"") ->  | AF89: =IF(ISNUMBER(Taxa_PivotTable!J89),Taxa_PivotTable!J89,"") ->  | AJ89: =IF(ISNUMBER(Taxa_PivotTable!K89),Taxa_PivotTable!K89,"") -> 
A90: =Taxa_PivotTable!A90 ->  | B90: =IF(Taxa_PivotTable!B90="","",Taxa_PivotTable!B90) ->  | C90: =IF(ISNUMBER(VLOOKUP(B90,UKOptima!A:J,10,FALSE)),VLOOKUP(B90,UKOptima!A:J,10,FALSE),"") ->  | D90: =IF(ISNUMBER(Taxa_PivotTable!C90),Taxa_PivotTable!C90,"") ->  | H90: =IF(ISNUMBER(Taxa_PivotTable!D90),Taxa_PivotTable!D90,"") ->  | L90: =IF(ISNUMBER(Taxa_PivotTable!E90),Taxa_PivotTable!E90,"") ->  | P90: =IF(ISNUMBER(Taxa_PivotTable!F90),Taxa_PivotTable!F90,"") ->  | T90: =IF(ISNUMBER(Taxa_PivotTable!G90),Taxa_PivotTable!G90,"") ->  | X90: =IF(ISNUMBER(Taxa_PivotTable!H90),Taxa_PivotTable!H90,"") ->  | AB90: =IF(ISNUMBER(Taxa_PivotTable!I90),Taxa_PivotTable!I90,"") ->  | AF90: =IF(ISNUMBER(Taxa_PivotTable!J90),Taxa_PivotTable!J90,"") ->  | AJ90: =IF(ISNUMBER(Taxa_PivotTable!K90),Taxa_PivotTable!K90,"") -> 
A91: =Taxa_PivotTable!A91 ->  | B91: =IF(Taxa_PivotTable!B91="","",Taxa_PivotTable!B91) ->  | C91: =IF(ISNUMBER(VLOOKUP(B91,UKOptima!A:J,10,FALSE)),VLOOKUP(B91,UKOptima!A:J,10,FALSE),"") ->  | D91: =IF(ISNUMBER(Taxa_PivotTable!C91),Taxa_PivotTable!C91,"") ->  | H91: =IF(ISNUMBER(Taxa_PivotTable!D91),Taxa_PivotTable!D91,"") ->  | L91: =IF(ISNUMBER(Taxa_PivotTable!E91),Taxa_PivotTable!E91,"") ->  | P91: =IF(ISNUMBER(Taxa_PivotTable!F91),Taxa_PivotTable!F91,"") ->  | T91: =IF(ISNUMBER(Taxa_PivotTable!G91),Taxa_PivotTable!G91,"") ->  | X91: =IF(ISNUMBER(Taxa_PivotTable!H91),Taxa_PivotTable!H91,"") ->  | AB91: =IF(ISNUMBER(Taxa_PivotTable!I91),Taxa_PivotTable!I91,"") ->  | AF91: =IF(ISNUMBER(Taxa_PivotTable!J91),Taxa_PivotTable!J91,"") ->  | AJ91: =IF(ISNUMBER(Taxa_PivotTable!K91),Taxa_PivotTable!K91,"") -> 
A92: =Taxa_PivotTable!A92 ->  | B92: =IF(Taxa_PivotTable!B92="","",Taxa_PivotTable!B92) ->  | C92: =IF(ISNUMBER(VLOOKUP(B92,UKOptima!A:J,10,FALSE)),VLOOKUP(B92,UKOptima!A:J,10,FALSE),"") ->  | D92: =IF(ISNUMBER(Taxa_PivotTable!C92),Taxa_PivotTable!C92,"") ->  | H92: =IF(ISNUMBER(Taxa_PivotTable!D92),Taxa_PivotTable!D92,"") ->  | L92: =IF(ISNUMBER(Taxa_PivotTable!E92),Taxa_PivotTable!E92,"") ->  | P92: =IF(ISNUMBER(Taxa_PivotTable!F92),Taxa_PivotTable!F92,"") ->  | T92: =IF(ISNUMBER(Taxa_PivotTable!G92),Taxa_PivotTable!G92,"") ->  | X92: =IF(ISNUMBER(Taxa_PivotTable!H92),Taxa_PivotTable!H92,"") ->  | AB92: =IF(ISNUMBER(Taxa_PivotTable!I92),Taxa_PivotTable!I92,"") ->  | AF92: =IF(ISNUMBER(Taxa_PivotTable!J92),Taxa_PivotTable!J92,"") ->  | AJ92: =IF(ISNUMBER(Taxa_PivotTable!K92),Taxa_PivotTable!K92,"") -> 
A93: =Taxa_PivotTable!A93 ->  | B93: =IF(Taxa_PivotTable!B93="","",Taxa_PivotTable!B93) ->  | C93: =IF(ISNUMBER(VLOOKUP(B93,UKOptima!A:J,10,FALSE)),VLOOKUP(B93,UKOptima!A:J,10,FALSE),"") ->  | D93: =IF(ISNUMBER(Taxa_PivotTable!C93),Taxa_PivotTable!C93,"") ->  | H93: =IF(ISNUMBER(Taxa_PivotTable!D93),Taxa_PivotTable!D93,"") ->  | L93: =IF(ISNUMBER(Taxa_PivotTable!E93),Taxa_PivotTable!E93,"") ->  | P93: =IF(ISNUMBER(Taxa_PivotTable!F93),Taxa_PivotTable!F93,"") ->  | T93: =IF(ISNUMBER(Taxa_PivotTable!G93),Taxa_PivotTable!G93,"") ->  | X93: =IF(ISNUMBER(Taxa_PivotTable!H93),Taxa_PivotTable!H93,"") ->  | AB93: =IF(ISNUMBER(Taxa_PivotTable!I93),Taxa_PivotTable!I93,"") ->  | AF93: =IF(ISNUMBER(Taxa_PivotTable!J93),Taxa_PivotTable!J93,"") ->  | AJ93: =IF(ISNUMBER(Taxa_PivotTable!K93),Taxa_PivotTable!K93,"") -> 
A94: =Taxa_PivotTable!A94 ->  | B94: =IF(Taxa_PivotTable!B94="","",Taxa_PivotTable!B94) ->  | C94: =IF(ISNUMBER(VLOOKUP(B94,UKOptima!A:J,10,FALSE)),VLOOKUP(B94,UKOptima!A:J,10,FALSE),"") ->  | D94: =IF(ISNUMBER(Taxa_PivotTable!C94),Taxa_PivotTable!C94,"") ->  | H94: =IF(ISNUMBER(Taxa_PivotTable!D94),Taxa_PivotTable!D94,"") ->  | L94: =IF(ISNUMBER(Taxa_PivotTable!E94),Taxa_PivotTable!E94,"") ->  | P94: =IF(ISNUMBER(Taxa_PivotTable!F94),Taxa_PivotTable!F94,"") ->  | T94: =IF(ISNUMBER(Taxa_PivotTable!G94),Taxa_PivotTable!G94,"") ->  | X94: =IF(ISNUMBER(Taxa_PivotTable!H94),Taxa_PivotTable!H94,"") ->  | AB94: =IF(ISNUMBER(Taxa_PivotTable!I94),Taxa_PivotTable!I94,"") ->  | AF94: =IF(ISNUMBER(Taxa_PivotTable!J94),Taxa_PivotTable!J94,"") ->  | AJ94: =IF(ISNUMBER(Taxa_PivotTable!K94),Taxa_PivotTable!K94,"") -> 
A95: =Taxa_PivotTable!A95 ->  | B95: =IF(Taxa_PivotTable!B95="","",Taxa_PivotTable!B95) ->  | C95: =IF(ISNUMBER(VLOOKUP(B95,UKOptima!A:J,10,FALSE)),VLOOKUP(B95,UKOptima!A:J,10,FALSE),"") ->  | D95: =IF(ISNUMBER(Taxa_PivotTable!C95),Taxa_PivotTable!C95,"") ->  | H95: =IF(ISNUMBER(Taxa_PivotTable!D95),Taxa_PivotTable!D95,"") ->  | L95: =IF(ISNUMBER(Taxa_PivotTable!E95),Taxa_PivotTable!E95,"") ->  | P95: =IF(ISNUMBER(Taxa_PivotTable!F95),Taxa_PivotTable!F95,"") ->  | T95: =IF(ISNUMBER(Taxa_PivotTable!G95),Taxa_PivotTable!G95,"") ->  | X95: =IF(ISNUMBER(Taxa_PivotTable!H95),Taxa_PivotTable!H95,"") ->  | AB95: =IF(ISNUMBER(Taxa_PivotTable!I95),Taxa_PivotTable!I95,"") ->  | AF95: =IF(ISNUMBER(Taxa_PivotTable!J95),Taxa_PivotTable!J95,"") ->  | AJ95: =IF(ISNUMBER(Taxa_PivotTable!K95),Taxa_PivotTable!K95,"") -> 
A96: =Taxa_PivotTable!A96 ->  | B96: =IF(Taxa_PivotTable!B96="","",Taxa_PivotTable!B96) ->  | C96: =IF(ISNUMBER(VLOOKUP(B96,UKOptima!A:J,10,FALSE)),VLOOKUP(B96,UKOptima!A:J,10,FALSE),"") ->  | D96: =IF(ISNUMBER(Taxa_PivotTable!C96),Taxa_PivotTable!C96,"") ->  | H96: =IF(ISNUMBER(Taxa_PivotTable!D96),Taxa_PivotTable!D96,"") ->  | L96: =IF(ISNUMBER(Taxa_PivotTable!E96),Taxa_PivotTable!E96,"") ->  | P96: =IF(ISNUMBER(Taxa_PivotTable!F96),Taxa_PivotTable!F96,"") ->  | T96: =IF(ISNUMBER(Taxa_PivotTable!G96),Taxa_PivotTable!G96,"") ->  | X96: =IF(ISNUMBER(Taxa_PivotTable!H96),Taxa_PivotTable!H96,"") ->  | AB96: =IF(ISNUMBER(Taxa_PivotTable!I96),Taxa_PivotTable!I96,"") ->  | AF96: =IF(ISNUMBER(Taxa_PivotTable!J96),Taxa_PivotTable!J96,"") ->  | AJ96: =IF(ISNUMBER(Taxa_PivotTable!K96),Taxa_PivotTable!K96,"") -> 
A97: =Taxa_PivotTable!A97 ->  | B97: =IF(Taxa_PivotTable!B97="","",Taxa_PivotTable!B97) ->  | C97: =IF(ISNUMBER(VLOOKUP(B97,UKOptima!A:J,10,FALSE)),VLOOKUP(B97,UKOptima!A:J,10,FALSE),"") ->  | D97: =IF(ISNUMBER(Taxa_PivotTable!C97),Taxa_PivotTable!C97,"") ->  | H97: =IF(ISNUMBER(Taxa_PivotTable!D97),Taxa_PivotTable!D97,"") ->  | L97: =IF(ISNUMBER(Taxa_PivotTable!E97),Taxa_PivotTable!E97,"") ->  | P97: =IF(ISNUMBER(Taxa_PivotTable!F97),Taxa_PivotTable!F97,"") ->  | T97: =IF(ISNUMBER(Taxa_PivotTable!G97),Taxa_PivotTable!G97,"") ->  | X97: =IF(ISNUMBER(Taxa_PivotTable!H97),Taxa_PivotTable!H97,"") ->  | AB97: =IF(ISNUMBER(Taxa_PivotTable!I97),Taxa_PivotTable!I97,"") ->  | AF97: =IF(ISNUMBER(Taxa_PivotTable!J97),Taxa_PivotTable!J97,"") ->  | AJ97: =IF(ISNUMBER(Taxa_PivotTable!K97),Taxa_PivotTable!K97,"") -> 
A98: =Taxa_PivotTable!A98 ->  | B98: =IF(Taxa_PivotTable!B98="","",Taxa_PivotTable!B98) ->  | C98: =IF(ISNUMBER(VLOOKUP(B98,UKOptima!A:J,10,FALSE)),VLOOKUP(B98,UKOptima!A:J,10,FALSE),"") ->  | D98: =IF(ISNUMBER(Taxa_PivotTable!C98),Taxa_PivotTable!C98,"") ->  | H98: =IF(ISNUMBER(Taxa_PivotTable!D98),Taxa_PivotTable!D98,"") ->  | L98: =IF(ISNUMBER(Taxa_PivotTable!E98),Taxa_PivotTable!E98,"") ->  | P98: =IF(ISNUMBER(Taxa_PivotTable!F98),Taxa_PivotTable!F98,"") ->  | T98: =IF(ISNUMBER(Taxa_PivotTable!G98),Taxa_PivotTable!G98,"") ->  | X98: =IF(ISNUMBER(Taxa_PivotTable!H98),Taxa_PivotTable!H98,"") ->  | AB98: =IF(ISNUMBER(Taxa_PivotTable!I98),Taxa_PivotTable!I98,"") ->  | AF98: =IF(ISNUMBER(Taxa_PivotTable!J98),Taxa_PivotTable!J98,"") ->  | AJ98: =IF(ISNUMBER(Taxa_PivotTable!K98),Taxa_PivotTable!K98,"") -> 
A99: =Taxa_PivotTable!A99 ->  | B99: =IF(Taxa_PivotTable!B99="","",Taxa_PivotTable!B99) ->  | C99: =IF(ISNUMBER(VLOOKUP(B99,UKOptima!A:J,10,FALSE)),VLOOKUP(B99,UKOptima!A:J,10,FALSE),"") ->  | D99: =IF(ISNUMBER(Taxa_PivotTable!C99),Taxa_PivotTable!C99,"") ->  | H99: =IF(ISNUMBER(Taxa_PivotTable!D99),Taxa_PivotTable!D99,"") ->  | L99: =IF(ISNUMBER(Taxa_PivotTable!E99),Taxa_PivotTable!E99,"") ->  | P99: =IF(ISNUMBER(Taxa_PivotTable!F99),Taxa_PivotTable!F99,"") ->  | T99: =IF(ISNUMBER(Taxa_PivotTable!G99),Taxa_PivotTable!G99,"") ->  | X99: =IF(ISNUMBER(Taxa_PivotTable!H99),Taxa_PivotTable!H99,"") ->  | AB99: =IF(ISNUMBER(Taxa_PivotTable!I99),Taxa_PivotTable!I99,"") ->  | AF99: =IF(ISNUMBER(Taxa_PivotTable!J99),Taxa_PivotTable!J99,"") ->  | AJ99: =IF(ISNUMBER(Taxa_PivotTable!K99),Taxa_PivotTable!K99,"") -> 
A100: =Taxa_PivotTable!A100 ->  | B100: =IF(Taxa_PivotTable!B100="","",Taxa_PivotTable!B100) ->  | C100: =IF(ISNUMBER(VLOOKUP(B100,UKOptima!A:J,10,FALSE)),VLOOKUP(B100,UKOptima!A:J,10,FALSE),"") ->  | D100: =IF(ISNUMBER(Taxa_PivotTable!C100),Taxa_PivotTable!C100,"") ->  | H100: =IF(ISNUMBER(Taxa_PivotTable!D100),Taxa_PivotTable!D100,"") ->  | L100: =IF(ISNUMBER(Taxa_PivotTable!E100),Taxa_PivotTable!E100,"") ->  | P100: =IF(ISNUMBER(Taxa_PivotTable!F100),Taxa_PivotTable!F100,"") ->  | T100: =IF(ISNUMBER(Taxa_PivotTable!G100),Taxa_PivotTable!G100,"") ->  | X100: =IF(ISNUMBER(Taxa_PivotTable!H100),Taxa_PivotTable!H100,"") ->  | AB100: =IF(ISNUMBER(Taxa_PivotTable!I100),Taxa_PivotTable!I100,"") ->  | AF100: =IF(ISNUMBER(Taxa_PivotTable!J100),Taxa_PivotTable!J100,"") ->  | AJ100: =IF(ISNUMBER(Taxa_PivotTable!K100),Taxa_PivotTable!K100,"") -> 
A101: =Taxa_PivotTable!A101 ->  | B101: =IF(Taxa_PivotTable!B101="","",Taxa_PivotTable!B101) ->  | C101: =IF(ISNUMBER(VLOOKUP(B101,UKOptima!A:J,10,FALSE)),VLOOKUP(B101,UKOptima!A:J,10,FALSE),"") ->  | D101: =IF(ISNUMBER(Taxa_PivotTable!C101),Taxa_PivotTable!C101,"") ->  | H101: =IF(ISNUMBER(Taxa_PivotTable!D101),Taxa_PivotTable!D101,"") ->  | L101: =IF(ISNUMBER(Taxa_PivotTable!E101),Taxa_PivotTable!E101,"") ->  | P101: =IF(ISNUMBER(Taxa_PivotTable!F101),Taxa_PivotTable!F101,"") ->  | T101: =IF(ISNUMBER(Taxa_PivotTable!G101),Taxa_PivotTable!G101,"") ->  | X101: =IF(ISNUMBER(Taxa_PivotTable!H101),Taxa_PivotTable!H101,"") ->  | AB101: =IF(ISNUMBER(Taxa_PivotTable!I101),Taxa_PivotTable!I101,"") ->  | AF101: =IF(ISNUMBER(Taxa_PivotTable!J101),Taxa_PivotTable!J101,"") ->  | AJ101: =IF(ISNUMBER(Taxa_PivotTable!K101),Taxa_PivotTable!K101,"") -> 
A102: =Taxa_PivotTable!A102 ->  | B102: =IF(Taxa_PivotTable!B102="","",Taxa_PivotTable!B102) ->  | C102: =IF(ISNUMBER(VLOOKUP(B102,UKOptima!A:J,10,FALSE)),VLOOKUP(B102,UKOptima!A:J,10,FALSE),"") ->  | D102: =IF(ISNUMBER(Taxa_PivotTable!C102),Taxa_PivotTable!C102,"") ->  | H102: =IF(ISNUMBER(Taxa_PivotTable!D102),Taxa_PivotTable!D102,"") ->  | L102: =IF(ISNUMBER(Taxa_PivotTable!E102),Taxa_PivotTable!E102,"") ->  | P102: =IF(ISNUMBER(Taxa_PivotTable!F102),Taxa_PivotTable!F102,"") ->  | T102: =IF(ISNUMBER(Taxa_PivotTable!G102),Taxa_PivotTable!G102,"") ->  | X102: =IF(ISNUMBER(Taxa_PivotTable!H102),Taxa_PivotTable!H102,"") ->  | AB102: =IF(ISNUMBER(Taxa_PivotTable!I102),Taxa_PivotTable!I102,"") ->  | AF102: =IF(ISNUMBER(Taxa_PivotTable!J102),Taxa_PivotTable!J102,"") ->  | AJ102: =IF(ISNUMBER(Taxa_PivotTable!K102),Taxa_PivotTable!K102,"") -> 
A103: =Taxa_PivotTable!A103 ->  | B103: =IF(Taxa_PivotTable!B103="","",Taxa_PivotTable!B103) ->  | C103: =IF(ISNUMBER(VLOOKUP(B103,UKOptima!A:J,10,FALSE)),VLOOKUP(B103,UKOptima!A:J,10,FALSE),"") ->  | D103: =IF(ISNUMBER(Taxa_PivotTable!C103),Taxa_PivotTable!C103,"") ->  | H103: =IF(ISNUMBER(Taxa_PivotTable!D103),Taxa_PivotTable!D103,"") ->  | L103: =IF(ISNUMBER(Taxa_PivotTable!E103),Taxa_PivotTable!E103,"") ->  | P103: =IF(ISNUMBER(Taxa_PivotTable!F103),Taxa_PivotTable!F103,"") ->  | T103: =IF(ISNUMBER(Taxa_PivotTable!G103),Taxa_PivotTable!G103,"") ->  | X103: =IF(ISNUMBER(Taxa_PivotTable!H103),Taxa_PivotTable!H103,"") ->  | AB103: =IF(ISNUMBER(Taxa_PivotTable!I103),Taxa_PivotTable!I103,"") ->  | AF103: =IF(ISNUMBER(Taxa_PivotTable!J103),Taxa_PivotTable!J103,"") ->  | AJ103: =IF(ISNUMBER(Taxa_PivotTable!K103),Taxa_PivotTable!K103,"") -> 
A104: =Taxa_PivotTable!A104 ->  | B104: =IF(Taxa_PivotTable!B104="","",Taxa_PivotTable!B104) ->  | C104: =IF(ISNUMBER(VLOOKUP(B104,UKOptima!A:J,10,FALSE)),VLOOKUP(B104,UKOptima!A:J,10,FALSE),"") ->  | D104: =IF(ISNUMBER(Taxa_PivotTable!C104),Taxa_PivotTable!C104,"") ->  | H104: =IF(ISNUMBER(Taxa_PivotTable!D104),Taxa_PivotTable!D104,"") ->  | L104: =IF(ISNUMBER(Taxa_PivotTable!E104),Taxa_PivotTable!E104,"") ->  | P104: =IF(ISNUMBER(Taxa_PivotTable!F104),Taxa_PivotTable!F104,"") ->  | T104: =IF(ISNUMBER(Taxa_PivotTable!G104),Taxa_PivotTable!G104,"") ->  | X104: =IF(ISNUMBER(Taxa_PivotTable!H104),Taxa_PivotTable!H104,"") ->  | AB104: =IF(ISNUMBER(Taxa_PivotTable!I104),Taxa_PivotTable!I104,"") ->  | AF104: =IF(ISNUMBER(Taxa_PivotTable!J104),Taxa_PivotTable!J104,"") ->  | AJ104: =IF(ISNUMBER(Taxa_PivotTable!K104),Taxa_PivotTable!K104,"") -> 
A105: =Taxa_PivotTable!A105 ->  | B105: =IF(Taxa_PivotTable!B105="","",Taxa_PivotTable!B105) ->  | C105: =IF(ISNUMBER(VLOOKUP(B105,UKOptima!A:J,10,FALSE)),VLOOKUP(B105,UKOptima!A:J,10,FALSE),"") ->  | D105: =IF(ISNUMBER(Taxa_PivotTable!C105),Taxa_PivotTable!C105,"") ->  | H105: =IF(ISNUMBER(Taxa_PivotTable!D105),Taxa_PivotTable!D105,"") ->  | L105: =IF(ISNUMBER(Taxa_PivotTable!E105),Taxa_PivotTable!E105,"") ->  | P105: =IF(ISNUMBER(Taxa_PivotTable!F105),Taxa_PivotTable!F105,"") ->  | T105: =IF(ISNUMBER(Taxa_PivotTable!G105),Taxa_PivotTable!G105,"") ->  | X105: =IF(ISNUMBER(Taxa_PivotTable!H105),Taxa_PivotTable!H105,"") ->  | AB105: =IF(ISNUMBER(Taxa_PivotTable!I105),Taxa_PivotTable!I105,"") ->  | AF105: =IF(ISNUMBER(Taxa_PivotTable!J105),Taxa_PivotTable!J105,"") ->  | AJ105: =IF(ISNUMBER(Taxa_PivotTable!K105),Taxa_PivotTable!K105,"") -> 
A106: =Taxa_PivotTable!A106 ->  | B106: =IF(Taxa_PivotTable!B106="","",Taxa_PivotTable!B106) ->  | C106: =IF(ISNUMBER(VLOOKUP(B106,UKOptima!A:J,10,FALSE)),VLOOKUP(B106,UKOptima!A:J,10,FALSE),"") ->  | D106: =IF(ISNUMBER(Taxa_PivotTable!C106),Taxa_PivotTable!C106,"") ->  | H106: =IF(ISNUMBER(Taxa_PivotTable!D106),Taxa_PivotTable!D106,"") ->  | L106: =IF(ISNUMBER(Taxa_PivotTable!E106),Taxa_PivotTable!E106,"") ->  | P106: =IF(ISNUMBER(Taxa_PivotTable!F106),Taxa_PivotTable!F106,"") ->  | T106: =IF(ISNUMBER(Taxa_PivotTable!G106),Taxa_PivotTable!G106,"") ->  | X106: =IF(ISNUMBER(Taxa_PivotTable!H106),Taxa_PivotTable!H106,"") ->  | AB106: =IF(ISNUMBER(Taxa_PivotTable!I106),Taxa_PivotTable!I106,"") ->  | AF106: =IF(ISNUMBER(Taxa_PivotTable!J106),Taxa_PivotTable!J106,"") ->  | AJ106: =IF(ISNUMBER(Taxa_PivotTable!K106),Taxa_PivotTable!K106,"") -> 
A107: =Taxa_PivotTable!A107 ->  | B107: =IF(Taxa_PivotTable!B107="","",Taxa_PivotTable!B107) ->  | C107: =IF(ISNUMBER(VLOOKUP(B107,UKOptima!A:J,10,FALSE)),VLOOKUP(B107,UKOptima!A:J,10,FALSE),"") ->  | D107: =IF(ISNUMBER(Taxa_PivotTable!C107),Taxa_PivotTable!C107,"") ->  | H107: =IF(ISNUMBER(Taxa_PivotTable!D107),Taxa_PivotTable!D107,"") ->  | L107: =IF(ISNUMBER(Taxa_PivotTable!E107),Taxa_PivotTable!E107,"") ->  | P107: =IF(ISNUMBER(Taxa_PivotTable!F107),Taxa_PivotTable!F107,"") ->  | T107: =IF(ISNUMBER(Taxa_PivotTable!G107),Taxa_PivotTable!G107,"") ->  | X107: =IF(ISNUMBER(Taxa_PivotTable!H107),Taxa_PivotTable!H107,"") ->  | AB107: =IF(ISNUMBER(Taxa_PivotTable!I107),Taxa_PivotTable!I107,"") ->  | AF107: =IF(ISNUMBER(Taxa_PivotTable!J107),Taxa_PivotTable!J107,"") ->  | AJ107: =IF(ISNUMBER(Taxa_PivotTable!K107),Taxa_PivotTable!K107,"") -> 
A108: =Taxa_PivotTable!A108 ->  | B108: =IF(Taxa_PivotTable!B108="","",Taxa_PivotTable!B108) ->  | C108: =IF(ISNUMBER(VLOOKUP(B108,UKOptima!A:J,10,FALSE)),VLOOKUP(B108,UKOptima!A:J,10,FALSE),"") ->  | D108: =IF(ISNUMBER(Taxa_PivotTable!C108),Taxa_PivotTable!C108,"") ->  | H108: =IF(ISNUMBER(Taxa_PivotTable!D108),Taxa_PivotTable!D108,"") ->  | L108: =IF(ISNUMBER(Taxa_PivotTable!E108),Taxa_PivotTable!E108,"") ->  | P108: =IF(ISNUMBER(Taxa_PivotTable!F108),Taxa_PivotTable!F108,"") ->  | T108: =IF(ISNUMBER(Taxa_PivotTable!G108),Taxa_PivotTable!G108,"") ->  | X108: =IF(ISNUMBER(Taxa_PivotTable!H108),Taxa_PivotTable!H108,"") ->  | AB108: =IF(ISNUMBER(Taxa_PivotTable!I108),Taxa_PivotTable!I108,"") ->  | AF108: =IF(ISNUMBER(Taxa_PivotTable!J108),Taxa_PivotTable!J108,"") ->  | AJ108: =IF(ISNUMBER(Taxa_PivotTable!K108),Taxa_PivotTable!K108,"") -> 
A109: =Taxa_PivotTable!A109 ->  | B109: =IF(Taxa_PivotTable!B109="","",Taxa_PivotTable!B109) ->  | C109: =IF(ISNUMBER(VLOOKUP(B109,UKOptima!A:J,10,FALSE)),VLOOKUP(B109,UKOptima!A:J,10,FALSE),"") ->  | D109: =IF(ISNUMBER(Taxa_PivotTable!C109),Taxa_PivotTable!C109,"") ->  | H109: =IF(ISNUMBER(Taxa_PivotTable!D109),Taxa_PivotTable!D109,"") ->  | L109: =IF(ISNUMBER(Taxa_PivotTable!E109),Taxa_PivotTable!E109,"") ->  | P109: =IF(ISNUMBER(Taxa_PivotTable!F109),Taxa_PivotTable!F109,"") ->  | T109: =IF(ISNUMBER(Taxa_PivotTable!G109),Taxa_PivotTable!G109,"") ->  | X109: =IF(ISNUMBER(Taxa_PivotTable!H109),Taxa_PivotTable!H109,"") ->  | AB109: =IF(ISNUMBER(Taxa_PivotTable!I109),Taxa_PivotTable!I109,"") ->  | AF109: =IF(ISNUMBER(Taxa_PivotTable!J109),Taxa_PivotTable!J109,"") ->  | AJ109: =IF(ISNUMBER(Taxa_PivotTable!K109),Taxa_PivotTable!K109,"") -> 
A110: =Taxa_PivotTable!A110 ->  | B110: =IF(Taxa_PivotTable!B110="","",Taxa_PivotTable!B110) ->  | C110: =IF(ISNUMBER(VLOOKUP(B110,UKOptima!A:J,10,FALSE)),VLOOKUP(B110,UKOptima!A:J,10,FALSE),"") ->  | D110: =IF(ISNUMBER(Taxa_PivotTable!C110),Taxa_PivotTable!C110,"") ->  | H110: =IF(ISNUMBER(Taxa_PivotTable!D110),Taxa_PivotTable!D110,"") ->  | L110: =IF(ISNUMBER(Taxa_PivotTable!E110),Taxa_PivotTable!E110,"") ->  | P110: =IF(ISNUMBER(Taxa_PivotTable!F110),Taxa_PivotTable!F110,"") ->  | T110: =IF(ISNUMBER(Taxa_PivotTable!G110),Taxa_PivotTable!G110,"") ->  | X110: =IF(ISNUMBER(Taxa_PivotTable!H110),Taxa_PivotTable!H110,"") ->  | AB110: =IF(ISNUMBER(Taxa_PivotTable!I110),Taxa_PivotTable!I110,"") ->  | AF110: =IF(ISNUMBER(Taxa_PivotTable!J110),Taxa_PivotTable!J110,"") ->  | AJ110: =IF(ISNUMBER(Taxa_PivotTable!K110),Taxa_PivotTable!K110,"") -> 
A111: =Taxa_PivotTable!A111 ->  | B111: =IF(Taxa_PivotTable!B111="","",Taxa_PivotTable!B111) ->  | C111: =IF(ISNUMBER(VLOOKUP(B111,UKOptima!A:J,10,FALSE)),VLOOKUP(B111,UKOptima!A:J,10,FALSE),"") ->  | D111: =IF(ISNUMBER(Taxa_PivotTable!C111),Taxa_PivotTable!C111,"") ->  | H111: =IF(ISNUMBER(Taxa_PivotTable!D111),Taxa_PivotTable!D111,"") ->  | L111: =IF(ISNUMBER(Taxa_PivotTable!E111),Taxa_PivotTable!E111,"") ->  | P111: =IF(ISNUMBER(Taxa_PivotTable!F111),Taxa_PivotTable!F111,"") ->  | T111: =IF(ISNUMBER(Taxa_PivotTable!G111),Taxa_PivotTable!G111,"") ->  | X111: =IF(ISNUMBER(Taxa_PivotTable!H111),Taxa_PivotTable!H111,"") ->  | AB111: =IF(ISNUMBER(Taxa_PivotTable!I111),Taxa_PivotTable!I111,"") ->  | AF111: =IF(ISNUMBER(Taxa_PivotTable!J111),Taxa_PivotTable!J111,"") ->  | AJ111: =IF(ISNUMBER(Taxa_PivotTable!K111),Taxa_PivotTable!K111,"") -> 
A112: =Taxa_PivotTable!A112 ->  | B112: =IF(Taxa_PivotTable!B112="","",Taxa_PivotTable!B112) ->  | C112: =IF(ISNUMBER(VLOOKUP(B112,UKOptima!A:J,10,FALSE)),VLOOKUP(B112,UKOptima!A:J,10,FALSE),"") ->  | D112: =IF(ISNUMBER(Taxa_PivotTable!C112),Taxa_PivotTable!C112,"") ->  | H112: =IF(ISNUMBER(Taxa_PivotTable!D112),Taxa_PivotTable!D112,"") ->  | L112: =IF(ISNUMBER(Taxa_PivotTable!E112),Taxa_PivotTable!E112,"") ->  | P112: =IF(ISNUMBER(Taxa_PivotTable!F112),Taxa_PivotTable!F112,"") ->  | T112: =IF(ISNUMBER(Taxa_PivotTable!G112),Taxa_PivotTable!G112,"") ->  | X112: =IF(ISNUMBER(Taxa_PivotTable!H112),Taxa_PivotTable!H112,"") ->  | AB112: =IF(ISNUMBER(Taxa_PivotTable!I112),Taxa_PivotTable!I112,"") ->  | AF112: =IF(ISNUMBER(Taxa_PivotTable!J112),Taxa_PivotTable!J112,"") ->  | AJ112: =IF(ISNUMBER(Taxa_PivotTable!K112),Taxa_PivotTable!K112,"") -> 
A113: =Taxa_PivotTable!A113 ->  | B113: =IF(Taxa_PivotTable!B113="","",Taxa_PivotTable!B113) ->  | C113: =IF(ISNUMBER(VLOOKUP(B113,UKOptima!A:J,10,FALSE)),VLOOKUP(B113,UKOptima!A:J,10,FALSE),"") ->  | D113: =IF(ISNUMBER(Taxa_PivotTable!C113),Taxa_PivotTable!C113,"") ->  | H113: =IF(ISNUMBER(Taxa_PivotTable!D113),Taxa_PivotTable!D113,"") ->  | L113: =IF(ISNUMBER(Taxa_PivotTable!E113),Taxa_PivotTable!E113,"") ->  | P113: =IF(ISNUMBER(Taxa_PivotTable!F113),Taxa_PivotTable!F113,"") ->  | T113: =IF(ISNUMBER(Taxa_PivotTable!G113),Taxa_PivotTable!G113,"") ->  | X113: =IF(ISNUMBER(Taxa_PivotTable!H113),Taxa_PivotTable!H113,"") ->  | AB113: =IF(ISNUMBER(Taxa_PivotTable!I113),Taxa_PivotTable!I113,"") ->  | AF113: =IF(ISNUMBER(Taxa_PivotTable!J113),Taxa_PivotTable!J113,"") ->  | AJ113: =IF(ISNUMBER(Taxa_PivotTable!K113),Taxa_PivotTable!K113,"") -> 
A114: =Taxa_PivotTable!A114 ->  | B114: =IF(Taxa_PivotTable!B114="","",Taxa_PivotTable!B114) ->  | C114: =IF(ISNUMBER(VLOOKUP(B114,UKOptima!A:J,10,FALSE)),VLOOKUP(B114,UKOptima!A:J,10,FALSE),"") ->  | D114: =IF(ISNUMBER(Taxa_PivotTable!C114),Taxa_PivotTable!C114,"") ->  | H114: =IF(ISNUMBER(Taxa_PivotTable!D114),Taxa_PivotTable!D114,"") ->  | L114: =IF(ISNUMBER(Taxa_PivotTable!E114),Taxa_PivotTable!E114,"") ->  | P114: =IF(ISNUMBER(Taxa_PivotTable!F114),Taxa_PivotTable!F114,"") ->  | T114: =IF(ISNUMBER(Taxa_PivotTable!G114),Taxa_PivotTable!G114,"") ->  | X114: =IF(ISNUMBER(Taxa_PivotTable!H114),Taxa_PivotTable!H114,"") ->  | AB114: =IF(ISNUMBER(Taxa_PivotTable!I114),Taxa_PivotTable!I114,"") ->  | AF114: =IF(ISNUMBER(Taxa_PivotTable!J114),Taxa_PivotTable!J114,"") ->  | AJ114: =IF(ISNUMBER(Taxa_PivotTable!K114),Taxa_PivotTable!K114,"") -> 
A115: =Taxa_PivotTable!A115 ->  | B115: =IF(Taxa_PivotTable!B115="","",Taxa_PivotTable!B115) ->  | C115: =IF(ISNUMBER(VLOOKUP(B115,UKOptima!A:J,10,FALSE)),VLOOKUP(B115,UKOptima!A:J,10,FALSE),"") ->  | D115: =IF(ISNUMBER(Taxa_PivotTable!C115),Taxa_PivotTable!C115,"") ->  | H115: =IF(ISNUMBER(Taxa_PivotTable!D115),Taxa_PivotTable!D115,"") ->  | L115: =IF(ISNUMBER(Taxa_PivotTable!E115),Taxa_PivotTable!E115,"") ->  | P115: =IF(ISNUMBER(Taxa_PivotTable!F115),Taxa_PivotTable!F115,"") ->  | T115: =IF(ISNUMBER(Taxa_PivotTable!G115),Taxa_PivotTable!G115,"") ->  | X115: =IF(ISNUMBER(Taxa_PivotTable!H115),Taxa_PivotTable!H115,"") ->  | AB115: =IF(ISNUMBER(Taxa_PivotTable!I115),Taxa_PivotTable!I115,"") ->  | AF115: =IF(ISNUMBER(Taxa_PivotTable!J115),Taxa_PivotTable!J115,"") ->  | AJ115: =IF(ISNUMBER(Taxa_PivotTable!K115),Taxa_PivotTable!K115,"") -> 
A116: =Taxa_PivotTable!A116 ->  | B116: =IF(Taxa_PivotTable!B116="","",Taxa_PivotTable!B116) ->  | C116: =IF(ISNUMBER(VLOOKUP(B116,UKOptima!A:J,10,FALSE)),VLOOKUP(B116,UKOptima!A:J,10,FALSE),"") ->  | D116: =IF(ISNUMBER(Taxa_PivotTable!C116),Taxa_PivotTable!C116,"") ->  | H116: =IF(ISNUMBER(Taxa_PivotTable!D116),Taxa_PivotTable!D116,"") ->  | L116: =IF(ISNUMBER(Taxa_PivotTable!E116),Taxa_PivotTable!E116,"") ->  | P116: =IF(ISNUMBER(Taxa_PivotTable!F116),Taxa_PivotTable!F116,"") ->  | T116: =IF(ISNUMBER(Taxa_PivotTable!G116),Taxa_PivotTable!G116,"") ->  | X116: =IF(ISNUMBER(Taxa_PivotTable!H116),Taxa_PivotTable!H116,"") ->  | AB116: =IF(ISNUMBER(Taxa_PivotTable!I116),Taxa_PivotTable!I116,"") ->  | AF116: =IF(ISNUMBER(Taxa_PivotTable!J116),Taxa_PivotTable!J116,"") ->  | AJ116: =IF(ISNUMBER(Taxa_PivotTable!K116),Taxa_PivotTable!K116,"") -> 
A117: =Taxa_PivotTable!A117 ->  | B117: =IF(Taxa_PivotTable!B117="","",Taxa_PivotTable!B117) ->  | C117: =IF(ISNUMBER(VLOOKUP(B117,UKOptima!A:J,10,FALSE)),VLOOKUP(B117,UKOptima!A:J,10,FALSE),"") ->  | D117: =IF(ISNUMBER(Taxa_PivotTable!C117),Taxa_PivotTable!C117,"") ->  | F117: =IF(COUNT(E117,$C117)=2,(E117)*$C117,"") ->  | H117: =IF(ISNUMBER(Taxa_PivotTable!D117),Taxa_PivotTable!D117,"") ->  | J117: =IF(COUNT(I117,$C117)=2,(I117)*$C117,"") ->  | L117: =IF(ISNUMBER(Taxa_PivotTable!E117),Taxa_PivotTable!E117,"") ->  | N117: =IF(COUNT(M117,$C117)=2,(M117)*$C117,"") ->  | P117: =IF(ISNUMBER(Taxa_PivotTable!F117),Taxa_PivotTable!F117,"") ->  | R117: =IF(COUNT(Q117,$C117)=2,(Q117)*$C117,"") ->  | T117: =IF(ISNUMBER(Taxa_PivotTable!G117),Taxa_PivotTable!G117,"") ->  | V117: =IF(COUNT(U117,$C117)=2,(U117)*$C117,"") ->  | X117: =IF(ISNUMBER(Taxa_PivotTable!H117),Taxa_PivotTable!H117,"") ->  | AB117: =IF(ISNUMBER(Taxa_PivotTable!I117),Taxa_PivotTable!I117,"") ->  | AF117: =IF(ISNUMBER(Taxa_PivotTable!J117),Taxa_PivotTable!J117,"") ->  | AJ117: =IF(ISNUMBER(Taxa_PivotTable!K117),Taxa_PivotTable!K117,"") -> 
A118: =Taxa_PivotTable!A118 ->  | B118: =IF(Taxa_PivotTable!B118="","",Taxa_PivotTable!B118) ->  | C118: =IF(ISNUMBER(VLOOKUP(B118,UKOptima!A:J,10,FALSE)),VLOOKUP(B118,UKOptima!A:J,10,FALSE),"") ->  | D118: =IF(ISNUMBER(Taxa_PivotTable!C118),Taxa_PivotTable!C118,"") ->  | H118: =IF(ISNUMBER(Taxa_PivotTable!D118),Taxa_PivotTable!D118,"") ->  | L118: =IF(ISNUMBER(Taxa_PivotTable!E118),Taxa_PivotTable!E118,"") ->  | P118: =IF(ISNUMBER(Taxa_PivotTable!F118),Taxa_PivotTable!F118,"") ->  | T118: =IF(ISNUMBER(Taxa_PivotTable!G118),Taxa_PivotTable!G118,"") ->  | X118: =IF(ISNUMBER(Taxa_PivotTable!H118),Taxa_PivotTable!H118,"") ->  | AB118: =IF(ISNUMBER(Taxa_PivotTable!I118),Taxa_PivotTable!I118,"") ->  | AF118: =IF(ISNUMBER(Taxa_PivotTable!J118),Taxa_PivotTable!J118,"") ->  | AJ118: =IF(ISNUMBER(Taxa_PivotTable!K118),Taxa_PivotTable!K118,"") -> 
A119: =Taxa_PivotTable!A119 ->  | B119: =IF(Taxa_PivotTable!B119="","",Taxa_PivotTable!B119) ->  | C119: =IF(ISNUMBER(VLOOKUP(B119,UKOptima!A:J,10,FALSE)),VLOOKUP(B119,UKOptima!A:J,10,FALSE),"") ->  | D119: =IF(ISNUMBER(Taxa_PivotTable!C119),Taxa_PivotTable!C119,"") ->  | H119: =IF(ISNUMBER(Taxa_PivotTable!D119),Taxa_PivotTable!D119,"") ->  | L119: =IF(ISNUMBER(Taxa_PivotTable!E119),Taxa_PivotTable!E119,"") ->  | P119: =IF(ISNUMBER(Taxa_PivotTable!F119),Taxa_PivotTable!F119,"") ->  | T119: =IF(ISNUMBER(Taxa_PivotTable!G119),Taxa_PivotTable!G119,"") ->  | X119: =IF(ISNUMBER(Taxa_PivotTable!H119),Taxa_PivotTable!H119,"") ->  | AB119: =IF(ISNUMBER(Taxa_PivotTable!I119),Taxa_PivotTable!I119,"") ->  | AF119: =IF(ISNUMBER(Taxa_PivotTable!J119),Taxa_PivotTable!J119,"") ->  | AJ119: =IF(ISNUMBER(Taxa_PivotTable!K119),Taxa_PivotTable!K119,"") -> 
A120: =Taxa_PivotTable!A120 ->  | B120: =IF(Taxa_PivotTable!B120="","",Taxa_PivotTable!B120) ->  | C120: =IF(ISNUMBER(VLOOKUP(B120,UKOptima!A:J,10,FALSE)),VLOOKUP(B120,UKOptima!A:J,10,FALSE),"") ->  | D120: =IF(ISNUMBER(Taxa_PivotTable!C120),Taxa_PivotTable!C120,"") ->  | H120: =IF(ISNUMBER(Taxa_PivotTable!D120),Taxa_PivotTable!D120,"") ->  | L120: =IF(ISNUMBER(Taxa_PivotTable!E120),Taxa_PivotTable!E120,"") ->  | P120: =IF(ISNUMBER(Taxa_PivotTable!F120),Taxa_PivotTable!F120,"") ->  | T120: =IF(ISNUMBER(Taxa_PivotTable!G120),Taxa_PivotTable!G120,"") ->  | X120: =IF(ISNUMBER(Taxa_PivotTable!H120),Taxa_PivotTable!H120,"") ->  | AB120: =IF(ISNUMBER(Taxa_PivotTable!I120),Taxa_PivotTable!I120,"") ->  | AF120: =IF(ISNUMBER(Taxa_PivotTable!J120),Taxa_PivotTable!J120,"") ->  | AJ120: =IF(ISNUMBER(Taxa_PivotTable!K120),Taxa_PivotTable!K120,"") -> 
A121: =Taxa_PivotTable!A121 ->  | B121: =IF(Taxa_PivotTable!B121="","",Taxa_PivotTable!B121) ->  | C121: =IF(ISNUMBER(VLOOKUP(B121,UKOptima!A:J,10,FALSE)),VLOOKUP(B121,UKOptima!A:J,10,FALSE),"") ->  | D121: =IF(ISNUMBER(Taxa_PivotTable!C121),Taxa_PivotTable!C121,"") ->  | H121: =IF(ISNUMBER(Taxa_PivotTable!D121),Taxa_PivotTable!D121,"") ->  | L121: =IF(ISNUMBER(Taxa_PivotTable!E121),Taxa_PivotTable!E121,"") ->  | P121: =IF(ISNUMBER(Taxa_PivotTable!F121),Taxa_PivotTable!F121,"") ->  | T121: =IF(ISNUMBER(Taxa_PivotTable!G121),Taxa_PivotTable!G121,"") ->  | X121: =IF(ISNUMBER(Taxa_PivotTable!H121),Taxa_PivotTable!H121,"") ->  | AB121: =IF(ISNUMBER(Taxa_PivotTable!I121),Taxa_PivotTable!I121,"") ->  | AF121: =IF(ISNUMBER(Taxa_PivotTable!J121),Taxa_PivotTable!J121,"") ->  | AJ121: =IF(ISNUMBER(Taxa_PivotTable!K121),Taxa_PivotTable!K121,"") -> 
A122: =Taxa_PivotTable!A122 ->  | B122: =IF(Taxa_PivotTable!B122="","",Taxa_PivotTable!B122) ->  | C122: =IF(ISNUMBER(VLOOKUP(B122,UKOptima!A:J,10,FALSE)),VLOOKUP(B122,UKOptima!A:J,10,FALSE),"") ->  | D122: =IF(ISNUMBER(Taxa_PivotTable!C122),Taxa_PivotTable!C122,"") ->  | H122: =IF(ISNUMBER(Taxa_PivotTable!D122),Taxa_PivotTable!D122,"") ->  | L122: =IF(ISNUMBER(Taxa_PivotTable!E122),Taxa_PivotTable!E122,"") ->  | P122: =IF(ISNUMBER(Taxa_PivotTable!F122),Taxa_PivotTable!F122,"") ->  | T122: =IF(ISNUMBER(Taxa_PivotTable!G122),Taxa_PivotTable!G122,"") ->  | X122: =IF(ISNUMBER(Taxa_PivotTable!H122),Taxa_PivotTable!H122,"") ->  | AB122: =IF(ISNUMBER(Taxa_PivotTable!I122),Taxa_PivotTable!I122,"") ->  | AF122: =IF(ISNUMBER(Taxa_PivotTable!J122),Taxa_PivotTable!J122,"") ->  | AJ122: =IF(ISNUMBER(Taxa_PivotTable!K122),Taxa_PivotTable!K122,"") -> 
A123: =Taxa_PivotTable!A123 ->  | B123: =IF(Taxa_PivotTable!B123="","",Taxa_PivotTable!B123) ->  | C123: =IF(ISNUMBER(VLOOKUP(B123,UKOptima!A:J,10,FALSE)),VLOOKUP(B123,UKOptima!A:J,10,FALSE),"") ->  | D123: =IF(ISNUMBER(Taxa_PivotTable!C123),Taxa_PivotTable!C123,"") ->  | H123: =IF(ISNUMBER(Taxa_PivotTable!D123),Taxa_PivotTable!D123,"") ->  | L123: =IF(ISNUMBER(Taxa_PivotTable!E123),Taxa_PivotTable!E123,"") ->  | P123: =IF(ISNUMBER(Taxa_PivotTable!F123),Taxa_PivotTable!F123,"") ->  | T123: =IF(ISNUMBER(Taxa_PivotTable!G123),Taxa_PivotTable!G123,"") ->  | X123: =IF(ISNUMBER(Taxa_PivotTable!H123),Taxa_PivotTable!H123,"") ->  | AB123: =IF(ISNUMBER(Taxa_PivotTable!I123),Taxa_PivotTable!I123,"") ->  | AF123: =IF(ISNUMBER(Taxa_PivotTable!J123),Taxa_PivotTable!J123,"") ->  | AJ123: =IF(ISNUMBER(Taxa_PivotTable!K123),Taxa_PivotTable!K123,"") -> 
A124: =Taxa_PivotTable!A124 ->  | B124: =IF(Taxa_PivotTable!B124="","",Taxa_PivotTable!B124) ->  | C124: =IF(ISNUMBER(VLOOKUP(B124,UKOptima!A:J,10,FALSE)),VLOOKUP(B124,UKOptima!A:J,10,FALSE),"") ->  | D124: =IF(ISNUMBER(Taxa_PivotTable!C124),Taxa_PivotTable!C124,"") ->  | H124: =IF(ISNUMBER(Taxa_PivotTable!D124),Taxa_PivotTable!D124,"") ->  | L124: =IF(ISNUMBER(Taxa_PivotTable!E124),Taxa_PivotTable!E124,"") ->  | P124: =IF(ISNUMBER(Taxa_PivotTable!F124),Taxa_PivotTable!F124,"") ->  | T124: =IF(ISNUMBER(Taxa_PivotTable!G124),Taxa_PivotTable!G124,"") ->  | X124: =IF(ISNUMBER(Taxa_PivotTable!H124),Taxa_PivotTable!H124,"") ->  | AB124: =IF(ISNUMBER(Taxa_PivotTable!I124),Taxa_PivotTable!I124,"") ->  | AF124: =IF(ISNUMBER(Taxa_PivotTable!J124),Taxa_PivotTable!J124,"") ->  | AJ124: =IF(ISNUMBER(Taxa_PivotTable!K124),Taxa_PivotTable!K124,"") -> 
A125: =Taxa_PivotTable!A125 ->  | B125: =IF(Taxa_PivotTable!B125="","",Taxa_PivotTable!B125) ->  | C125: =IF(ISNUMBER(VLOOKUP(B125,UKOptima!A:J,10,FALSE)),VLOOKUP(B125,UKOptima!A:J,10,FALSE),"") ->  | D125: =IF(ISNUMBER(Taxa_PivotTable!C125),Taxa_PivotTable!C125,"") ->  | H125: =IF(ISNUMBER(Taxa_PivotTable!D125),Taxa_PivotTable!D125,"") ->  | L125: =IF(ISNUMBER(Taxa_PivotTable!E125),Taxa_PivotTable!E125,"") ->  | P125: =IF(ISNUMBER(Taxa_PivotTable!F125),Taxa_PivotTable!F125,"") ->  | T125: =IF(ISNUMBER(Taxa_PivotTable!G125),Taxa_PivotTable!G125,"") ->  | X125: =IF(ISNUMBER(Taxa_PivotTable!H125),Taxa_PivotTable!H125,"") ->  | AB125: =IF(ISNUMBER(Taxa_PivotTable!I125),Taxa_PivotTable!I125,"") ->  | AF125: =IF(ISNUMBER(Taxa_PivotTable!J125),Taxa_PivotTable!J125,"") ->  | AJ125: =IF(ISNUMBER(Taxa_PivotTable!K125),Taxa_PivotTable!K125,"") -> 
A126: =Taxa_PivotTable!A126 ->  | B126: =IF(Taxa_PivotTable!B126="","",Taxa_PivotTable!B126) ->  | C126: =IF(ISNUMBER(VLOOKUP(B126,UKOptima!A:J,10,FALSE)),VLOOKUP(B126,UKOptima!A:J,10,FALSE),"") ->  | D126: =IF(ISNUMBER(Taxa_PivotTable!C126),Taxa_PivotTable!C126,"") ->  | H126: =IF(ISNUMBER(Taxa_PivotTable!D126),Taxa_PivotTable!D126,"") ->  | L126: =IF(ISNUMBER(Taxa_PivotTable!E126),Taxa_PivotTable!E126,"") ->  | P126: =IF(ISNUMBER(Taxa_PivotTable!F126),Taxa_PivotTable!F126,"") ->  | T126: =IF(ISNUMBER(Taxa_PivotTable!G126),Taxa_PivotTable!G126,"") ->  | X126: =IF(ISNUMBER(Taxa_PivotTable!H126),Taxa_PivotTable!H126,"") ->  | AB126: =IF(ISNUMBER(Taxa_PivotTable!I126),Taxa_PivotTable!I126,"") ->  | AF126: =IF(ISNUMBER(Taxa_PivotTable!J126),Taxa_PivotTable!J126,"") ->  | AJ126: =IF(ISNUMBER(Taxa_PivotTable!K126),Taxa_PivotTable!K126,"") -> 
A127: =Taxa_PivotTable!A127 ->  | B127: =IF(Taxa_PivotTable!B127="","",Taxa_PivotTable!B127) ->  | C127: =IF(ISNUMBER(VLOOKUP(B127,UKOptima!A:J,10,FALSE)),VLOOKUP(B127,UKOptima!A:J,10,FALSE),"") ->  | D127: =IF(ISNUMBER(Taxa_PivotTable!C127),Taxa_PivotTable!C127,"") ->  | H127: =IF(ISNUMBER(Taxa_PivotTable!D127),Taxa_PivotTable!D127,"") ->  | L127: =IF(ISNUMBER(Taxa_PivotTable!E127),Taxa_PivotTable!E127,"") ->  | P127: =IF(ISNUMBER(Taxa_PivotTable!F127),Taxa_PivotTable!F127,"") ->  | T127: =IF(ISNUMBER(Taxa_PivotTable!G127),Taxa_PivotTable!G127,"") ->  | X127: =IF(ISNUMBER(Taxa_PivotTable!H127),Taxa_PivotTable!H127,"") ->  | AB127: =IF(ISNUMBER(Taxa_PivotTable!I127),Taxa_PivotTable!I127,"") ->  | AF127: =IF(ISNUMBER(Taxa_PivotTable!J127),Taxa_PivotTable!J127,"") ->  | AJ127: =IF(ISNUMBER(Taxa_PivotTable!K127),Taxa_PivotTable!K127,"") -> 
A128: =Taxa_PivotTable!A128 ->  | B128: =IF(Taxa_PivotTable!B128="","",Taxa_PivotTable!B128) ->  | C128: =IF(ISNUMBER(VLOOKUP(B128,UKOptima!A:J,10,FALSE)),VLOOKUP(B128,UKOptima!A:J,10,FALSE),"") ->  | D128: =IF(ISNUMBER(Taxa_PivotTable!C128),Taxa_PivotTable!C128,"") ->  | H128: =IF(ISNUMBER(Taxa_PivotTable!D128),Taxa_PivotTable!D128,"") ->  | L128: =IF(ISNUMBER(Taxa_PivotTable!E128),Taxa_PivotTable!E128,"") ->  | P128: =IF(ISNUMBER(Taxa_PivotTable!F128),Taxa_PivotTable!F128,"") ->  | T128: =IF(ISNUMBER(Taxa_PivotTable!G128),Taxa_PivotTable!G128,"") ->  | X128: =IF(ISNUMBER(Taxa_PivotTable!H128),Taxa_PivotTable!H128,"") ->  | AB128: =IF(ISNUMBER(Taxa_PivotTable!I128),Taxa_PivotTable!I128,"") ->  | AF128: =IF(ISNUMBER(Taxa_PivotTable!J128),Taxa_PivotTable!J128,"") ->  | AJ128: =IF(ISNUMBER(Taxa_PivotTable!K128),Taxa_PivotTable!K128,"") -> 
A129: =Taxa_PivotTable!A129 ->  | B129: =IF(Taxa_PivotTable!B129="","",Taxa_PivotTable!B129) ->  | C129: =IF(ISNUMBER(VLOOKUP(B129,UKOptima!A:J,10,FALSE)),VLOOKUP(B129,UKOptima!A:J,10,FALSE),"") ->  | D129: =IF(ISNUMBER(Taxa_PivotTable!C129),Taxa_PivotTable!C129,"") ->  | H129: =IF(ISNUMBER(Taxa_PivotTable!D129),Taxa_PivotTable!D129,"") ->  | L129: =IF(ISNUMBER(Taxa_PivotTable!E129),Taxa_PivotTable!E129,"") ->  | P129: =IF(ISNUMBER(Taxa_PivotTable!F129),Taxa_PivotTable!F129,"") ->  | T129: =IF(ISNUMBER(Taxa_PivotTable!G129),Taxa_PivotTable!G129,"") ->  | X129: =IF(ISNUMBER(Taxa_PivotTable!H129),Taxa_PivotTable!H129,"") ->  | AB129: =IF(ISNUMBER(Taxa_PivotTable!I129),Taxa_PivotTable!I129,"") ->  | AF129: =IF(ISNUMBER(Taxa_PivotTable!J129),Taxa_PivotTable!J129,"") ->  | AJ129: =IF(ISNUMBER(Taxa_PivotTable!K129),Taxa_PivotTable!K129,"") -> 
A130: =Taxa_PivotTable!A130 ->  | B130: =IF(Taxa_PivotTable!B130="","",Taxa_PivotTable!B130) ->  | C130: =IF(ISNUMBER(VLOOKUP(B130,UKOptima!A:J,10,FALSE)),VLOOKUP(B130,UKOptima!A:J,10,FALSE),"") ->  | D130: =IF(ISNUMBER(Taxa_PivotTable!C130),Taxa_PivotTable!C130,"") ->  | H130: =IF(ISNUMBER(Taxa_PivotTable!D130),Taxa_PivotTable!D130,"") ->  | L130: =IF(ISNUMBER(Taxa_PivotTable!E130),Taxa_PivotTable!E130,"") ->  | P130: =IF(ISNUMBER(Taxa_PivotTable!F130),Taxa_PivotTable!F130,"") ->  | T130: =IF(ISNUMBER(Taxa_PivotTable!G130),Taxa_PivotTable!G130,"") ->  | X130: =IF(ISNUMBER(Taxa_PivotTable!H130),Taxa_PivotTable!H130,"") ->  | AB130: =IF(ISNUMBER(Taxa_PivotTable!I130),Taxa_PivotTable!I130,"") ->  | AF130: =IF(ISNUMBER(Taxa_PivotTable!J130),Taxa_PivotTable!J130,"") ->  | AJ130: =IF(ISNUMBER(Taxa_PivotTable!K130),Taxa_PivotTable!K130,"") -> 
A131: =Taxa_PivotTable!A131 ->  | B131: =IF(Taxa_PivotTable!B131="","",Taxa_PivotTable!B131) ->  | C131: =IF(ISNUMBER(VLOOKUP(B131,UKOptima!A:J,10,FALSE)),VLOOKUP(B131,UKOptima!A:J,10,FALSE),"") ->  | D131: =IF(ISNUMBER(Taxa_PivotTable!C131),Taxa_PivotTable!C131,"") ->  | H131: =IF(ISNUMBER(Taxa_PivotTable!D131),Taxa_PivotTable!D131,"") ->  | L131: =IF(ISNUMBER(Taxa_PivotTable!E131),Taxa_PivotTable!E131,"") ->  | P131: =IF(ISNUMBER(Taxa_PivotTable!F131),Taxa_PivotTable!F131,"") ->  | T131: =IF(ISNUMBER(Taxa_PivotTable!G131),Taxa_PivotTable!G131,"") ->  | X131: =IF(ISNUMBER(Taxa_PivotTable!H131),Taxa_PivotTable!H131,"") ->  | AB131: =IF(ISNUMBER(Taxa_PivotTable!I131),Taxa_PivotTable!I131,"") ->  | AF131: =IF(ISNUMBER(Taxa_PivotTable!J131),Taxa_PivotTable!J131,"") ->  | AJ131: =IF(ISNUMBER(Taxa_PivotTable!K131),Taxa_PivotTable!K131,"") -> 
A132: =Taxa_PivotTable!A132 ->  | B132: =IF(Taxa_PivotTable!B132="","",Taxa_PivotTable!B132) ->  | C132: =IF(ISNUMBER(VLOOKUP(B132,UKOptima!A:J,10,FALSE)),VLOOKUP(B132,UKOptima!A:J,10,FALSE),"") ->  | D132: =IF(ISNUMBER(Taxa_PivotTable!C132),Taxa_PivotTable!C132,"") ->  | H132: =IF(ISNUMBER(Taxa_PivotTable!D132),Taxa_PivotTable!D132,"") ->  | L132: =IF(ISNUMBER(Taxa_PivotTable!E132),Taxa_PivotTable!E132,"") ->  | P132: =IF(ISNUMBER(Taxa_PivotTable!F132),Taxa_PivotTable!F132,"") ->  | T132: =IF(ISNUMBER(Taxa_PivotTable!G132),Taxa_PivotTable!G132,"") ->  | X132: =IF(ISNUMBER(Taxa_PivotTable!H132),Taxa_PivotTable!H132,"") ->  | AB132: =IF(ISNUMBER(Taxa_PivotTable!I132),Taxa_PivotTable!I132,"") ->  | AF132: =IF(ISNUMBER(Taxa_PivotTable!J132),Taxa_PivotTable!J132,"") ->  | AJ132: =IF(ISNUMBER(Taxa_PivotTable!K132),Taxa_PivotTable!K132,"") -> 
A133: =Taxa_PivotTable!A133 ->  | B133: =IF(Taxa_PivotTable!B133="","",Taxa_PivotTable!B133) ->  | C133: =IF(ISNUMBER(VLOOKUP(B133,UKOptima!A:J,10,FALSE)),VLOOKUP(B133,UKOptima!A:J,10,FALSE),"") ->  | D133: =IF(ISNUMBER(Taxa_PivotTable!C133),Taxa_PivotTable!C133,"") ->  | H133: =IF(ISNUMBER(Taxa_PivotTable!D133),Taxa_PivotTable!D133,"") ->  | L133: =IF(ISNUMBER(Taxa_PivotTable!E133),Taxa_PivotTable!E133,"") ->  | P133: =IF(ISNUMBER(Taxa_PivotTable!F133),Taxa_PivotTable!F133,"") ->  | T133: =IF(ISNUMBER(Taxa_PivotTable!G133),Taxa_PivotTable!G133,"") ->  | X133: =IF(ISNUMBER(Taxa_PivotTable!H133),Taxa_PivotTable!H133,"") ->  | AB133: =IF(ISNUMBER(Taxa_PivotTable!I133),Taxa_PivotTable!I133,"") ->  | AF133: =IF(ISNUMBER(Taxa_PivotTable!J133),Taxa_PivotTable!J133,"") ->  | AJ133: =IF(ISNUMBER(Taxa_PivotTable!K133),Taxa_PivotTable!K133,"") -> 
A134: =Taxa_PivotTable!A134 ->  | B134: =IF(Taxa_PivotTable!B134="","",Taxa_PivotTable!B134) ->  | C134: =IF(ISNUMBER(VLOOKUP(B134,UKOptima!A:J,10,FALSE)),VLOOKUP(B134,UKOptima!A:J,10,FALSE),"") ->  | D134: =IF(ISNUMBER(Taxa_PivotTable!C134),Taxa_PivotTable!C134,"") ->  | H134: =IF(ISNUMBER(Taxa_PivotTable!D134),Taxa_PivotTable!D134,"") ->  | L134: =IF(ISNUMBER(Taxa_PivotTable!E134),Taxa_PivotTable!E134,"") ->  | P134: =IF(ISNUMBER(Taxa_PivotTable!F134),Taxa_PivotTable!F134,"") ->  | T134: =IF(ISNUMBER(Taxa_PivotTable!G134),Taxa_PivotTable!G134,"") ->  | X134: =IF(ISNUMBER(Taxa_PivotTable!H134),Taxa_PivotTable!H134,"") ->  | AB134: =IF(ISNUMBER(Taxa_PivotTable!I134),Taxa_PivotTable!I134,"") ->  | AF134: =IF(ISNUMBER(Taxa_PivotTable!J134),Taxa_PivotTable!J134,"") ->  | AJ134: =IF(ISNUMBER(Taxa_PivotTable!K134),Taxa_PivotTable!K134,"") -> 
A135: =Taxa_PivotTable!A135 ->  | B135: =IF(Taxa_PivotTable!B135="","",Taxa_PivotTable!B135) ->  | C135: =IF(ISNUMBER(VLOOKUP(B135,UKOptima!A:J,10,FALSE)),VLOOKUP(B135,UKOptima!A:J,10,FALSE),"") ->  | D135: =IF(ISNUMBER(Taxa_PivotTable!C135),Taxa_PivotTable!C135,"") ->  | H135: =IF(ISNUMBER(Taxa_PivotTable!D135),Taxa_PivotTable!D135,"") ->  | L135: =IF(ISNUMBER(Taxa_PivotTable!E135),Taxa_PivotTable!E135,"") ->  | P135: =IF(ISNUMBER(Taxa_PivotTable!F135),Taxa_PivotTable!F135,"") ->  | T135: =IF(ISNUMBER(Taxa_PivotTable!G135),Taxa_PivotTable!G135,"") ->  | X135: =IF(ISNUMBER(Taxa_PivotTable!H135),Taxa_PivotTable!H135,"") ->  | AB135: =IF(ISNUMBER(Taxa_PivotTable!I135),Taxa_PivotTable!I135,"") ->  | AF135: =IF(ISNUMBER(Taxa_PivotTable!J135),Taxa_PivotTable!J135,"") ->  | AJ135: =IF(ISNUMBER(Taxa_PivotTable!K135),Taxa_PivotTable!K135,"") -> 
A136: =Taxa_PivotTable!A136 ->  | B136: =IF(Taxa_PivotTable!B136="","",Taxa_PivotTable!B136) ->  | C136: =IF(ISNUMBER(VLOOKUP(B136,UKOptima!A:J,10,FALSE)),VLOOKUP(B136,UKOptima!A:J,10,FALSE),"") ->  | D136: =IF(ISNUMBER(Taxa_PivotTable!C136),Taxa_PivotTable!C136,"") ->  | H136: =IF(ISNUMBER(Taxa_PivotTable!D136),Taxa_PivotTable!D136,"") ->  | L136: =IF(ISNUMBER(Taxa_PivotTable!E136),Taxa_PivotTable!E136,"") ->  | P136: =IF(ISNUMBER(Taxa_PivotTable!F136),Taxa_PivotTable!F136,"") ->  | T136: =IF(ISNUMBER(Taxa_PivotTable!G136),Taxa_PivotTable!G136,"") ->  | X136: =IF(ISNUMBER(Taxa_PivotTable!H136),Taxa_PivotTable!H136,"") ->  | AB136: =IF(ISNUMBER(Taxa_PivotTable!I136),Taxa_PivotTable!I136,"") ->  | AF136: =IF(ISNUMBER(Taxa_PivotTable!J136),Taxa_PivotTable!J136,"") ->  | AJ136: =IF(ISNUMBER(Taxa_PivotTable!K136),Taxa_PivotTable!K136,"") -> 
A137: =Taxa_PivotTable!A137 ->  | B137: =IF(Taxa_PivotTable!B137="","",Taxa_PivotTable!B137) ->  | C137: =IF(ISNUMBER(VLOOKUP(B137,UKOptima!A:J,10,FALSE)),VLOOKUP(B137,UKOptima!A:J,10,FALSE),"") ->  | D137: =IF(ISNUMBER(Taxa_PivotTable!C137),Taxa_PivotTable!C137,"") ->  | H137: =IF(ISNUMBER(Taxa_PivotTable!D137),Taxa_PivotTable!D137,"") ->  | L137: =IF(ISNUMBER(Taxa_PivotTable!E137),Taxa_PivotTable!E137,"") ->  | P137: =IF(ISNUMBER(Taxa_PivotTable!F137),Taxa_PivotTable!F137,"") ->  | T137: =IF(ISNUMBER(Taxa_PivotTable!G137),Taxa_PivotTable!G137,"") ->  | X137: =IF(ISNUMBER(Taxa_PivotTable!H137),Taxa_PivotTable!H137,"") ->  | AB137: =IF(ISNUMBER(Taxa_PivotTable!I137),Taxa_PivotTable!I137,"") ->  | AF137: =IF(ISNUMBER(Taxa_PivotTable!J137),Taxa_PivotTable!J137,"") ->  | AJ137: =IF(ISNUMBER(Taxa_PivotTable!K137),Taxa_PivotTable!K137,"") -> 
A138: =Taxa_PivotTable!A138 ->  | B138: =IF(Taxa_PivotTable!B138="","",Taxa_PivotTable!B138) ->  | C138: =IF(ISNUMBER(VLOOKUP(B138,UKOptima!A:J,10,FALSE)),VLOOKUP(B138,UKOptima!A:J,10,FALSE),"") ->  | D138: =IF(ISNUMBER(Taxa_PivotTable!C138),Taxa_PivotTable!C138,"") ->  | H138: =IF(ISNUMBER(Taxa_PivotTable!D138),Taxa_PivotTable!D138,"") ->  | L138: =IF(ISNUMBER(Taxa_PivotTable!E138),Taxa_PivotTable!E138,"") ->  | P138: =IF(ISNUMBER(Taxa_PivotTable!F138),Taxa_PivotTable!F138,"") ->  | T138: =IF(ISNUMBER(Taxa_PivotTable!G138),Taxa_PivotTable!G138,"") ->  | X138: =IF(ISNUMBER(Taxa_PivotTable!H138),Taxa_PivotTable!H138,"") ->  | AB138: =IF(ISNUMBER(Taxa_PivotTable!I138),Taxa_PivotTable!I138,"") ->  | AF138: =IF(ISNUMBER(Taxa_PivotTable!J138),Taxa_PivotTable!J138,"") ->  | AJ138: =IF(ISNUMBER(Taxa_PivotTable!K138),Taxa_PivotTable!K138,"") -> 
A139: =Taxa_PivotTable!A139 ->  | B139: =IF(Taxa_PivotTable!B139="","",Taxa_PivotTable!B139) ->  | C139: =IF(ISNUMBER(VLOOKUP(B139,UKOptima!A:J,10,FALSE)),VLOOKUP(B139,UKOptima!A:J,10,FALSE),"") ->  | D139: =IF(ISNUMBER(Taxa_PivotTable!C139),Taxa_PivotTable!C139,"") ->  | H139: =IF(ISNUMBER(Taxa_PivotTable!D139),Taxa_PivotTable!D139,"") ->  | L139: =IF(ISNUMBER(Taxa_PivotTable!E139),Taxa_PivotTable!E139,"") ->  | P139: =IF(ISNUMBER(Taxa_PivotTable!F139),Taxa_PivotTable!F139,"") ->  | T139: =IF(ISNUMBER(Taxa_PivotTable!G139),Taxa_PivotTable!G139,"") ->  | X139: =IF(ISNUMBER(Taxa_PivotTable!H139),Taxa_PivotTable!H139,"") ->  | AB139: =IF(ISNUMBER(Taxa_PivotTable!I139),Taxa_PivotTable!I139,"") ->  | AF139: =IF(ISNUMBER(Taxa_PivotTable!J139),Taxa_PivotTable!J139,"") ->  | AJ139: =IF(ISNUMBER(Taxa_PivotTable!K139),Taxa_PivotTable!K139,"") -> 
A140: =Taxa_PivotTable!A140 ->  | B140: =IF(Taxa_PivotTable!B140="","",Taxa_PivotTable!B140) ->  | C140: =IF(ISNUMBER(VLOOKUP(B140,UKOptima!A:J,10,FALSE)),VLOOKUP(B140,UKOptima!A:J,10,FALSE),"") ->  | D140: =IF(ISNUMBER(Taxa_PivotTable!C140),Taxa_PivotTable!C140,"") ->  | H140: =IF(ISNUMBER(Taxa_PivotTable!D140),Taxa_PivotTable!D140,"") ->  | L140: =IF(ISNUMBER(Taxa_PivotTable!E140),Taxa_PivotTable!E140,"") ->  | P140: =IF(ISNUMBER(Taxa_PivotTable!F140),Taxa_PivotTable!F140,"") ->  | T140: =IF(ISNUMBER(Taxa_PivotTable!G140),Taxa_PivotTable!G140,"") ->  | X140: =IF(ISNUMBER(Taxa_PivotTable!H140),Taxa_PivotTable!H140,"") ->  | AB140: =IF(ISNUMBER(Taxa_PivotTable!I140),Taxa_PivotTable!I140,"") ->  | AF140: =IF(ISNUMBER(Taxa_PivotTable!J140),Taxa_PivotTable!J140,"") ->  | AJ140: =IF(ISNUMBER(Taxa_PivotTable!K140),Taxa_PivotTable!K140,"") -> 
A141: =Taxa_PivotTable!A141 ->  | B141: =IF(Taxa_PivotTable!B141="","",Taxa_PivotTable!B141) ->  | C141: =IF(ISNUMBER(VLOOKUP(B141,UKOptima!A:J,10,FALSE)),VLOOKUP(B141,UKOptima!A:J,10,FALSE),"") ->  | D141: =IF(ISNUMBER(Taxa_PivotTable!C141),Taxa_PivotTable!C141,"") ->  | H141: =IF(ISNUMBER(Taxa_PivotTable!D141),Taxa_PivotTable!D141,"") ->  | I141: =IF(ISNUMBER(H141),LOG(ROUND(H141,6)),"") ->  | K141: =IF(AND(ISNUMBER(H141),LEFT($B141,2)="01"),H141/10^6,"") ->  | L141: =IF(ISNUMBER(Taxa_PivotTable!E141),Taxa_PivotTable!E141,"") ->  | M141: =IF(ISNUMBER(L141),LOG(ROUND(L141,6)),"") ->  | O141: =IF(AND(ISNUMBER(L141),LEFT($B141,2)="01"),L141/10^6,"") ->  | P141: =IF(ISNUMBER(Taxa_PivotTable!F141),Taxa_PivotTable!F141,"") ->  | T141: =IF(ISNUMBER(Taxa_PivotTable!G141),Taxa_PivotTable!G141,"") ->  | X141: =IF(ISNUMBER(Taxa_PivotTable!H141),Taxa_PivotTable!H141,"") ->  | AB141: =IF(ISNUMBER(Taxa_PivotTable!I141),Taxa_PivotTable!I141,"") ->  | AF141: =IF(ISNUMBER(Taxa_PivotTable!J141),Taxa_PivotTable!J141,"") ->  | AJ141: =IF(ISNUMBER(Taxa_PivotTable!K141),Taxa_PivotTable!K141,"") -> 
A142: =Taxa_PivotTable!A142 ->  | B142: =IF(Taxa_PivotTable!B142="","",Taxa_PivotTable!B142) ->  | C142: =IF(ISNUMBER(VLOOKUP(B142,UKOptima!A:J,10,FALSE)),VLOOKUP(B142,UKOptima!A:J,10,FALSE),"") ->  | D142: =IF(ISNUMBER(Taxa_PivotTable!C142),Taxa_PivotTable!C142,"") ->  | H142: =IF(ISNUMBER(Taxa_PivotTable!D142),Taxa_PivotTable!D142,"") ->  | L142: =IF(ISNUMBER(Taxa_PivotTable!E142),Taxa_PivotTable!E142,"") ->  | P142: =IF(ISNUMBER(Taxa_PivotTable!F142),Taxa_PivotTable!F142,"") ->  | T142: =IF(ISNUMBER(Taxa_PivotTable!G142),Taxa_PivotTable!G142,"") ->  | X142: =IF(ISNUMBER(Taxa_PivotTable!H142),Taxa_PivotTable!H142,"") ->  | AB142: =IF(ISNUMBER(Taxa_PivotTable!I142),Taxa_PivotTable!I142,"") ->  | AF142: =IF(ISNUMBER(Taxa_PivotTable!J142),Taxa_PivotTable!J142,"") ->  | AJ142: =IF(ISNUMBER(Taxa_PivotTable!K142),Taxa_PivotTable!K142,"") -> 
A143: =Taxa_PivotTable!A143 ->  | B143: =IF(Taxa_PivotTable!B143="","",Taxa_PivotTable!B143) ->  | C143: =IF(ISNUMBER(VLOOKUP(B143,UKOptima!A:J,10,FALSE)),VLOOKUP(B143,UKOptima!A:J,10,FALSE),"") ->  | D143: =IF(ISNUMBER(Taxa_PivotTable!C143),Taxa_PivotTable!C143,"") ->  | H143: =IF(ISNUMBER(Taxa_PivotTable!D143),Taxa_PivotTable!D143,"") ->  | L143: =IF(ISNUMBER(Taxa_PivotTable!E143),Taxa_PivotTable!E143,"") ->  | P143: =IF(ISNUMBER(Taxa_PivotTable!F143),Taxa_PivotTable!F143,"") ->  | T143: =IF(ISNUMBER(Taxa_PivotTable!G143),Taxa_PivotTable!G143,"") ->  | X143: =IF(ISNUMBER(Taxa_PivotTable!H143),Taxa_PivotTable!H143,"") ->  | AB143: =IF(ISNUMBER(Taxa_PivotTable!I143),Taxa_PivotTable!I143,"") ->  | AF143: =IF(ISNUMBER(Taxa_PivotTable!J143),Taxa_PivotTable!J143,"") ->  | AJ143: =IF(ISNUMBER(Taxa_PivotTable!K143),Taxa_PivotTable!K143,"") -> 
A144: =Taxa_PivotTable!A144 ->  | B144: =IF(Taxa_PivotTable!B144="","",Taxa_PivotTable!B144) ->  | C144: =IF(ISNUMBER(VLOOKUP(B144,UKOptima!A:J,10,FALSE)),VLOOKUP(B144,UKOptima!A:J,10,FALSE),"") ->  | D144: =IF(ISNUMBER(Taxa_PivotTable!C144),Taxa_PivotTable!C144,"") ->  | H144: =IF(ISNUMBER(Taxa_PivotTable!D144),Taxa_PivotTable!D144,"") ->  | L144: =IF(ISNUMBER(Taxa_PivotTable!E144),Taxa_PivotTable!E144,"") ->  | P144: =IF(ISNUMBER(Taxa_PivotTable!F144),Taxa_PivotTable!F144,"") ->  | T144: =IF(ISNUMBER(Taxa_PivotTable!G144),Taxa_PivotTable!G144,"") ->  | X144: =IF(ISNUMBER(Taxa_PivotTable!H144),Taxa_PivotTable!H144,"") ->  | AB144: =IF(ISNUMBER(Taxa_PivotTable!I145),Taxa_PivotTable!I145,"") ->  | AF144: =IF(ISNUMBER(Taxa_PivotTable!J145),Taxa_PivotTable!J145,"") ->  | AJ144: =IF(ISNUMBER(Taxa_PivotTable!K145),Taxa_PivotTable!K145,"") -> 
A145: =Taxa_PivotTable!A145 ->  | B145: =IF(Taxa_PivotTable!B145="","",Taxa_PivotTable!B145) ->  | C145: =IF(ISNUMBER(VLOOKUP(B145,UKOptima!A:J,10,FALSE)),VLOOKUP(B145,UKOptima!A:J,10,FALSE),"") ->  | D145: =IF(ISNUMBER(Taxa_PivotTable!C145),Taxa_PivotTable!C145,"") ->  | E145: =IF(ISNUMBER(D145),LOG(ROUND(D145,6)),"") ->  | G145: =IF(AND(ISNUMBER(D145),LEFT($B145,2)="01"),D145/10^6,"") ->  | H145: =IF(ISNUMBER(Taxa_PivotTable!D145),Taxa_PivotTable!D145,"") ->  | L145: =IF(ISNUMBER(Taxa_PivotTable!E145),Taxa_PivotTable!E145,"") ->  | P145: =IF(ISNUMBER(Taxa_PivotTable!F145),Taxa_PivotTable!F145,"") ->  | Q145: =IF(ISNUMBER(P145),LOG(ROUND(P145,6)),"") ->  | S145: =IF(AND(ISNUMBER(P145),LEFT($B145,2)="01"),P145/10^6,"") ->  | T145: =IF(ISNUMBER(Taxa_PivotTable!G145),Taxa_PivotTable!G145,"") ->  | U145: =IF(ISNUMBER(T145),LOG(ROUND(T145,6)),"") ->  | W145: =IF(AND(ISNUMBER(T145),LEFT($B145,2)="01"),T145/10^6,"") ->  | X145: =IF(ISNUMBER(Taxa_PivotTable!H145),Taxa_PivotTable!H145,"") ->  | AA145: =IF(AND(ISNUMBER(X145),LEFT($B145,2)="01"),X145/10^6,"") ->  | AB145: =IF(ISNUMBER(Taxa_PivotTable!#REF!),Taxa_PivotTable!#REF!,"") ->  | AE145: =IF(AND(ISNUMBER(AB145),LEFT($B145,2)="01"),AB145/10^6,"") ->  | AF145: =IF(ISNUMBER(Taxa_PivotTable!#REF!),Taxa_PivotTable!#REF!,"") ->  | AI145: =IF(AND(ISNUMBER(AF145),LEFT($B145,2)="01"),AF145/10^6,"") ->  | AJ145: =IF(ISNUMBER(Taxa_PivotTable!#REF!),Taxa_PivotTable!#REF!,"") ->  | AM145: =IF(AND(ISNUMBER(AJ145),LEFT($B145,2)="01"),AJ145/10^6,"") -> 
A146: =Taxa_PivotTable!A146 ->  | B146: =IF(Taxa_PivotTable!B146="","",Taxa_PivotTable!B146) ->  | C146: =IF(ISNUMBER(VLOOKUP(B146,UKOptima!A:J,10,FALSE)),VLOOKUP(B146,UKOptima!A:J,10,FALSE),"") ->  | D146: =IF(ISNUMBER(Taxa_PivotTable!C146),Taxa_PivotTable!C146,"") ->  | H146: =IF(ISNUMBER(Taxa_PivotTable!D146),Taxa_PivotTable!D146,"") ->  | L146: =IF(ISNUMBER(Taxa_PivotTable!E146),Taxa_PivotTable!E146,"") ->  | P146: =IF(ISNUMBER(Taxa_PivotTable!F146),Taxa_PivotTable!F146,"") ->  | T146: =IF(ISNUMBER(Taxa_PivotTable!G146),Taxa_PivotTable!G146,"") ->  | X146: =IF(ISNUMBER(Taxa_PivotTable!H146),Taxa_PivotTable!H146,"") ->  | AB146: =IF(ISNUMBER(Taxa_PivotTable!I146),Taxa_PivotTable!I146,"") ->  | AF146: =IF(ISNUMBER(Taxa_PivotTable!J146),Taxa_PivotTable!J146,"") ->  | AJ146: =IF(ISNUMBER(Taxa_PivotTable!K146),Taxa_PivotTable!K146,"") -> 
A147: =Taxa_PivotTable!A147 ->  | B147: =IF(Taxa_PivotTable!B147="","",Taxa_PivotTable!B147) ->  | C147: =IF(ISNUMBER(VLOOKUP(B147,UKOptima!A:J,10,FALSE)),VLOOKUP(B147,UKOptima!A:J,10,FALSE),"") ->  | D147: =IF(ISNUMBER(Taxa_PivotTable!C147),Taxa_PivotTable!C147,"") ->  | H147: =IF(ISNUMBER(Taxa_PivotTable!D147),Taxa_PivotTable!D147,"") ->  | L147: =IF(ISNUMBER(Taxa_PivotTable!E147),Taxa_PivotTable!E147,"") ->  | P147: =IF(ISNUMBER(Taxa_PivotTable!F147),Taxa_PivotTable!F147,"") ->  | T147: =IF(ISNUMBER(Taxa_PivotTable!G147),Taxa_PivotTable!G147,"") ->  | X147: =IF(ISNUMBER(Taxa_PivotTable!H147),Taxa_PivotTable!H147,"") ->  | AB147: =IF(ISNUMBER(Taxa_PivotTable!I147),Taxa_PivotTable!I147,"") ->  | AF147: =IF(ISNUMBER(Taxa_PivotTable!J147),Taxa_PivotTable!J147,"") ->  | AJ147: =IF(ISNUMBER(Taxa_PivotTable!K147),Taxa_PivotTable!K147,"") -> 
A148: =Taxa_PivotTable!A148 ->  | B148: =IF(Taxa_PivotTable!B148="","",Taxa_PivotTable!B148) ->  | C148: =IF(ISNUMBER(VLOOKUP(B148,UKOptima!A:J,10,FALSE)),VLOOKUP(B148,UKOptima!A:J,10,FALSE),"") ->  | D148: =IF(ISNUMBER(Taxa_PivotTable!C148),Taxa_PivotTable!C148,"") ->  | H148: =IF(ISNUMBER(Taxa_PivotTable!D148),Taxa_PivotTable!D148,"") ->  | L148: =IF(ISNUMBER(Taxa_PivotTable!E148),Taxa_PivotTable!E148,"") ->  | P148: =IF(ISNUMBER(Taxa_PivotTable!F148),Taxa_PivotTable!F148,"") ->  | T148: =IF(ISNUMBER(Taxa_PivotTable!G148),Taxa_PivotTable!G148,"") ->  | X148: =IF(ISNUMBER(Taxa_PivotTable!H148),Taxa_PivotTable!H148,"") ->  | AB148: =IF(ISNUMBER(Taxa_PivotTable!I148),Taxa_PivotTable!I148,"") ->  | AF148: =IF(ISNUMBER(Taxa_PivotTable!J148),Taxa_PivotTable!J148,"") ->  | AJ148: =IF(ISNUMBER(Taxa_PivotTable!K148),Taxa_PivotTable!K148,"") -> 
A149: =Taxa_PivotTable!A149 ->  | B149: =IF(Taxa_PivotTable!B149="","",Taxa_PivotTable!B149) ->  | C149: =IF(ISNUMBER(VLOOKUP(B149,UKOptima!A:J,10,FALSE)),VLOOKUP(B149,UKOptima!A:J,10,FALSE),"") ->  | D149: =IF(ISNUMBER(Taxa_PivotTable!C149),Taxa_PivotTable!C149,"") ->  | H149: =IF(ISNUMBER(Taxa_PivotTable!D149),Taxa_PivotTable!D149,"") ->  | L149: =IF(ISNUMBER(Taxa_PivotTable!E149),Taxa_PivotTable!E149,"") ->  | P149: =IF(ISNUMBER(Taxa_PivotTable!F149),Taxa_PivotTable!F149,"") ->  | T149: =IF(ISNUMBER(Taxa_PivotTable!G149),Taxa_PivotTable!G149,"") ->  | X149: =IF(ISNUMBER(Taxa_PivotTable!H149),Taxa_PivotTable!H149,"") ->  | Z149: =IF(COUNT(Y149,$C149)=2,(Y149)*$C149,"") ->  | AB149: =IF(ISNUMBER(Taxa_PivotTable!I149),Taxa_PivotTable!I149,"") ->  | AD149: =IF(COUNT(AC149,$C149)=2,(AC149)*$C149,"") ->  | AF149: =IF(ISNUMBER(Taxa_PivotTable!J149),Taxa_PivotTable!J149,"") ->  | AH149: =IF(COUNT(AG149,$C149)=2,(AG149)*$C149,"") ->  | AJ149: =IF(ISNUMBER(Taxa_PivotTable!K149),Taxa_PivotTable!K149,"") ->  | AL149: =IF(COUNT(AK149,$C149)=2,(AK149)*$C149,"") -> 
A150: =Taxa_PivotTable!A150 ->  | B150: =IF(Taxa_PivotTable!B150="","",Taxa_PivotTable!B150) ->  | C150: =IF(ISNUMBER(VLOOKUP(B150,UKOptima!A:J,10,FALSE)),VLOOKUP(B150,UKOptima!A:J,10,FALSE),"") ->  | D150: =IF(ISNUMBER(Taxa_PivotTable!C150),Taxa_PivotTable!C150,"") ->  | H150: =IF(ISNUMBER(Taxa_PivotTable!D150),Taxa_PivotTable!D150,"") ->  | L150: =IF(ISNUMBER(Taxa_PivotTable!E150),Taxa_PivotTable!E150,"") ->  | P150: =IF(ISNUMBER(Taxa_PivotTable!F150),Taxa_PivotTable!F150,"") ->  | T150: =IF(ISNUMBER(Taxa_PivotTable!G150),Taxa_PivotTable!G150,"") ->  | X150: =IF(ISNUMBER(Taxa_PivotTable!H150),Taxa_PivotTable!H150,"") ->  | Y150: =IF(ISNUMBER(X150),LOG(ROUND(X150,6)),"") ->  | AB150: =IF(ISNUMBER(Taxa_PivotTable!I150),Taxa_PivotTable!I150,"") ->  | AC150: =IF(ISNUMBER(AB150),LOG(ROUND(AB150,6)),"") ->  | AF150: =IF(ISNUMBER(Taxa_PivotTable!J150),Taxa_PivotTable!J150,"") ->  | AG150: =IF(ISNUMBER(AF150),LOG(ROUND(AF150,6)),"") ->  | AJ150: =IF(ISNUMBER(Taxa_PivotTable!K150),Taxa_PivotTable!K150,"") ->  | AK150: =IF(ISNUMBER(AJ150),LOG(ROUND(AJ150,6)),"") -> 
A151: =Taxa_PivotTable!A151 ->  | B151: =IF(Taxa_PivotTable!B151="","",Taxa_PivotTable!B151) ->  | C151: =IF(ISNUMBER(VLOOKUP(B151,UKOptima!A:J,10,FALSE)),VLOOKUP(B151,UKOptima!A:J,10,FALSE),"") ->  | D151: =IF(ISNUMBER(Taxa_PivotTable!C151),Taxa_PivotTable!C151,"") ->  | E151: =IF(ISNUMBER(D151),LOG(ROUND(D151,6)),"") ->  | G151: =IF(AND(ISNUMBER(D151),LEFT($B151,2)="01"),D151/10^6,"") ->  | H151: =IF(ISNUMBER(Taxa_PivotTable!D151),Taxa_PivotTable!D151,"") ->  | I151: =IF(ISNUMBER(H151),LOG(ROUND(H151,6)),"") ->  | K151: =IF(AND(ISNUMBER(H151),LEFT($B151,2)="01"),H151/10^6,"") ->  | L151: =IF(ISNUMBER(Taxa_PivotTable!E151),Taxa_PivotTable!E151,"") ->  | M151: =IF(ISNUMBER(L151),LOG(ROUND(L151,6)),"") ->  | O151: =IF(AND(ISNUMBER(L151),LEFT($B151,2)="01"),L151/10^6,"") ->  | P151: =IF(ISNUMBER(Taxa_PivotTable!F151),Taxa_PivotTable!F151,"") ->  | Q151: =IF(ISNUMBER(P151),LOG(ROUND(P151,6)),"") ->  | S151: =IF(AND(ISNUMBER(P151),LEFT($B151,2)="01"),P151/10^6,"") ->  | T151: =IF(ISNUMBER(Taxa_PivotTable!G151),Taxa_PivotTable!G151,"") ->  | U151: =IF(ISNUMBER(T151),LOG(ROUND(T151,6)),"") ->  | W151: =IF(AND(ISNUMBER(T151),LEFT($B151,2)="01"),T151/10^6,"") ->  | X151: =IF(ISNUMBER(Taxa_PivotTable!H151),Taxa_PivotTable!H151,"") ->  | AA151: =IF(AND(ISNUMBER(X151),LEFT($B151,2)="01"),X151/10^6,"") ->  | AB151: =IF(ISNUMBER(Taxa_PivotTable!I151),Taxa_PivotTable!I151,"") ->  | AE151: =IF(AND(ISNUMBER(AB151),LEFT($B151,2)="01"),AB151/10^6,"") ->  | AF151: =IF(ISNUMBER(Taxa_PivotTable!J151),Taxa_PivotTable!J151,"") ->  | AI151: =IF(AND(ISNUMBER(AF151),LEFT($B151,2)="01"),AF151/10^6,"") ->  | AJ151: =IF(ISNUMBER(Taxa_PivotTable!K151),Taxa_PivotTable!K151,"") ->  | AM151: =IF(AND(ISNUMBER(AJ151),LEFT($B151,2)="01"),AJ151/10^6,"") -> 
A152: =Taxa_PivotTable!A152 ->  | B152: =IF(Taxa_PivotTable!B152="","",Taxa_PivotTable!B152) ->  | C152: =IF(ISNUMBER(VLOOKUP(B152,UKOptima!A:J,10,FALSE)),VLOOKUP(B152,UKOptima!A:J,10,FALSE),"") ->  | D152: =IF(ISNUMBER(Taxa_PivotTable!C152),Taxa_PivotTable!C152,"") ->  | H152: =IF(ISNUMBER(Taxa_PivotTable!D152),Taxa_PivotTable!D152,"") ->  | L152: =IF(ISNUMBER(Taxa_PivotTable!E152),Taxa_PivotTable!E152,"") ->  | P152: =IF(ISNUMBER(Taxa_PivotTable!F152),Taxa_PivotTable!F152,"") ->  | T152: =IF(ISNUMBER(Taxa_PivotTable!G152),Taxa_PivotTable!G152,"") ->  | X152: =IF(ISNUMBER(Taxa_PivotTable!H152),Taxa_PivotTable!H152,"") ->  | AB152: =IF(ISNUMBER(Taxa_PivotTable!I152),Taxa_PivotTable!I152,"") ->  | AF152: =IF(ISNUMBER(Taxa_PivotTable!J152),Taxa_PivotTable!J152,"") ->  | AJ152: =IF(ISNUMBER(Taxa_PivotTable!K152),Taxa_PivotTable!K152,"") -> 
A153: =Taxa_PivotTable!A153 ->  | B153: =IF(Taxa_PivotTable!B153="","",Taxa_PivotTable!B153) ->  | C153: =IF(ISNUMBER(VLOOKUP(B153,UKOptima!A:J,10,FALSE)),VLOOKUP(B153,UKOptima!A:J,10,FALSE),"") ->  | D153: =IF(ISNUMBER(Taxa_PivotTable!C153),Taxa_PivotTable!C153,"") ->  | H153: =IF(ISNUMBER(Taxa_PivotTable!D153),Taxa_PivotTable!D153,"") ->  | L153: =IF(ISNUMBER(Taxa_PivotTable!E153),Taxa_PivotTable!E153,"") ->  | P153: =IF(ISNUMBER(Taxa_PivotTable!F153),Taxa_PivotTable!F153,"") ->  | T153: =IF(ISNUMBER(Taxa_PivotTable!G153),Taxa_PivotTable!G153,"") ->  | X153: =IF(ISNUMBER(Taxa_PivotTable!H153),Taxa_PivotTable!H153,"") ->  | AB153: =IF(ISNUMBER(Taxa_PivotTable!I153),Taxa_PivotTable!I153,"") ->  | AF153: =IF(ISNUMBER(Taxa_PivotTable!J153),Taxa_PivotTable!J153,"") ->  | AJ153: =IF(ISNUMBER(Taxa_PivotTable!K153),Taxa_PivotTable!K153,"") -> 
A154: =Taxa_PivotTable!A154 ->  | B154: =IF(Taxa_PivotTable!B154="","",Taxa_PivotTable!B154) ->  | C154: =IF(ISNUMBER(VLOOKUP(B154,UKOptima!A:J,10,FALSE)),VLOOKUP(B154,UKOptima!A:J,10,FALSE),"") ->  | D154: =IF(ISNUMBER(Taxa_PivotTable!C154),Taxa_PivotTable!C154,"") ->  | H154: =IF(ISNUMBER(Taxa_PivotTable!D154),Taxa_PivotTable!D154,"") ->  | L154: =IF(ISNUMBER(Taxa_PivotTable!E154),Taxa_PivotTable!E154,"") ->  | P154: =IF(ISNUMBER(Taxa_PivotTable!F154),Taxa_PivotTable!F154,"") ->  | T154: =IF(ISNUMBER(Taxa_PivotTable!G154),Taxa_PivotTable!G154,"") ->  | X154: =IF(ISNUMBER(Taxa_PivotTable!H154),Taxa_PivotTable!H154,"") ->  | AB154: =IF(ISNUMBER(Taxa_PivotTable!I154),Taxa_PivotTable!I154,"") ->  | AF154: =IF(ISNUMBER(Taxa_PivotTable!J154),Taxa_PivotTable!J154,"") ->  | AJ154: =IF(ISNUMBER(Taxa_PivotTable!K154),Taxa_PivotTable!K154,"") -> 
A155: =Taxa_PivotTable!A155 ->  | B155: =IF(Taxa_PivotTable!B155="","",Taxa_PivotTable!B155) ->  | C155: =IF(ISNUMBER(VLOOKUP(B155,UKOptima!A:J,10,FALSE)),VLOOKUP(B155,UKOptima!A:J,10,FALSE),"") ->  | D155: =IF(ISNUMBER(Taxa_PivotTable!C155),Taxa_PivotTable!C155,"") ->  | H155: =IF(ISNUMBER(Taxa_PivotTable!D155),Taxa_PivotTable!D155,"") ->  | L155: =IF(ISNUMBER(Taxa_PivotTable!E155),Taxa_PivotTable!E155,"") ->  | P155: =IF(ISNUMBER(Taxa_PivotTable!F155),Taxa_PivotTable!F155,"") ->  | T155: =IF(ISNUMBER(Taxa_PivotTable!G155),Taxa_PivotTable!G155,"") ->  | X155: =IF(ISNUMBER(Taxa_PivotTable!H155),Taxa_PivotTable!H155,"") ->  | AB155: =IF(ISNUMBER(Taxa_PivotTable!I155),Taxa_PivotTable!I155,"") ->  | AF155: =IF(ISNUMBER(Taxa_PivotTable!J155),Taxa_PivotTable!J155,"") ->  | AJ155: =IF(ISNUMBER(Taxa_PivotTable!K155),Taxa_PivotTable!K155,"") -> 
A156: =Taxa_PivotTable!A156 ->  | B156: =IF(Taxa_PivotTable!B156="","",Taxa_PivotTable!B156) ->  | C156: =IF(ISNUMBER(VLOOKUP(B156,UKOptima!A:J,10,FALSE)),VLOOKUP(B156,UKOptima!A:J,10,FALSE),"") ->  | D156: =IF(ISNUMBER(Taxa_PivotTable!C156),Taxa_PivotTable!C156,"") ->  | H156: =IF(ISNUMBER(Taxa_PivotTable!D156),Taxa_PivotTable!D156,"") ->  | L156: =IF(ISNUMBER(Taxa_PivotTable!E156),Taxa_PivotTable!E156,"") ->  | P156: =IF(ISNUMBER(Taxa_PivotTable!F156),Taxa_PivotTable!F156,"") ->  | T156: =IF(ISNUMBER(Taxa_PivotTable!G156),Taxa_PivotTable!G156,"") ->  | X156: =IF(ISNUMBER(Taxa_PivotTable!H156),Taxa_PivotTable!H156,"") ->  | AB156: =IF(ISNUMBER(Taxa_PivotTable!I156),Taxa_PivotTable!I156,"") ->  | AF156: =IF(ISNUMBER(Taxa_PivotTable!J156),Taxa_PivotTable!J156,"") ->  | AJ156: =IF(ISNUMBER(Taxa_PivotTable!K156),Taxa_PivotTable!K156,"") -> 
A157: =Taxa_PivotTable!A157 ->  | B157: =IF(Taxa_PivotTable!B157="","",Taxa_PivotTable!B157) ->  | C157: =IF(ISNUMBER(VLOOKUP(B157,UKOptima!A:J,10,FALSE)),VLOOKUP(B157,UKOptima!A:J,10,FALSE),"") ->  | D157: =IF(ISNUMBER(Taxa_PivotTable!C157),Taxa_PivotTable!C157,"") ->  | H157: =IF(ISNUMBER(Taxa_PivotTable!D157),Taxa_PivotTable!D157,"") ->  | L157: =IF(ISNUMBER(Taxa_PivotTable!E157),Taxa_PivotTable!E157,"") ->  | P157: =IF(ISNUMBER(Taxa_PivotTable!F157),Taxa_PivotTable!F157,"") ->  | T157: =IF(ISNUMBER(Taxa_PivotTable!G157),Taxa_PivotTable!G157,"") ->  | X157: =IF(ISNUMBER(Taxa_PivotTable!H157),Taxa_PivotTable!H157,"") ->  | AB157: =IF(ISNUMBER(Taxa_PivotTable!I157),Taxa_PivotTable!I157,"") ->  | AF157: =IF(ISNUMBER(Taxa_PivotTable!J157),Taxa_PivotTable!J157,"") ->  | AJ157: =IF(ISNUMBER(Taxa_PivotTable!K157),Taxa_PivotTable!K157,"") -> 
A158: =Taxa_PivotTable!A158 ->  | B158: =IF(Taxa_PivotTable!B158="","",Taxa_PivotTable!B158) ->  | C158: =IF(ISNUMBER(VLOOKUP(B158,UKOptima!A:J,10,FALSE)),VLOOKUP(B158,UKOptima!A:J,10,FALSE),"") ->  | D158: =IF(ISNUMBER(Taxa_PivotTable!C158),Taxa_PivotTable!C158,"") ->  | H158: =IF(ISNUMBER(Taxa_PivotTable!D158),Taxa_PivotTable!D158,"") ->  | L158: =IF(ISNUMBER(Taxa_PivotTable!E158),Taxa_PivotTable!E158,"") ->  | P158: =IF(ISNUMBER(Taxa_PivotTable!F158),Taxa_PivotTable!F158,"") ->  | T158: =IF(ISNUMBER(Taxa_PivotTable!G158),Taxa_PivotTable!G158,"") ->  | X158: =IF(ISNUMBER(Taxa_PivotTable!H158),Taxa_PivotTable!H158,"") ->  | AB158: =IF(ISNUMBER(Taxa_PivotTable!I158),Taxa_PivotTable!I158,"") ->  | AF158: =IF(ISNUMBER(Taxa_PivotTable!J158),Taxa_PivotTable!J158,"") ->  | AJ158: =IF(ISNUMBER(Taxa_PivotTable!K158),Taxa_PivotTable!K158,"") -> 
A159: =Taxa_PivotTable!A159 ->  | B159: =IF(Taxa_PivotTable!B159="","",Taxa_PivotTable!B159) ->  | C159: =IF(ISNUMBER(VLOOKUP(B159,UKOptima!A:J,10,FALSE)),VLOOKUP(B159,UKOptima!A:J,10,FALSE),"") ->  | D159: =IF(ISNUMBER(Taxa_PivotTable!C159),Taxa_PivotTable!C159,"") ->  | H159: =IF(ISNUMBER(Taxa_PivotTable!D159),Taxa_PivotTable!D159,"") ->  | L159: =IF(ISNUMBER(Taxa_PivotTable!E159),Taxa_PivotTable!E159,"") ->  | P159: =IF(ISNUMBER(Taxa_PivotTable!F159),Taxa_PivotTable!F159,"") ->  | T159: =IF(ISNUMBER(Taxa_PivotTable!G159),Taxa_PivotTable!G159,"") ->  | X159: =IF(ISNUMBER(Taxa_PivotTable!H159),Taxa_PivotTable!H159,"") ->  | AB159: =IF(ISNUMBER(Taxa_PivotTable!I159),Taxa_PivotTable!I159,"") ->  | AF159: =IF(ISNUMBER(Taxa_PivotTable!J159),Taxa_PivotTable!J159,"") ->  | AJ159: =IF(ISNUMBER(Taxa_PivotTable!K159),Taxa_PivotTable!K159,"") -> 
A160: =Taxa_PivotTable!A160 ->  | B160: =IF(Taxa_PivotTable!B160="","",Taxa_PivotTable!B160) ->  | C160: =IF(ISNUMBER(VLOOKUP(B160,UKOptima!A:J,10,FALSE)),VLOOKUP(B160,UKOptima!A:J,10,FALSE),"") ->  | D160: =IF(ISNUMBER(Taxa_PivotTable!C160),Taxa_PivotTable!C160,"") ->  | H160: =IF(ISNUMBER(Taxa_PivotTable!D160),Taxa_PivotTable!D160,"") ->  | L160: =IF(ISNUMBER(Taxa_PivotTable!E160),Taxa_PivotTable!E160,"") ->  | P160: =IF(ISNUMBER(Taxa_PivotTable!F160),Taxa_PivotTable!F160,"") ->  | T160: =IF(ISNUMBER(Taxa_PivotTable!G160),Taxa_PivotTable!G160,"") ->  | X160: =IF(ISNUMBER(Taxa_PivotTable!H160),Taxa_PivotTable!H160,"") ->  | AB160: =IF(ISNUMBER(Taxa_PivotTable!I160),Taxa_PivotTable!I160,"") ->  | AF160: =IF(ISNUMBER(Taxa_PivotTable!J160),Taxa_PivotTable!J160,"") ->  | AJ160: =IF(ISNUMBER(Taxa_PivotTable!K160),Taxa_PivotTable!K160,"") -> 
A161: =Taxa_PivotTable!A161 ->  | B161: =IF(Taxa_PivotTable!B161="","",Taxa_PivotTable!B161) ->  | C161: =IF(ISNUMBER(VLOOKUP(B161,UKOptima!A:J,10,FALSE)),VLOOKUP(B161,UKOptima!A:J,10,FALSE),"") ->  | D161: =IF(ISNUMBER(Taxa_PivotTable!C161),Taxa_PivotTable!C161,"") ->  | H161: =IF(ISNUMBER(Taxa_PivotTable!D161),Taxa_PivotTable!D161,"") ->  | L161: =IF(ISNUMBER(Taxa_PivotTable!E161),Taxa_PivotTable!E161,"") ->  | P161: =IF(ISNUMBER(Taxa_PivotTable!F161),Taxa_PivotTable!F161,"") ->  | T161: =IF(ISNUMBER(Taxa_PivotTable!G161),Taxa_PivotTable!G161,"") ->  | X161: =IF(ISNUMBER(Taxa_PivotTable!H161),Taxa_PivotTable!H161,"") ->  | AB161: =IF(ISNUMBER(Taxa_PivotTable!I161),Taxa_PivotTable!I161,"") ->  | AF161: =IF(ISNUMBER(Taxa_PivotTable!J161),Taxa_PivotTable!J161,"") ->  | AJ161: =IF(ISNUMBER(Taxa_PivotTable!K161),Taxa_PivotTable!K161,"") -> 
A162: =Taxa_PivotTable!A162 ->  | B162: =IF(Taxa_PivotTable!B162="","",Taxa_PivotTable!B162) ->  | C162: =IF(ISNUMBER(VLOOKUP(B162,UKOptima!A:J,10,FALSE)),VLOOKUP(B162,UKOptima!A:J,10,FALSE),"") ->  | D162: =IF(ISNUMBER(Taxa_PivotTable!C162),Taxa_PivotTable!C162,"") ->  | H162: =IF(ISNUMBER(Taxa_PivotTable!D162),Taxa_PivotTable!D162,"") ->  | L162: =IF(ISNUMBER(Taxa_PivotTable!E162),Taxa_PivotTable!E162,"") ->  | P162: =IF(ISNUMBER(Taxa_PivotTable!F162),Taxa_PivotTable!F162,"") ->  | T162: =IF(ISNUMBER(Taxa_PivotTable!G162),Taxa_PivotTable!G162,"") ->  | X162: =IF(ISNUMBER(Taxa_PivotTable!H162),Taxa_PivotTable!H162,"") ->  | AB162: =IF(ISNUMBER(Taxa_PivotTable!I162),Taxa_PivotTable!I162,"") ->  | AF162: =IF(ISNUMBER(Taxa_PivotTable!J162),Taxa_PivotTable!J162,"") ->  | AJ162: =IF(ISNUMBER(Taxa_PivotTable!K162),Taxa_PivotTable!K162,"") -> 
A163: =Taxa_PivotTable!A163 ->  | B163: =IF(Taxa_PivotTable!B163="","",Taxa_PivotTable!B163) ->  | C163: =IF(ISNUMBER(VLOOKUP(B163,UKOptima!A:J,10,FALSE)),VLOOKUP(B163,UKOptima!A:J,10,FALSE),"") ->  | D163: =IF(ISNUMBER(Taxa_PivotTable!C163),Taxa_PivotTable!C163,"") ->  | H163: =IF(ISNUMBER(Taxa_PivotTable!D163),Taxa_PivotTable!D163,"") ->  | L163: =IF(ISNUMBER(Taxa_PivotTable!E163),Taxa_PivotTable!E163,"") ->  | P163: =IF(ISNUMBER(Taxa_PivotTable!F163),Taxa_PivotTable!F163,"") ->  | T163: =IF(ISNUMBER(Taxa_PivotTable!G163),Taxa_PivotTable!G163,"") ->  | X163: =IF(ISNUMBER(Taxa_PivotTable!H163),Taxa_PivotTable!H163,"") ->  | AB163: =IF(ISNUMBER(Taxa_PivotTable!I163),Taxa_PivotTable!I163,"") ->  | AF163: =IF(ISNUMBER(Taxa_PivotTable!J163),Taxa_PivotTable!J163,"") ->  | AJ163: =IF(ISNUMBER(Taxa_PivotTable!K163),Taxa_PivotTable!K163,"") -> 
A164: =Taxa_PivotTable!A164 ->  | B164: =IF(Taxa_PivotTable!B164="","",Taxa_PivotTable!B164) ->  | C164: =IF(ISNUMBER(VLOOKUP(B164,UKOptima!A:J,10,FALSE)),VLOOKUP(B164,UKOptima!A:J,10,FALSE),"") ->  | D164: =IF(ISNUMBER(Taxa_PivotTable!C164),Taxa_PivotTable!C164,"") ->  | H164: =IF(ISNUMBER(Taxa_PivotTable!D164),Taxa_PivotTable!D164,"") ->  | L164: =IF(ISNUMBER(Taxa_PivotTable!E164),Taxa_PivotTable!E164,"") ->  | P164: =IF(ISNUMBER(Taxa_PivotTable!F164),Taxa_PivotTable!F164,"") ->  | T164: =IF(ISNUMBER(Taxa_PivotTable!G164),Taxa_PivotTable!G164,"") ->  | X164: =IF(ISNUMBER(Taxa_PivotTable!H164),Taxa_PivotTable!H164,"") ->  | AB164: =IF(ISNUMBER(Taxa_PivotTable!I164),Taxa_PivotTable!I164,"") ->  | AF164: =IF(ISNUMBER(Taxa_PivotTable!J164),Taxa_PivotTable!J164,"") ->  | AJ164: =IF(ISNUMBER(Taxa_PivotTable!K164),Taxa_PivotTable!K164,"") -> 
A165: =Taxa_PivotTable!A165 ->  | B165: =IF(Taxa_PivotTable!B165="","",Taxa_PivotTable!B165) ->  | C165: =IF(ISNUMBER(VLOOKUP(B165,UKOptima!A:J,10,FALSE)),VLOOKUP(B165,UKOptima!A:J,10,FALSE),"") ->  | D165: =IF(ISNUMBER(Taxa_PivotTable!C165),Taxa_PivotTable!C165,"") ->  | H165: =IF(ISNUMBER(Taxa_PivotTable!D165),Taxa_PivotTable!D165,"") ->  | L165: =IF(ISNUMBER(Taxa_PivotTable!E165),Taxa_PivotTable!E165,"") ->  | P165: =IF(ISNUMBER(Taxa_PivotTable!F165),Taxa_PivotTable!F165,"") ->  | T165: =IF(ISNUMBER(Taxa_PivotTable!G165),Taxa_PivotTable!G165,"") ->  | X165: =IF(ISNUMBER(Taxa_PivotTable!H165),Taxa_PivotTable!H165,"") ->  | AB165: =IF(ISNUMBER(Taxa_PivotTable!I165),Taxa_PivotTable!I165,"") ->  | AF165: =IF(ISNUMBER(Taxa_PivotTable!J165),Taxa_PivotTable!J165,"") ->  | AJ165: =IF(ISNUMBER(Taxa_PivotTable!K165),Taxa_PivotTable!K165,"") -> 
A166: =Taxa_PivotTable!A166 ->  | B166: =IF(Taxa_PivotTable!B166="","",Taxa_PivotTable!B166) ->  | C166: =IF(ISNUMBER(VLOOKUP(B166,UKOptima!A:J,10,FALSE)),VLOOKUP(B166,UKOptima!A:J,10,FALSE),"") ->  | D166: =IF(ISNUMBER(Taxa_PivotTable!C166),Taxa_PivotTable!C166,"") ->  | H166: =IF(ISNUMBER(Taxa_PivotTable!D166),Taxa_PivotTable!D166,"") ->  | L166: =IF(ISNUMBER(Taxa_PivotTable!E166),Taxa_PivotTable!E166,"") ->  | P166: =IF(ISNUMBER(Taxa_PivotTable!F166),Taxa_PivotTable!F166,"") ->  | T166: =IF(ISNUMBER(Taxa_PivotTable!G166),Taxa_PivotTable!G166,"") ->  | X166: =IF(ISNUMBER(Taxa_PivotTable!H166),Taxa_PivotTable!H166,"") ->  | AB166: =IF(ISNUMBER(Taxa_PivotTable!I166),Taxa_PivotTable!I166,"") ->  | AF166: =IF(ISNUMBER(Taxa_PivotTable!J166),Taxa_PivotTable!J166,"") ->  | AJ166: =IF(ISNUMBER(Taxa_PivotTable!K166),Taxa_PivotTable!K166,"") -> 
A167: =Taxa_PivotTable!A167 ->  | B167: =IF(Taxa_PivotTable!B167="","",Taxa_PivotTable!B167) ->  | C167: =IF(ISNUMBER(VLOOKUP(B167,UKOptima!A:J,10,FALSE)),VLOOKUP(B167,UKOptima!A:J,10,FALSE),"") ->  | D167: =IF(ISNUMBER(Taxa_PivotTable!C167),Taxa_PivotTable!C167,"") ->  | H167: =IF(ISNUMBER(Taxa_PivotTable!D167),Taxa_PivotTable!D167,"") ->  | L167: =IF(ISNUMBER(Taxa_PivotTable!E167),Taxa_PivotTable!E167,"") ->  | P167: =IF(ISNUMBER(Taxa_PivotTable!F167),Taxa_PivotTable!F167,"") ->  | T167: =IF(ISNUMBER(Taxa_PivotTable!G167),Taxa_PivotTable!G167,"") ->  | X167: =IF(ISNUMBER(Taxa_PivotTable!H167),Taxa_PivotTable!H167,"") ->  | AB167: =IF(ISNUMBER(Taxa_PivotTable!I167),Taxa_PivotTable!I167,"") ->  | AF167: =IF(ISNUMBER(Taxa_PivotTable!J167),Taxa_PivotTable!J167,"") ->  | AJ167: =IF(ISNUMBER(Taxa_PivotTable!K167),Taxa_PivotTable!K167,"") -> 
A168: =Taxa_PivotTable!A168 ->  | B168: =IF(Taxa_PivotTable!B168="","",Taxa_PivotTable!B168) ->  | C168: =IF(ISNUMBER(VLOOKUP(B168,UKOptima!A:J,10,FALSE)),VLOOKUP(B168,UKOptima!A:J,10,FALSE),"") ->  | D168: =IF(ISNUMBER(Taxa_PivotTable!C168),Taxa_PivotTable!C168,"") ->  | H168: =IF(ISNUMBER(Taxa_PivotTable!D168),Taxa_PivotTable!D168,"") ->  | L168: =IF(ISNUMBER(Taxa_PivotTable!E168),Taxa_PivotTable!E168,"") ->  | P168: =IF(ISNUMBER(Taxa_PivotTable!F168),Taxa_PivotTable!F168,"") ->  | T168: =IF(ISNUMBER(Taxa_PivotTable!G168),Taxa_PivotTable!G168,"") ->  | X168: =IF(ISNUMBER(Taxa_PivotTable!H168),Taxa_PivotTable!H168,"") ->  | AB168: =IF(ISNUMBER(Taxa_PivotTable!I168),Taxa_PivotTable!I168,"") ->  | AF168: =IF(ISNUMBER(Taxa_PivotTable!J168),Taxa_PivotTable!J168,"") ->  | AJ168: =IF(ISNUMBER(Taxa_PivotTable!K168),Taxa_PivotTable!K168,"") -> 
A169: =Taxa_PivotTable!A169 ->  | B169: =IF(Taxa_PivotTable!B169="","",Taxa_PivotTable!B169) ->  | C169: =IF(ISNUMBER(VLOOKUP(B169,UKOptima!A:J,10,FALSE)),VLOOKUP(B169,UKOptima!A:J,10,FALSE),"") ->  | D169: =IF(ISNUMBER(Taxa_PivotTable!C169),Taxa_PivotTable!C169,"") ->  | H169: =IF(ISNUMBER(Taxa_PivotTable!D169),Taxa_PivotTable!D169,"") ->  | L169: =IF(ISNUMBER(Taxa_PivotTable!E169),Taxa_PivotTable!E169,"") ->  | P169: =IF(ISNUMBER(Taxa_PivotTable!F169),Taxa_PivotTable!F169,"") ->  | T169: =IF(ISNUMBER(Taxa_PivotTable!G169),Taxa_PivotTable!G169,"") ->  | X169: =IF(ISNUMBER(Taxa_PivotTable!H169),Taxa_PivotTable!H169,"") ->  | AB169: =IF(ISNUMBER(Taxa_PivotTable!I169),Taxa_PivotTable!I169,"") ->  | AF169: =IF(ISNUMBER(Taxa_PivotTable!J169),Taxa_PivotTable!J169,"") ->  | AJ169: =IF(ISNUMBER(Taxa_PivotTable!K169),Taxa_PivotTable!K169,"") -> 
A170: =Taxa_PivotTable!A170 ->  | B170: =IF(Taxa_PivotTable!B170="","",Taxa_PivotTable!B170) ->  | C170: =IF(ISNUMBER(VLOOKUP(B170,UKOptima!A:J,10,FALSE)),VLOOKUP(B170,UKOptima!A:J,10,FALSE),"") ->  | D170: =IF(ISNUMBER(Taxa_PivotTable!C170),Taxa_PivotTable!C170,"") ->  | H170: =IF(ISNUMBER(Taxa_PivotTable!D170),Taxa_PivotTable!D170,"") ->  | L170: =IF(ISNUMBER(Taxa_PivotTable!E170),Taxa_PivotTable!E170,"") ->  | P170: =IF(ISNUMBER(Taxa_PivotTable!F170),Taxa_PivotTable!F170,"") ->  | T170: =IF(ISNUMBER(Taxa_PivotTable!G170),Taxa_PivotTable!G170,"") ->  | X170: =IF(ISNUMBER(Taxa_PivotTable!H170),Taxa_PivotTable!H170,"") ->  | AB170: =IF(ISNUMBER(Taxa_PivotTable!I170),Taxa_PivotTable!I170,"") ->  | AF170: =IF(ISNUMBER(Taxa_PivotTable!J170),Taxa_PivotTable!J170,"") ->  | AJ170: =IF(ISNUMBER(Taxa_PivotTable!K170),Taxa_PivotTable!K170,"") -> 
A171: =Taxa_PivotTable!A171 ->  | B171: =IF(Taxa_PivotTable!B171="","",Taxa_PivotTable!B171) ->  | C171: =IF(ISNUMBER(VLOOKUP(B171,UKOptima!A:J,10,FALSE)),VLOOKUP(B171,UKOptima!A:J,10,FALSE),"") ->  | D171: =IF(ISNUMBER(Taxa_PivotTable!C171),Taxa_PivotTable!C171,"") ->  | H171: =IF(ISNUMBER(Taxa_PivotTable!D171),Taxa_PivotTable!D171,"") ->  | L171: =IF(ISNUMBER(Taxa_PivotTable!E171),Taxa_PivotTable!E171,"") ->  | P171: =IF(ISNUMBER(Taxa_PivotTable!F171),Taxa_PivotTable!F171,"") ->  | T171: =IF(ISNUMBER(Taxa_PivotTable!G171),Taxa_PivotTable!G171,"") ->  | X171: =IF(ISNUMBER(Taxa_PivotTable!H171),Taxa_PivotTable!H171,"") ->  | AB171: =IF(ISNUMBER(Taxa_PivotTable!I171),Taxa_PivotTable!I171,"") ->  | AF171: =IF(ISNUMBER(Taxa_PivotTable!J171),Taxa_PivotTable!J171,"") ->  | AJ171: =IF(ISNUMBER(Taxa_PivotTable!K171),Taxa_PivotTable!K171,"") -> 
A172: =Taxa_PivotTable!A172 ->  | B172: =IF(Taxa_PivotTable!B172="","",Taxa_PivotTable!B172) ->  | C172: =IF(ISNUMBER(VLOOKUP(B172,UKOptima!A:J,10,FALSE)),VLOOKUP(B172,UKOptima!A:J,10,FALSE),"") ->  | D172: =IF(ISNUMBER(Taxa_PivotTable!C172),Taxa_PivotTable!C172,"") ->  | H172: =IF(ISNUMBER(Taxa_PivotTable!D172),Taxa_PivotTable!D172,"") ->  | L172: =IF(ISNUMBER(Taxa_PivotTable!E172),Taxa_PivotTable!E172,"") ->  | P172: =IF(ISNUMBER(Taxa_PivotTable!F172),Taxa_PivotTable!F172,"") ->  | T172: =IF(ISNUMBER(Taxa_PivotTable!G172),Taxa_PivotTable!G172,"") ->  | X172: =IF(ISNUMBER(Taxa_PivotTable!H172),Taxa_PivotTable!H172,"") ->  | AB172: =IF(ISNUMBER(Taxa_PivotTable!I172),Taxa_PivotTable!I172,"") ->  | AF172: =IF(ISNUMBER(Taxa_PivotTable!J172),Taxa_PivotTable!J172,"") ->  | AJ172: =IF(ISNUMBER(Taxa_PivotTable!K172),Taxa_PivotTable!K172,"") -> 
A173: =Taxa_PivotTable!A173 ->  | B173: =IF(Taxa_PivotTable!B173="","",Taxa_PivotTable!B173) ->  | C173: =IF(ISNUMBER(VLOOKUP(B173,UKOptima!A:J,10,FALSE)),VLOOKUP(B173,UKOptima!A:J,10,FALSE),"") ->  | D173: =IF(ISNUMBER(Taxa_PivotTable!C173),Taxa_PivotTable!C173,"") ->  | H173: =IF(ISNUMBER(Taxa_PivotTable!D173),Taxa_PivotTable!D173,"") ->  | L173: =IF(ISNUMBER(Taxa_PivotTable!E173),Taxa_PivotTable!E173,"") ->  | P173: =IF(ISNUMBER(Taxa_PivotTable!F173),Taxa_PivotTable!F173,"") ->  | T173: =IF(ISNUMBER(Taxa_PivotTable!G173),Taxa_PivotTable!G173,"") ->  | X173: =IF(ISNUMBER(Taxa_PivotTable!H173),Taxa_PivotTable!H173,"") ->  | AB173: =IF(ISNUMBER(Taxa_PivotTable!I173),Taxa_PivotTable!I173,"") ->  | AF173: =IF(ISNUMBER(Taxa_PivotTable!J173),Taxa_PivotTable!J173,"") ->  | AJ173: =IF(ISNUMBER(Taxa_PivotTable!K173),Taxa_PivotTable!K173,"") -> 
A174: =Taxa_PivotTable!A174 ->  | B174: =IF(Taxa_PivotTable!B174="","",Taxa_PivotTable!B174) ->  | C174: =IF(ISNUMBER(VLOOKUP(B174,UKOptima!A:J,10,FALSE)),VLOOKUP(B174,UKOptima!A:J,10,FALSE),"") ->  | D174: =IF(ISNUMBER(Taxa_PivotTable!C174),Taxa_PivotTable!C174,"") ->  | H174: =IF(ISNUMBER(Taxa_PivotTable!D174),Taxa_PivotTable!D174,"") ->  | L174: =IF(ISNUMBER(Taxa_PivotTable!E174),Taxa_PivotTable!E174,"") ->  | P174: =IF(ISNUMBER(Taxa_PivotTable!F174),Taxa_PivotTable!F174,"") ->  | T174: =IF(ISNUMBER(Taxa_PivotTable!G174),Taxa_PivotTable!G174,"") ->  | X174: =IF(ISNUMBER(Taxa_PivotTable!H174),Taxa_PivotTable!H174,"") ->  | AB174: =IF(ISNUMBER(Taxa_PivotTable!I174),Taxa_PivotTable!I174,"") ->  | AF174: =IF(ISNUMBER(Taxa_PivotTable!J174),Taxa_PivotTable!J174,"") ->  | AJ174: =IF(ISNUMBER(Taxa_PivotTable!K174),Taxa_PivotTable!K174,"") -> 
A175: =Taxa_PivotTable!A175 ->  | B175: =IF(Taxa_PivotTable!B175="","",Taxa_PivotTable!B175) ->  | C175: =IF(ISNUMBER(VLOOKUP(B175,UKOptima!A:J,10,FALSE)),VLOOKUP(B175,UKOptima!A:J,10,FALSE),"") ->  | D175: =IF(ISNUMBER(Taxa_PivotTable!C175),Taxa_PivotTable!C175,"") ->  | H175: =IF(ISNUMBER(Taxa_PivotTable!D175),Taxa_PivotTable!D175,"") ->  | L175: =IF(ISNUMBER(Taxa_PivotTable!E175),Taxa_PivotTable!E175,"") ->  | P175: =IF(ISNUMBER(Taxa_PivotTable!F175),Taxa_PivotTable!F175,"") ->  | T175: =IF(ISNUMBER(Taxa_PivotTable!G175),Taxa_PivotTable!G175,"") ->  | X175: =IF(ISNUMBER(Taxa_PivotTable!H175),Taxa_PivotTable!H175,"") ->  | AB175: =IF(ISNUMBER(Taxa_PivotTable!I175),Taxa_PivotTable!I175,"") ->  | AF175: =IF(ISNUMBER(Taxa_PivotTable!J175),Taxa_PivotTable!J175,"") ->  | AJ175: =IF(ISNUMBER(Taxa_PivotTable!K175),Taxa_PivotTable!K175,"") -> 
A176: =Taxa_PivotTable!A176 ->  | B176: =IF(Taxa_PivotTable!B176="","",Taxa_PivotTable!B176) ->  | C176: =IF(ISNUMBER(VLOOKUP(B176,UKOptima!A:J,10,FALSE)),VLOOKUP(B176,UKOptima!A:J,10,FALSE),"") ->  | D176: =IF(ISNUMBER(Taxa_PivotTable!C176),Taxa_PivotTable!C176,"") ->  | H176: =IF(ISNUMBER(Taxa_PivotTable!D176),Taxa_PivotTable!D176,"") ->  | L176: =IF(ISNUMBER(Taxa_PivotTable!E176),Taxa_PivotTable!E176,"") ->  | P176: =IF(ISNUMBER(Taxa_PivotTable!F176),Taxa_PivotTable!F176,"") ->  | T176: =IF(ISNUMBER(Taxa_PivotTable!G176),Taxa_PivotTable!G176,"") ->  | X176: =IF(ISNUMBER(Taxa_PivotTable!H176),Taxa_PivotTable!H176,"") ->  | AB176: =IF(ISNUMBER(Taxa_PivotTable!I176),Taxa_PivotTable!I176,"") ->  | AF176: =IF(ISNUMBER(Taxa_PivotTable!J176),Taxa_PivotTable!J176,"") ->  | AJ176: =IF(ISNUMBER(Taxa_PivotTable!K176),Taxa_PivotTable!K176,"") -> 
A177: =Taxa_PivotTable!A177 ->  | B177: =IF(Taxa_PivotTable!B177="","",Taxa_PivotTable!B177) ->  | C177: =IF(ISNUMBER(VLOOKUP(B177,UKOptima!A:J,10,FALSE)),VLOOKUP(B177,UKOptima!A:J,10,FALSE),"") ->  | D177: =IF(ISNUMBER(Taxa_PivotTable!C177),Taxa_PivotTable!C177,"") ->  | H177: =IF(ISNUMBER(Taxa_PivotTable!D177),Taxa_PivotTable!D177,"") ->  | L177: =IF(ISNUMBER(Taxa_PivotTable!E177),Taxa_PivotTable!E177,"") ->  | P177: =IF(ISNUMBER(Taxa_PivotTable!F177),Taxa_PivotTable!F177,"") ->  | T177: =IF(ISNUMBER(Taxa_PivotTable!G177),Taxa_PivotTable!G177,"") ->  | X177: =IF(ISNUMBER(Taxa_PivotTable!H177),Taxa_PivotTable!H177,"") ->  | AB177: =IF(ISNUMBER(Taxa_PivotTable!I177),Taxa_PivotTable!I177,"") ->  | AF177: =IF(ISNUMBER(Taxa_PivotTable!J177),Taxa_PivotTable!J177,"") ->  | AJ177: =IF(ISNUMBER(Taxa_PivotTable!K177),Taxa_PivotTable!K177,"") -> 
A178: =Taxa_PivotTable!A178 ->  | B178: =IF(Taxa_PivotTable!B178="","",Taxa_PivotTable!B178) ->  | C178: =IF(ISNUMBER(VLOOKUP(B178,UKOptima!A:J,10,FALSE)),VLOOKUP(B178,UKOptima!A:J,10,FALSE),"") ->  | D178: =IF(ISNUMBER(Taxa_PivotTable!C178),Taxa_PivotTable!C178,"") ->  | H178: =IF(ISNUMBER(Taxa_PivotTable!D178),Taxa_PivotTable!D178,"") ->  | L178: =IF(ISNUMBER(Taxa_PivotTable!E178),Taxa_PivotTable!E178,"") ->  | P178: =IF(ISNUMBER(Taxa_PivotTable!F178),Taxa_PivotTable!F178,"") ->  | T178: =IF(ISNUMBER(Taxa_PivotTable!G178),Taxa_PivotTable!G178,"") ->  | X178: =IF(ISNUMBER(Taxa_PivotTable!H178),Taxa_PivotTable!H178,"") ->  | AB178: =IF(ISNUMBER(Taxa_PivotTable!I178),Taxa_PivotTable!I178,"") ->  | AF178: =IF(ISNUMBER(Taxa_PivotTable!J178),Taxa_PivotTable!J178,"") ->  | AJ178: =IF(ISNUMBER(Taxa_PivotTable!K178),Taxa_PivotTable!K178,"") -> 
A179: =Taxa_PivotTable!A179 ->  | B179: =IF(Taxa_PivotTable!B179="","",Taxa_PivotTable!B179) ->  | C179: =IF(ISNUMBER(VLOOKUP(B179,UKOptima!A:J,10,FALSE)),VLOOKUP(B179,UKOptima!A:J,10,FALSE),"") ->  | D179: =IF(ISNUMBER(Taxa_PivotTable!C179),Taxa_PivotTable!C179,"") ->  | H179: =IF(ISNUMBER(Taxa_PivotTable!D179),Taxa_PivotTable!D179,"") ->  | L179: =IF(ISNUMBER(Taxa_PivotTable!E179),Taxa_PivotTable!E179,"") ->  | P179: =IF(ISNUMBER(Taxa_PivotTable!F179),Taxa_PivotTable!F179,"") ->  | T179: =IF(ISNUMBER(Taxa_PivotTable!G179),Taxa_PivotTable!G179,"") ->  | X179: =IF(ISNUMBER(Taxa_PivotTable!H179),Taxa_PivotTable!H179,"") ->  | AB179: =IF(ISNUMBER(Taxa_PivotTable!I179),Taxa_PivotTable!I179,"") ->  | AF179: =IF(ISNUMBER(Taxa_PivotTable!J179),Taxa_PivotTable!J179,"") ->  | AJ179: =IF(ISNUMBER(Taxa_PivotTable!K179),Taxa_PivotTable!K179,"") -> 
A180: =Taxa_PivotTable!A180 ->  | B180: =IF(Taxa_PivotTable!B180="","",Taxa_PivotTable!B180) ->  | C180: =IF(ISNUMBER(VLOOKUP(B180,UKOptima!A:J,10,FALSE)),VLOOKUP(B180,UKOptima!A:J,10,FALSE),"") ->  | D180: =IF(ISNUMBER(Taxa_PivotTable!C180),Taxa_PivotTable!C180,"") ->  | H180: =IF(ISNUMBER(Taxa_PivotTable!D180),Taxa_PivotTable!D180,"") ->  | L180: =IF(ISNUMBER(Taxa_PivotTable!E180),Taxa_PivotTable!E180,"") ->  | P180: =IF(ISNUMBER(Taxa_PivotTable!F180),Taxa_PivotTable!F180,"") ->  | T180: =IF(ISNUMBER(Taxa_PivotTable!G180),Taxa_PivotTable!G180,"") ->  | X180: =IF(ISNUMBER(Taxa_PivotTable!H180),Taxa_PivotTable!H180,"") ->  | AB180: =IF(ISNUMBER(Taxa_PivotTable!I180),Taxa_PivotTable!I180,"") ->  | AF180: =IF(ISNUMBER(Taxa_PivotTable!J180),Taxa_PivotTable!J180,"") ->  | AJ180: =IF(ISNUMBER(Taxa_PivotTable!K180),Taxa_PivotTable!K180,"") -> 
A181: =Taxa_PivotTable!A181 ->  | B181: =IF(Taxa_PivotTable!B181="","",Taxa_PivotTable!B181) ->  | C181: =IF(ISNUMBER(VLOOKUP(B181,UKOptima!A:J,10,FALSE)),VLOOKUP(B181,UKOptima!A:J,10,FALSE),"") ->  | D181: =IF(ISNUMBER(Taxa_PivotTable!C181),Taxa_PivotTable!C181,"") ->  | F181: =IF(COUNT(E181,$C181)=2,(E181)*$C181,"") ->  | H181: =IF(ISNUMBER(Taxa_PivotTable!D181),Taxa_PivotTable!D181,"") ->  | J181: =IF(COUNT(I181,$C181)=2,(I181)*$C181,"") ->  | L181: =IF(ISNUMBER(Taxa_PivotTable!E181),Taxa_PivotTable!E181,"") ->  | N181: =IF(COUNT(M181,$C181)=2,(M181)*$C181,"") ->  | P181: =IF(ISNUMBER(Taxa_PivotTable!F181),Taxa_PivotTable!F181,"") ->  | R181: =IF(COUNT(Q181,$C181)=2,(Q181)*$C181,"") ->  | T181: =IF(ISNUMBER(Taxa_PivotTable!G181),Taxa_PivotTable!G181,"") ->  | V181: =IF(COUNT(U181,$C181)=2,(U181)*$C181,"") ->  | X181: =IF(ISNUMBER(Taxa_PivotTable!H181),Taxa_PivotTable!H181,"") ->  | AB181: =IF(ISNUMBER(Taxa_PivotTable!I181),Taxa_PivotTable!I181,"") ->  | AF181: =IF(ISNUMBER(Taxa_PivotTable!J181),Taxa_PivotTable!J181,"") ->  | AJ181: =IF(ISNUMBER(Taxa_PivotTable!K181),Taxa_PivotTable!K181,"") -> 
A182: =Taxa_PivotTable!A182 ->  | B182: =IF(Taxa_PivotTable!B182="","",Taxa_PivotTable!B182) ->  | C182: =IF(ISNUMBER(VLOOKUP(B182,UKOptima!A:J,10,FALSE)),VLOOKUP(B182,UKOptima!A:J,10,FALSE),"") ->  | D182: =IF(ISNUMBER(Taxa_PivotTable!C182),Taxa_PivotTable!C182,"") ->  | H182: =IF(ISNUMBER(Taxa_PivotTable!D182),Taxa_PivotTable!D182,"") ->  | L182: =IF(ISNUMBER(Taxa_PivotTable!E182),Taxa_PivotTable!E182,"") ->  | P182: =IF(ISNUMBER(Taxa_PivotTable!F182),Taxa_PivotTable!F182,"") ->  | T182: =IF(ISNUMBER(Taxa_PivotTable!G182),Taxa_PivotTable!G182,"") ->  | X182: =IF(ISNUMBER(Taxa_PivotTable!H182),Taxa_PivotTable!H182,"") ->  | AB182: =IF(ISNUMBER(Taxa_PivotTable!I182),Taxa_PivotTable!I182,"") ->  | AF182: =IF(ISNUMBER(Taxa_PivotTable!J182),Taxa_PivotTable!J182,"") ->  | AJ182: =IF(ISNUMBER(Taxa_PivotTable!K182),Taxa_PivotTable!K182,"") -> 
A183: =Taxa_PivotTable!A183 ->  | B183: =IF(Taxa_PivotTable!B183="","",Taxa_PivotTable!B183) ->  | C183: =IF(ISNUMBER(VLOOKUP(B183,UKOptima!A:J,10,FALSE)),VLOOKUP(B183,UKOptima!A:J,10,FALSE),"") ->  | D183: =IF(ISNUMBER(Taxa_PivotTable!C183),Taxa_PivotTable!C183,"") ->  | H183: =IF(ISNUMBER(Taxa_PivotTable!D183),Taxa_PivotTable!D183,"") ->  | L183: =IF(ISNUMBER(Taxa_PivotTable!E183),Taxa_PivotTable!E183,"") ->  | P183: =IF(ISNUMBER(Taxa_PivotTable!F183),Taxa_PivotTable!F183,"") ->  | T183: =IF(ISNUMBER(Taxa_PivotTable!G183),Taxa_PivotTable!G183,"") ->  | X183: =IF(ISNUMBER(Taxa_PivotTable!H183),Taxa_PivotTable!H183,"") ->  | AB183: =IF(ISNUMBER(Taxa_PivotTable!I183),Taxa_PivotTable!I183,"") ->  | AF183: =IF(ISNUMBER(Taxa_PivotTable!J183),Taxa_PivotTable!J183,"") ->  | AJ183: =IF(ISNUMBER(Taxa_PivotTable!K183),Taxa_PivotTable!K183,"") -> 
A184: =Taxa_PivotTable!A184 ->  | B184: =IF(Taxa_PivotTable!B184="","",Taxa_PivotTable!B184) ->  | C184: =IF(ISNUMBER(VLOOKUP(B184,UKOptima!A:J,10,FALSE)),VLOOKUP(B184,UKOptima!A:J,10,FALSE),"") ->  | D184: =IF(ISNUMBER(Taxa_PivotTable!C184),Taxa_PivotTable!C184,"") ->  | H184: =IF(ISNUMBER(Taxa_PivotTable!D184),Taxa_PivotTable!D184,"") ->  | L184: =IF(ISNUMBER(Taxa_PivotTable!E184),Taxa_PivotTable!E184,"") ->  | P184: =IF(ISNUMBER(Taxa_PivotTable!F184),Taxa_PivotTable!F184,"") ->  | T184: =IF(ISNUMBER(Taxa_PivotTable!G184),Taxa_PivotTable!G184,"") ->  | X184: =IF(ISNUMBER(Taxa_PivotTable!H184),Taxa_PivotTable!H184,"") ->  | AB184: =IF(ISNUMBER(Taxa_PivotTable!I184),Taxa_PivotTable!I184,"") ->  | AF184: =IF(ISNUMBER(Taxa_PivotTable!J184),Taxa_PivotTable!J184,"") ->  | AJ184: =IF(ISNUMBER(Taxa_PivotTable!K184),Taxa_PivotTable!K184,"") -> 
A185: =Taxa_PivotTable!A185 ->  | B185: =IF(Taxa_PivotTable!B185="","",Taxa_PivotTable!B185) ->  | C185: =IF(ISNUMBER(VLOOKUP(B185,UKOptima!A:J,10,FALSE)),VLOOKUP(B185,UKOptima!A:J,10,FALSE),"") ->  | D185: =IF(ISNUMBER(Taxa_PivotTable!C185),Taxa_PivotTable!C185,"") ->  | H185: =IF(ISNUMBER(Taxa_PivotTable!D185),Taxa_PivotTable!D185,"") ->  | L185: =IF(ISNUMBER(Taxa_PivotTable!E185),Taxa_PivotTable!E185,"") ->  | P185: =IF(ISNUMBER(Taxa_PivotTable!F185),Taxa_PivotTable!F185,"") ->  | T185: =IF(ISNUMBER(Taxa_PivotTable!G185),Taxa_PivotTable!G185,"") ->  | X185: =IF(ISNUMBER(Taxa_PivotTable!H185),Taxa_PivotTable!H185,"") ->  | AB185: =IF(ISNUMBER(Taxa_PivotTable!I185),Taxa_PivotTable!I185,"") ->  | AF185: =IF(ISNUMBER(Taxa_PivotTable!J185),Taxa_PivotTable!J185,"") ->  | AJ185: =IF(ISNUMBER(Taxa_PivotTable!K185),Taxa_PivotTable!K185,"") -> 
A186: =Taxa_PivotTable!A186 ->  | B186: =IF(Taxa_PivotTable!B186="","",Taxa_PivotTable!B186) ->  | C186: =IF(ISNUMBER(VLOOKUP(B186,UKOptima!A:J,10,FALSE)),VLOOKUP(B186,UKOptima!A:J,10,FALSE),"") ->  | D186: =IF(ISNUMBER(Taxa_PivotTable!C186),Taxa_PivotTable!C186,"") ->  | H186: =IF(ISNUMBER(Taxa_PivotTable!D186),Taxa_PivotTable!D186,"") ->  | L186: =IF(ISNUMBER(Taxa_PivotTable!E186),Taxa_PivotTable!E186,"") ->  | P186: =IF(ISNUMBER(Taxa_PivotTable!F186),Taxa_PivotTable!F186,"") ->  | T186: =IF(ISNUMBER(Taxa_PivotTable!G186),Taxa_PivotTable!G186,"") ->  | X186: =IF(ISNUMBER(Taxa_PivotTable!H186),Taxa_PivotTable!H186,"") ->  | AB186: =IF(ISNUMBER(Taxa_PivotTable!I186),Taxa_PivotTable!I186,"") ->  | AF186: =IF(ISNUMBER(Taxa_PivotTable!J186),Taxa_PivotTable!J186,"") ->  | AJ186: =IF(ISNUMBER(Taxa_PivotTable!K186),Taxa_PivotTable!K186,"") -> 
A187: =Taxa_PivotTable!A187 ->  | B187: =IF(Taxa_PivotTable!B187="","",Taxa_PivotTable!B187) ->  | C187: =IF(ISNUMBER(VLOOKUP(B187,UKOptima!A:J,10,FALSE)),VLOOKUP(B187,UKOptima!A:J,10,FALSE),"") ->  | D187: =IF(ISNUMBER(Taxa_PivotTable!C187),Taxa_PivotTable!C187,"") ->  | H187: =IF(ISNUMBER(Taxa_PivotTable!D187),Taxa_PivotTable!D187,"") ->  | L187: =IF(ISNUMBER(Taxa_PivotTable!E187),Taxa_PivotTable!E187,"") ->  | P187: =IF(ISNUMBER(Taxa_PivotTable!F187),Taxa_PivotTable!F187,"") ->  | T187: =IF(ISNUMBER(Taxa_PivotTable!G187),Taxa_PivotTable!G187,"") ->  | X187: =IF(ISNUMBER(Taxa_PivotTable!H187),Taxa_PivotTable!H187,"") ->  | AB187: =IF(ISNUMBER(Taxa_PivotTable!I187),Taxa_PivotTable!I187,"") ->  | AF187: =IF(ISNUMBER(Taxa_PivotTable!J187),Taxa_PivotTable!J187,"") ->  | AJ187: =IF(ISNUMBER(Taxa_PivotTable!K187),Taxa_PivotTable!K187,"") -> 
A188: =Taxa_PivotTable!A188 ->  | B188: =IF(Taxa_PivotTable!B188="","",Taxa_PivotTable!B188) ->  | C188: =IF(ISNUMBER(VLOOKUP(B188,UKOptima!A:J,10,FALSE)),VLOOKUP(B188,UKOptima!A:J,10,FALSE),"") ->  | D188: =IF(ISNUMBER(Taxa_PivotTable!C188),Taxa_PivotTable!C188,"") ->  | H188: =IF(ISNUMBER(Taxa_PivotTable!D188),Taxa_PivotTable!D188,"") ->  | L188: =IF(ISNUMBER(Taxa_PivotTable!E188),Taxa_PivotTable!E188,"") ->  | P188: =IF(ISNUMBER(Taxa_PivotTable!F188),Taxa_PivotTable!F188,"") ->  | T188: =IF(ISNUMBER(Taxa_PivotTable!G188),Taxa_PivotTable!G188,"") ->  | X188: =IF(ISNUMBER(Taxa_PivotTable!H188),Taxa_PivotTable!H188,"") ->  | AB188: =IF(ISNUMBER(Taxa_PivotTable!I188),Taxa_PivotTable!I188,"") ->  | AF188: =IF(ISNUMBER(Taxa_PivotTable!J188),Taxa_PivotTable!J188,"") ->  | AJ188: =IF(ISNUMBER(Taxa_PivotTable!K188),Taxa_PivotTable!K188,"") -> 
A189: =Taxa_PivotTable!A189 ->  | B189: =IF(Taxa_PivotTable!B189="","",Taxa_PivotTable!B189) ->  | C189: =IF(ISNUMBER(VLOOKUP(B189,UKOptima!A:J,10,FALSE)),VLOOKUP(B189,UKOptima!A:J,10,FALSE),"") ->  | D189: =IF(ISNUMBER(Taxa_PivotTable!C189),Taxa_PivotTable!C189,"") ->  | H189: =IF(ISNUMBER(Taxa_PivotTable!D189),Taxa_PivotTable!D189,"") ->  | L189: =IF(ISNUMBER(Taxa_PivotTable!E189),Taxa_PivotTable!E189,"") ->  | P189: =IF(ISNUMBER(Taxa_PivotTable!F189),Taxa_PivotTable!F189,"") ->  | T189: =IF(ISNUMBER(Taxa_PivotTable!G189),Taxa_PivotTable!G189,"") ->  | X189: =IF(ISNUMBER(Taxa_PivotTable!H189),Taxa_PivotTable!H189,"") ->  | AB189: =IF(ISNUMBER(Taxa_PivotTable!I189),Taxa_PivotTable!I189,"") ->  | AF189: =IF(ISNUMBER(Taxa_PivotTable!J189),Taxa_PivotTable!J189,"") ->  | AJ189: =IF(ISNUMBER(Taxa_PivotTable!K189),Taxa_PivotTable!K189,"") -> 
A190: =Taxa_PivotTable!A190 ->  | B190: =IF(Taxa_PivotTable!B190="","",Taxa_PivotTable!B190) ->  | C190: =IF(ISNUMBER(VLOOKUP(B190,UKOptima!A:J,10,FALSE)),VLOOKUP(B190,UKOptima!A:J,10,FALSE),"") ->  | D190: =IF(ISNUMBER(Taxa_PivotTable!C190),Taxa_PivotTable!C190,"") ->  | H190: =IF(ISNUMBER(Taxa_PivotTable!D190),Taxa_PivotTable!D190,"") ->  | L190: =IF(ISNUMBER(Taxa_PivotTable!E190),Taxa_PivotTable!E190,"") ->  | P190: =IF(ISNUMBER(Taxa_PivotTable!F190),Taxa_PivotTable!F190,"") ->  | T190: =IF(ISNUMBER(Taxa_PivotTable!G190),Taxa_PivotTable!G190,"") ->  | X190: =IF(ISNUMBER(Taxa_PivotTable!H190),Taxa_PivotTable!H190,"") ->  | AB190: =IF(ISNUMBER(Taxa_PivotTable!I190),Taxa_PivotTable!I190,"") ->  | AF190: =IF(ISNUMBER(Taxa_PivotTable!J190),Taxa_PivotTable!J190,"") ->  | AJ190: =IF(ISNUMBER(Taxa_PivotTable!K190),Taxa_PivotTable!K190,"") -> 
A191: =Taxa_PivotTable!A191 ->  | B191: =IF(Taxa_PivotTable!B191="","",Taxa_PivotTable!B191) ->  | C191: =IF(ISNUMBER(VLOOKUP(B191,UKOptima!A:J,10,FALSE)),VLOOKUP(B191,UKOptima!A:J,10,FALSE),"") ->  | D191: =IF(ISNUMBER(Taxa_PivotTable!C191),Taxa_PivotTable!C191,"") ->  | H191: =IF(ISNUMBER(Taxa_PivotTable!D191),Taxa_PivotTable!D191,"") ->  | L191: =IF(ISNUMBER(Taxa_PivotTable!E191),Taxa_PivotTable!E191,"") ->  | P191: =IF(ISNUMBER(Taxa_PivotTable!F191),Taxa_PivotTable!F191,"") ->  | T191: =IF(ISNUMBER(Taxa_PivotTable!G191),Taxa_PivotTable!G191,"") ->  | X191: =IF(ISNUMBER(Taxa_PivotTable!H191),Taxa_PivotTable!H191,"") ->  | AB191: =IF(ISNUMBER(Taxa_PivotTable!I191),Taxa_PivotTable!I191,"") ->  | AF191: =IF(ISNUMBER(Taxa_PivotTable!J191),Taxa_PivotTable!J191,"") ->  | AJ191: =IF(ISNUMBER(Taxa_PivotTable!K191),Taxa_PivotTable!K191,"") -> 
A192: =Taxa_PivotTable!A192 ->  | B192: =IF(Taxa_PivotTable!B192="","",Taxa_PivotTable!B192) ->  | C192: =IF(ISNUMBER(VLOOKUP(B192,UKOptima!A:J,10,FALSE)),VLOOKUP(B192,UKOptima!A:J,10,FALSE),"") ->  | D192: =IF(ISNUMBER(Taxa_PivotTable!C192),Taxa_PivotTable!C192,"") ->  | H192: =IF(ISNUMBER(Taxa_PivotTable!D192),Taxa_PivotTable!D192,"") ->  | L192: =IF(ISNUMBER(Taxa_PivotTable!E192),Taxa_PivotTable!E192,"") ->  | P192: =IF(ISNUMBER(Taxa_PivotTable!F192),Taxa_PivotTable!F192,"") ->  | T192: =IF(ISNUMBER(Taxa_PivotTable!G192),Taxa_PivotTable!G192,"") ->  | X192: =IF(ISNUMBER(Taxa_PivotTable!H192),Taxa_PivotTable!H192,"") ->  | AB192: =IF(ISNUMBER(Taxa_PivotTable!I192),Taxa_PivotTable!I192,"") ->  | AF192: =IF(ISNUMBER(Taxa_PivotTable!J192),Taxa_PivotTable!J192,"") ->  | AJ192: =IF(ISNUMBER(Taxa_PivotTable!K192),Taxa_PivotTable!K192,"") -> 
A193: =Taxa_PivotTable!A193 ->  | B193: =IF(Taxa_PivotTable!B193="","",Taxa_PivotTable!B193) ->  | C193: =IF(ISNUMBER(VLOOKUP(B193,UKOptima!A:J,10,FALSE)),VLOOKUP(B193,UKOptima!A:J,10,FALSE),"") ->  | D193: =IF(ISNUMBER(Taxa_PivotTable!C193),Taxa_PivotTable!C193,"") ->  | H193: =IF(ISNUMBER(Taxa_PivotTable!D193),Taxa_PivotTable!D193,"") ->  | L193: =IF(ISNUMBER(Taxa_PivotTable!E193),Taxa_PivotTable!E193,"") ->  | P193: =IF(ISNUMBER(Taxa_PivotTable!F193),Taxa_PivotTable!F193,"") ->  | T193: =IF(ISNUMBER(Taxa_PivotTable!G193),Taxa_PivotTable!G193,"") ->  | X193: =IF(ISNUMBER(Taxa_PivotTable!H193),Taxa_PivotTable!H193,"") ->  | AB193: =IF(ISNUMBER(Taxa_PivotTable!I193),Taxa_PivotTable!I193,"") ->  | AF193: =IF(ISNUMBER(Taxa_PivotTable!J193),Taxa_PivotTable!J193,"") ->  | AJ193: =IF(ISNUMBER(Taxa_PivotTable!K193),Taxa_PivotTable!K193,"") -> 
A194: =Taxa_PivotTable!A194 ->  | B194: =IF(Taxa_PivotTable!B194="","",Taxa_PivotTable!B194) ->  | C194: =IF(ISNUMBER(VLOOKUP(B194,UKOptima!A:J,10,FALSE)),VLOOKUP(B194,UKOptima!A:J,10,FALSE),"") ->  | D194: =IF(ISNUMBER(Taxa_PivotTable!C194),Taxa_PivotTable!C194,"") ->  | H194: =IF(ISNUMBER(Taxa_PivotTable!D194),Taxa_PivotTable!D194,"") ->  | L194: =IF(ISNUMBER(Taxa_PivotTable!E194),Taxa_PivotTable!E194,"") ->  | P194: =IF(ISNUMBER(Taxa_PivotTable!F194),Taxa_PivotTable!F194,"") ->  | T194: =IF(ISNUMBER(Taxa_PivotTable!G194),Taxa_PivotTable!G194,"") ->  | X194: =IF(ISNUMBER(Taxa_PivotTable!H194),Taxa_PivotTable!H194,"") ->  | AB194: =IF(ISNUMBER(Taxa_PivotTable!I194),Taxa_PivotTable!I194,"") ->  | AF194: =IF(ISNUMBER(Taxa_PivotTable!J194),Taxa_PivotTable!J194,"") ->  | AJ194: =IF(ISNUMBER(Taxa_PivotTable!K194),Taxa_PivotTable!K194,"") -> 
A195: =Taxa_PivotTable!A195 ->  | B195: =IF(Taxa_PivotTable!B195="","",Taxa_PivotTable!B195) ->  | C195: =IF(ISNUMBER(VLOOKUP(B195,UKOptima!A:J,10,FALSE)),VLOOKUP(B195,UKOptima!A:J,10,FALSE),"") ->  | D195: =IF(ISNUMBER(Taxa_PivotTable!C195),Taxa_PivotTable!C195,"") ->  | H195: =IF(ISNUMBER(Taxa_PivotTable!D195),Taxa_PivotTable!D195,"") ->  | L195: =IF(ISNUMBER(Taxa_PivotTable!E195),Taxa_PivotTable!E195,"") ->  | P195: =IF(ISNUMBER(Taxa_PivotTable!F195),Taxa_PivotTable!F195,"") ->  | T195: =IF(ISNUMBER(Taxa_PivotTable!G195),Taxa_PivotTable!G195,"") ->  | X195: =IF(ISNUMBER(Taxa_PivotTable!H195),Taxa_PivotTable!H195,"") ->  | AB195: =IF(ISNUMBER(Taxa_PivotTable!I195),Taxa_PivotTable!I195,"") ->  | AF195: =IF(ISNUMBER(Taxa_PivotTable!J195),Taxa_PivotTable!J195,"") ->  | AJ195: =IF(ISNUMBER(Taxa_PivotTable!K195),Taxa_PivotTable!K195,"") -> 
A196: =Taxa_PivotTable!A196 ->  | B196: =IF(Taxa_PivotTable!B196="","",Taxa_PivotTable!B196) ->  | C196: =IF(ISNUMBER(VLOOKUP(B196,UKOptima!A:J,10,FALSE)),VLOOKUP(B196,UKOptima!A:J,10,FALSE),"") ->  | D196: =IF(ISNUMBER(Taxa_PivotTable!C196),Taxa_PivotTable!C196,"") ->  | H196: =IF(ISNUMBER(Taxa_PivotTable!D196),Taxa_PivotTable!D196,"") ->  | L196: =IF(ISNUMBER(Taxa_PivotTable!E196),Taxa_PivotTable!E196,"") ->  | P196: =IF(ISNUMBER(Taxa_PivotTable!F196),Taxa_PivotTable!F196,"") ->  | T196: =IF(ISNUMBER(Taxa_PivotTable!G196),Taxa_PivotTable!G196,"") ->  | X196: =IF(ISNUMBER(Taxa_PivotTable!H196),Taxa_PivotTable!H196,"") ->  | AB196: =IF(ISNUMBER(Taxa_PivotTable!I196),Taxa_PivotTable!I196,"") ->  | AF196: =IF(ISNUMBER(Taxa_PivotTable!J196),Taxa_PivotTable!J196,"") ->  | AJ196: =IF(ISNUMBER(Taxa_PivotTable!K196),Taxa_PivotTable!K196,"") -> 
A197: =Taxa_PivotTable!A197 ->  | B197: =IF(Taxa_PivotTable!B197="","",Taxa_PivotTable!B197) ->  | C197: =IF(ISNUMBER(VLOOKUP(B197,UKOptima!A:J,10,FALSE)),VLOOKUP(B197,UKOptima!A:J,10,FALSE),"") ->  | D197: =IF(ISNUMBER(Taxa_PivotTable!C197),Taxa_PivotTable!C197,"") ->  | H197: =IF(ISNUMBER(Taxa_PivotTable!D197),Taxa_PivotTable!D197,"") ->  | L197: =IF(ISNUMBER(Taxa_PivotTable!E197),Taxa_PivotTable!E197,"") ->  | P197: =IF(ISNUMBER(Taxa_PivotTable!F197),Taxa_PivotTable!F197,"") ->  | T197: =IF(ISNUMBER(Taxa_PivotTable!G197),Taxa_PivotTable!G197,"") ->  | X197: =IF(ISNUMBER(Taxa_PivotTable!H197),Taxa_PivotTable!H197,"") ->  | AB197: =IF(ISNUMBER(Taxa_PivotTable!I197),Taxa_PivotTable!I197,"") ->  | AF197: =IF(ISNUMBER(Taxa_PivotTable!J197),Taxa_PivotTable!J197,"") ->  | AJ197: =IF(ISNUMBER(Taxa_PivotTable!K197),Taxa_PivotTable!K197,"") -> 
A198: =Taxa_PivotTable!A198 ->  | B198: =IF(Taxa_PivotTable!B198="","",Taxa_PivotTable!B198) ->  | C198: =IF(ISNUMBER(VLOOKUP(B198,UKOptima!A:J,10,FALSE)),VLOOKUP(B198,UKOptima!A:J,10,FALSE),"") ->  | D198: =IF(ISNUMBER(Taxa_PivotTable!C198),Taxa_PivotTable!C198,"") ->  | H198: =IF(ISNUMBER(Taxa_PivotTable!D198),Taxa_PivotTable!D198,"") ->  | L198: =IF(ISNUMBER(Taxa_PivotTable!E198),Taxa_PivotTable!E198,"") ->  | P198: =IF(ISNUMBER(Taxa_PivotTable!F198),Taxa_PivotTable!F198,"") ->  | T198: =IF(ISNUMBER(Taxa_PivotTable!G198),Taxa_PivotTable!G198,"") ->  | X198: =IF(ISNUMBER(Taxa_PivotTable!H198),Taxa_PivotTable!H198,"") ->  | AB198: =IF(ISNUMBER(Taxa_PivotTable!I198),Taxa_PivotTable!I198,"") ->  | AF198: =IF(ISNUMBER(Taxa_PivotTable!J198),Taxa_PivotTable!J198,"") ->  | AJ198: =IF(ISNUMBER(Taxa_PivotTable!K198),Taxa_PivotTable!K198,"") -> 
A199: =Taxa_PivotTable!A199 ->  | B199: =IF(Taxa_PivotTable!B199="","",Taxa_PivotTable!B199) ->  | C199: =IF(ISNUMBER(VLOOKUP(B199,UKOptima!A:J,10,FALSE)),VLOOKUP(B199,UKOptima!A:J,10,FALSE),"") ->  | D199: =IF(ISNUMBER(Taxa_PivotTable!C199),Taxa_PivotTable!C199,"") ->  | H199: =IF(ISNUMBER(Taxa_PivotTable!D199),Taxa_PivotTable!D199,"") ->  | L199: =IF(ISNUMBER(Taxa_PivotTable!E199),Taxa_PivotTable!E199,"") ->  | P199: =IF(ISNUMBER(Taxa_PivotTable!F199),Taxa_PivotTable!F199,"") ->  | T199: =IF(ISNUMBER(Taxa_PivotTable!G199),Taxa_PivotTable!G199,"") ->  | X199: =IF(ISNUMBER(Taxa_PivotTable!H199),Taxa_PivotTable!H199,"") ->  | AB199: =IF(ISNUMBER(Taxa_PivotTable!I199),Taxa_PivotTable!I199,"") ->  | AF199: =IF(ISNUMBER(Taxa_PivotTable!J199),Taxa_PivotTable!J199,"") ->  | AJ199: =IF(ISNUMBER(Taxa_PivotTable!K199),Taxa_PivotTable!K199,"") -> 
A200: =Taxa_PivotTable!A200 ->  | B200: =IF(Taxa_PivotTable!B200="","",Taxa_PivotTable!B200) ->  | C200: =IF(ISNUMBER(VLOOKUP(B200,UKOptima!A:J,10,FALSE)),VLOOKUP(B200,UKOptima!A:J,10,FALSE),"") ->  | D200: =IF(ISNUMBER(Taxa_PivotTable!C200),Taxa_PivotTable!C200,"") ->  | H200: =IF(ISNUMBER(Taxa_PivotTable!D200),Taxa_PivotTable!D200,"") ->  | L200: =IF(ISNUMBER(Taxa_PivotTable!E200),Taxa_PivotTable!E200,"") ->  | P200: =IF(ISNUMBER(Taxa_PivotTable!F200),Taxa_PivotTable!F200,"") ->  | T200: =IF(ISNUMBER(Taxa_PivotTable!G200),Taxa_PivotTable!G200,"") ->  | X200: =IF(ISNUMBER(Taxa_PivotTable!H200),Taxa_PivotTable!H200,"") ->  | AB200: =IF(ISNUMBER(Taxa_PivotTable!I200),Taxa_PivotTable!I200,"") ->  | AF200: =IF(ISNUMBER(Taxa_PivotTable!J200),Taxa_PivotTable!J200,"") ->  | AJ200: =IF(ISNUMBER(Taxa_PivotTable!K200),Taxa_PivotTable!K200,"") -> 
A201: =Taxa_PivotTable!A201 ->  | B201: =IF(Taxa_PivotTable!B201="","",Taxa_PivotTable!B201) ->  | C201: =IF(ISNUMBER(VLOOKUP(B201,UKOptima!A:J,10,FALSE)),VLOOKUP(B201,UKOptima!A:J,10,FALSE),"") ->  | D201: =IF(ISNUMBER(Taxa_PivotTable!C201),Taxa_PivotTable!C201,"") ->  | H201: =IF(ISNUMBER(Taxa_PivotTable!D201),Taxa_PivotTable!D201,"") ->  | L201: =IF(ISNUMBER(Taxa_PivotTable!E201),Taxa_PivotTable!E201,"") ->  | P201: =IF(ISNUMBER(Taxa_PivotTable!F201),Taxa_PivotTable!F201,"") ->  | T201: =IF(ISNUMBER(Taxa_PivotTable!G201),Taxa_PivotTable!G201,"") ->  | X201: =IF(ISNUMBER(Taxa_PivotTable!H201),Taxa_PivotTable!H201,"") ->  | AB201: =IF(ISNUMBER(Taxa_PivotTable!I201),Taxa_PivotTable!I201,"") ->  | AF201: =IF(ISNUMBER(Taxa_PivotTable!J201),Taxa_PivotTable!J201,"") ->  | AJ201: =IF(ISNUMBER(Taxa_PivotTable!K201),Taxa_PivotTable!K201,"") -> 
A202: =Taxa_PivotTable!A202 ->  | B202: =IF(Taxa_PivotTable!B202="","",Taxa_PivotTable!B202) ->  | C202: =IF(ISNUMBER(VLOOKUP(B202,UKOptima!A:J,10,FALSE)),VLOOKUP(B202,UKOptima!A:J,10,FALSE),"") ->  | D202: =IF(ISNUMBER(Taxa_PivotTable!C202),Taxa_PivotTable!C202,"") ->  | H202: =IF(ISNUMBER(Taxa_PivotTable!D202),Taxa_PivotTable!D202,"") ->  | L202: =IF(ISNUMBER(Taxa_PivotTable!E202),Taxa_PivotTable!E202,"") ->  | P202: =IF(ISNUMBER(Taxa_PivotTable!F202),Taxa_PivotTable!F202,"") ->  | T202: =IF(ISNUMBER(Taxa_PivotTable!G202),Taxa_PivotTable!G202,"") ->  | X202: =IF(ISNUMBER(Taxa_PivotTable!H202),Taxa_PivotTable!H202,"") ->  | AB202: =IF(ISNUMBER(Taxa_PivotTable!I202),Taxa_PivotTable!I202,"") ->  | AF202: =IF(ISNUMBER(Taxa_PivotTable!J202),Taxa_PivotTable!J202,"") ->  | AJ202: =IF(ISNUMBER(Taxa_PivotTable!K202),Taxa_PivotTable!K202,"") -> 
A203: =Taxa_PivotTable!A203 ->  | B203: =IF(Taxa_PivotTable!B203="","",Taxa_PivotTable!B203) ->  | C203: =IF(ISNUMBER(VLOOKUP(B203,UKOptima!A:J,10,FALSE)),VLOOKUP(B203,UKOptima!A:J,10,FALSE),"") ->  | D203: =IF(ISNUMBER(Taxa_PivotTable!C203),Taxa_PivotTable!C203,"") ->  | H203: =IF(ISNUMBER(Taxa_PivotTable!D203),Taxa_PivotTable!D203,"") ->  | L203: =IF(ISNUMBER(Taxa_PivotTable!E203),Taxa_PivotTable!E203,"") ->  | P203: =IF(ISNUMBER(Taxa_PivotTable!F203),Taxa_PivotTable!F203,"") ->  | T203: =IF(ISNUMBER(Taxa_PivotTable!G203),Taxa_PivotTable!G203,"") ->  | X203: =IF(ISNUMBER(Taxa_PivotTable!H203),Taxa_PivotTable!H203,"") ->  | AB203: =IF(ISNUMBER(Taxa_PivotTable!I203),Taxa_PivotTable!I203,"") ->  | AF203: =IF(ISNUMBER(Taxa_PivotTable!J203),Taxa_PivotTable!J203,"") ->  | AJ203: =IF(ISNUMBER(Taxa_PivotTable!K203),Taxa_PivotTable!K203,"") -> 
A204: =Taxa_PivotTable!A204 ->  | B204: =IF(Taxa_PivotTable!B204="","",Taxa_PivotTable!B204) ->  | C204: =IF(ISNUMBER(VLOOKUP(B204,UKOptima!A:J,10,FALSE)),VLOOKUP(B204,UKOptima!A:J,10,FALSE),"") ->  | D204: =IF(ISNUMBER(Taxa_PivotTable!C204),Taxa_PivotTable!C204,"") ->  | H204: =IF(ISNUMBER(Taxa_PivotTable!D204),Taxa_PivotTable!D204,"") ->  | L204: =IF(ISNUMBER(Taxa_PivotTable!E204),Taxa_PivotTable!E204,"") ->  | P204: =IF(ISNUMBER(Taxa_PivotTable!F204),Taxa_PivotTable!F204,"") ->  | T204: =IF(ISNUMBER(Taxa_PivotTable!G204),Taxa_PivotTable!G204,"") ->  | X204: =IF(ISNUMBER(Taxa_PivotTable!H204),Taxa_PivotTable!H204,"") ->  | AB204: =IF(ISNUMBER(Taxa_PivotTable!I204),Taxa_PivotTable!I204,"") ->  | AF204: =IF(ISNUMBER(Taxa_PivotTable!J204),Taxa_PivotTable!J204,"") ->  | AJ204: =IF(ISNUMBER(Taxa_PivotTable!K204),Taxa_PivotTable!K204,"") -> 
... 96 more rows

Sheet Classification
A1: Classification Results
A2: WBID | B2: ='Site Data'!B2 -> 28986
A3: Name | B3: ='Site Data'!B3 -> Loweswater
D4: Mean | J4: Confidence worse than class | O4: Face Value Class | Q4: Confidence of class
A5: Metric | B5: Years Classified | D5: EQRnorm | E5: N | F5: DF | G5: Std Dev | H5: Std Err | J5: p<H | K5: p<G | L5: p<M | M5: p<P | O5: FV Class | Q5: High | R5: Good | S5: Moderate | T5: Poor | U5: Bad | W5: Check
A6: Chlorophyll | B6: =IF(COUNT('Chlorophyll Data'!G14:G73)>1,MIN('Chlorophyll Data'!G14:G73)&"-"&MAX('Chlorophyll Data'!G14:G73),"") -> 2010-2012 | D6: ='Chlorophyll Data'!M7 -> 0.697283247 | E6: ='Chlorophyll Data'!M20 -> 36 | F6: =E6-1 -> 35 | G6: ='Chlorophyll Data'!M14*SQRT('Chlorophyll Data'!M20) -> 0.1146083541 | H6: ='Chlorophyll Data'!M14 -> 0.01910139235 | J6: =IF($D6>0.8,TDIST(ABS((0.8-$D6)/$H6),$F6,1),1-TDIST(ABS((0.8-$D6)/$H6),$F6,1)) -> 0.9999974434 | K6: =IF($D6>0.6,TDIST(ABS((0.6-$D6)/$H6),$F6,1),1-TDIST(ABS((0.6-$D6)/$H6),$F6,1)) -> 6.055654811e-06 | L6: =IF($D6>0.4,TDIST(ABS((0.4-$D6)/$H6),$F6,1),1-TDIST(ABS((0.4-$D6)/$H6),$F6,1)) -> 1.333979774e-17 | M6: =IF($D6>0.2,TDIST(ABS((0.2-$D6)/$H6),$F6,1),1-TDIST(ABS((0.2-$D6)/$H6),$F6,1)) -> 8.526262598e-25 | O6: =IF(D6>0.8,"High",IF(D6>0.6,"Good",IF(D6>0.4,"Moderate",IF(D6>0.2,"Poor","Bad")))) -> Good | Q6: =1-J6 -> 2.556628774e-06 | R6: =J6-K6 -> 0.9999913877 | S6: 6.055654811e-06 | T6: 1.333979689e-17 | U6: =M6 -> 8.526262598e-25 | W6: =SUM(Q6:U6)=1 -> TRUE
A7: PTI | B7: =YEAR(MIN('Taxon EQRs'!G2,'Taxon EQRs'!K2,'Taxon EQRs'!O2,'Taxon EQRs'!S2,'Taxon EQRs'!W2,'Taxon EQRs'!AA2,'Taxon EQRs'!AE2,'Taxon EQRs'!AI2,'Taxon EQRs'!AM2))&"-"&YEAR(MAX('Taxon EQRs'!G2:AM2)) -> 2010-2012 | D7: =AVERAGE('Taxon EQRs'!G4:AM4) -> 0.5491253717 | E7: =COUNT('Taxon EQRs'!G4:AM4) -> 7 | F7: =E7-1 -> 6 | G7: =STDEV('Taxon EQRs'!G4:AM4) -> 0.1027692104 | H7: =G7/SQRT(E7) -> 0.03884311046 | J7: =IF($D7>0.8,TDIST(ABS((0.8-$D7)/$H7),$F7,1),1-TDIST(ABS((0.8-$D7)/$H7),$F7,1)) -> 0.9996734476 | K7: =IF($D7>0.6,TDIST(ABS((0.6-$D7)/$H7),$F7,1),1-TDIST(ABS((0.6-$D7)/$H7),$F7,1)) -> 0.8809034725 | L7: =IF($D7>0.4,TDIST(ABS((0.4-$D7)/$H7),$F7,1),1-TDIST(ABS((0.4-$D7)/$H7),$F7,1)) -> 0.004283587606 | M7: =IF($D7>0.2,TDIST(ABS((0.2-$D7)/$H7),$F7,1),1-TDIST(ABS((0.2-$D7)/$H7),$F7,1)) -> 5.303009333e-05 | O7: =IF(D7>0.8,"High",IF(D7>0.6,"Good",IF(D7>0.4,"Moderate",IF(D7>0.2,"Poor","Bad")))) -> Moderate | Q7: =1-J7 -> 0.0003265523962 | R7: 0.1187699751 | S7: 0.8766198849 | T7: 0.004230557513 | U7: =M7 -> 5.303009333e-05 | W7: =SUM(Q7:U7)=1 -> TRUE
A8: Cyanobacteria | B8: =B7 -> 2010-2012 | D8: =AVERAGE('Taxon EQRs'!G9:AM9) -> 0.4851827512 | E8: =COUNT('Taxon EQRs'!G9:AM9) -> 7 | F8: =E8-1 -> 6 | G8: =STDEV('Taxon EQRs'!G9:AM9) -> 0.1085914861 | H8: =G8/SQRT(E8) -> 0.0410437238 | J8: =IF($D8>0.8,TDIST(ABS((0.8-$D8)/$H8),$F8,1),1-TDIST(ABS((0.8-$D8)/$H8),$F8,1)) -> 0.9998716019 | K8: =IF($D8>0.6,TDIST(ABS((0.6-$D8)/$H8),$F8,1),1-TDIST(ABS((0.6-$D8)/$H8),$F8,1)) -> 0.9843653134 | L8: =IF($D8>0.4,TDIST(ABS((0.4-$D8)/$H8),$F8,1),1-TDIST(ABS((0.4-$D8)/$H8),$F8,1)) -> 0.04163064545 | M8: =IF($D8>0.2,TDIST(ABS((0.2-$D8)/$H8),$F8,1),1-TDIST(ABS((0.2-$D8)/$H8),$F8,1)) -> 0.0002204310213 | O8: =IF(D8>0.8,"High",IF(D8>0.6,"Good",IF(D8>0.4,"Moderate",IF(D8>0.2,"Poor","Bad")))) -> Moderate | Q8: =1-J8 -> 0.000128398117 | R8: 0.01550628852 | S8: 0.9427346679 | T8: 0.04141021443 | U8: =M8 -> 0.0002204310213 | W8: =SUM(Q8:U8)=1 -> TRUE
A9: Chlorophyll & PTI | D9: =AVERAGE(D6:D7) -> 0.6232043093 | F9: =SUM(G$6^2/2,G$7^2/2)^2/SUM((G$6^2/2)^2/F$6,(G$7^2/2)^2/F$7) -> 23.87413961 | H9: =SQRT(SUM(H$6^2,H$7^2))/2 -> 0.02164284189 | J9: =IF($D9>0.8,TDIST(ABS((0.8-$D9)/$H9),$F9,1),1-TDIST(ABS((0.8-$D9)/$H9),$F9,1)) -> 0.999999985 | K9: =IF($D9>0.6,TDIST(ABS((0.6-$D9)/$H9),$F9,1),1-TDIST(ABS((0.6-$D9)/$H9),$F9,1)) -> 0.1473877008 | L9: =IF($D9>0.4,TDIST(ABS((0.4-$D9)/$H9),$F9,1),1-TDIST(ABS((0.4-$D9)/$H9),$F9,1)) -> 2.129803263e-10 | M9: =IF($D9>0.2,TDIST(ABS((0.2-$D9)/$H9),$F9,1),1-TDIST(ABS((0.2-$D9)/$H9),$F9,1)) -> 3.950765241e-16 | O9: =IF(D9>0.8,"High",IF(D9>0.6,"Good",IF(D9>0.4,"Moderate",IF(D9>0.2,"Poor","Bad")))) -> Good | Q9: =1-J9 -> 1.496124236e-08 | R9: =J9-K9 -> 0.8526122842 | S9: 0.1473877006 | T9: 2.129799312e-10 | U9: =M9 -> 3.950765241e-16 | W9: =SUM(Q9:U9)=1 -> TRUE
A10: Chlorophyll, PTI & Cyanobacteria | D10: =AVERAGE(D6:D8) -> 0.5771971233 | F10: =SUM(G$6^2/3,G$7^2/3,G$8^2/3)^2/SUM((G$6^2/3)^2/F$6,(G$7^2/3)^2/F$7,(G$8^2/3)^2/F$8) -> 26.97120984 | H10: =SQRT(SUM(H$6^2,H$7^2,H$8^2))/3 -> 0.01988365516 | J10: =IF($D10>0.8,TDIST(ABS((0.8-$D10)/$H10),$F10,1),1-TDIST(ABS((0.8-$D10)/$H10),$F10,1)) -> 1 | K10: =IF($D10>0.6,TDIST(ABS((0.6-$D10)/$H10),$F10,1),1-TDIST(ABS((0.6-$D10)/$H10),$F10,1)) -> 0.8690486992 | L10: =IF($D10>0.4,TDIST(ABS((0.4-$D10)/$H10),$F10,1),1-TDIST(ABS((0.4-$D10)/$H10),$F10,1)) -> 1.102912325e-09 | M10: =IF($D10>0.2,TDIST(ABS((0.2-$D10)/$H10),$F10,1),1-TDIST(ABS((0.2-$D10)/$H10),$F10,1)) -> 4.723009804e-17 | O10: =IF(D10>0.8,"High",IF(D10>0.6,"Good",IF(D10>0.4,"Moderate",IF(D10>0.2,"Poor","Bad")))) -> Moderate | Q10: =1-J10 -> 9.41957623e-12 | R10: 0.1309513008 | S10: 0.8690486981 | T10: 1.102912278e-09 | U10: =M10 -> 4.723009804e-17 | W10: =SUM(Q10:U10)=1 -> TRUE
A11: Cyan EQR < Average Chl and PTI EQR | D11: =D8<D9 -> TRUE
A12: Combined Phytoplankton Status | D12: =IF(D8<D9,D10,D9) -> 0.5771971233 | F12: =IF(D$8<D$9,SUM(G$6^2/3,G$7^2/3,G$8^2/3)^2/SUM((G$6^2/3)^2/F$6,(G$7^2/3)^2/F$7,(G$8^2/3)^2/F$8),SUM(G$6^2/2,G$7^2/2)^2/SUM((G$6^2/2)^2/F$6,(G$7^2/2)^2/F$7)) -> 26.97120984 | H12: =IF(D8<D9,H10,H9) -> 0.01988365516 | J12: =IF($D12>0.8,TDIST(ABS((0.8-$D12)/$H12),$F12,1),1-TDIST(ABS((0.8-$D12)/$H12),$F12,1)) -> 1 | K12: =IF($D12>0.6,TDIST(ABS((0.6-$D12)/$H12),$F12,1),1-TDIST(ABS((0.6-$D12)/$H12),$F12,1)) -> 0.8690486992 | L12: =IF($D12>0.4,TDIST(ABS((0.4-$D12)/$H12),$F12,1),1-TDIST(ABS((0.4-$D12)/$H12),$F12,1)) -> 1.102912325e-09 | M12: =IF($D12>0.2,TDIST(ABS((0.2-$D12)/$H12),$F12,1),1-TDIST(ABS((0.2-$D12)/$H12),$F12,1)) -> 4.723009804e-17 | O12: =IF(D12>0.8,"High",IF(D12>0.6,"Good",IF(D12>0.4,"Moderate",IF(D12>0.2,"Poor","Bad")))) -> Moderate | Q12: =1-J12 -> 9.41957623e-12 | R12: =J12-K12 -> 0.1309513008 | S12: =K12-L12 -> 0.8690486981 | T12: =L12-M12 -> 1.102912278e-09 | U12: =M12 -> 4.723009804e-17 | W12: =SUM(Q12:U12)=1 -> TRUE
A16: Chlorophyll | B16: 2010-2012 | D16: 0.6966939362 | E16: 39 | F16: 38 | G16: 0.2056586163 | H16: 0.03293173454 | J16: 0.9983546166 | K16: 0.002807257724 | L16: 2.853718843e-11 | M16: 6.296614394e-18 | O16: Good | Q16: 0.00164538343 | R16: 0.9955473588 | S16: 0.002807257695 | T16: 2.853718213e-11 | U16: 6.296614394e-18 | W16: TRUE
A17: Chlorophyll | B17: 2010-2012 | D17: 0.6966939362 | E17: 39 | F17: 38 | G17: 0.1143968778 | H17: 0.01831816084 | J17: 0.9999991112 | K17: 2.772321884e-06 | L17: 5.989574003e-19 | M17: 9.051799585e-27 | O17: Good | Q17: 8.888047658e-07 | R17: 0.9999963389 | S17: 2.772321884e-06 | T17: 5.989573912e-19 | U17: 9.051799585e-27 | W17: TRUE
A18: Chlorophyll | B18: 2010-2012 | D18: 0.7155915257 | E18: 11 | F18: 10 | G18: 0.1874958549 | H18: 0.05653212733 | J18: 0.9168636804 | K18: 0.0340545868 | L18: 0.0001166443678 | M18: 1.835846358e-06 | O18: Good | Q18: 0.08313631958 | R18: 0.8828090936 | S18: 0.03393794243 | T18: 0.0001148085214 | U18: 1.835846358e-06 | W18: TRUE
A19: Chlorophyll | B19: 2010-2012 | D19: 0.7155915257 | E19: 11 | F19: 10 | G19: 0.1115392639 | H19: 0.03363035343 | J19: 0.9845407735 | K19: 0.003181035433 | L19: 1.418712922e-06 | M19: 1.417005195e-08 | O19: Good | Q19: 0.01545922649 | R19: 0.9813597381 | S19: 0.00317961672 | T19: 1.40454287e-06 | U19: 1.417005195e-08 | W19: TRUE

Sheet Data for Export
A1: Sample metric results
B3: ='Taxon EQRs'!G2 -> 2010-07-07 | C3: ='Taxon EQRs'!K2 -> 2010-08-12 | D3: ='Taxon EQRs'!O2 -> 2010-09-13 | E3: ='Taxon EQRs'!S2 -> 2011-09-27 | F3: ='Taxon EQRs'!W2 -> 2012-07-24 | G3: ='Taxon EQRs'!AA2 -> 2012-08-21 | H3: ='Taxon EQRs'!AE2 -> 2012-09-26 | I3: ='Taxon EQRs'!AI2 -> (blank) | J3: ='Taxon EQRs'!AM2 -> 
A4: PTI Class | B4: ='Taxon EQRs'!G3 -> Moderate | C4: ='Taxon EQRs'!K3 -> Good | D4: ='Taxon EQRs'!O3 -> Good | E4: ='Taxon EQRs'!S3 -> Moderate | F4: ='Taxon EQRs'!W3 -> Good | G4: ='Taxon EQRs'!AA3 -> Moderate | H4: ='Taxon EQRs'!AE3 -> Good | I4: ='Taxon EQRs'!AI3 ->  | J4: ='Taxon EQRs'!AM3 -> 
A5: PTI EQRNorm | B5: ='Taxon EQRs'!G4 -> 0.4511868636 | C5: ='Taxon EQRs'!K4 -> 0.6606147954 | D5: ='Taxon EQRs'!O4 -> 0.627272288 | E5: ='Taxon EQRs'!S4 -> 0.4348074346 | F5: ='Taxon EQRs'!W4 -> 0.6085955976 | G5: ='Taxon EQRs'!AA4 -> 0.4359479606 | H5: ='Taxon EQRs'!AE4 -> 0.6254526624 | I5: ='Taxon EQRs'!AI4 ->  | J5: ='Taxon EQRs'!AM4 -> 
A6: PTI EQR | B6: ='Taxon EQRs'!G5 -> 0.7842914557 | C6: ='Taxon EQRs'!K5 -> 0.8966572506 | D6: ='Taxon EQRs'!O5 -> 0.8798271446 | E6: ='Taxon EQRs'!S5 -> 0.7747356717 | F6: ='Taxon EQRs'!W5 -> 0.8702428964 | G6: ='Taxon EQRs'!AA5 -> 0.7754053193 | H6: ='Taxon EQRs'!AE5 -> 0.8788984396 | I6: ='Taxon EQRs'!AI5 ->  | J6: ='Taxon EQRs'!AM5 -> 
A7: Ref PTI | B7: ='Taxon EQRs'!G6 -> 0.4524703125 | C7: ='Taxon EQRs'!K6 -> 0.4524703125 | D7: ='Taxon EQRs'!O6 -> 0.4524703125 | E7: ='Taxon EQRs'!S6 -> 0.4524703125 | F7: ='Taxon EQRs'!W6 -> 0.4524703125 | G7: ='Taxon EQRs'!AA6 -> 0.4524703125 | H7: ='Taxon EQRs'!AE6 -> 0.4524703125 | I7: ='Taxon EQRs'!AI6 -> 0.4524703125 | J7: ='Taxon EQRs'!AM6 -> 0.4524703125
A8: PTI | B8: ='Taxon EQRs'!G7 -> 0.5166500083 | C8: ='Taxon EQRs'!K7 -> 0.4832178484 | D8: ='Taxon EQRs'!O7 -> 0.4882253046 | E8: ='Taxon EQRs'!S7 -> 0.5194931377 | F8: ='Taxon EQRs'!W7 -> 0.491076903 | G8: ='Taxon EQRs'!AA7 -> 0.5192938977 | H8: ='Taxon EQRs'!AE7 -> 0.4885016219 | I8: ='Taxon EQRs'!AI7 ->  | J8: ='Taxon EQRs'!AM7 -> 
A9: Cyan Class | B9: ='Taxon EQRs'!G8 -> Moderate | C9: ='Taxon EQRs'!K8 -> Moderate | D9: ='Taxon EQRs'!O8 -> Moderate | E9: ='Taxon EQRs'!S8 -> Good | F9: ='Taxon EQRs'!W8 -> Moderate | G9: ='Taxon EQRs'!AA8 -> Poor | H9: ='Taxon EQRs'!AE8 -> Moderate | I9: ='Taxon EQRs'!AI8 ->  | J9: ='Taxon EQRs'!AM8 -> 
A10: Cyan EQRNorm | B10: ='Taxon EQRs'!G9 -> 0.5411588647 | C10: ='Taxon EQRs'!K9 -> 0.505657405 | D10: ='Taxon EQRs'!O9 -> 0.4211951496 | E10: ='Taxon EQRs'!S9 -> 0.669447577 | F10: ='Taxon EQRs'!W9 -> 0.4016925968 | G10: ='Taxon EQRs'!AA9 -> 0.3397658051 | H10: ='Taxon EQRs'!AE9 -> 0.5173618601 | I10: ='Taxon EQRs'!AI9 ->  | J10: ='Taxon EQRs'!AM9 -> 
A11: Cyan EQR | B11: ='Taxon EQRs'!G10 -> 0.2935214891 | C11: ='Taxon EQRs'!K10 -> 0.2775458323 | D11: ='Taxon EQRs'!O10 -> 0.2395378173 | E11: ='Taxon EQRs'!S10 -> 0.3720856827 | F11: ='Taxon EQRs'!W10 -> 0.2307616685 | G11: ='Taxon EQRs'!AA10 -> 0.1998829025 | H11: ='Taxon EQRs'!AE10 -> 0.2828128371 | I11: ='Taxon EQRs'!AI10 ->  | J11: ='Taxon EQRs'!AM10 -> 
A12: Ref Cyan | B12: ='Taxon EQRs'!G11 -> 0 | C12: ='Taxon EQRs'!K11 -> 0 | D12: ='Taxon EQRs'!O11 -> 0 | E12: ='Taxon EQRs'!S11 -> 0 | F12: ='Taxon EQRs'!W11 -> 0 | G12: ='Taxon EQRs'!AA11 -> 0 | H12: ='Taxon EQRs'!AE11 -> 0 | I12: ='Taxon EQRs'!AI11 -> 0 | J12: ='Taxon EQRs'!AM11 -> 0
A13: Cyan Bvol (mm3/l) | B13: ='Taxon EQRs'!G12 -> 0.740305252 | C13: ='Taxon EQRs'!K12 -> 0.9055702949 | D13: ='Taxon EQRs'!O12 -> 1.462564379 | E13: ='Taxon EQRs'!S12 -> 0.2747930515 | F13: ='Taxon EQRs'!W12 -> 1.633752055 | G13: ='Taxon EQRs'!AA12 -> 2.411690161 | H13: ='Taxon EQRs'!AE12 -> 0.8473656263 | I13: ='Taxon EQRs'!AI12 -> 0 | J13: ='Taxon EQRs'!AM12 -> 0
A14: Cyan % | B14: ='Taxon EQRs'!G13 -> 0 | C14: ='Taxon EQRs'!K13 -> 0 | D14: ='Taxon EQRs'!O13 -> 0 | E14: ='Taxon EQRs'!S13 -> 0 | F14: ='Taxon EQRs'!W13 -> 0 | G14: ='Taxon EQRs'!AA13 -> 0 | H14: ='Taxon EQRs'!AE13 -> 0 | I14: ='Taxon EQRs'!AI13 -> 0 | J14: ='Taxon EQRs'!AM13 -> 0
A16: Water body classification results
A18: =Classification!A5 -> Metric | C18: =Classification!B5 -> Years Classified | D18: =Classification!D5 -> EQRnorm | E18: =Classification!E5 -> N | F18: =Classification!O5 -> FV Class | G18: =Classification!Q5 -> High | H18: =Classification!R5 -> Good | I18: =Classification!S5 -> Moderate | J18: =Classification!T5 -> Poor | K18: =Classification!U5 -> Bad
A19: =Classification!A6 -> Chlorophyll | C19: =Classification!B6 -> 2010-2012 | D19: =Classification!D6 -> 0.697283247 | E19: =Classification!E6 -> 36 | F19: =Classification!O6 -> Good | G19: =Classification!Q6 -> 2.556628774e-06 | H19: =Classification!R6 -> 0.9999913877 | I19: =Classification!S6 -> 6.055654811e-06 | J19: =Classification!T6 -> 1.333979689e-17 | K19: =Classification!U6 -> 8.526262598e-25
A20: =Classification!A7 -> PTI | C20: =Classification!B7 -> 2010-2012 | D20: =Classification!D7 -> 0.5491253717 | E20: =Classification!E7 -> 7 | F20: =Classification!O7 -> Moderate | G20: =Classification!Q7 -> 0.0003265523962 | H20: =Classification!R7 -> 0.1187699751 | I20: =Classification!S7 -> 0.8766198849 | J20: =Classification!T7 -> 0.004230557513 | K20: =Classification!U7 -> 5.303009333e-05
A21: =Classification!A8 -> Cyanobacteria | C21: =Classification!B8 -> 2010-2012 | D21: =Classification!D8 -> 0.4851827512 | E21: =Classification!E8 -> 7 | F21: =Classification!O8 -> Moderate | G21: =Classification!Q8 -> 0.000128398117 | H21: =Classification!R8 -> 0.01550628852 | I21: =Classification!S8 -> 0.9427346679 | J21: =Classification!T8 -> 0.04141021443 | K21: =Classification!U8 -> 0.0002204310213
A22: =Classification!A12 -> Combined Phytoplankton Status | D22: =Classification!D12 -> 0.5771971233 | F22: =Classification!O12 -> Moderate | G22: =Classification!Q12 -> 9.41957623e-12 | H22: =Classification!R12 -> 0.1309513008 | I22: =Classification!S12 -> 0.8690486981 | J22: =Classification!T12 -> 1.102912278e-09 | K22: =Classification!U12 -> 4.723009804e-17

Sheet UKOptima
A1: WH_Code | B1: on UK Counter List | C1: GenusRecord | D1: DAT_TaxaList2009_Taxon_Name | E1: Mixed Taxon Optima | F1: Optima Genus | G1: Substitute genus optima | H1: Genus | I1: Species | J1: Optima used | K1: Optima type | L1: Reason use genus | M1: Warning | N1: Ignore | O1: IgnoreReason | P1: WH_Code_touse | Q1: GenusCode | R1: Mixed Taxon Optima | S1: MxTaxN2 | T1: TBL_GenusCodes2009_Taxon_Name | U1: Optima Genus | V1: GenusN2 | W1: NinDataSet
A2: 01000000 | B2: TRUE | C2: 1 | D2: Unidentified Cyanophyte | F2: 0.581 | H2: Unidentified Cyanophyte | J2: 0.581 | K2: group | N2: FALSE | Q2: 0100 | R2: 0.574 | S2: 41.14 | T2: Unidentified Cyanophyte | U2: 0.581 | V2: 40.25 | W2: 201
A3: 01020000 | B3: TRUE | C3: 1 | D3: Anabaena | F3: 0.568 | H3: Anabaena | J3: 0.568 | K3: genus | N3: FALSE | Q3: 0102 | R3: 0.515 | S3: 85.14 | T3: Anabaena | U3: 0.568 | V3: 96.64 | W3: 430
A4: 01020040 | B4: TRUE | D4: Anabaena catenula | E4: 0.713 | I4: Anabaena catenula | J4: 0.713 | K4: species | N4: FALSE | Q4: 0102 | R4: 0.713 | S4: 22.88 | T4: Anabaena | U4: 0.568 | V4: 96.64 | W4: 67
A5: 01020042 | B5: TRUE | D5: Anabaena catenula var. solitaria | E5: 0.701 | I5: Anabaena catenula var. solitaria | J5: 0.701 | K5: species | N5: FALSE | Q5: 0102 | R5: 0.701 | S5: 9.12 | T5: Anabaena | U5: 0.568 | V5: 96.64 | W5: 31
A6: 01020050 | B6: TRUE | D6: Anabaena circinalis | E6: 0.743 | I6: Anabaena circinalis | J6: 0.743 | K6: species | N6: FALSE | Q6: 0102 | R6: 0.743 | S6: 14.26 | T6: Anabaena | U6: 0.568 | V6: 96.64 | W6: 34
A7: 01020090 | B7: TRUE | D7: Anabaena flos-aquae | E7: 0.652 | I7: Anabaena flos-aquae | J7: 0.652 | K7: species | N7: FALSE | Q7: 0102 | R7: 0.652 | S7: 50.41 | T7: Anabaena | U7: 0.568 | V7: 96.64 | W7: 156
A8: 01020130 | B8: FALSE | D8: Anabaena planctonica | E8: 0.618 | I8: Anabaena planctonica | J8: 0.618 | K8: species | N8: FALSE | Q8: 0102 | R8: 0.618 | S8: 3.84 | T8: Anabaena | U8: 0.568 | V8: 96.64 | W8: 7
A9: 01020140 | B9: TRUE | D9: Anabaena spiroides | E9: 0.631 | I9: Anabaena spiroides | J9: 0.631 | K9: species | N9: FALSE | Q9: 0102 | R9: 0.631 | S9: 13.93 | T9: Anabaena | U9: 0.568 | V9: 96.64 | W9: 46
A10: 01020210 | B10: FALSE | D10: Anabaena curva | G10: 0.568 | I10: Anabaena curva | J10: 0.568 | K10: genus | L10: not in training data | N10: FALSE | P10: 01020000 | Q10: 0102 | T10: Anabaena | U10: 0.568 | V10: 96.64 | W10: 2
A11: 01020230 | B11: FALSE | D11: ANABAENA CRASSA | E11: 0.448 | G11: 0.568 | I11: Anabaena crassa | J11: 0.568 | K11: genus | L11: too few records | N11: FALSE | Q11: 0102 | R11: 0.448 | S11: 1 | T11: Anabaena | U11: 0.568 | V11: 96.64 | W11: 1
A12: 01020240 | B12: FALSE | D12: ANABAENA FARCIMINIFORMIS | E12: 0.341 | G12: 0.568 | I12: Anabaena farciminiformis | J12: 0.568 | K12: genus | L12: too few records | N12: FALSE | Q12: 0102 | R12: 0.341 | S12: 1.99 | T12: Anabaena | U12: 0.568 | V12: 96.64 | W12: 2
A13: 01030000 | B13: FALSE | C13: 1 | D13: Anabaenopsis | F13: 0.729 | H13: Anabaenopsis | J13: 0.729 | K13: genus | M13: genus optima derived few records | N13: FALSE | Q13: 0103 | R13: 0.731 | S13: 1.99 | T13: Anabaenopsis | U13: 0.729 | V13: 1.98 | W13: 8
A14: 01040000 | B14: TRUE | C14: 1 | D14: Aphanizomenon | F14: 0.717 | H14: Aphanizomenon | J14: 0.717 | K14: genus | N14: FALSE | Q14: 0104 | R14: 0.68 | S14: 33.03 | T14: Aphanizomenon | U14: 0.717 | V14: 54.86 | W14: 152
A15: 01040020 | B15: TRUE | D15: Aphanizomenon flos-aquae | E15: 0.748 | I15: Aphanizomenon flos-aquae | J15: 0.748 | K15: species | N15: FALSE | Q15: 0104 | R15: 0.748 | S15: 32.85 | T15: Aphanizomenon | U15: 0.717 | V15: 54.86 | W15: 124
A16: 01040040 | B16: TRUE | D16: Aphanizomenon issatschenkoi | G16: 0.717 | I16: Aphanizomenon issatschenkoi | J16: 0.717 | K16: genus | L16: not in training data | N16: FALSE | P16: 01040000 | Q16: 0104 | T16: Aphanizomenon | U16: 0.717 | V16: 54.86 | W16: 1
A17: 01050000 | B17: TRUE | C17: 1 | D17: Aphanocapsa | F17: 0.539 | H17: Aphanocapsa | J17: 0.539 | K17: genus | N17: FALSE | Q17: 0105 | R17: 0.532 | S17: 83.91 | T17: Aphanocapsa | U17: 0.539 | V17: 81.12 | W17: 380
A18: 01050020 | B18: TRUE | D18: Aphanocapsa delicatissima | G18: 0.539 | I18: Aphanocapsa delicatissima | J18: 0.539 | K18: genus | L18: not in training data | N18: FALSE | P18: 01050000 | Q18: 0105 | T18: Aphanocapsa | U18: 0.539 | V18: 81.12 | W18: 7
A19: 01050030 | B19: TRUE | D19: Aphanocapsa elachista | E19: 0.405 | I19: Aphanocapsa elachista | J19: 0.405 | K19: species | N19: FALSE | Q19: 0105 | R19: 0.405 | S19: 5.74 | T19: Aphanocapsa | U19: 0.539 | V19: 81.12 | W19: 21
A20: 01060000 | B20: TRUE | C20: 1 | D20: Aphanothece | F20: 0.459 | H20: Aphanothece | J20: 0.459 | K20: genus | N20: FALSE | Q20: 0106 | R20: 0.474 | S20: 32.56 | T20: Aphanothece | U20: 0.459 | V20: 37.18 | W20: 96
A21: 01060020 | B21: TRUE | D21: Aphanothece clathrata | G21: 0.459 | I21: Aphanothece clathrata | J21: 0.459 | K21: genus | L21: not in training data | N21: FALSE | P21: 01060000 | Q21: 0106 | T21: Aphanothece | U21: 0.459 | V21: 37.18 | W21: 8
A22: 01060050 | B22: TRUE | D22: Aphanothece minutissima | E22: 0.301 | I22: Aphanothece minutissima | J22: 0.301 | K22: species | N22: FALSE | Q22: 0106 | R22: 0.301 | S22: 17.17 | T22: Aphanothece | U22: 0.459 | V22: 37.18 | W22: 46
A23: 01130000 | B23: TRUE | C23: 1 | D23: Chroococcus | F23: 0.438 | H23: Chroococcus | J23: 0.438 | K23: genus | N23: FALSE | Q23: 0113 | R23: 0.442 | S23: 44.02 | T23: Chroococcus | U23: 0.438 | V23: 43.87 | W23: 145
A24: 01130020 | B24: TRUE | D24: Chroococcus dispersus | E24: 0.535 | G24: 0.438 | I24: Chroococcus dispersus | J24: 0.438 | K24: genus | L24: too few records | N24: FALSE | Q24: 0113 | R24: 0.535 | S24: 1 | T24: Chroococcus | U24: 0.438 | V24: 43.87 | W24: 3
A25: 01130040 | B25: FALSE | D25: Chroococcus limneticus | G25: 0.438 | I25: Chroococcus limneticus | J25: 0.438 | K25: genus | L25: not in training data | N25: FALSE | P25: 01130000 | Q25: 0113 | T25: Chroococcus | U25: 0.438 | V25: 43.87 | W25: 2
A26: 01130060 | B26: TRUE | D26: Chroococcus minutus | E26: 0.349 | I26: Chroococcus minutus | J26: 0.349 | K26: species | N26: FALSE | Q26: 0113 | R26: 0.349 | S26: 10.52 | T26: Chroococcus | U26: 0.438 | V26: 43.87 | W26: 15
A27: 01150000 | B27: TRUE | C27: 1 | D27: Coelosphaerium | F27: 0.496 | H27: Coelosphaerium | J27: 0.496 | K27: genus | N27: FALSE | Q27: 0115 | R27: 0.545 | S27: 6.56 | T27: Coelosphaerium | U27: 0.496 | V27: 12.53 | W27: 18
A28: 01150010 | B28: TRUE | D28: Coelosphaerium kuetzingianum | E28: 0.495 | I28: Coelosphaerium kuetzingianum | J28: 0.495 | K28: species | N28: FALSE | Q28: 0115 | R28: 0.495 | S28: 2.95 | T28: Coelosphaerium | U28: 0.496 | V28: 12.53 | W28: 4
A29: 01150020 | B29: FALSE | D29: Coelosphaerium naegelianum | E29: 0.638 | G29: 0.496 | I29: Coelosphaerium naegelianum | J29: 0.496 | K29: genus | L29: too few records | N29: FALSE | Q29: 0115 | R29: 0.638 | S29: 1 | T29: Coelosphaerium | U29: 0.496 | V29: 12.53 | W29: 2
A30: 01150030 | B30: FALSE | D30: COELOSPHAERIUM SUBARCTICUM | E30: 0.233 | I30: coelosphaerium subarcticum | J30: 0.233 | K30: species | N30: FALSE | Q30: 0115 | R30: 0.233 | S30: 4.94 | T30: Coelosphaerium | U30: 0.496 | V30: 12.53 | W30: 9
A31: 01170000 | B31: FALSE | C31: 1 | D31: Cyanodictyon | F31: 0.325 | H31: Cyanodictyon | J31: 0.325 | K31: genus | N31: FALSE | Q31: 0117 | R31: 0.222 | S31: 7.56 | T31: Cyanodictyon | U31: 0.325 | V31: 17.12 | W31: 21
A32: 01170010 | B32: FALSE | D32: Cyanodictyon imperfectum | E32: 0.418 | I32: Cyanodictyon imperfectum | J32: 0.418 | K32: species | N32: FALSE | Q32: 0117 | R32: 0.418 | S32: 8.19 | T32: Cyanodictyon | U32: 0.325 | V32: 17.12 | W32: 11
A33: 01170020 | B33: TRUE | D33: Cyanodictyon planctonicum | E33: 0.322 | I33: Cyanodictyon planctonicum | J33: 0.322 | K33: species | N33: FALSE | Q33: 0117 | R33: 0.322 | S33: 12.78 | T33: Cyanodictyon | U33: 0.325 | V33: 17.12 | W33: 33
A34: 01170040 | B34: FALSE | D34: Cyanodictyon cf. filiforme | G34: 0.325 | I34: Cyanodictyon cf. filiforme | J34: 0.325 | K34: genus | L34: not in training data | N34: FALSE | P34: 01170000 | Q34: 0117 | T34: Cyanodictyon | U34: 0.325 | V34: 17.12 | W34: 1
A35: 01200000 | B35: FALSE | C35: 1 | D35: Cylindrospermum | F35: 0.193 | H35: Cylindrospermum | J35: 0.193 | K35: genus | M35: genus optima derived few records | N35: FALSE | Q35: 0120 | R35: 0.193 | S35: 1 | T35: Cylindrospermum | U35: 0.193 | V35: 1 | W35: 1
A36: 01300000 | B36: FALSE | C36: 1 | D36: Gloeothece | F36: 0.365 | H36: Gloeothece | J36: 0.365 | K36: genus | M36: genus optima derived few records | N36: FALSE | Q36: 0130 | R36: 0.339 | S36: 1.87 | T36: Gloeothece | U36: 0.365 | V36: 1.64 | W36: 2
A37: 01310000 | B37: FALSE | C37: 1 | D37: Gloeotrichia | F37: 0.602 | H37: Gloeotrichia | J37: 0.602 | K37: genus | N37: FALSE | Q37: 0131 | R37: 0.603 | S37: 3.96 | T37: Gloeotrichia | U37: 0.602 | V37: 3.96 | W37: 16
A38: 01320000 | B38: TRUE | C38: 1 | D38: Gomphosphaeria | F38: 0.46 | H38: Gomphosphaeria | J38: 0.46 | K38: genus | N38: FALSE | Q38: 0132 | R38: 0.451 | S38: 12.43 | T38: Gomphosphaeria | U38: 0.46 | V38: 12.65 | W38: 45
A39: 01320010 | B39: TRUE | D39: Gomphosphaeria aponina | E39: 0.436 | I39: Gomphosphaeria aponina | J39: 0.436 | K39: species | N39: FALSE | Q39: 0132 | R39: 0.436 | S39: 2.9 | T39: Gomphosphaeria | U39: 0.46 | V39: 12.65 | W39: 3
A40: 01350010 | B40: FALSE | K40: species | L40: not in training data | N40: FALSE | Q40: 0135 | T40: Microcrocis
A41: 01430000 | B41: TRUE | C41: 1 | D41: Lyngbya | F41: 0.71 | H41: Lyngbya | J41: 0.71 | K41: genus | N41: FALSE | Q41: 0143 | R41: 0.695 | S41: 9.09 | T41: Lyngbya | U41: 0.71 | V41: 7.94 | W41: 29
A42: 01430050 | B42: TRUE | D42: Lyngbya contorta | E42: 0.696 | G42: 0.71 | I42: Lyngbya contorta | J42: 0.71 | K42: genus | L42: too few records | N42: FALSE | Q42: 0143 | R42: 0.696 | S42: 1.39 | T42: Lyngbya | U42: 0.71 | V42: 7.94 | W42: 10
A43: 01430100 | B43: FALSE | D43: Planktolyngbya limnetica | G43: 0.71 | I43: Planktolyngbya limnetica | J43: 0.71 | K43: genus | L43: not in training data | N43: FALSE | P43: 01430000 | Q43: 0143 | T43: Lyngbya | U43: 0.71 | V43: 7.94 | W43: 1
A44: 01460000 | B44: TRUE | C44: 1 | D44: Merismopedia | F44: 0.48 | H44: Merismopedia | J44: 0.48 | K44: genus | N44: FALSE | Q44: 0146 | R44: 0.509 | S44: 45.87 | T44: Merismopedia | U44: 0.48 | V44: 47.74 | W44: 157
A45: 01460020 | B45: FALSE | D45: Merismopedia glauca | G45: 0.48 | I45: Merismopedia glauca | J45: 0.48 | K45: genus | L45: not in training data | N45: FALSE | P45: 01460000 | Q45: 0146 | T45: Merismopedia | U45: 0.48 | V45: 47.74 | W45: 4
A46: 01460030 | B46: FALSE | D46: Merismopedia punctata | G46: 0.48 | I46: Merismopedia punctata | J46: 0.48 | K46: genus | L46: not in training data | N46: FALSE | P46: 01460000 | Q46: 0146 | T46: Merismopedia | U46: 0.48 | V46: 47.74 | W46: 6
A47: 01460040 | B47: FALSE | D47: Merismopedia tenuissima | G47: 0.48 | I47: Merismopedia tenuissima | J47: 0.48 | K47: genus | L47: not in training data | N47: FALSE | P47: 01460000 | Q47: 0146 | T47: Merismopedia | U47: 0.48 | V47: 47.74 | W47: 4
A48: 01460050 | B48: TRUE | D48: Merismopedia warmingiana | E48: 0.225 | I48: Merismopedia warmingiana | J48: 0.225 | K48: species | N48: FALSE | Q48: 0146 | R48: 0.225 | S48: 21.32 | T48: Merismopedia | U48: 0.48 | V48: 47.74 | W48: 52
A49: 01490000 | B49: TRUE | C49: 1 | D49: Microcystis | F49: 0.672 | H49: Microcystis | J49: 0.672 | K49: genus | N49: FALSE | Q49: 0149 | R49: 0.665 | S49: 37.96 | T49: Microcystis | U49: 0.672 | V49: 36.79 | W49: 177
A50: 01490010 | B50: TRUE | D50: Microcystis aeruginosa | G50: 0.672 | I50: Microcystis aeruginosa | J50: 0.672 | K50: genus | L50: not in training data | N50: FALSE | P50: 01490000 | Q50: 0149 | T50: Microcystis | U50: 0.672 | V50: 36.79 | W50: 18
A51: 01490020 | B51: TRUE | D51: Microcystis flos-aquae | G51: 0.672 | I51: Microcystis flos-aquae | J51: 0.672 | K51: genus | L51: not in training data | N51: FALSE | P51: 01490000 | Q51: 0149 | T51: Microcystis | U51: 0.672 | V51: 36.79 | W51: 20
A52: 01490030 | B52: TRUE | D52: Microcystis wesenbergii | G52: 0.672 | I52: Microcystis wesenbergii | J52: 0.672 | K52: genus | L52: not in training data | N52: FALSE | P52: 01490000 | Q52: 0149 | T52: Microcystis | U52: 0.672 | V52: 36.79 | W52: 13
A53: 01520000 | B53: FALSE | C53: 1 | D53: Nostoc | F53: 0 | K53: species | N53: FALSE | Q53: 0152 | R53: 0 | S53: 1 | T53: Nostoc | U53: 0 | V53: 1 | W53: 1
A54: 01530000 | B54: TRUE | C54: 1 | D54: Oscillatoria | F54: 0.567 | H54: Oscillatoria | J54: 0.567 | K54: genus | N54: FALSE | Q54: 0153 | R54: 0.54 | S54: 79.3 | T54: Oscillatoria | U54: 0.567 | V54: 92.37 | W54: 354
A55: 01530010 | B55: TRUE | D55: Oscillatoria agardhii | E55: 0.552 | I55: Oscillatoria agardhii | J55: 0.552 | K55: species | N55: FALSE | Q55: 0153 | R55: 0.552 | S55: 28.4 | T55: Oscillatoria | U55: 0.567 | V55: 92.37 | W55: 144
A56: 01530012 | B56: TRUE | D56: Oscillatoria agardhii var. isothrix | E56: 0.322 | I56: Oscillatoria agardhii var. isothrix | J56: 0.322 | K56: species | N56: FALSE | Q56: 0153 | R56: 0.322 | S56: 2.88 | T56: Oscillatoria | U56: 0.567 | V56: 92.37 | W56: 21
A57: 01530070 | B57: FALSE | D57: Oscillatoria bornetii | G57: 0.567 | I57: Oscillatoria bornetii | J57: 0.567 | K57: genus | L57: not in training data | N57: FALSE | P57: 01530000 | Q57: 0153 | T57: Oscillatoria | U57: 0.567 | V57: 92.37 | W57: 1
A58: 01530160 | B58: TRUE | D58: Oscillatoria limnetica | E58: 0.643 | I58: Oscillatoria limnetica | J58: 0.643 | K58: species | N58: FALSE | Q58: 0153 | R58: 0.643 | S58: 31.31 | T58: Oscillatoria | U58: 0.567 | V58: 92.37 | W58: 168
A59: 01530170 | B59: TRUE | D59: Oscillatoria limosa | G59: 0.567 | I59: Oscillatoria limosa | J59: 0.567 | K59: genus | L59: not in training data | N59: FALSE | P59: 01530000 | Q59: 0153 | T59: Oscillatoria | U59: 0.567 | V59: 92.37 | W59: 13
A60: 01530230 | B60: TRUE | D60: Oscillatoria redekei | G60: 0.567 | I60: Oscillatoria redekei | J60: 0.567 | K60: genus | L60: not in training data | N60: FALSE | P60: 01530000 | Q60: 0153 | T60: Oscillatoria | U60: 0.567 | V60: 92.37 | W60: 31
A61: 01530240 | B61: FALSE | D61: Planktothrix cf. rubescens | G61: 0.567 | I61: Planktothrix cf. rubescens | J61: 0.567 | K61: genus | L61: not in training data | N61: FALSE | P61: 01530000 | Q61: 0153 | T61: Oscillatoria | U61: 0.567 | V61: 92.37 | W61: 7
A62: 01530260 | B62: FALSE | D62: Geitlerinema splendida | E62: 0.331 | G62: 0.567 | I62: Geitlerinema splendida | J62: 0.567 | K62: genus | L62: too few records | N62: FALSE | Q62: 0153 | R62: 0.331 | S62: 1 | T62: Oscillatoria | U62: 0.567 | V62: 92.37 | W62: 1
A63: 01530290 | B63: FALSE | D63: Oscillatoria tenuis | G63: 0.567 | I63: Oscillatoria tenuis | J63: 0.567 | K63: genus | L63: not in training data | N63: FALSE | P63: 01530000 | Q63: 0153 | T63: Oscillatoria | U63: 0.567 | V63: 92.37 | W63: 4
A64: 01550000 | B64: FALSE | C64: 1 | D64: Phormidium | F64: 0.188 | H64: Phormidium | J64: 0.188 | K64: genus | N64: FALSE | Q64: 0155 | R64: 0.188 | S64: 1 | T64: Phormidium | U64: 0.188 | V64: 1
A65: 01550170 | B65: FALSE | D65: Phormidium tenue | G65: 0.188 | I65: Phormidium tenue | J65: 0.188 | K65: genus | L65: not in training data | M65: genus optima derived few records | N65: FALSE | P65: 01550000 | Q65: 0155 | T65: Phormidium | U65: 0.188 | V65: 1 | W65: 3
A66: 01570030 | B66: FALSE | D66: Pleurocapsa minor | E66: 0.492 | G66: 0.492 | I66: Pleurocapsa minor | J66: 0.492 | K66: genus | L66: too few records | N66: FALSE | Q66: 0157 | R66: 0.492 | S66: 1 | T66: Pleurocapsa | U66: 0.492 | V66: 1 | W66: 1
A67: 01580000 | B67: TRUE | C67: 1 | D67: Pseudanabaena | F67: 0.503 | H67: Pseudanabaena | J67: 0.503 | K67: genus | N67: FALSE | Q67: 0158 | R67: 0.49 | S67: 33.02 | T67: Pseudanabaena | U67: 0.503 | V67: 31.15 | W67: 87
A68: 01580020 | B68: FALSE | D68: PSEUDANABAENA ACICULARIS | E68: 0.245 | G68: 0.503 | I68: Pseudanabaena acicularis | J68: 0.503 | K68: genus | L68: too few records | N68: FALSE | Q68: 0158 | R68: 0.245 | S68: 1.74 | T68: Pseudanabaena | U68: 0.503 | V68: 31.15 | W68: 2
A69: 01610000 | B69: FALSE | C69: 1 | D69: Rhabdoderma | F69: 0.211 | H69: Rhabdoderma | J69: 0.211 | K69: genus | M69: genus optima derived few records | N69: FALSE | Q69: 0161 | R69: 0.285 | S69: 1 | T69: Rhabdoderma | U69: 0.211 | V69: 1.62 | W69: 1
A70: 01610010 | B70: FALSE | D70: RHABDODERMA LINEARE | E70: 0 | G70: 0.211 | I70: Rhabdoderma lineare | J70: 0.211 | K70: genus | L70: too few records | N70: FALSE | Q70: 0161 | R70: 0 | S70: 1 | T70: Rhabdoderma | U70: 0.211 | V70: 1.62 | W70: 1
A71: 01660000 | B71: FALSE | C71: 1 | K71: species | L71: not in training data | N71: FALSE | Q71: 0166 | T71: Spirulina
A72: 01690000 | B72: FALSE | C72: 1 | D72: Synechococcus | F72: 0.458 | H72: Synechococcus | J72: 0.458 | K72: genus | N72: FALSE | Q72: 0169 | R72: 0.342 | S72: 5.75 | T72: Synechococcus | U72: 0.458 | V72: 6.87 | W72: 13
A73: 01690010 | B73: FALSE | D73: Synechococcus aeruginosus | E73: 0.655 | G73: 0.458 | I73: Synechococcus aeruginosus | J73: 0.458 | K73: genus | L73: too few records | N73: FALSE | Q73: 0169 | R73: 0.655 | S73: 2 | T73: Synechococcus | U73: 0.458 | V73: 6.87 | W73: 2
A74: 01690040 | B74: FALSE | D74: Synechococcus cf. capitatus | G74: 0.458 | I74: Synechococcus cf. capitatus | J74: 0.458 | K74: genus | L74: not in training data | N74: FALSE | P74: 01690000 | Q74: 0169 | T74: Synechococcus | U74: 0.458 | V74: 6.87 | W74: 1
A75: 01700000 | B75: FALSE | C75: 1 | D75: Synechocystis | F75: 0.337 | H75: Synechocystis | J75: 0.337 | K75: genus | M75: genus optima derived few records | N75: FALSE | Q75: 0170 | R75: 0.337 | S75: 1 | T75: Synechocystis | U75: 0.337 | V75: 1 | W75: 3
A76: 01750000 | B76: TRUE | C76: 1 | D76: Snowella | F76: 0.513 | H76: Snowella | J76: 0.513 | K76: genus | N76: FALSE | Q76: 0175 | R76: 0.468 | S76: 39.38 | T76: Snowella | U76: 0.513 | V76: 57.79 | W76: 151
A77: 01750010 | B77: TRUE | D77: Snowella lacustris | E77: 0.639 | I77: Snowella lacustris | J77: 0.639 | K77: species | N77: FALSE | Q77: 0175 | R77: 0.639 | S77: 18.51 | T77: Snowella | U77: 0.513 | V77: 57.79 | W77: 73
A78: 01750020 | B78: TRUE | D78: Snowella septentrionalis | E78: 0.309 | I78: Snowella septentrionalis | J78: 0.309 | K78: species | N78: FALSE | Q78: 0175 | R78: 0.309 | S78: 14.24 | T78: Snowella | U78: 0.513 | V78: 57.79 | W78: 34
A79: 01750030 | B79: TRUE | D79: Snowella atomus | E79: 0.311 | I79: Snowella atomus | J79: 0.311 | K79: species | N79: FALSE | Q79: 0175 | R79: 0.311 | S79: 21.64 | T79: Snowella | U79: 0.513 | V79: 57.79 | W79: 49
A80: 01750040 | B80: FALSE | D80: SNOWELLA LITORALIS | E80: 0.23 | G80: 0.513 | I80: snowella litoralis | J80: 0.513 | K80: genus | L80: too few records | N80: FALSE | Q80: 0175 | R80: 0.23 | S80: 1 | T80: Snowella | U80: 0.513 | V80: 57.79 | W80: 1
A81: 01760000 | B81: FALSE | C81: 1 | D81: Radiocystis | F81: 0.187 | H81: Radiocystis | J81: 0.187 | K81: genus | Q81: 0176 | T81: Radiocystis | U81: 0.187 | V81: 2.62
A82: 01760010 | B82: FALSE | D82: Radiocystis geminata | E82: 0.173 | I82: Radiocystis geminata | J82: 0.173 | K82: species | N82: FALSE | Q82: 0176 | R82: 0.173 | S82: 2.9 | T82: Radiocystis | U82: 0.187 | V82: 2.62 | W82: 3
A83: 01780000 | B83: TRUE | C83: 1 | D83: Woronichinia | F83: 0.503 | H83: Woronichinia | J83: 0.503 | K83: genus | N83: FALSE | Q83: 0178 | R83: 0.47 | S83: 21.74 | T83: Woronichinia | U83: 0.503 | V83: 27.29 | W83: 67
A84: 01780010 | B84: TRUE | D84: Woronichinia naegeliana | E84: 0.526 | I84: Woronichinia naegeliana | J84: 0.526 | K84: species | N84: FALSE | Q84: 0178 | R84: 0.526 | S84: 15.02 | T84: Woronichinia | U84: 0.503 | V84: 27.29 | W84: 44
A85: 01780030 | B85: FALSE | D85: Woronichinia karelica | E85: 0.23 | G85: 0.503 | I85: Woronichinia karelica | J85: 0.503 | K85: genus | L85: too few records | N85: FALSE | Q85: 0178 | R85: 0.23 | S85: 1 | T85: Woronichinia | U85: 0.503 | V85: 27.29 | W85: 1
A86: 04000000 | B86: FALSE | C86: 1 | D86: EUGLENOPHYCEAE | K86: species | L86: not in training data | N86: FALSE | Q86: 0400 | T86: EUGLENOPHYCEAE | W86: 1
A87: 04010000 | B87: FALSE | C87: 1 | D87: COLACIUM | K87: species | L87: not in training data | N87: FALSE | Q87: 0401 | T87: Colacium
A88: 04010020 | B88: FALSE | D88: Colacium vesiculosum | K88: species | L88: not in training data | N88: FALSE | P88: 04010000 | Q88: 0401 | T88: Colacium | W88: 2
A89: 04020000 | B89: TRUE | C89: 1 | D89: Euglena | F89: 0.587 | H89: Euglena | J89: 0.587 | K89: genus | N89: FALSE | Q89: 0402 | R89: 0.578 | S89: 48.92 | T89: Euglena | U89: 0.587 | V89: 47.36 | W89: 151
A90: 04020170 | B90: FALSE | D90: Euglena hemichromata | G90: 0.587 | I90: Euglena hemichromata | J90: 0.587 | K90: genus | L90: not in training data | N90: FALSE | P90: 04020000 | Q90: 0402 | T90: Euglena | U90: 0.587 | V90: 47.36 | W90: 1
A91: 04070000 | B91: TRUE | C91: 1 | D91: Phacus | F91: 0.715 | H91: Phacus | J91: 0.715 | K91: genus | N91: FALSE | Q91: 0407 | R91: 0.711 | S91: 30.31 | T91: Phacus | U91: 0.715 | V91: 29.8 | W91: 96
A92: 04070030 | B92: FALSE | D92: Phacus agilis | E92: 0.942 | G92: 0.715 | I92: Phacus agilis | J92: 0.715 | K92: genus | L92: too few records | N92: FALSE | Q92: 0407 | R92: 0.942 | S92: 1 | T92: Phacus | U92: 0.715 | V92: 29.8 | W92: 1
A93: 04070160 | B93: FALSE | D93: Phacus longicauda | G93: 0.715 | I93: Phacus longicauda | J93: 0.715 | K93: genus | L93: not in training data | N93: FALSE | P93: 04070000 | Q93: 0407 | T93: Phacus | U93: 0.715 | V93: 29.8 | W93: 2
A94: 04070250 | B94: FALSE | D94: Phacus pyrum | G94: 0.715 | I94: Phacus pyrum | J94: 0.715 | K94: genus | L94: not in training data | N94: FALSE | P94: 04070000 | Q94: 0407 | T94: Phacus | U94: 0.715 | V94: 29.8 | W94: 2
A95: 04090000 | B95: TRUE | C95: 1 | D95: Strombomonas | F95: 0.633 | H95: Strombomonas | J95: 0.633 | K95: genus | M95: genus optima derived few records | N95: FALSE | Q95: 0409 | R95: 0.633 | S95: 1 | T95: Strombomonas | U95: 0.633 | V95: 1 | W95: 1
A96: 04100000 | B96: TRUE | C96: 1 | D96: Trachelomonas | F96: 0.621 | H96: Trachelomonas | J96: 0.621 | K96: genus | N96: FALSE | Q96: 0410 | R96: 0.621 | S96: 75.71 | T96: Trachelomonas | U96: 0.621 | V96: 75.46 | W96: 371
A97: 04100120 | B97: FALSE | D97: Trachelomonas globularis | E97: 0.717 | G97: 0.621 | I97: Trachelomonas globularis | J97: 0.621 | K97: genus | L97: too few records | N97: FALSE | Q97: 0410 | R97: 0.717 | S97: 1 | T97: Trachelomonas | U97: 0.621 | V97: 75.46 | W97: 1
A98: 04100150 | B98: FALSE | D98: Trachelomonas hispida | E98: 0.451 | I98: Trachelomonas hispida | J98: 0.451 | K98: species | N98: FALSE | Q98: 0410 | R98: 0.451 | S98: 6.95 | T98: Trachelomonas | U98: 0.621 | V98: 75.46 | W98: 12
A99: 04100153 | B99: FALSE | D99: Trachelomonas hispida v. crenulatocollis | E99: 0.717 | G99: 0.621 | I99: Trachelomonas hispida v. crenulatocollis | J99: 0.621 | K99: genus | L99: too few records | N99: FALSE | Q99: 0410 | R99: 0.717 | S99: 1 | T99: Trachelomonas | U99: 0.621 | V99: 75.46 | W99: 1
A100: 04100160 | B100: FALSE | D100: Trachelomonas intermedia | E100: 0.488 | I100: Trachelomonas intermedia | J100: 0.488 | K100: species | N100: FALSE | Q100: 0410 | R100: 0.488 | S100: 2.96 | T100: Trachelomonas | U100: 0.621 | V100: 75.46 | W100: 6
A101: 04100210 | B101: FALSE | D101: TRACHELOMONAS OBLONGA | E101: 0.195 | G101: 0.621 | I101: Trachelomonas oblonga | J101: 0.621 | K101: genus | L101: too few records | N101: FALSE | Q101: 0410 | R101: 0.195 | S101: 1 | T101: Trachelomonas | U101: 0.621 | V101: 75.46 | W101: 1
A102: 04100230 | B102: FALSE | D102: Trachelomonas polonica | G102: 0.621 | I102: Trachelomonas polonica | J102: 0.621 | K102: genus | L102: not in training data | N102: FALSE | Q102: 0410 | T102: Trachelomonas | U102: 0.621 | V102: 75.46 | W102: 1
A103: 04100270 | B103: FALSE | D103: Trachelomonas rugulosa | G103: 0.621 | I103: Trachelomonas rugulosa | J103: 0.621 | K103: genus | L103: not in training data | N103: FALSE | P103: 04100000 | Q103: 0410 | T103: Trachelomonas | U103: 0.621 | V103: 75.46 | W103: 1
A104: 04100290 | B104: FALSE | D104: Trachelomonas similis | G104: 0.621 | I104: Trachelomonas similis | J104: 0.621 | K104: genus | L104: not in training data | N104: FALSE | P104: 04100000 | Q104: 0410 | T104: Trachelomonas | U104: 0.621 | V104: 75.46 | W104: 4
A105: 04100350 | B105: FALSE | D105: Trachelomonas volvocina | G105: 0.621 | I105: Trachelomonas volvocina | J105: 0.621 | K105: genus | L105: not in training data | N105: FALSE | P105: 04100000 | Q105: 0410 | T105: Trachelomonas | U105: 0.621 | V105: 75.46 | W105: 2
A106: 04100360 | B106: FALSE | D106: Trachelomonas volvocinopsis | E106: 0.506 | I106: Trachelomonas volvocinopsis | J106: 0.506 | K106: species | N106: FALSE | Q106: 0410 | R106: 0.506 | S106: 6.65 | T106: Trachelomonas | U106: 0.621 | V106: 75.46 | W106: 11
A107: 05020000 | B107: TRUE | C107: 1 | D107: Chroomonas | F107: 0.544 | H107: Chroomonas | J107: 0.544 | K107: genus | N107: FALSE | Q107: 0502 | R107: 0.559 | S107: 54.47 | T107: Chroomonas | U107: 0.544 | V107: 60.75 | W107: 188
A108: 05020010 | B108: TRUE | D108: Chroomonas acuta | E108: 0.502 | I108: Chroomonas acuta | J108: 0.502 | K108: species | N108: FALSE | Q108: 0502 | R108: 0.502 | S108: 25.4 | T108: Chroomonas | U108: 0.544 | V108: 60.75 | W108: 73
A109: 05040000 | B109: TRUE | C109: 1 | D109: Cryptomonas | F109: 0.547 | H109: Cryptomonas | J109: 0.547 | K109: genus | N109: FALSE | Q109: 0504 | R109: 0.427 | S109: 27.51 | T109: Cryptomonas | U109: 0.547 | V109: 127.01 | W109: 113
A110: 05040001 | B110: TRUE | D110: Cryptomonas (small) Length <20 µm | E110: 0.53 | I110: Cryptomonas (small) Length <20 µm | J110: 0.53 | K110: species | N110: FALSE | Q110: 0504 | R110: 0.53 | S110: 102.75 | T110: Cryptomonas | U110: 0.547 | V110: 127.01 | W110: 556
A111: 05040002 | B111: TRUE | D111: Cryptomonas (medium) Length 20-30 µm | E111: 0.533 | I111: Cryptomonas (medium) Length 20-30 µm | J111: 0.533 | K111: species | N111: FALSE | Q111: 0504 | R111: 0.533 | S111: 115.79 | T111: Cryptomonas | U111: 0.547 | V111: 127.01 | W111: 754
A112: 05040003 | B112: TRUE | D112: Cryptomonas (large) Length >30 µm | E112: 0.589 | I112: Cryptomonas (large) Length >30 µm | J112: 0.589 | K112: species | N112: FALSE | Q112: 0504 | R112: 0.589 | S112: 86.54 | T112: Cryptomonas | U112: 0.547 | V112: 127.01 | W112: 314
A113: 05040030 | B113: TRUE | D113: Cryptomonas erosa | G113: 0.547 | I113: Cryptomonas erosa | J113: 0.547 | K113: genus | L113: not in training data | N113: FALSE | P113: 05040000 | Q113: 0504 | T113: Cryptomonas | U113: 0.547 | V113: 127.01 | W113: 8
A114: 05040040 | B114: TRUE | D114: Cryptomonas marssonii | E114: 0.631 | I114: Cryptomonas marssonii | J114: 0.631 | K114: species | N114: FALSE | Q114: 0504 | R114: 0.631 | S114: 22.23 | T114: Cryptomonas | U114: 0.547 | V114: 127.01 | W114: 105
A115: 05040050 | B115: TRUE | D115: Cryptomonas ovata | E115: 0.508 | I115: Cryptomonas ovata | J115: 0.508 | K115: species | N115: FALSE | Q115: 0504 | R115: 0.508 | S115: 10.79 | T115: Cryptomonas | U115: 0.547 | V115: 127.01 | W115: 37
A116: 05060000 | B116: FALSE | C116: 1 | D116: Cyathomonas | F116: 0.606 | H116: Cyathomonas | J116: 0.606 | K116: genus | M116: genus optima derived few records | N116: FALSE | Q116: 0506 | R116: 0.607 | S116: 2 | T116: Cyathomonas | U116: 0.606 | V116: 1.99 | W116: 2
A117: 05100000 | B117: TRUE | C117: 1 | D117: Rhodomonas | F117: 0.539 | H117: Rhodomonas | J117: 0.539 | K117: genus | N117: FALSE | Q117: 0510 | R117: 0.517 | S117: 74.06 | T117: Rhodomonas | U117: 0.539 | V117: 122.58 | W117: 309
A118: 05100010 | B118: TRUE | D118: Rhodomonas lacustris | E118: 0.358 | I118: Rhodomonas lacustris | J118: 0.358 | K118: species | N118: FALSE | Q118: 0510 | R118: 0.358 | S118: 32.97 | T118: Rhodomonas | U118: 0.539 | V118: 122.58 | W118: 99
A119: 05100012 | B119: TRUE | D119: Rhodomonas lacustris var. nannoplanctica | E119: 0.473 | I119: Rhodomonas lacustris var. nannoplanctica | J119: 0.473 | K119: species | N119: FALSE | Q119: 0510 | R119: 0.473 | S119: 81.9 | T119: Rhodomonas | U119: 0.539 | V119: 122.58 | W119: 456
A120: 05109910 | B120: TRUE | D120: Rhodomonas lens | G120: 0.539 | I120: Rhodomonas lens | J120: 0.539 | K120: genus | L120: not in training data | N120: FALSE | P120: 05100000 | Q120: 0510 | T120: Rhodomonas | U120: 0.539 | V120: 122.58 | W120: 3
A121: 05110000 | B121: FALSE | C121: 1 | D121: Plagioselmis | F121: 0.355 | H121: Plagioselmis | J121: 0.355 | K121: genus | M121: genus optima derived few records | N121: FALSE | Q121: 0511 | R121: 0.355 | S121: 1 | T121: Plagioselmis | U121: 0.355 | V121: 1 | W121: 3
A122: 06000000 | B122: FALSE | C122: 1 | D122: indet. dinoflagellate | F122: 0.288 | H122: indet. dinoflagellate | J122: 0.288 | K122: group | N122: FALSE | Q122: 0600 | R122: 0.29 | S122: 34.29 | T122: indet. dinoflagellate | U122: 0.288 | V122: 33.94 | W122: 116
A123: 06020000 | B123: FALSE | C123: 1 | D123: CERATIUM | F123: 0.505 | H123: Ceratium | J123: 0.505 | K123: genus | N123: FALSE | Q123: 0602 | R123: 0.266 | S123: 3.92 | T123: Ceratium | U123: 0.505 | V123: 69.04
A124: 06020010 | B124: TRUE | D124: Ceratium carolinianum | G124: 0.505 | I124: Ceratium carolinianum | J124: 0.505 | K124: genus | L124: not in training data | N124: FALSE | Q124: 0602 | T124: Ceratium | U124: 0.505 | V124: 69.04 | W124: 9
A125: 06020020 | B125: TRUE | D125: Ceratium cornutum | G125: 0.505 | I125: Ceratium cornutum | J125: 0.505 | K125: genus | L125: not in training data | N125: FALSE | P125: 06020000 | Q125: 0602 | T125: Ceratium | U125: 0.505 | V125: 69.04 | W125: 5
A126: 06020030 | B126: TRUE | D126: Ceratium furcoides | E126: 0.644 | I126: Ceratium furcoides | J126: 0.644 | K126: species | N126: FALSE | Q126: 0602 | R126: 0.644 | S126: 8.24 | T126: Ceratium | U126: 0.505 | V126: 69.04 | W126: 36
A127: 06020040 | B127: TRUE | D127: Ceratium hirundinella | E127: 0.493 | I127: Ceratium hirundinella | J127: 0.493 | K127: species | N127: FALSE | Q127: 0602 | R127: 0.493 | S127: 66.82 | T127: Ceratium | U127: 0.505 | V127: 69.04 | W127: 293
A128: 06050000 | B128: TRUE | C128: 1 | D128: Glenodinium | F128: 0.561 | H128: Glenodinium | J128: 0.561 | K128: genus | N128: FALSE | Q128: 0605 | R128: 0.558 | S128: 27.16 | T128: Glenodinium | U128: 0.561 | V128: 26.57 | W128: 89
A129: 06070000 | B129: TRUE | C129: 1 | D129: Gymnodinium | F129: 0.46 | H129: Gymnodinium | J129: 0.46 | K129: genus | N129: FALSE | Q129: 0607 | R129: 0.428 | S129: 70.37 | T129: Gymnodinium | U129: 0.46 | V129: 82.29 | W129: 242
A130: 06070060 | B130: FALSE | D130: Gymnodinium fuscum | G130: 0.46 | I130: Gymnodinium fuscum | J130: 0.46 | K130: genus | L130: not in training data | N130: FALSE | Q130: 0607 | T130: Gymnodinium | U130: 0.46 | V130: 82.29 | W130: 2
A131: 06070110 | B131: TRUE | D131: Gymnodinium helveticum | E131: 0.479 | I131: Gymnodinium helveticum | J131: 0.479 | K131: species | N131: FALSE | Q131: 0607 | R131: 0.479 | S131: 31.1 | T131: Gymnodinium | U131: 0.46 | V131: 82.29 | W131: 117
A132: 06100000 | B132: FALSE | C132: 1 | D132: Peridiniopsis cf. elpatiewskyi | F132: 0.406 | H132: Peridiniopsis cf. elpatiewskyi | J132: 0.406 | K132: genus | M132: genus optima derived few records | N132: FALSE | Q132: 0610 | R132: 0.406 | S132: 1 | T132: Peridiniopsis cf. elpatiewskyi | U132: 0.406 | V132: 1 | W132: 2
A133: 06110000 | B133: TRUE | C133: 1 | D133: Peridinium | F133: 0.485 | H133: Peridinium | J133: 0.485 | K133: genus | N133: FALSE | Q133: 0611 | R133: 0.489 | S133: 87.07 | T133: Peridinium | U133: 0.485 | V133: 90.33 | W133: 357
A134: 06110040 | B134: FALSE | D134: PERIDINIUM BIPES | E134: 0.293 | I134: Peridinium bipes | J134: 0.293 | K134: species | N134: FALSE | Q134: 0611 | R134: 0.293 | S134: 5.9 | T134: Peridinium | U134: 0.485 | V134: 90.33 | W134: 15
A135: 06110050 | B135: TRUE | D135: Peridinium cinctum | G135: 0.485 | I135: Peridinium cinctum | J135: 0.485 | K135: genus | L135: not in training data | N135: FALSE | P135: 06110000 | Q135: 0611 | T135: Peridinium | U135: 0.485 | V135: 90.33 | W135: 44
A136: 06110090 | B136: TRUE | D136: Peridinium inconspicum | E136: 0.229 | I136: Peridinium inconspicum | J136: 0.229 | K136: species | N136: FALSE | Q136: 0611 | R136: 0.229 | S136: 17.74 | T136: Peridinium | U136: 0.485 | V136: 90.33 | W136: 48
A137: 06110100 | B137: TRUE | D137: Peridinium willei | E137: 0.332 | I137: Peridinium willei | J137: 0.332 | K137: species | N137: FALSE | Q137: 0611 | R137: 0.332 | S137: 11.84 | T137: Peridinium | U137: 0.485 | V137: 90.33 | W137: 24
A138: 07010000 | B138: FALSE | C138: 1 | D138: Gonyostomum | F138: 0.297 | H138: Gonyostomum | J138: 0.297 | K138: genus | N138: FALSE | Q138: 0701 | R138: 0.291 | S138: 6.58 | T138: Gonyostomum | U138: 0.297 | V138: 6.28 | W138: 2
A139: 07010010 | B139: TRUE | D139: Gonyostomum semen | G139: 0.297 | I139: Gonyostomum semen | J139: 0.297 | K139: genus | L139: not in training data | N139: FALSE | P139: 07010000 | Q139: 0701 | T139: Gonyostomum | U139: 0.297 | V139: 6.28 | W139: 6
A140: 07010020 | B140: FALSE | D140: Gonyostomum cf. latum | G140: 0.297 | I140: Gonyostomum cf. latum | J140: 0.297 | K140: genus | L140: not in training data | N140: FALSE | P140: 07010000 | Q140: 0701 | T140: Gonyostomum | U140: 0.297 | V140: 6.28 | W140: 6
A141: 08010000 | B141: TRUE | C141: 1 | D141: Chrysochromulina | F141: 0.341 | H141: Chrysochromulina | J141: 0.341 | K141: genus | N141: FALSE | Q141: 0801 | R141: 0.325 | S141: 46.26 | T141: Chrysochromulina | U141: 0.341 | V141: 50.04 | W141: 151
A142: 08010010 | B142: TRUE | D142: Chrysochromulina parva | E142: 0.348 | I142: Chrysochromulina parva | J142: 0.348 | K142: species | N142: FALSE | Q142: 0801 | R142: 0.348 | S142: 23.47 | T142: Chrysochromulina | U142: 0.341 | V142: 50.04 | W142: 59
A143: 08040000 | B143: TRUE | C143: 1 | D143: Prymnesium | F143: 0.838 | H143: Prymnesium | J143: 0.838 | K143: genus | M143: genus optima derived few records | N143: FALSE | Q143: 0804 | R143: 0.838 | S143: 1 | T143: Prymnesium | U143: 0.838 | V143: 1 | W143: 6
A144: 09000000 | B144: TRUE | C144: 1 | D144: Chrysophyceae | F144: 0.324 | H144: Chrysophyceae | J144: 0.324 | K144: genus | N144: FALSE | Q144: 0900 | R144: 0.322 | S144: 57.35 | T144: Chrysophyceae | U144: 0.324 | V144: 56.72 | W144: 234
A145: 09030000 | B145: TRUE | C145: 1 | D145: Bitrichia | F145: 0.288 | H145: Bitrichia | J145: 0.288 | K145: genus | N145: FALSE | Q145: 0903 | R145: 0.297 | S145: 36.03 | T145: Bitrichia | U145: 0.288 | V145: 41.29 | W145: 130
A146: 09030010 | B146: TRUE | D146: Bitrichia chodatii | E146: 0.235 | I146: Bitrichia chodatii | J146: 0.235 | K146: species | N146: FALSE | Q146: 0903 | R146: 0.235 | S146: 25.26 | T146: Bitrichia | U146: 0.288 | V146: 41.29 | W146: 69
A147: 09030020 | B147: TRUE | D147: Bitrichia longispina | G147: 0.288 | I147: Bitrichia longispina | J147: 0.288 | K147: genus | L147: not in training data | N147: FALSE | P147: 09030000 | Q147: 0903 | T147: Bitrichia | U147: 0.288 | V147: 41.29 | W147: 3
A148: 09050000 | B148: TRUE | C148: 1 | D148: Chromulina | F148: 0.41 | H148: Chromulina | J148: 0.41 | K148: genus | N148: FALSE | Q148: 0905 | R148: 0.401 | S148: 44.11 | T148: Chromulina | U148: 0.41 | V148: 42.7 | W148: 124
A149: 09050030 | B149: TRUE | D149: Chromulina nebulosa | G149: 0.41 | I149: Chromulina nebulosa | J149: 0.41 | K149: genus | L149: not in training data | N149: FALSE | P149: 09050000 | Q149: 0905 | T149: Chromulina | U149: 0.41 | V149: 42.7 | W149: 5
A150: 09060000 | B150: TRUE | C150: 1 | D150: Chrysamoeba | F150: 0.256 | H150: Chrysamoeba | J150: 0.256 | K150: genus | N150: FALSE | Q150: 0906 | R150: 0.255 | S150: 4.98 | T150: Chrysamoeba | U150: 0.256 | V150: 4.98 | W150: 6
A151: 09080000 | B151: TRUE | C151: 1 | D151: Chrysidiastrum | F151: 0.276 | H151: Chrysidiastrum | J151: 0.276 | K151: genus | N151: FALSE | Q151: 0908 | R151: 0.304 | S151: 5.97 | T151: Chrysidiastrum | U151: 0.276 | V151: 17.76 | W151: 13
A152: 09080010 | B152: TRUE | D152: Chrysidiastrum catenatum | E152: 0.267 | I152: Chrysidiastrum catenatum | J152: 0.267 | K152: species | N152: FALSE | Q152: 0908 | R152: 0.267 | S152: 15.18 | T152: Chrysidiastrum | U152: 0.276 | V152: 17.76 | W152: 27
A153: 09130000 | B153: TRUE | C153: 1 | D153: Chrysococcus | F153: 0.427 | H153: Chrysococcus | J153: 0.427 | K153: genus | N153: FALSE | Q153: 0913 | R153: 0.424 | S153: 50 | T153: Chrysococcus | U153: 0.427 | V153: 50.04 | W153: 168
A154: 09130010 | B154: FALSE | D154: Chrysococcus cordiformis | E154: 0.157 | I154: Chrysococcus cordiformis | J154: 0.157 | K154: species | N154: FALSE | Q154: 0913 | R154: 0.157 | S154: 7.45 | T154: Chrysococcus | U154: 0.427 | V154: 50.04 | W154: 12
A155: 09130050 | B155: FALSE | D155: Chrysococcus rufescens | G155: 0.427 | I155: Chrysococcus rufescens | J155: 0.427 | K155: genus | L155: not in training data | N155: FALSE | P155: 09130000 | Q155: 0913 | T155: Chrysococcus | U155: 0.427 | V155: 50.04 | W155: 3
A156: 09130070 | B156: FALSE | D156: Chrysococcus biporus | G156: 0.427 | I156: Chrysococcus biporus | J156: 0.427 | K156: genus | L156: not in training data | N156: FALSE | P156: 09130000 | Q156: 0913 | T156: Chrysococcus | U156: 0.427 | V156: 50.04 | W156: 4
A157: 09150000 | B157: TRUE | C157: 1 | D157: Chrysolykos | F157: 0.233 | H157: Chrysolykos | J157: 0.233 | K157: genus | N157: FALSE | Q157: 0915 | R157: 0.235 | S157: 11.64 | T157: Chrysolykos | U157: 0.233 | V157: 19.22 | W157: 35
A158: 09150010 | B158: TRUE | D158: Chrysolykos planctonicus | E158: 0.245 | I158: Chrysolykos planctonicus | J158: 0.245 | K158: species | N158: FALSE | Q158: 0915 | R158: 0.245 | S158: 7.71 | T158: Chrysolykos | U158: 0.233 | V158: 19.22 | W158: 16
A159: 09150020 | B159: FALSE | D159: Chrysolykos skujae | E159: 0.122 | I159: Chrysolykos skujae | J159: 0.122 | K159: species | N159: FALSE | Q159: 0915 | R159: 0.122 | S159: 7.84 | T159: Chrysolykos | U159: 0.233 | V159: 19.22 | W159: 14
A160: 09230000 | B160: TRUE | C160: 1 | D160: Dinobryon | F160: 0.411 | H160: Dinobryon | J160: 0.411 | K160: genus | N160: FALSE | Q160: 0923 | R160: 0.429 | S160: 60.47 | T160: Dinobryon | U160: 0.411 | V160: 85.13 | W160: 210
A161: 09230010 | B161: TRUE | D161: Dinobryon bavaricum | E161: 0.328 | I161: Dinobryon bavaricum | J161: 0.328 | K161: species | N161: FALSE | Q161: 0923 | R161: 0.328 | S161: 31.06 | T161: Dinobryon | U161: 0.411 | V161: 85.13 | W161: 112
A162: 09230030 | B162: TRUE | D162: Dinobryon crenulatum | E162: 0.201 | I162: Dinobryon crenulatum | J162: 0.201 | K162: species | N162: FALSE | Q162: 0923 | R162: 0.201 | S162: 30.98 | T162: Dinobryon | U162: 0.411 | V162: 85.13 | W162: 99
A163: 09230040 | B163: TRUE | D163: Dinobryon cylindricum | E163: 0.211 | I163: Dinobryon cylindricum | J163: 0.211 | K163: species | N163: FALSE | Q163: 0923 | R163: 0.211 | S163: 16.55 | T163: Dinobryon | U163: 0.411 | V163: 85.13 | W163: 40
A164: 09230050 | B164: TRUE | D164: Dinobryon divergens | E164: 0.392 | I164: Dinobryon divergens | J164: 0.392 | K164: species | N164: FALSE | Q164: 0923 | R164: 0.392 | S164: 47.72 | T164: Dinobryon | U164: 0.411 | V164: 85.13 | W164: 186
A165: 09230052 | B165: TRUE | D165: Dinobryon divergens var. schauninslandii | E165: 0.318 | I165: Dinobryon divergens var. schauninslandii | J165: 0.318 | K165: species | N165: FALSE | Q165: 0923 | R165: 0.318 | S165: 8.17 | T165: Dinobryon | U165: 0.411 | V165: 85.13 | W165: 19
A166: 09230070 | B166: TRUE | D166: Dinobryon sertularia | F166: 0.411 | G166: 0.411 | I166: Dinobryon sertularia | J166: 0.411 | K166: genus | L166: not in training data | N166: FALSE | P166: 09230000 | Q166: 0923 | T166: Dinobryon | U166: 0.411 | V166: 85.13 | W166: 14
A167: 09230080 | B167: TRUE | D167: Dinobryon sociale | E167: 0.41 | I167: Dinobryon sociale | J167: 0.41 | K167: species | N167: FALSE | Q167: 0923 | R167: 0.41 | S167: 24.25 | T167: Dinobryon | U167: 0.411 | V167: 85.13 | W167: 64
A168: 09230090 | B168: TRUE | D168: Dinobryon suecicum | E168: 0.233 | I168: Dinobryon suecicum | J168: 0.233 | K168: species | N168: FALSE | Q168: 0923 | R168: 0.233 | S168: 16.51 | T168: Dinobryon | U168: 0.411 | V168: 85.13 | W168: 44
A169: 09230110 | B169: TRUE | D169: Dinobryon borgei | E169: 0.205 | I169: Dinobryon borgei | J169: 0.205 | K169: species | N169: FALSE | Q169: 0923 | R169: 0.205 | S169: 26.3 | T169: Dinobryon | U169: 0.411 | V169: 85.13 | W169: 73
A170: 09250000 | B170: TRUE | C170: 1 | D170: Epipyxis | F170: 0.411 | H170: Epipyxis | J170: 0.411 | K170: genus | N170: FALSE | Q170: 0925 | R170: 0.405 | S170: 10.33 | T170: Epipyxis | U170: 0.411 | V170: 9.99 | W170: 18
A171: 09290000 | B171: FALSE | C171: 1 | D171: Kephyrion | F171: 0.434 | H171: Kephyrion | J171: 0.434 | K171: genus | N171: FALSE | Q171: 0929 | R171: 0.439 | S171: 60.3 | T171: Kephyrion | U171: 0.434 | V171: 59.29 | W171: 202
A172: 09290010 | B172: FALSE | D172: Kephyrion littorale | G172: 0.434 | I172: Kephyrion littorale | J172: 0.434 | K172: genus | L172: not in training data | N172: FALSE | P172: 09290000 | Q172: 0929 | T172: Kephyrion | U172: 0.434 | V172: 59.29 | W172: 2
A173: 09290030 | B173: FALSE | D173: KEPHYRION RUBRI-CLAUSTRI | E173: 0.245 | G173: 0.434 | I173: kephyrion rubri-claustri | J173: 0.434 | K173: genus | L173: too few records | N173: FALSE | Q173: 0929 | R173: 0.245 | S173: 1 | T173: Kephyrion | U173: 0.434 | V173: 59.29 | W173: 1
A174: 09290040 | B174: FALSE | D174: Kephyrion boreale | E174: 0.178 | I174: Kephyrion boreale | J174: 0.178 | K174: species | N174: FALSE | Q174: 0929 | R174: 0.178 | S174: 5.73 | T174: Kephyrion | U174: 0.434 | V174: 59.29 | W174: 12
A175: 09290050 | B175: FALSE | D175: Kephyrion cupuliforme | E175: 0.121 | I175: Kephyrion cupuliforme | J175: 0.121 | K175: species | N175: FALSE | Q175: 0929 | R175: 0.121 | S175: 5.76 | T175: Kephyrion | U175: 0.434 | V175: 59.29 | W175: 9
A176: 09290060 | B176: FALSE | D176: Kephyrion skujae | E176: 0.231 | I176: Kephyrion skujae | J176: 0.231 | K176: species | N176: FALSE | Q176: 0929 | R176: 0.231 | S176: 5.83 | T176: Kephyrion | U176: 0.434 | V176: 59.29 | W176: 8
A177: 09290070 | B177: FALSE | D177: Kephyrion spirale | G177: 0.434 | I177: Kephyrion spirale | J177: 0.434 | K177: genus | L177: not in training data | N177: FALSE | P177: 09290000 | Q177: 0929 | T177: Kephyrion | U177: 0.434 | V177: 59.29 | W177: 10
A178: 09290080 | B178: FALSE | D178: KEPHYRION OVUM | G178: 0.434 | I178: KEPHYRION OVUM | J178: 0.434 | K178: genus | L178: not in training data | N178: FALSE | Q178: 0929 | T178: Kephyrion | U178: 0.434 | V178: 59.29 | W178: 1
A179: 09310000 | B179: TRUE | C179: 1 | D179: Mallomonas | F179: 0.452 | H179: Mallomonas | J179: 0.452 | K179: genus | N179: FALSE | Q179: 0931 | R179: 0.445 | S179: 85.23 | T179: Mallomonas | U179: 0.452 | V179: 87.16 | W179: 406
A180: 09310010 | B180: FALSE | D180: Mallomonas cf acaroides | G180: 0.452 | I180: Mallomonas cf acaroides | J180: 0.452 | K180: genus | L180: not in training data | N180: FALSE | P180: 09310000 | Q180: 0931 | T180: Mallomonas | U180: 0.452 | V180: 87.16
A181: 09310030 | B181: TRUE | D181: Mallomonas akrokomos | E181: 0.473 | I181: Mallomonas akrokomos | J181: 0.473 | K181: species | N181: FALSE | Q181: 0931 | R181: 0.473 | S181: 20.48 | T181: Mallomonas | U181: 0.452 | V181: 87.16 | W181: 64
A182: 09310080 | B182: TRUE | D182: Mallomonas caudata | E182: 0.346 | I182: Mallomonas caudata | J182: 0.346 | K182: species | N182: FALSE | Q182: 0931 | R182: 0.346 | S182: 26.15 | T182: Mallomonas | U182: 0.452 | V182: 87.16 | W182: 40
A183: 09310380 | B183: FALSE | D183: Mallomonas cf. teilingii | G183: 0.452 | I183: Mallomonas cf. teilingii | J183: 0.452 | K183: genus | L183: not in training data | N183: FALSE | P183: 09310000 | Q183: 0931 | T183: Mallomonas | U183: 0.452 | V183: 87.16 | W183: 1
A184: 09310400 | B184: FALSE | D184: Mallomonas tonsurata | G184: 0.452 | I184: Mallomonas tonsurata | J184: 0.452 | K184: genus | L184: not in training data | N184: FALSE | P184: 09310000 | Q184: 0931 | T184: Mallomonas | U184: 0.452 | V184: 87.16 | W184: 1
A185: 09330000 | B185: FALSE | C185: 1 | D185: Monochrysis | F185: 0.23 | H185: Monochrysis | J185: 0.23 | K185: genus | N185: FALSE | Q185: 0933 | R185: 0.23 | S185: 25.93 | T185: Monochrysis | U185: 0.23 | V185: 24.48 | W185: 75
A186: 09350000 | B186: TRUE | C186: 1 | D186: Ochromonas | F186: 0.409 | H186: Ochromonas | J186: 0.409 | K186: genus | N186: FALSE | Q186: 0935 | R186: 0.404 | S186: 26.88 | T186: Ochromonas | U186: 0.409 | V186: 25.68 | W186: 62
A187: 09370000 | B187: TRUE | C187: 1 | D187: Phaeaster | F187: 0.252 | H187: Phaeaster | J187: 0.252 | K187: genus | N187: FALSE | Q187: 0937 | R187: 0.243 | S187: 9.76 | T187: Phaeaster | U187: 0.252 | V187: 13.41 | W187: 28
A188: 09370020 | B188: FALSE | D188: PHAEASTER APHANASTER | E188: 0.283 | I188: Phaeaster aphanaster | J188: 0.283 | K188: species | N188: FALSE | Q188: 0937 | R188: 0.283 | S188: 3.92 | T188: Phaeaster | U188: 0.252 | V188: 13.41 | W188: 7
A189: 09430000 | B189: TRUE | C189: 1 | D189: Pseudokephyrion | F189: 0.345 | H189: Pseudokephyrion | J189: 0.345 | K189: genus | N189: FALSE | Q189: 0943 | R189: 0.348 | S189: 16.09 | T189: Pseudokephyrion | U189: 0.345 | V189: 16.23 | W189: 32
A190: 09430060 | B190: FALSE | D190: Pseudokephyrion ruttneri | G190: 0.345 | I190: Pseudokephyrion ruttneri | J190: 0.345 | K190: genus | L190: not in training data | N190: FALSE | P190: 09430000 | Q190: 0943 | T190: Pseudokephyrion | U190: 0.345 | V190: 16.23 | W190: 1
A191: 09430090 | B191: FALSE | D191: PSEUDOKEPHYRION CONICUM | E191: 0.245 | G191: 0.345 | I191: pseudokephyrion conicum | J191: 0.345 | K191: genus | L191: too few records | N191: FALSE | Q191: 0943 | R191: 0.245 | S191: 1 | T191: Pseudokephyrion | U191: 0.345 | V191: 16.23 | W191: 1
A192: 09430100 | B192: FALSE | D192: PSEUDOKEPHYRION TATRICUM | E192: 0.179 | I192: pseudokephyrion tatricum | J192: 0.179 | K192: species | N192: FALSE | Q192: 0943 | R192: 0.179 | S192: 2.94 | T192: Pseudokephyrion | U192: 0.345 | V192: 16.23 | W192: 4
A193: 09450000 | B193: TRUE | C193: 1 | D193: Spiniferomonas | F193: 0.211 | H193: Spiniferomonas | J193: 0.211 | K193: genus | N193: FALSE | Q193: 0945 | R193: 0.206 | S193: 17.21 | T193: Spiniferomonas | U193: 0.211 | V193: 16.52 | W193: 35
A194: 09480000 | B194: TRUE | C194: 1 | D194: Stichogloea | F194: 0.293 | H194: Stichogloea | J194: 0.293 | K194: genus | N194: FALSE | Q194: 0948 | R194: 0.289 | S194: 31.18 | T194: Stichogloea | U194: 0.293 | V194: 31.49 | W194: 83
A195: 09480010 | B195: FALSE | D195: STICHOGLOEA DOEDERLEINII | E195: 0.244 | G195: 0.293 | I195: Stichogloea doederleinii | J195: 0.293 | K195: genus | L195: too few records | N195: FALSE | Q195: 0948 | R195: 0.244 | S195: 1 | T195: Stichogloea | U195: 0.293 | V195: 31.49 | W195: 1
A196: 09530000 | B196: TRUE | C196: 1 | D196: Synura | F196: 0.365 | H196: Synura | J196: 0.365 | K196: genus | N196: FALSE | Q196: 0953 | R196: 0.363 | S196: 29.49 | T196: Synura | U196: 0.365 | V196: 29.02 | W196: 74
A197: 09540000 | B197: TRUE | C197: 1 | D197: Uroglena | F197: 0.443 | H197: Uroglena | J197: 0.443 | K197: genus | N197: FALSE | Q197: 0954 | R197: 0.435 | S197: 21.66 | T197: Uroglena | U197: 0.443 | V197: 20.73 | W197: 59
A198: 09550000 | B198: FALSE | C198: 1 | D198: Pseudopedinella | F198: 0.372 | H198: Pseudopedinella | J198: 0.372 | K198: genus | N198: FALSE | Q198: 0955 | T198: Pseudopedinella | U198: 0.372 | V198: 73.54
A199: 09559900 | B199: FALSE | D199: Pseudopedinella | E199: 0.274 | G199: 0.372 | I199: Pseudopedinella | J199: 0.372 | K199: genus | L199: uncertain what taxon this refers to | N199: FALSE | Q199: 0955 | R199: 0.274 | S199: 50.59 | T199: Pseudopedinella | U199: 0.372 | V199: 73.54 | W199: 177
A200: 09559910 | B200: TRUE | D200: Pseudopedinella (small <5um) | E200: 0.471 | I200: Pseudopedinella (small <5um) | J200: 0.471 | K200: species | N200: FALSE | Q200: 0955 | R200: 0.471 | S200: 24.1 | T200: Pseudopedinella | U200: 0.372 | V200: 73.54 | W200: 60
... 454 more rows

Sheet LU
B1: Cyan Boundaries LA, MA lakes | G1: Cyan Boundaries HA lakes | L1: PTI Lake Types | O1: PTI Normalisation parameters | R1: UK Type | S1: RefPTI median
A2: UAnch | B2: 30 | C2: EQR | D2: Class Wth | E2: NormEQR | G2: 30 | H2: EQR | I2: Class Wth | J2: NormEQR | L2: CoreType&Humic | M2: PTI_TYPE | O2: PTI_TYPE | P2: a | Q2: c | R2: HAS | S2: 0.484
A3: Ref | B3: 0 | C3: 0 | D3: 0.13 | E3: 0 | G3: 0.01 | H3: 0 | I3: 0.21 | J3: 0 | L3: HADC | M3: 2 | O3: 1 | P3: 0.0407 | Q3: 0.1551 | R3: HAVS | S3: 0.5005
A4: PB | B4: 5.62 | C4: =ROUND((LOG(B4+0.0001)-LOG(B$2+0.0001))/(LOG(B$3+0.0001)-LOG(B$2+0.0001)),2) -> 0.13 | D4: 0.1 | E4: 0.2 | G4: 5.62 | H4: =ROUND((LOG(G4+0.0001)-LOG(G$2+0.0001))/(LOG(G$3+0.0001)-LOG(G$2+0.0001)),2) -> 0.21 | I4: 0.13 | J4: 0.2 | L4: HASC | M4: 2 | O4: 2 | P4: 0.0898 | Q4: 0.1538 | R4: LAD | S4: 0.42
A5: MP | B5: 1.58 | C5: =ROUND((LOG(B5+0.0001)-LOG(B$2+0.0001))/(LOG(B$3+0.0001)-LOG(B$2+0.0001)),2) -> 0.23 | D5: 0.09 | E5: 0.4 | G5: 2 | H5: =ROUND((LOG(G5+0.0001)-LOG(G$2+0.0001))/(LOG(G$3+0.0001)-LOG(G$2+0.0001)),2) -> 0.34 | I5: 0.09 | J5: 0.4 | L5: HAVSC | M5: 1 | O5: 3 | P5: 0.1389 | Q5: 0.1515 | R5: LAS | S5: 0.44
A6: GM | B6: 0.56 | C6: =ROUND((LOG(B6+0.0001)-LOG(B$2+0.0001))/(LOG(B$3+0.0001)-LOG(B$2+0.0001)),2) -> 0.32 | D6: 0.15 | E6: 0.6 | G6: 1 | H6: =ROUND((LOG(G6+0.0001)-LOG(G$2+0.0001))/(LOG(G$3+0.0001)-LOG(G$2+0.0001)),2) -> 0.43 | I6: 0.2 | J6: 0.6 | L6: HASH | M6: 2 | O6: 4 | P6: 0.1512 | Q6: 0.1508 | R6: LAVS | S6: 0.46
A7: HG | B7: 0.08 | C7: =ROUND((LOG(B7+0.0001)-LOG(B$2+0.0001))/(LOG(B$3+0.0001)-LOG(B$2+0.0001)),2) -> 0.47 | D7: 0.53 | E7: 0.8 | G7: 0.2 | H7: =ROUND((LOG(G7+0.0001)-LOG(G$2+0.0001))/(LOG(G$3+0.0001)-LOG(G$2+0.0001)),2) -> 0.63 | I7: 0.37 | J7: 0.8 | L7: HAVSH | M7: 1 | O7: 5 | P7: 0.2004 | Q7: 0.147 | R7: MAD | S7: 0.4425
L8: LADC | M8: 5 | R8: MarlS | S8: 0.489
L9: LADH | M9: 3 | R9: MarlVS | S9: 0.499
L10: LASC | M10: 5 | R10: MAS | S10: 0.465
L11: LASH | M11: 4 | R11: MAVS | S11: 0.4835
L12: LAVSC | M12: 3
L13: LAVSH | M13: 2
L14: MADC | M14: 3
L15: MADH | M15: 3
L16: MarlSC | M16: 3
L17: MarlSH | M17: 3
L18: MarlVSC | M18: 2
L19: MarlVSH | M19: 2
L20: MASC | M20: 3
L21: MASH | M21: 3
L22: MAVSC | M22: 2
L23: MAVSH | M23: 2
A26: Chla Lake Types | M26: 1 | P26: 2 | S26: 3 | V26: 4 | Y26: 5
F27: GIG_Type_Phyto | G27: MinRef | H27: MaxRef | I27: MinGRef | J27: MaxGRef | M27: HAS MarlS | P27: All VS | S27: MAD MAS | V27: LAS | Y27: LAD
A28: CoreType&Humic | B28: GIG_Type_Phyto | C28: EQR_Type | D28: Type Geo Chl Ref | F28: L | I28: 1.3 | J28: 6 | M28: EQR Bound | N28: Class Width | O28: N EQR | P28: EQR Bound | Q28: Class Width | R28: N EQR | S28: EQR Bound | T28: Class Width | U28: N EQR | V28: EQR Bound | W28: Class Width | X28: N EQR | Y28: EQR Bound | Z28: Class Width | AA28: N EQR
A29: HADC | B29: L | C29: 1 | D29: 3.1 | F29: L-CB1 | G29: 2.6 | H29: 3.8 | I29: =G29/EXP(0.5*(2.323*0.285)^2) -> 2.088305629 | J29: =ROUND(H29/EXP(0.5*(2.323*0.285)^2),1) -> 3.1 | M29: 0 | N29: =M30-M29 -> 0.05 | O29: 0 | P29: 0 | Q29: =P30-P29 -> 0.05 | R29: 0 | S29: 0 | T29: =S30-S29 -> 0.05 | U29: 0 | V29: 0 | W29: =V30-V29 -> 0.05 | X29: 0 | Y29: 0 | Z29: =Y30-Y29 -> 0.05 | AA29: 0
A30: HASC | B30: L-CB1 | C30: 1 | D30: 2.3 | F30: L-CB2 | G30: 6.2 | H30: 7.4 | I30: =G30/EXP(0.5*(2.323*0.285)^2) -> 4.979805732 | J30: =ROUND(H30/EXP(0.5*(2.323*0.285)^2),1) -> 5.9 | L30: PB | M30: 0.05 | N30: =M31-M30 -> 0.11 | O30: 0.2 | P30: 0.05 | Q30: =P31-P30 -> 0.1 | R30: 0.2 | S30: 0.05 | T30: =S31-S30 -> 0.12 | U30: 0.2 | V30: 0.05 | W30: =V31-V30 -> 0.1 | X30: 0.2 | Y30: 0.05 | Z30: =Y31-Y30 -> 0.12 | AA30: 0.2
A31: HASH | B31: L-CB1 | C31: 1 | D31: 2.3 | F31: L-N1 | G31: 2.5 | H31: 3.5 | I31: =G31/EXP(0.5*(2.323*0.213)^2) -> 2.211957139 | J31: 3.096739994 | L31: MP | M31: 0.16 | N31: =M32-M31 -> 0.16 | O31: 0.4 | P31: 0.15 | Q31: =P32-P31 -> 0.15 | R31: 0.4 | S31: 0.17 | T31: =S32-S31 -> 0.16 | U31: 0.4 | V31: 0.15 | W31: =V32-V31 -> 0.14 | X31: 0.4 | Y31: 0.17 | Z31: =Y32-Y31 -> 0.16 | AA31: 0.4
A32: HAVSC | B32: L-CB2 | C32: 2 | D32: 4.4 | F32: L-N2a | G32: 1.5 | H32: 2.5 | I32: 1.327174283 | J32: 2.211957139 | L32: GM | M32: 0.32 | N32: =M33-M32 -> 0.23 | O32: 0.6 | P32: 0.3 | Q32: =P33-P32 -> 0.33 | R32: 0.6 | S32: 0.33 | T32: =S33-S32 -> 0.17 | U32: 0.6 | V32: 0.29 | W32: =V33-V32 -> 0.35 | X32: 0.6 | Y32: 0.33 | Z32: =Y33-Y32 -> 0.31 | AA32: 0.6
